Workbook

Sheet Tracker
B1: =IF(OR(D2="",D3=""),"Enter your Name, FIN, and Start Date below...","Juice Plus+ 10-1-10 Tracker for "&D2) -> Enter your Name, FIN, and Start Date below... | L1: =" "&TEXT(TODAY(),"mmmm") -> July | M1: Column 6 Increase | N1: Column 4 Increase | O1: TB Bonuses | P1: # of Orders | Q1: Retail Profit | R1: Promotional PVC | U1: 19 | V1: 20 | W1: 21 | X1: 22 | Y1: 23 | Z1: 24 | AB1: 25 | AC1: 26 | AD1: 27 | AE1: 28 | AF1: 29 | AG1: 30 | AH1: 31 | AI1: 32 | AJ1: 33 | AK1: 34 | AL1: 35 | AM1: 36 | AP1: 37 | AX1: 38 | AY1: 39 | AZ1: 40 | BB1: 41 | BC1: 42 | BD1: 43 | BE1: 44 | BF1: 45 | BG1: 46 | BJ1: 47 | BK1: 48 | BL1: 49 | BM1: 50 | BN1: 50 | BO1: 51
A2: To use this tracker, simply enter your information in the soft-yellow cells. Everything else is calculated for you. | B2: Your Name: | E2: Keep going - You can make it !!! | H2: =IF(I6<999,"You only need "&ROUND(1000-I6,0)&" Posted PVC to be qualified.","Congratulations! You're now a Qualified Business!") -> You only need 1000 Posted PVC to be qualified. | L2: Set Monthly Goal | O2: =MONTH(TODAY()) -> 7 | R2: 2000 | AF2: Col Y - Cond 4 if's | AJ2: Column for | AM2: Total Units | AN2: Formula | AQ2: Col AN | AR2: Col AN | AS2: Col AM | AT2: Col AM | AU2: Formula | AV2: Col E
B3: Your FIN: | L3: Your Customers | M3: =SUM(BG8:BG104) -> 0 | N3: =SUM(BG8:BG104) -> 0 | O3: FT $300 / $600 | P3: =SUM(BF8:BF104) -> 0 | Q3: =SUM(BJ8:BJ104) -> 0 | R3: =SUM(BH8:BH104) -> 0 | AF3: Based on Conditions | AJ3: 6 MO Sumary | AM3: All Months | AN3: For | AQ3: x Col F | AR3: x Col H | AS3: x Col F | AT3: x Col H | AU3: For | AV3: Retail | AX3: Dawn | BI3: Col AL # Units
B4: Type in Official Start Date: | C4: =TODAY() -> 2018-07-18 | E4: 60 Day Target PVC: | G4: 2000 | L4: Dist Customers | N4: =SUM(BM8:BM104) -> 0 | O4: You + 2 = $100 | P4: =SUM(BL8:BL104) -> 0 | Q4: =SUM(BO8:BO104) -> 0 | R4: =SUM(BN8:BN104) -> 0 | AJ4: Table | AN4: Blanks | AO4: Col A | AP4: Col A | AQ4: Your Units | AR4: Your Units | AS4: Dist | AT4: Dist | AU4: Blanks | AV4: Profit | AW4: Your | AX4: 2012-12-12
B5: 30-day HLP Bonus ($100): | C5: =C4+30 -> 2018-08-17 | D5: =C5-TODAY()&" day 500/3 Households = $100 bonus" -> 30 day 500/3 Households = $100 bonus | E5: Your Curent Total PVC: | G5: =MAX(G8:G104) -> 0 | H5: Goal 1000 PVC Col 4 PBQ | I5: Monthly Total: | L5: Column Totals | M5: =SUM(M3:M4) -> 0 | N5: =SUM(N3:N4) -> 0 | P5: =SUM(P3:P4) -> 0 | R5: =SUM(R3:R4) -> 0 | Z5: Col H | AA5: Col F | AB5: All Retail Profit | AC5: # Units | AD5: Retail P by Month | AF5: Total Products | AG5: Col C | AI5: Like Col S | AJ5: Total Orders | AN5: Can | AO5: Dist Units | AP5: Your | AQ5: time | AR5: time | AS5: Units | AT5: Units | AU5: Can | AV5: No | AW5: Retail | AX5: All Monthly | AY5: All Monthly | AZ5: All Monthly | BA5: All Monthly | BB5: All Monthly | BC5: Your PVC | BD5: Your R Profit | BE5: Your Monthly | BF5: Your Monthly | BG5: Your Monthly | BH5: Your Monthly | BI5: Your All Months | BJ5: Your Monthly | BK5: Dist Monthly | BL5: Dist Monthly | BM5: Dist Monthly | BN5: Dist Monthly | BO5: Dist Retail P
B6: 30-60-day Bonus ($300): | C6: =C4+60 -> 2018-09-16 | D6: =C6-TODAY()&" day 2000+/8 Households = $300 bonus" -> 60 day 2000+/8 Households = $300 bonus | E6: Remaining PVC Needed: | G6: =IF(G4-G5<0,"You Did It!",G4-G5) -> 2000 | I6: =SUM(H8:H104)+(D4) -> 0 | L6: =IF(AND(Q5>249),"Congratulations!",IF(AND(Q5<250),"You Can Do It!")) -> You Can Do It! | M6: =IF(AND(M3>125,M4>125,M5<500),"Great Customers and a New DD!!!",IF(AND(N3>10,N4>10,N5<500),"Both Cust and Dist!",IF(AND(N4>250,N3<125),"Great Dist Launch!",IF(AND(N3>249,N4<125),"Great Customer Aquisition!",IF(AND(N5>500),"You Doubled your Goal…",IF(AND(N5<250)," ")))))) ->  | P6: =IF(AND(N3>125,N4>125,N5<500),"Great Customers and a New DD!!!",IF(AND(N3>10,N4>10,N5<500),"Both Cust and Dist!",IF(AND(N4>250,N3<125),"Great Dist Launch!",IF(AND(N3>249,N4<125),"Great Customer Aquisition!",IF(AND(N5>500),"You Doubled your Goal…",IF(AND(Q5<250)," ")))))) ->  | U6: All Products | V6: Dist. Lister | W6: Dist. Products | X6: List Data | Y6: Months | Z6: Post PVC | AA6: Promo PVC | AB6: Col E | AC6: by Mo | AD6: Sum = Cell 2P | AF6: Every Month | AG6: Text | AI6: For all Months | AJ6: No Blanks | AM6: Total Units | AN6: Use | AO6: Using | AP6: Units | AQ6: Promo PVC | AR6: Posted PVC | AS6: Promo | AT6: Posted | AU6: Use | AV6: Blanks | AW6: Profit | AX6: Products | AY6: Units | AZ6: PVC | BA6: Promo PVC | BB6: Retail Profit | BC6: WRONG | BD6: Wrong | BE6: Products | BF6: Units | BG6: PVC | BH6: Promo PVC | BI6: Promo PVC | BJ6: Retail Profit | BK6: Products | BL6: Units | BM6: PVC | BN6: PVC | BO6: Retail Profit
A7: Each Month List Name of New Dist & List Customer | B7: Customer Name (the more the better!) | C7: Order Date | D7: Product Ordered (click to select options) | E7: Estimated Retail Profit | F7: Promo PVC | G7: Cumulative Promo PVC | H7: Mo Installment Posted PVC | I7: Cumulative Posted Mo PVC | K7: Product | L7: Promo PVC | M7: Posted PVC | N7: Installment Posted PVC | O7: Product Count | P7: Retail Profit | Q7: Mo Installment Unless Pay in Full | R7: Offset Your Cost with Bonuses | U7: DO NOT CHANGE ANYTHING IN ANY OF THESE COLUMNS | AF7: Total TBB # of Products (Trio =2) | AJ7: Total TBB # of Products (Trio =2) | AK7: Product | AL7: Each 5-1 Count = 1 | AM7: Total # Oders Entered ( Trio=1) | BB7: Do not change anything here either | BQ7: Don’t Delete Used for FT SC Vo
E8: =IF(D8="",0,INDEX($K$8:$P$68,MATCH(D8,product,0),6)) -> 0 | F8: =IF(D8="",0,INDEX($K$8:$P$68,MATCH(D8,product,0),2)) -> 0 | G8: =IF(D8="",0,F8) -> 0 | H8: =IF(D8="",0,INDEX($K$8:$P452,MATCH($D$8,product,0),3)) -> 0 | I8: =IF(D8="",0,INDEX($K$8:$P452,MATCH($D$8,product,0),4)) -> 0 | K8: Section I: Installment Orders | Q8: Add TBB for Monthly Income Total | R8: =SUM(R9:R68) -> 0 | U8: =IF(C8="",0,IF(MONTH(C8)=$O$2,INDEX($K$8:$O$68,MATCH($D8,product,0),5),0)) -> 0 | V8: =IF(AND(A8="",E8=""),0,IF(MONTH(C8)=$O$2,A8,0)) -> 0 | W8: =IF(V8=0,0,IF(MONTH(C8)=$O$2,INDEX($K$8:$O$68,MATCH($D8,product,0),5),0)) -> 0 | X8: January | Y8: 1 | Z8: =SUM(H8*AC8) -> 0 | AA8: =SUM(F8*AC8) -> 0 | AB8: =SUM(E8) -> 0 | AC8: =SUM(U8>1-1) -> 0 | AD8: =SUM(AB8*AC8) -> 0 | AF8: =IF(D8="",0,INDEX($K$8:$O$68,MATCH($D8,product,0),5)) -> 0 | AG8: =TEXT(C8,"mmmm") -> January | AH8: =SUMIFS(AJ$8:AJ$104,AG$8:AG$104,"October") -> 0 | AJ8: =AF8 -> 0 | AM8: =SUM(AF8>1-1) -> 0 | AN8: =COUNTBLANK(A8) -> 1 | AO8: =COUNTIF(A8,"*") -> 0 | AP8: =SUM(AM8-AO8) -> 0 | AQ8: =SUM(F8*AP8) -> 0 | AR8: =SUM(H8*AP8) -> 0 | AS8: =SUM(F8*AO8) -> 0 | AT8: =SUM(H8*AO8) -> 0 | AU8: =COUNTBLANK(E8) -> 0 | AV8: =SUM(AU8=1-1) -> 1 | AW8: =SUM(AB8*AP8) -> 0 | AX8: =U8 -> 0 | AY8: =SUM(AX8>1-1) -> 0 | AZ8: =SUM(AC8*Z8) -> 0 | BA8: =SUM(AC8*AA8) -> 0 | BB8: =SUM(AC8*AD8) -> 0 | BC8: =SUM(Z8-AZ8) -> 0 | BD8: =SUM(AD8-BB8) -> 0 | BE8: =SUM(AX8-BK8) -> 0 | BF8: =SUM(BE8>1-1) -> 0 | BG8: =SUM(BF8*AZ8) -> 0 | BH8: =SUM(BF8*BA8) -> 0 | BJ8: =SUM(BF8*BB8) -> 0 | BK8: =SUM(W8) -> 0 | BL8: =SUM(BK8>1-1) -> 0 | BM8: =SUM(BL8*AZ8) -> 0 | BN8: =SUM(BL8*BA8) -> 0 | BO8: =SUM(BL8*BB8) -> 0
E9: =IF(D9="","",INDEX($K$8:$P$68,MATCH(D9,product,0),6)) ->  | F9: 0 | G9: =IF(D9="",0,MAX($G$8:$G8)+F9) -> 0 | H9: =IF(D9="",0,INDEX($K$8:$P68,MATCH($D9,product,0),3)) -> 0 | I9: =IF(D9="",0,INDEX($K$8:$P68,MATCH($D9,product,0),4)+MAX($I$8:$I8)) -> 0 | K9: ----- Bundled Capsule Orders ----- | R9: Add TBB $$ below | U9: 0 | V9: 0 | W9: 0 | X9: February | Y9: 2 | Z9: 0 | AA9: 0 | AB9: 0 | AC9: 0 | AD9: =SUM(AB9*AC9) -> 0 | AF9: 0 | AG9: January | AJ9: =AF9 -> 0 | AK9: Trio Caps & Complete (CCH/JPT) | AL9: 3 | AM9: 0 | AN9: 1 | AO9: 0 | AP9: =SUM(AM9-AO9) -> 0 | AQ9: =SUM(F9*AP9) -> 0 | AR9: =SUM(H9*AP9) -> 0 | AS9: =SUM(F9*AO9) -> 0 | AT9: =SUM(H9*AO9) -> 0 | AU9: 1 | AV9: =SUM(AU9=1-1) -> 0 | AW9: 0 | AX9: 0 | AY9: =SUM(AX9>1-1) -> 0 | AZ9: 0 | BA9: 0 | BB9: 0 | BC9: 0 | BD9: 0 | BE9: 0 | BF9: =SUM(BE9>1-1) -> 0 | BG9: 0 | BH9: =SUM(BF9*BA9) -> 0 | BJ9: 0 | BK9: 0 | BL9: =SUM(BK9>1-1) -> 0 | BM9: 0 | BN9: =SUM(BL9*BA9) -> 0 | BO9: =SUM(BL9*BB9) -> 0
F10: 0 | G10: =IF(D10="",0,MAX($G$8:$G9)+F10) -> 0 | H10: =IF(D10="",0,INDEX($K$8:$P68,MATCH($D10,product,0),3)) -> 0 | I10: =IF(D10="",0,INDEX($K$8:$P68,MATCH($D10,product,0),4)+MAX($I$8:$I9)) -> 0 | K10: #1) Trio Capsules ( F,V,B) | L10: 169.5 | M10: 42.38 | N10: =M10 -> 42.38 | O10: 2 | P10: 39 | Q10: -71.25 | R10: =Q3 -> 0 | U10: 0 | V10: 0 | W10: 0 | X10: March | Y10: 3 | Z10: 0 | AA10: 0 | AB10: 0 | AC10: 0 | AD10: 0 | AF10: 0 | AG10: January | AJ10: 0 | AK10: Trio Capsules | AL10: 2 | AM10: 0 | AN10: 1 | AO10: 0 | AP10: 0 | AQ10: =SUM(F10*AP10) -> 0 | AR10: 0 | AS10: 0 | AT10: 0 | AU10: 1 | AV10: 0 | AW10: 0 | AX10: 0 | AY10: 0 | AZ10: 0 | BA10: 0 | BB10: 0 | BC10: 0 | BD10: 0 | BE10: 0 | BF10: 0 | BG10: 0 | BH10: 0 | BJ10: 0 | BK10: 0 | BL10: 0 | BM10: 0 | BN10: 0 | BO10: 0
F11: 0 | G11: =IF(D11="",0,MAX($G$8:$G10)+F11) -> 0 | H11: =IF(D11="",0,INDEX($K$8:$P68,MATCH($D11,product,0),3)) -> 0 | I11: =IF(D11="",0,INDEX($K$8:$P68,MATCH($D11,product,0),4)+MAX($I$8:$I10)) -> 0 | K11: #2) Trio / Shakes 4 Bags (F,V,B,S) | L11: 240 | M11: 60.01 | N11: =M11 -> 60.01 | O11: 3 | P11: 55 | Q11: -102 | U11: 0 | V11: 0 | W11: 0 | X11: April | Y11: 4 | Z11: 0 | AA11: 0 | AB11: 0 | AC11: 0 | AD11: 0 | AF11: 0 | AG11: January | AJ11: 0 | AK11: Orchard/Garden Capsules | AL11: 1 | AM11: 0 | AN11: 1 | AO11: 0 | AP11: 0 | AQ11: =SUM(F11*AP11) -> 0 | AR11: 0 | AS11: 0 | AT11: 0 | AU11: 1 | AV11: 0 | AW11: 0 | AX11: 0 | AY11: 0 | AZ11: 0 | BA11: 0 | BB11: 0 | BC11: 0 | BD11: 0 | BE11: 0 | BF11: 0 | BG11: 0 | BH11: 0 | BJ11: 0 | BK11: 0 | BL11: 0 | BM11: 0 | BN11: 0 | BO11: 0
F12: 0 | G12: =IF(D12="",0,MAX($G$8:$G11)+F12) -> 0 | H12: =IF(D12="",0,INDEX($K$8:$P68,MATCH($D12,product,0),3)) -> 0 | I12: =IF(D12="",0,INDEX($K$8:$P68,MATCH($D12,product,0),4)+MAX($I$8:$I11)) -> 0 | K12: #3) Trio / Shakes 60 Singles (F,V,B,S) | L12: 246.75 | M12: 61.69 | N12: =M12 -> 61.69 | O12: 3 | P12: 56 | Q12: -104.5 | U12: 0 | V12: 0 | W12: 0 | X12: May | Y12: 5 | Z12: 0 | AA12: 0 | AB12: 0 | AC12: 0 | AD12: 0 | AF12: 0 | AG12: January | AJ12: 0 | AK12: Vineyard Capsules | AL12: 1 | AM12: 0 | AN12: 1 | AO12: 0 | AP12: 0 | AQ12: 0 | AR12: 0 | AS12: 0 | AT12: 0 | AU12: 1 | AV12: 0 | AW12: 0 | AX12: 0 | AY12: 0 | AZ12: 0 | BA12: 0 | BB12: 0 | BC12: 0 | BD12: 0 | BE12: 0 | BF12: 0 | BG12: 0 | BH12: 0 | BJ12: 0 | BK12: 0 | BL12: 0 | BM12: 0 | BN12: 0 | BO12: 0
F13: 0 | G13: =IF(D13="",0,MAX($G$8:$G12)+F13) -> 0 | H13: =IF(D13="",0,INDEX($K$8:$P68,MATCH($D13,product,0),3)) -> 0 | I13: =IF(D13="",0,INDEX($K$8:$P68,MATCH($D13,product,0),4)+MAX($I$8:$I12)) -> 0 | U13: 0 | V13: 0 | W13: 0 | X13: June | Y13: 6 | Z13: 0 | AA13: 0 | AB13: 0 | AC13: 0 | AD13: 0 | AF13: 0 | AG13: January | AJ13: 0 | AK13: Trio Adult Chewables | AL13: 2 | AM13: 0 | AN13: 1 | AO13: 0 | AP13: 0 | AQ13: 0 | AR13: 0 | AS13: 0 | AT13: 0 | AU13: 1 | AV13: 0 | AW13: 0 | AX13: 0 | AY13: 0 | AZ13: 0 | BA13: 0 | BB13: 0 | BC13: 0 | BD13: 0 | BE13: 0 | BF13: 0 | BG13: 0 | BH13: 0 | BJ13: 0 | BK13: 0 | BL13: 0 | BM13: 0 | BN13: 0 | BO13: 0
F14: 0 | G14: =IF(D14="",0,MAX($G$8:$G13)+F14) -> 0 | H14: =IF(D14="",0,INDEX($K$8:$P70,MATCH($D14,product,0),3)) -> 0 | I14: =IF(D14="",0,INDEX($K$8:$P70,MATCH($D14,product,0),4)+MAX($I$8:$I13)) -> 0 | K14: #4) Quad Capsules (F,V,B,O) | L14: 247.5 | M14: 61.88 | N14: =M14 -> 61.88 | O14: 3 | P14: 55 | Q14: -104.5 | U14: 0 | V14: 0 | W14: 0 | X14: July | Y14: 7 | Z14: 0 | AA14: 0 | AB14: 0 | AC14: 0 | AD14: 0 | AF14: 0 | AG14: January | AJ14: 0 | AK14: Adult Order Chewables | AL14: 1 | AM14: 0 | AN14: 1 | AO14: 0 | AP14: 0 | AQ14: 0 | AR14: 0 | AS14: 0 | AT14: 0 | AU14: 1 | AV14: 0 | AW14: 0 | AX14: 0 | AY14: 0 | AZ14: 0 | BA14: 0 | BB14: 0 | BC14: 0 | BD14: 0 | BE14: 0 | BF14: 0 | BG14: 0 | BH14: 0 | BJ14: 0 | BK14: 0 | BL14: 0 | BM14: 0 | BN14: 0 | BO14: 0
F15: 0 | G15: =IF(D15="",0,MAX($G$8:$G14)+F15) -> 0 | H15: =IF(D15="",0,INDEX($K$8:$P71,MATCH($D15,product,0),3)) -> 0 | I15: =IF(D15="",0,INDEX($K$8:$P71,MATCH($D15,product,0),4)+MAX($I$8:$I14)) -> 0 | K15: #5) Quad / Shakes 4 Bags (F,V,B,O,S) | L15: 318 | M15: 79.51 | N15: =M15 -> 79.51 | O15: 4 | P15: 71 | Q15: -135.25 | U15: 0 | V15: 0 | W15: 0 | X15: August | Y15: 8 | Z15: 0 | AA15: 0 | AB15: 0 | AC15: 0 | AD15: 0 | AF15: 0 | AG15: January | AJ15: 0 | AK15: Child Order Chewables | AL15: 1 | AM15: 0 | AN15: 1 | AO15: 0 | AP15: 0 | AQ15: 0 | AR15: 0 | AS15: 0 | AT15: 0 | AU15: 1 | AV15: 0 | AW15: 0 | AX15: 0 | AY15: 0 | AZ15: 0 | BA15: 0 | BB15: 0 | BC15: 0 | BD15: 0 | BE15: 0 | BF15: 0 | BG15: 0 | BH15: 0 | BJ15: 0 | BK15: 0 | BL15: 0 | BM15: 0 | BN15: 0 | BO15: 0
F16: 0 | G16: =IF(D16="",0,MAX($G$8:$G15)+F16) -> 0 | H16: =IF(D16="",0,INDEX($K$8:$P72,MATCH($D16,product,0),3)) -> 0 | I16: =IF(D16="",0,INDEX($K$8:$P72,MATCH($D16,product,0),4)+MAX($I$8:$I15)) -> 0 | K16: #6) Quad / Shakes 60 Singles (F,V,B,O,S) | L16: 324.75 | M16: 81.19 | N16: =M16 -> 81.19 | O16: 4 | P16: 72 | Q16: -137.75 | U16: 0 | V16: 0 | W16: 0 | X16: September | Y16: 9 | Z16: 0 | AA16: 0 | AB16: 0 | AC16: 0 | AD16: 0 | AF16: 0 | AG16: January | AJ16: 0 | AK16: Vineyard Chewables | AL16: 1 | AM16: 0 | AN16: 1 | AO16: 0 | AP16: 0 | AQ16: 0 | AR16: 0 | AS16: =SUM(F16*AO16) -> 0 | AT16: =SUM(H16*AO16) -> 0 | AU16: 1 | AV16: 0 | AW16: 0 | AX16: 0 | AY16: 0 | AZ16: 0 | BA16: 0 | BB16: 0 | BC16: 0 | BD16: 0 | BE16: 0 | BF16: 0 | BG16: 0 | BH16: 0 | BJ16: 0 | BK16: 0 | BL16: 0 | BM16: 0 | BN16: 0 | BO16: 0
F17: 0 | G17: =IF(D17="",0,MAX($G$8:$G16)+F17) -> 0 | H17: =IF(D17="",0,INDEX($K$8:$P73,MATCH($D17,product,0),3)) -> 0 | I17: =IF(D17="",0,INDEX($K$8:$P73,MATCH($D17,product,0),4)+MAX($I$8:$I16)) -> 0 | U17: 0 | V17: 0 | W17: 0 | X17: October | Y17: 10 | Z17: 0 | AA17: 0 | AB17: 0 | AC17: 0 | AD17: 0 | AF17: 0 | AG17: January | AJ17: 0 | AK17: Complete (4 Pouches) | AL17: 1 | AM17: 0 | AN17: 1 | AO17: 0 | AP17: 0 | AQ17: 0 | AR17: 0 | AS17: 0 | AT17: 0 | AU17: 1 | AV17: 0 | AW17: 0 | AX17: 0 | AY17: 0 | AZ17: 0 | BA17: 0 | BB17: 0 | BC17: 0 | BD17: 0 | BE17: 0 | BF17: 0 | BG17: 0 | BH17: 0 | BJ17: 0 | BK17: 0 | BL17: 0 | BM17: 0 | BN17: 0 | BO17: 0
F18: 0 | G18: =IF(D18="",0,MAX($G$8:$G17)+F18) -> 0 | H18: =IF(D18="",0,INDEX($K$8:$P74,MATCH($D18,product,0),3)) -> 0 | I18: =IF(D18="",0,INDEX($K$8:$P74,MATCH($D18,product,0),4)+MAX($I$8:$I17)) -> 0 | K18: ----- Capsule Options ----- | U18: 0 | V18: 0 | W18: 0 | X18: November | Y18: 11 | Z18: 0 | AA18: 0 | AB18: 0 | AC18: 0 | AD18: 0 | AF18: 0 | AG18: January | AJ18: 0 | AK18: Tower Garden (TG) | AL18: 1 | AM18: 0 | AN18: 1 | AO18: 0 | AP18: 0 | AQ18: 0 | AR18: 0 | AS18: =SUM(F18*AO18) -> 0 | AT18: 0 | AU18: 1 | AV18: 0 | AW18: 0 | AX18: 0 | AY18: 0 | AZ18: 0 | BA18: 0 | BB18: 0 | BC18: 0 | BD18: 0 | BE18: 0 | BF18: 0 | BG18: 0 | BH18: 0 | BJ18: 0 | BK18: 0 | BL18: 0 | BM18: =SUM(BL18*AZ18) -> 0 | BN18: 0 | BO18: 0
F19: 0 | G19: =IF(D19="",0,MAX($G$8:$G18)+F19) -> 0 | H19: =IF(D19="",0,INDEX($K$8:$P75,MATCH($D19,product,0),3)) -> 0 | I19: =IF(D19="",0,INDEX($K$8:$P75,MATCH($D19,product,0),4)+MAX($I$8:$I18)) -> 0 | K19: #7) Duo Capsules (F,V) | L19: 106.5 | M19: 26.63 | N19: =M19 -> 26.63 | O19: 1 | P19: 23 | Q19: -44.5 | R19: Other Calculations | U19: 0 | V19: 0 | W19: 0 | X19: December | Y19: 12 | Z19: 0 | AA19: 0 | AB19: 0 | AC19: 0 | AD19: 0 | AF19: 0 | AG19: January | AJ19: 0 | AK19: Tower Tonic (Bulk Size) | AL19: 0 | AM19: 0 | AN19: 1 | AO19: 0 | AP19: 0 | AQ19: 0 | AR19: 0 | AS19: 0 | AT19: 0 | AU19: 1 | AV19: 0 | AW19: 0 | AX19: 0 | AY19: 0 | AZ19: 0 | BA19: 0 | BB19: 0 | BC19: 0 | BD19: 0 | BE19: 0 | BF19: 0 | BG19: 0 | BH19: 0 | BJ19: 0 | BK19: 0 | BL19: 0 | BM19: 0 | BN19: 0 | BO19: 0
F20: 0 | G20: =IF(D20="",0,MAX($G$8:$G19)+F20) -> 0 | H20: =IF(D20="",0,INDEX($K$8:$P76,MATCH($D20,product,0),3)) -> 0 | I20: =IF(D20="",0,INDEX($K$8:$P76,MATCH($D20,product,0),4)+MAX($I$8:$I19)) -> 0 | K20: #8) Berry Capsules (B) | L20: 63 | M20: 15.75 | N20: =M20 -> 15.75 | O20: 1 | P20: 16 | Q20: -28.25 | U20: 0 | V20: 0 | W20: 0 | Z20: 0 | AA20: 0 | AB20: 0 | AC20: 0 | AD20: 0 | AF20: 0 | AG20: January | AJ20: 0 | AK20: TG Extention Kit | AL20: 0 | AM20: 0 | AN20: 1 | AO20: 0 | AP20: 0 | AQ20: 0 | AR20: 0 | AS20: 0 | AT20: 0 | AU20: 1 | AV20: 0 | AW20: 0 | AX20: 0 | AY20: 0 | AZ20: 0 | BA20: 0 | BB20: 0 | BC20: 0 | BD20: 0 | BE20: 0 | BF20: 0 | BG20: 0 | BH20: 0 | BJ20: 0 | BK20: 0 | BL20: 0 | BM20: 0 | BN20: 0 | BO20: 0
F21: 0 | G21: =IF(D21="",0,MAX($G$8:$G20)+F21) -> 0 | H21: =IF(D21="",0,INDEX($K$8:$P77,MATCH($D21,product,0),3)) -> 0 | I21: =IF(D21="",0,INDEX($K$8:$P77,MATCH($D21,product,0),4)+MAX($I$8:$I20)) -> 0 | K21: #9) Omega Capsules (O) | L21: 78 | M21: 19.5 | N21: 19.5 | O21: 1 | P21: 16 | Q21: -33.25 | U21: 0 | V21: 0 | W21: 0 | Z21: 0 | AA21: 0 | AB21: 0 | AC21: 0 | AD21: 0 | AF21: 0 | AG21: January | AJ21: 0 | AK21: TG Tomato Cage | AL21: 0 | AM21: 0 | AN21: 1 | AO21: 0 | AP21: 0 | AQ21: 0 | AR21: 0 | AS21: 0 | AT21: 0 | AU21: 1 | AV21: 0 | AW21: 0 | AX21: 0 | AY21: 0 | AZ21: 0 | BA21: 0 | BB21: 0 | BC21: 0 | BD21: 0 | BE21: 0 | BF21: 0 | BG21: 0 | BH21: 0 | BJ21: 0 | BK21: 0 | BL21: 0 | BM21: 0 | BN21: 0 | BO21: 0
F22: 0 | G22: =IF(D22="",0,MAX($G$8:$G21)+F22) -> 0 | H22: =IF(D22="",0,INDEX($K$8:$P78,MATCH($D22,product,0),3)) -> 0 | I22: =IF(D22="",0,INDEX($K$8:$P78,MATCH($D22,product,0),4)+MAX($I$8:$I21)) -> 0 | U22: 0 | V22: 0 | W22: 0 | X22: Yes | Z22: 0 | AA22: 0 | AB22: 0 | AC22: 0 | AD22: 0 | AF22: 0 | AG22: January | AJ22: 0 | AK22: TG + ALL (3) Accessories | AL22: 1 | AM22: 0 | AN22: 1 | AO22: 0 | AP22: 0 | AQ22: 0 | AR22: 0 | AS22: 0 | AT22: 0 | AU22: 1 | AV22: 0 | AW22: 0 | AX22: 0 | AY22: 0 | AZ22: 0 | BA22: 0 | BB22: 0 | BC22: 0 | BD22: 0 | BE22: 0 | BF22: 0 | BG22: 0 | BH22: 0 | BJ22: 0 | BK22: 0 | BL22: 0 | BM22: 0 | BN22: 0 | BO22: 0
F23: 0 | G23: =IF(D23="",0,MAX($G$8:$G22)+F23) -> 0 | H23: =IF(D23="",0,INDEX($K$8:$P79,MATCH($D23,product,0),3)) -> 0 | I23: =IF(D23="",0,INDEX($K$8:$P79,MATCH($D23,product,0),4)+MAX($I$8:$I22)) -> 0 | K23: ---- Chewable Options ---- | U23: 0 | V23: 0 | W23: 0 | Z23: =SUM(H23*AC23) -> 0 | AA23: =SUM(F23*AC23) -> 0 | AB23: =SUM(E23) -> 0 | AC23: 0 | AD23: 0 | AF23: 0 | AG23: January | AJ23: 0 | AK23: Bars | AL23: 0 | AM23: 0 | AN23: 1 | AO23: 0 | AP23: 0 | AQ23: =SUM(F23*AP23) -> 0 | AR23: =SUM(H23*AP23) -> 0 | AS23: =SUM(F23*AO23) -> 0 | AT23: =SUM(H23*AO23) -> 0 | AU23: =COUNTBLANK(E23) -> 1 | AV23: 0 | AW23: 0 | AX23: 0 | AY23: 0 | AZ23: 0 | BA23: 0 | BB23: 0 | BC23: 0 | BD23: 0 | BE23: 0 | BF23: 0 | BG23: 0 | BH23: 0 | BJ23: 0 | BK23: 0 | BL23: 0 | BM23: 0 | BN23: 0 | BO23: 0
F24: 0 | G24: =IF(D24="",0,MAX($G$8:$G23)+F24) -> 0 | H24: =IF(D24="",0,INDEX($K$8:$P80,MATCH($D24,product,0),3)) -> 0 | I24: =IF(D24="",0,INDEX($K$8:$P80,MATCH($D24,product,0),4)+MAX($I$8:$I23)) -> 0 | K24: #10) Trio Chewables Adults ( F,V,B) | L24: 181.5 | M24: 45.38 | N24: =M24 -> 45.38 | O24: 2 | P24: 38 | Q24: -76.75 | U24: 0 | V24: 0 | W24: 0 | Z24: 0 | AA24: 0 | AB24: 0 | AC24: 0 | AD24: 0 | AF24: 0 | AG24: January | AJ24: 0 | AK24: Complete (4 Bags Pay in Full) | AL24: 1 | AM24: 0 | AN24: 1 | AO24: 0 | AP24: 0 | AQ24: 0 | AR24: 0 | AS24: 0 | AT24: 0 | AU24: 1 | AV24: 0 | AW24: 0 | AX24: 0 | AY24: 0 | AZ24: 0 | BA24: 0 | BB24: 0 | BC24: 0 | BD24: 0 | BE24: 0 | BF24: 0 | BG24: 0 | BH24: 0 | BJ24: 0 | BK24: 0 | BL24: 0 | BM24: 0 | BN24: 0 | BO24: 0
F25: 0 | G25: =IF(D25="",0,MAX($G$8:$G24)+F25) -> 0 | H25: =IF(D25="",0,INDEX($K$8:$P81,MATCH($D25,product,0),3)) -> 0 | I25: =IF(D25="",0,INDEX($K$8:$P81,MATCH($D25,product,0),4)+MAX($I$8:$I24)) -> 0 | K25: #11) Duo Chewables Adult ( F,V) | L25: 111 | M25: 27.75 | N25: =M25 -> 27.75 | O25: 1 | P25: 22 | Q25: -47.5 | U25: 0 | V25: 0 | W25: 0 | Z25: 0 | AA25: 0 | AB25: 0 | AC25: 0 | AD25: 0 | AF25: 0 | AG25: January | AJ25: 0 | AK25: Sample Bags | AL25: 0 | AM25: 0 | AN25: 1 | AO25: 0 | AP25: 0 | AQ25: 0 | AR25: 0 | AS25: 0 | AT25: 0 | AU25: 1 | AV25: 0 | AW25: 0 | AX25: 0 | AY25: 0 | AZ25: 0 | BA25: 0 | BB25: 0 | BC25: 0 | BD25: 0 | BE25: 0 | BF25: 0 | BG25: 0 | BH25: 0 | BJ25: 0 | BK25: 0 | BL25: 0 | BM25: 0 | BN25: 0 | BO25: 0
F26: 0 | G26: =IF(D26="",0,MAX($G$8:$G25)+F26) -> 0 | H26: =IF(D26="",0,INDEX($K$8:$P81,MATCH($D26,product,0),3)) -> 0 | I26: =IF(D26="",0,INDEX($K$8:$P81,MATCH($D26,product,0),4)+MAX($I$8:$I25)) -> 0 | K26: #12) Duo Chewables Child ( F,V) | L26: 55.5 | M26: 13.88 | N26: =M26 -> 13.88 | O26: 1 | P26: 11 | Q26: -24.5 | U26: 0 | V26: 0 | W26: 0 | X26: 1) DD FT | Z26: 0 | AA26: 0 | AB26: 0 | AC26: 0 | AD26: 0 | AF26: 0 | AG26: January | AJ26: 0 | AL26: 0 | AM26: 0 | AN26: 1 | AO26: 0 | AP26: 0 | AQ26: 0 | AR26: 0 | AS26: 0 | AT26: 0 | AU26: 1 | AV26: 0 | AW26: 0 | AX26: 0 | AY26: 0 | AZ26: 0 | BA26: 0 | BB26: 0 | BC26: 0 | BD26: 0 | BE26: 0 | BF26: 0 | BG26: 0 | BH26: 0 | BJ26: 0 | BK26: 0 | BL26: 0 | BM26: 0 | BN26: 0 | BO26: 0
F27: 0 | G27: =IF(D27="",0,MAX($G$8:$G26)+F27) -> 0 | H27: =IF(D27="",0,INDEX($K$8:$P82,MATCH($D27,product,0),3)) -> 0 | I27: =IF(D27="",0,INDEX($K$8:$P82,MATCH($D27,product,0),4)+MAX($I$8:$I26)) -> 0 | K27: #13) Berry Chewables Adult (B) | L27: 70.5 | M27: 17.63 | N27: =M27 -> 17.63 | O27: 1 | P27: 16 | Q27: -30.75 | U27: 0 | V27: 0 | W27: 0 | Z27: 0 | AA27: 0 | AB27: 0 | AC27: 0 | AD27: 0 | AF27: 0 | AG27: January | AJ27: 0 | AL27: 0 | AM27: 0 | AN27: 1 | AO27: 0 | AP27: 0 | AQ27: 0 | AR27: 0 | AS27: 0 | AT27: 0 | AU27: 1 | AV27: 0 | AW27: 0 | AX27: 0 | AY27: 0 | AZ27: 0 | BA27: 0 | BB27: 0 | BC27: 0 | BD27: 0 | BE27: 0 | BF27: 0 | BG27: 0 | BH27: 0 | BJ27: 0 | BK27: 0 | BL27: 0 | BM27: 0 | BN27: 0 | BO27: 0
F28: 0 | G28: =IF(D28="",0,MAX($G$8:$G27)+F28) -> 0 | H28: =IF(D28="",0,INDEX($K$8:$P83,MATCH($D28,product,0),3)) -> 0 | I28: =IF(D28="",0,INDEX($K$8:$P83,MATCH($D28,product,0),4)+MAX($I$8:$I27)) -> 0 | K28: #14) Berry Chewables Child (B) | L28: TBA | M28: TBA | N28: TBA | O28: 1 | P28: TBA | Q28: TBA | U28: 0 | V28: 0 | W28: 0 | X28: 2) VF FT | Z28: 0 | AA28: 0 | AB28: 0 | AC28: 0 | AD28: 0 | AF28: 0 | AG28: January | AJ28: 0 | AM28: 0 | AN28: 1 | AO28: 0 | AP28: =SUM(AM28-AO28) -> 0 | AQ28: 0 | AR28: 0 | AS28: 0 | AT28: 0 | AU28: 1 | AV28: 0 | AW28: 0 | AX28: 0 | AY28: 0 | AZ28: 0 | BA28: 0 | BB28: 0 | BC28: 0 | BD28: 0 | BE28: 0 | BF28: 0 | BG28: 0 | BH28: 0 | BJ28: 0 | BK28: 0 | BL28: 0 | BM28: 0 | BN28: 0 | BO28: 0
F29: 0 | G29: =IF(D29="",0,MAX($G$8:$G28)+F29) -> 0 | H29: =IF(D29="",0,INDEX($K$8:$P84,MATCH($D29,product,0),3)) -> 0 | I29: =IF(D29="",0,INDEX($K$8:$P84,MATCH($D29,product,0),4)+MAX($I$8:$I28)) -> 0 | U29: 0 | V29: 0 | W29: 0 | X29: 3) Col 4 = 1,000 | Z29: 0 | AA29: 0 | AB29: 0 | AC29: 0 | AD29: 0 | AF29: 0 | AG29: January | AJ29: 0 | AM29: 0 | AN29: 1 | AO29: 0 | AP29: 0 | AQ29: 0 | AR29: 0 | AS29: 0 | AT29: 0 | AU29: 1 | AV29: 0 | AW29: 0 | AX29: 0 | AY29: 0 | AZ29: 0 | BA29: 0 | BB29: 0 | BC29: 0 | BD29: 0 | BE29: 0 | BF29: 0 | BG29: 0 | BH29: 0 | BJ29: 0 | BK29: 0 | BL29: 0 | BM29: 0 | BN29: 0 | BO29: 0
F30: 0 | G30: =IF(D30="",0,MAX($G$8:$G29)+F30) -> 0 | H30: =IF(D30="",0,INDEX($K$8:$P85,MATCH($D30,product,0),3)) -> 0 | I30: =IF(D30="",0,INDEX($K$8:$P85,MATCH($D30,product,0),4)+MAX($I$8:$I29)) -> 0 | K30: ---- Complete Options --- | U30: 0 | V30: 0 | W30: 0 | Z30: 0 | AA30: 0 | AB30: 0 | AC30: 0 | AD30: 0 | AF30: 0 | AG30: January | AJ30: 0 | AM30: 0 | AN30: 1 | AO30: 0 | AP30: 0 | AQ30: 0 | AR30: 0 | AS30: 0 | AT30: 0 | AU30: 1 | AV30: 0 | AW30: 0 | AX30: 0 | AY30: 0 | AZ30: 0 | BA30: 0 | BB30: 0 | BC30: 0 | BD30: 0 | BE30: 0 | BF30: 0 | BG30: 0 | BH30: 0 | BJ30: 0 | BK30: 0 | BL30: 0 | BM30: 0 | BN30: 0 | BO30: 0
F31: 0 | G31: =IF(D31="",0,MAX($G$8:$G30)+F31) -> 0 | H31: =IF(D31="",0,INDEX($K$8:$P86,MATCH($D31,product,0),3)) -> 0 | I31: =IF(D31="",0,INDEX($K$8:$P86,MATCH($D31,product,0),4)+MAX($I$8:$I30)) -> 0 | K31: #15) Shakes (4 bags) | L31: 70.5 | M31: 17.63 | N31: =M31 -> 17.63 | O31: 1 | P31: 16 | Q31: -30.75 | U31: 0 | V31: 0 | W31: 0 | X31: 4) SC Leg FT | Z31: 0 | AA31: 0 | AB31: 0 | AC31: 0 | AD31: 0 | AF31: 0 | AG31: January | AJ31: 0 | AM31: 0 | AN31: 1 | AO31: 0 | AP31: 0 | AQ31: 0 | AR31: 0 | AS31: 0 | AT31: 0 | AU31: 1 | AV31: 0 | AW31: 0 | AX31: 0 | AY31: 0 | AZ31: 0 | BA31: 0 | BB31: 0 | BC31: 0 | BD31: 0 | BE31: 0 | BF31: 0 | BG31: 0 | BH31: 0 | BJ31: 0 | BK31: 0 | BL31: 0 | BM31: 0 | BN31: 0 | BO31: 0 | BQ31: Personal Promo PVC
F32: 0 | G32: =IF(D32="",0,MAX($G$8:$G31)+F32) -> 0 | H32: =IF(D32="",0,INDEX($K$8:$P87,MATCH($D32,product,0),3)) -> 0 | I32: =IF(D32="",0,INDEX($K$8:$P87,MATCH($D32,product,0),4)+MAX($I$8:$I31)) -> 0 | J32: =MATCH(K74,months,0)-1 -> 4 | K32: #16) Shakes (60 Singles) | L32: 77.25 | M32: 19.31 | N32: =M32 -> 19.31 | O32: 1 | P32: 17 | Q32: -33.25 | U32: 0 | V32: 0 | W32: 0 | X32: 5) Col 5 = 3,000 | Z32: 0 | AA32: 0 | AB32: 0 | AC32: 0 | AD32: 0 | AF32: 0 | AG32: January | AJ32: 0 | AM32: 0 | AN32: 1 | AO32: 0 | AP32: 0 | AQ32: 0 | AR32: 0 | AS32: 0 | AT32: 0 | AU32: 1 | AV32: 0 | AW32: 0 | AX32: 0 | AY32: 0 | AZ32: 0 | BA32: 0 | BB32: 0 | BC32: 0 | BD32: 0 | BE32: 0 | BF32: 0 | BG32: 0 | BH32: 0 | BJ32: 0 | BK32: 0 | BL32: 0 | BM32: 0 | BN32: 0 | BO32: 0
F33: 0 | G33: =IF(D33="",0,MAX($G$8:$G32)+F33) -> 0 | H33: =IF(D33="",0,INDEX($K$8:$P88,MATCH($D33,product,0),3)) -> 0 | I33: =IF(D33="",0,INDEX($K$8:$P88,MATCH($D33,product,0),4)+MAX($I$8:$I32)) -> 0 | K33: #17) Bars (60 bars) | L33: 70.5 | M33: =SUM(L33/4) -> 17.625 | N33: =M33 -> 17.625 | O33: 1 | P33: 16 | Q33: -32.5 | U33: 0 | V33: 0 | W33: 0 | X33: 6) SC- B/Partner | Z33: 0 | AA33: 0 | AB33: 0 | AC33: 0 | AD33: 0 | AF33: 0 | AG33: January | AJ33: 0 | AM33: 0 | AN33: 1 | AO33: 0 | AP33: 0 | AQ33: 0 | AR33: 0 | AS33: 0 | AT33: 0 | AU33: 1 | AV33: 0 | AW33: 0 | AX33: 0 | AY33: 0 | AZ33: 0 | BA33: 0 | BB33: 0 | BC33: 0 | BD33: 0 | BE33: 0 | BF33: 0 | BG33: 0 | BH33: 0 | BJ33: 0 | BK33: 0 | BL33: 0 | BM33: 0 | BN33: 0 | BO33: 0 | BQ33: You
F34: 0 | G34: =IF(D34="",0,MAX($G$8:$G33)+F34) -> 0 | H34: =IF(D34="",0,INDEX($K$8:$P89,MATCH($D34,product,0),3)) -> 0 | I34: =IF(D34="",0,INDEX($K$8:$P89,MATCH($D34,product,0),4)+MAX($I$8:$I33)) -> 0 | U34: 0 | V34: 0 | W34: 0 | Z34: 0 | AA34: 0 | AB34: 0 | AC34: 0 | AD34: 0 | AF34: 0 | AG34: January | AJ34: 0 | AM34: 0 | AN34: 1 | AO34: 0 | AP34: 0 | AQ34: 0 | AR34: 0 | AS34: 0 | AT34: 0 | AU34: 1 | AV34: 0 | AW34: 0 | AX34: 0 | AY34: 0 | AZ34: 0 | BA34: 0 | BB34: 0 | BC34: 0 | BD34: 0 | BE34: 0 | BF34: 0 | BG34: 0 | BH34: 0 | BJ34: 0 | BK34: 0 | BL34: 0 | BM34: 0 | BN34: 0 | BO34: 0 | BQ34: =SUMIFS(AQ$8:AQ$104,AG$8:AG$104,K74) -> 0
F35: 0 | G35: =IF(D35="",0,MAX($G$8:$G34)+F35) -> 0 | H35: =IF(D35="",0,INDEX($K$8:$P90,MATCH($D35,product,0),3)) -> 0 | I35: =IF(D35="",0,INDEX($K$8:$P90,MATCH($D35,product,0),4)+MAX($I$8:$I34)) -> 0 | K35: ---- Chewable Pocket Packs ---- | U35: 0 | V35: 0 | W35: 0 | X35: 7) SSC Leg | Z35: 0 | AA35: 0 | AB35: 0 | AC35: 0 | AD35: 0 | AF35: 0 | AG35: January | AJ35: 0 | AM35: 0 | AN35: 1 | AO35: 0 | AP35: 0 | AQ35: 0 | AR35: 0 | AS35: 0 | AT35: 0 | AU35: 1 | AV35: 0 | AW35: 0 | AX35: 0 | AY35: 0 | AZ35: 0 | BA35: 0 | BB35: 0 | BC35: 0 | BD35: 0 | BE35: 0 | BF35: 0 | BG35: 0 | BH35: 0 | BJ35: 0 | BK35: 0 | BL35: 0 | BM35: 0 | BN35: 0 | BO35: 0 | BQ35: 0
F36: 0 | G36: =IF(D36="",0,MAX($G$8:$G35)+F36) -> 0 | H36: =IF(D36="",0,INDEX($K$8:$P91,MATCH($D36,product,0),3)) -> 0 | I36: =IF(D36="",0,INDEX($K$8:$P91,MATCH($D36,product,0),4)+MAX($I$8:$I35)) -> 0 | K36: #18) Duo Pocket Packs (120) | L36: 63 | M36: 15.75 | N36: =M36 -> 15.75 | O36: 1 | P36: 11 | Q36: -27 | U36: 0 | V36: 0 | W36: 0 | X36: 8) QNMD Leg | Z36: 0 | AA36: 0 | AB36: 0 | AC36: 0 | AD36: 0 | AF36: 0 | AG36: January | AJ36: 0 | AM36: 0 | AN36: 1 | AO36: 0 | AP36: 0 | AQ36: 0 | AR36: 0 | AS36: 0 | AT36: 0 | AU36: 1 | AV36: 0 | AW36: 0 | AX36: 0 | AY36: 0 | AZ36: 0 | BA36: 0 | BB36: 0 | BC36: 0 | BD36: 0 | BE36: 0 | BF36: 0 | BG36: 0 | BH36: 0 | BJ36: 0 | BK36: 0 | BL36: 0 | BM36: 0 | BN36: 0 | BO36: 0 | BQ36: 0
F37: 0 | G37: =IF(D37="",0,MAX($G$8:$G36)+F37) -> 0 | H37: =IF(D37="",0,INDEX($K$8:$P92,MATCH($D37,product,0),3)) -> 0 | I37: =IF(D37="",0,INDEX($K$8:$P92,MATCH($D37,product,0),4)+MAX($I$8:$I36)) -> 0 | K37: #19) Berry Pocket Pacls (120) | L37: 42 | M37: 10.5 | N37: =M37 -> 10.5 | O37: 1 | P37: 8 | Q37: -19.25 | U37: 0 | V37: 0 | W37: 0 | X37: 9) NMD Leg | Z37: 0 | AA37: 0 | AB37: 0 | AC37: 0 | AD37: 0 | AF37: 0 | AG37: January | AJ37: 0 | AM37: 0 | AN37: 1 | AO37: 0 | AP37: 0 | AQ37: 0 | AR37: 0 | AS37: 0 | AT37: 0 | AU37: 1 | AV37: 0 | AW37: 0 | AX37: 0 | AY37: 0 | AZ37: 0 | BA37: 0 | BB37: 0 | BC37: 0 | BD37: 0 | BE37: 0 | BF37: 0 | BG37: 0 | BH37: 0 | BJ37: 0 | BK37: 0 | BL37: 0 | BM37: 0 | BN37: 0 | BO37: 0 | BQ37: 0
F38: 0 | G38: =IF(D38="",0,MAX($G$8:$G37)+F38) -> 0 | H38: =IF(D38="",0,INDEX($K$8:$P93,MATCH($D38,product,0),3)) -> 0 | I38: =IF(D38="",0,INDEX($K$8:$P93,MATCH($D38,product,0),4)+MAX($I$8:$I37)) -> 0 | U38: 0 | V38: 0 | W38: 0 | Z38: 0 | AA38: 0 | AB38: 0 | AC38: 0 | AD38: 0 | AF38: 0 | AG38: January | AJ38: 0 | AM38: 0 | AN38: 1 | AO38: 0 | AP38: 0 | AQ38: 0 | AR38: 0 | AS38: 0 | AT38: 0 | AU38: 1 | AV38: 0 | AW38: 0 | AX38: 0 | AY38: 0 | AZ38: 0 | BA38: 0 | BB38: 0 | BC38: 0 | BD38: 0 | BE38: 0 | BF38: 0 | BG38: 0 | BH38: 0 | BJ38: 0 | BK38: 0 | BL38: 0 | BM38: 0 | BN38: 0 | BO38: 0 | BQ38: 0
F39: 0 | G39: =IF(D39="",0,MAX($G$8:$G38)+F39) -> 0 | H39: =IF(D39="",0,INDEX($K$8:$P93,MATCH($D39,product,0),3)) -> 0 | I39: =IF(D39="",0,INDEX($K$8:$P93,MATCH($D39,product,0),4)+MAX($I$8:$I38)) -> 0 | K39: --- Pay in Full Auto Ship - Watch 1 Time Orders | U39: 0 | V39: 0 | W39: 0 | Z39: 0 | AA39: 0 | AB39: 0 | AC39: 0 | AD39: 0 | AF39: 0 | AG39: January | AJ39: 0 | AM39: 0 | AN39: 1 | AO39: 0 | AP39: 0 | AQ39: 0 | AR39: 0 | AS39: 0 | AT39: 0 | AU39: 1 | AV39: 0 | AW39: 0 | AX39: 0 | AY39: 0 | AZ39: 0 | BA39: 0 | BB39: 0 | BC39: 0 | BD39: 0 | BE39: 0 | BF39: 0 | BG39: 0 | BH39: 0 | BJ39: 0 | BK39: 0 | BL39: 0 | BM39: 0 | BN39: 0 | BO39: 0 | BQ39: 0
F40: =IF(D40="",0,INDEX($K$8:$P$68,MATCH(D40,product,0),2)) -> 0 | G40: =IF(D40="",0,MAX($G$8:$G39)+F40) -> 0 | H40: =IF(D40="",0,INDEX($K$8:$P94,MATCH($D40,product,0),3)) -> 0 | I40: =IF(D40="",0,INDEX($K$8:$P94,MATCH($D40,product,0),4)+MAX($I$8:$I39)) -> 0 | K40: #1) Trio Capsules (PIF 1M) | L40: 169.5 | M40: =L40 -> 169.5 | N40: =L40 -> 169.5 | O40: 2 | P40: 39 | Q40: -71.25 | U40: =IF(C40="",0,IF(MONTH(C40)=$O$2,INDEX($K$8:$O$68,MATCH($D40,product,0),5),0)) -> 0 | V40: =IF(AND(A40="",E40=""),0,IF(MONTH(C40)=$O$2,A40,0)) -> 0 | W40: =IF(V40=0,0,IF(MONTH(C40)=$O$2,INDEX($K$8:$O$68,MATCH($D40,product,0),5),0)) -> 0 | Z40: =SUM(H40*AC40) -> 0 | AA40: =SUM(F40*AC40) -> 0 | AB40: =SUM(E40) -> 0 | AC40: 0 | AD40: 0 | AF40: =IF(D40="",0,INDEX($K$8:$O$68,MATCH($D40,product,0),5)) -> 0 | AG40: =TEXT(C40,"mmmm") -> January | AJ40: 0 | AM40: =SUM(AF40>1-1) -> 0 | AN40: =COUNTBLANK(A40) -> 1 | AO40: =COUNTIF(A40,"*") -> 0 | AP40: 0 | AQ40: =SUM(F40*AP40) -> 0 | AR40: 0 | AS40: 0 | AT40: 0 | AU40: =COUNTBLANK(E40) -> 1 | AV40: 0 | AW40: =SUM(AB40*AP40) -> 0 | AX40: =U40 -> 0 | AY40: 0 | AZ40: =SUM(AC40*Z40) -> 0 | BA40: =SUM(AC40*AA40) -> 0 | BB40: =SUM(AC40*AD40) -> 0 | BC40: =SUM(Z40-AZ40) -> 0 | BD40: =SUM(AD40-BB40) -> 0 | BE40: =SUM(AX40-BK40) -> 0 | BF40: 0 | BG40: =SUM(BF40*AZ40) -> 0 | BH40: 0 | BJ40: 0 | BK40: =SUM(W40) -> 0 | BL40: 0 | BM40: =SUM(BL40*AZ40) -> 0 | BN40: 0 | BO40: 0 | BQ40: =SUM(BQ34:BQ39) -> 0
E41: =IF(D41="","",INDEX($K$8:$P$68,MATCH(D41,product,0),6)) ->  | F41: 0 | G41: =IF(D41="",0,MAX($G$8:$G40)+F41) -> 0 | H41: =IF(D41="",0,INDEX($K$8:$P94,MATCH($D41,product,0),3)) -> 0 | I41: =IF(D41="",0,INDEX($K$8:$P94,MATCH($D41,product,0),4)+MAX($I$8:$I40)) -> 0 | K41: #2) Trio / Shakes 4 Bags (PIF 1M) | L41: 240 | M41: =L41 -> 240 | N41: =L41 -> 240 | O41: 3 | P41: 55 | Q41: -102 | U41: 0 | V41: 0 | W41: 0 | Z41: 0 | AA41: 0 | AB41: 0 | AC41: 0 | AD41: 0 | AF41: 0 | AG41: January | AJ41: 0 | AM41: 0 | AN41: 1 | AO41: 0 | AP41: 0 | AQ41: 0 | AR41: 0 | AS41: 0 | AT41: 0 | AU41: 1 | AV41: 0 | AW41: 0 | AX41: 0 | AY41: 0 | AZ41: 0 | BA41: 0 | BB41: 0 | BC41: 0 | BD41: 0 | BE41: 0 | BF41: 0 | BG41: 0 | BH41: 0 | BJ41: 0 | BK41: 0 | BL41: 0 | BM41: 0 | BN41: 0 | BO41: 0
F42: 0 | G42: =IF(D42="",0,MAX($G$8:$G41)+F42) -> 0 | H42: =IF(D42="",0,INDEX($K$8:$P94,MATCH($D42,product,0),3)) -> 0 | I42: =IF(D42="",0,INDEX($K$8:$P94,MATCH($D42,product,0),4)+MAX($I$8:$I41)) -> 0 | K42: #3) Trio / Shakes 60 Singles (PIF 1M) | L42: 246.75 | M42: =L42 -> 246.75 | N42: =L42 -> 246.75 | O42: 3 | P42: 56 | Q42: -104.5 | U42: 0 | V42: 0 | W42: 0 | Z42: 0 | AA42: 0 | AB42: 0 | AC42: 0 | AD42: 0 | AF42: 0 | AG42: January | AJ42: 0 | AM42: 0 | AN42: 1 | AO42: 0 | AP42: 0 | AQ42: 0 | AR42: 0 | AS42: 0 | AT42: 0 | AU42: 1 | AV42: 0 | AW42: 0 | AX42: 0 | AY42: 0 | AZ42: 0 | BA42: 0 | BB42: 0 | BC42: 0 | BD42: 0 | BE42: 0 | BF42: 0 | BG42: 0 | BH42: 0 | BJ42: 0 | BK42: 0 | BL42: 0 | BM42: 0 | BN42: 0 | BO42: 0
F43: 0 | G43: =IF(D43="",0,MAX($G$8:$G42)+F43) -> 0 | H43: =IF(D43="",0,INDEX($K$8:$P98,MATCH($D43,product,0),3)) -> 0 | I43: =IF(D43="",0,INDEX($K$8:$P98,MATCH($D43,product,0),4)+MAX($I$8:$I42)) -> 0 | K43: #4) Quad Capsules (PIF 1M) | L43: 247.5 | M43: =L43 -> 247.5 | N43: =L43 -> 247.5 | O43: 3 | P43: 55 | Q43: -104.5 | U43: 0 | V43: 0 | W43: 0 | Z43: 0 | AA43: 0 | AB43: 0 | AC43: 0 | AD43: 0 | AF43: 0 | AG43: January | AJ43: 0 | AM43: 0 | AN43: 1 | AO43: 0 | AP43: 0 | AQ43: 0 | AR43: 0 | AS43: 0 | AT43: 0 | AU43: 1 | AV43: 0 | AW43: 0 | AX43: 0 | AY43: 0 | AZ43: 0 | BA43: 0 | BB43: 0 | BC43: 0 | BD43: 0 | BE43: 0 | BF43: 0 | BG43: 0 | BH43: 0 | BJ43: 0 | BK43: 0 | BL43: 0 | BM43: 0 | BN43: 0 | BO43: 0 | BQ43: Personal PVC * Column 6
F44: 0 | G44: =IF(D44="",0,MAX($G$8:$G43)+F44) -> 0 | H44: =IF(D44="",0,INDEX($K$8:$P99,MATCH($D44,product,0),3)) -> 0 | I44: =IF(D44="",0,INDEX($K$8:$P99,MATCH($D44,product,0),4)+MAX($I$8:$I43)) -> 0 | K44: #5) Quad / Shakes 4 Bags (PIF 1M) | L44: 318 | M44: 318 | N44: 318 | O44: 4 | P44: 71 | Q44: -135.25 | U44: 0 | V44: 0 | W44: 0 | Z44: 0 | AA44: 0 | AB44: 0 | AC44: 0 | AD44: 0 | AF44: 0 | AG44: January | AJ44: 0 | AM44: 0 | AN44: 1 | AO44: 0 | AP44: 0 | AQ44: 0 | AR44: 0 | AS44: 0 | AT44: 0 | AU44: 1 | AV44: 0 | AW44: 0 | AX44: 0 | AY44: 0 | AZ44: 0 | BA44: 0 | BB44: 0 | BC44: 0 | BD44: 0 | BE44: 0 | BF44: 0 | BG44: 0 | BH44: 0 | BJ44: 0 | BK44: 0 | BL44: 0 | BM44: 0 | BN44: 0 | BO44: 0
F45: 0 | G45: =IF(D45="",0,MAX($G$8:$G44)+F45) -> 0 | H45: =IF(D45="",0,INDEX($K$8:$P100,MATCH($D45,product,0),3)) -> 0 | I45: =IF(D45="",0,INDEX($K$8:$P100,MATCH($D45,product,0),4)+MAX($I$8:$I44)) -> 0 | J45: =MATCH(K86,months,0)-1 -> 4 | K45: #6) Quad / Shakes 60 Singles (PIF 1M) | L45: 324.75 | M45: 324.75 | N45: 324.75 | O45: 4 | P45: 72 | Q45: -137.75 | U45: 0 | V45: 0 | W45: 0 | Z45: 0 | AA45: 0 | AB45: 0 | AC45: 0 | AD45: 0 | AF45: 0 | AG45: January | AJ45: 0 | AM45: 0 | AN45: 1 | AO45: 0 | AP45: 0 | AQ45: 0 | AR45: 0 | AS45: 0 | AT45: 0 | AU45: 1 | AV45: 0 | AW45: 0 | AX45: 0 | AY45: 0 | AZ45: 0 | BA45: 0 | BB45: 0 | BC45: 0 | BD45: 0 | BE45: 0 | BF45: 0 | BG45: 0 | BH45: 0 | BJ45: 0 | BK45: 0 | BL45: 0 | BM45: 0 | BN45: 0 | BO45: 0 | BQ45: Goal 125-200
F46: 0 | G46: =IF(D46="",0,MAX($G$8:$G45)+F46) -> 0 | H46: =IF(D46="",0,INDEX($K$8:$P101,MATCH($D46,product,0),3)) -> 0 | I46: =IF(D46="",0,INDEX($K$8:$P101,MATCH($D46,product,0),4)+MAX($I$8:$I45)) -> 0 | K46: #7) Duo Capsules (PIF 1M) | L46: 106.5 | M46: =L46 -> 106.5 | N46: =L46 -> 106.5 | O46: 1 | P46: 23 | Q46: -44.5 | U46: 0 | V46: 0 | W46: 0 | Z46: 0 | AA46: 0 | AB46: 0 | AC46: 0 | AD46: 0 | AF46: 0 | AG46: January | AJ46: 0 | AM46: 0 | AN46: 1 | AO46: 0 | AP46: 0 | AQ46: 0 | AR46: 0 | AS46: 0 | AT46: 0 | AU46: 1 | AV46: 0 | AW46: 0 | AX46: 0 | AY46: 0 | AZ46: 0 | BA46: 0 | BB46: 0 | BC46: 0 | BD46: 0 | BE46: 0 | BF46: 0 | BG46: 0 | BH46: 0 | BJ46: 0 | BK46: 0 | BL46: 0 | BM46: 0 | BN46: 0 | BO46: 0 | BQ46: =SUMIFS(AR$8:AR$104,AG$8:AG$104,K74) -> 0
F47: 0 | G47: =IF(D47="",0,MAX($G$8:$G46)+F47) -> 0 | H47: =IF(D47="",0,INDEX($K$8:$P102,MATCH($D47,product,0),3)) -> 0 | I47: =IF(D47="",0,INDEX($K$8:$P102,MATCH($D47,product,0),4)+MAX($I$8:$I46)) -> 0 | K47: #8) Berry Capsules (PIF 1M) | L47: 63 | M47: =L47 -> 63 | N47: 63 | O47: 1 | P47: 16 | Q47: -28.25 | U47: 0 | V47: 0 | W47: 0 | Z47: 0 | AA47: 0 | AB47: 0 | AC47: 0 | AD47: 0 | AF47: 0 | AG47: January | AJ47: 0 | AM47: 0 | AN47: 1 | AO47: 0 | AP47: 0 | AQ47: 0 | AR47: 0 | AS47: 0 | AT47: 0 | AU47: 1 | AV47: 0 | AW47: 0 | AX47: 0 | AY47: 0 | AZ47: 0 | BA47: 0 | BB47: 0 | BC47: 0 | BD47: 0 | BE47: 0 | BF47: 0 | BG47: 0 | BH47: 0 | BJ47: 0 | BK47: 0 | BL47: 0 | BM47: 0 | BN47: 0 | BO47: 0 | BQ47: 0
F48: 0 | G48: =IF(D48="",0,MAX($G$8:$G47)+F48) -> 0 | H48: =IF(D48="",0,INDEX($K$8:$P103,MATCH($D48,product,0),3)) -> 0 | I48: =IF(D48="",0,INDEX($K$8:$P103,MATCH($D48,product,0),4)+MAX($I$8:$I47)) -> 0 | K48: #9) Omega Capsules (PIF 1M) | L48: 78 | M48: =L48 -> 78 | N48: 78 | O48: 1 | P48: 16 | Q48: -33.25 | U48: 0 | V48: 0 | W48: 0 | X48: Conference | Z48: 0 | AA48: 0 | AB48: 0 | AC48: 0 | AD48: 0 | AF48: 0 | AG48: January | AJ48: 0 | AM48: 0 | AN48: 1 | AO48: 0 | AP48: 0 | AQ48: 0 | AR48: 0 | AS48: 0 | AT48: 0 | AU48: 1 | AV48: 0 | AW48: 0 | AX48: 0 | AY48: 0 | AZ48: 0 | BA48: 0 | BB48: 0 | BC48: 0 | BD48: 0 | BE48: 0 | BF48: 0 | BG48: 0 | BH48: 0 | BJ48: 0 | BK48: 0 | BL48: 0 | BM48: 0 | BN48: 0 | BO48: 0 | BQ48: 0
F49: 0 | G49: =IF(D49="",0,MAX($G$8:$G48)+F49) -> 0 | H49: =IF(D49="",0,INDEX($K$8:$P104,MATCH($D49,product,0),3)) -> 0 | I49: =IF(D49="",0,INDEX($K$8:$P104,MATCH($D49,product,0),4)+MAX($I$8:$I48)) -> 0 | K49: #10) Trio Chewables Adults (PIF 1M) | L49: 181.5 | M49: =L49 -> 181.5 | N49: 181.5 | O49: 2 | P49: 38 | Q49: -76.75 | U49: 0 | V49: 0 | W49: 0 | X49: Boot Camp | Z49: 0 | AA49: 0 | AB49: 0 | AC49: 0 | AD49: 0 | AF49: 0 | AG49: January | AJ49: 0 | AM49: 0 | AN49: 1 | AO49: 0 | AP49: 0 | AQ49: 0 | AR49: 0 | AS49: 0 | AT49: 0 | AU49: 1 | AV49: 0 | AW49: 0 | AX49: 0 | AY49: 0 | AZ49: 0 | BA49: 0 | BB49: 0 | BC49: 0 | BD49: 0 | BE49: 0 | BF49: 0 | BG49: 0 | BH49: 0 | BJ49: 0 | BK49: 0 | BL49: 0 | BM49: 0 | BN49: 0 | BO49: 0 | BQ49: 0
F50: 0 | G50: =IF(D50="",0,MAX($G$8:$G49)+F50) -> 0 | H50: =IF(D50="",0,INDEX($K$8:$P106,MATCH($D50,product,0),3)) -> 0 | I50: =IF(D50="",0,INDEX($K$8:$P106,MATCH($D50,product,0),4)+MAX($I$8:$I49)) -> 0 | K50: #11) Duo Chewables Adult (PIF 1M) | L50: 111 | M50: =L50 -> 111 | N50: 111 | O50: 1 | P50: 22 | Q50: -47.5 | U50: 0 | V50: 0 | W50: 0 | X50: Regional | Z50: 0 | AA50: 0 | AB50: 0 | AC50: 0 | AD50: 0 | AF50: 0 | AG50: January | AJ50: 0 | AM50: 0 | AN50: 1 | AO50: 0 | AP50: 0 | AQ50: 0 | AR50: 0 | AS50: 0 | AT50: 0 | AU50: 1 | AV50: 0 | AW50: 0 | AX50: 0 | AY50: 0 | AZ50: 0 | BA50: 0 | BB50: 0 | BC50: 0 | BD50: 0 | BE50: 0 | BF50: 0 | BG50: 0 | BH50: 0 | BJ50: 0 | BK50: 0 | BL50: 0 | BM50: 0 | BN50: 0 | BO50: 0 | BQ50: 0
F51: 0 | G51: =IF(D51="",0,MAX($G$8:$G50)+F51) -> 0 | H51: =IF(D51="",0,INDEX($K$8:$P106,MATCH($D51,product,0),3)) -> 0 | I51: =IF(D51="",0,INDEX($K$8:$P106,MATCH($D51,product,0),4)+MAX($I$8:$I50)) -> 0 | K51: #12) Duo Chewables Child (PIF 1M) | L51: 55.5 | M51: 55.5 | N51: 55.5 | O51: 1 | P51: 11 | Q51: -24.5 | U51: 0 | V51: 0 | W51: 0 | X51: Super Saturday | Z51: 0 | AA51: 0 | AB51: 0 | AC51: 0 | AD51: 0 | AF51: 0 | AG51: January | AJ51: 0 | AM51: 0 | AN51: 1 | AO51: 0 | AP51: 0 | AQ51: 0 | AR51: 0 | AS51: 0 | AT51: 0 | AU51: 1 | AV51: 0 | AW51: 0 | AX51: 0 | AY51: 0 | AZ51: 0 | BA51: 0 | BB51: 0 | BC51: 0 | BD51: 0 | BE51: 0 | BF51: 0 | BG51: 0 | BH51: 0 | BJ51: 0 | BK51: 0 | BL51: 0 | BM51: 0 | BN51: 0 | BO51: 0 | BQ51: 0
F52: 0 | G52: =IF(D52="",0,MAX($G$8:$G51)+F52) -> 0 | H52: =IF(D52="",0,INDEX($K$8:$P106,MATCH($D52,product,0),3)) -> 0 | I52: =IF(D52="",0,INDEX($K$8:$P106,MATCH($D52,product,0),4)+MAX($I$8:$I51)) -> 0 | K52: #13) Berry Chewables Adult (PIF 1M) | L52: 70.5 | M52: 70.5 | N52: 70.5 | O52: 1 | P52: 16 | Q52: -30.75 | U52: 0 | V52: 0 | W52: 0 | X52: Recruit/Vision Event | Z52: 0 | AA52: 0 | AB52: 0 | AC52: 0 | AD52: 0 | AF52: 0 | AG52: January | AJ52: 0 | AM52: 0 | AN52: 1 | AO52: 0 | AP52: 0 | AQ52: 0 | AR52: 0 | AS52: 0 | AT52: 0 | AU52: 1 | AV52: 0 | AW52: 0 | AX52: 0 | AY52: 0 | AZ52: 0 | BA52: 0 | BB52: 0 | BC52: 0 | BD52: 0 | BE52: 0 | BF52: 0 | BG52: 0 | BH52: 0 | BJ52: 0 | BK52: 0 | BL52: 0 | BM52: 0 | BN52: 0 | BO52: 0 | BQ52: =SUM(BQ46:BQ51) -> 0
F53: 0 | G53: =IF(D53="",0,MAX($G$8:$G52)+F53) -> 0 | H53: =IF(D53="",0,INDEX($K$8:$P106,MATCH($D53,product,0),3)) -> 0 | I53: =IF(D53="",0,INDEX($K$8:$P106,MATCH($D53,product,0),4)+MAX($I$8:$I52)) -> 0 | J53: 4 | K53: #14) Berry Chewables Child (PIF 1M) | L53: TBA | M53: TBA | N53: =M53 -> TBA | O53: 1 | P53: TBA | Q53: TBA | U53: 0 | V53: 0 | W53: 0 | X53: Local Bus Event | Z53: =SUM(H53*AC53) -> 0 | AA53: =SUM(F53*AC53) -> 0 | AB53: =SUM(E53) -> 0 | AC53: =SUM(U53>1-1) -> 0 | AD53: =SUM(AB53*AC53) -> 0 | AF53: 0 | AG53: January | AJ53: =AF53 -> 0 | AM53: =SUM(AF53>1-1) -> 0 | AN53: 1 | AO53: 0 | AP53: 0 | AQ53: =SUM(F53*AP53) -> 0 | AR53: 0 | AS53: 0 | AT53: 0 | AU53: 1 | AV53: =SUM(AU53=1-1) -> 0 | AW53: 0 | AX53: 0 | AY53: =SUM(AX53>1-1) -> 0 | AZ53: 0 | BA53: 0 | BB53: 0 | BC53: 0 | BD53: 0 | BE53: =SUM(AX53-BK53) -> 0 | BF53: =SUM(BE53>1-1) -> 0 | BG53: =SUM(BF53*AZ53) -> 0 | BH53: =SUM(BF53*BA53) -> 0 | BJ53: =SUM(BF53*BB53) -> 0 | BK53: 0 | BL53: =SUM(BK53>1-1) -> 0 | BM53: =SUM(BL53*AZ53) -> 0 | BN53: 0 | BO53: =SUM(BL53*BB53) -> 0
F54: 0 | G54: =IF(D54="",0,MAX($G$8:$G53)+F54) -> 0 | H54: =IF(D54="",0,INDEX($K$8:$P106,MATCH($D54,product,0),3)) -> 0 | I54: =IF(D54="",0,INDEX($K$8:$P106,MATCH($D54,product,0),4)+MAX($I$8:$I53)) -> 0 | J54: 5 | K54: #15) Shakes 4 bags (PIF 1M) | L54: 70.5 | M54: =L54 -> 70.5 | N54: =L54 -> 70.5 | O54: 1 | P54: 16 | Q54: -30.75 | U54: 0 | V54: 0 | W54: 0 | X54: Local PPL | Z54: =SUM(H54*AC54) -> 0 | AA54: =SUM(F54*AC54) -> 0 | AB54: =SUM(E54) -> 0 | AC54: =SUM(U54>1-1) -> 0 | AD54: =SUM(AB54*AC54) -> 0 | AF54: 0 | AG54: January | AJ54: =AF54 -> 0 | AM54: =SUM(AF54>1-1) -> 0 | AN54: 1 | AO54: 0 | AP54: 0 | AQ54: =SUM(F54*AP54) -> 0 | AR54: 0 | AS54: 0 | AT54: 0 | AU54: 1 | AV54: =SUM(AU54=1-1) -> 0 | AW54: 0 | AX54: 0 | AY54: =SUM(AX54>1-1) -> 0 | AZ54: 0 | BA54: 0 | BB54: 0 | BC54: 0 | BD54: 0 | BE54: =SUM(AX54-BK54) -> 0 | BF54: =SUM(BE54>1-1) -> 0 | BG54: =SUM(BF54*AZ54) -> 0 | BH54: =SUM(BF54*BA54) -> 0 | BJ54: =SUM(BF54*BB54) -> 0 | BK54: 0 | BL54: =SUM(BK54>1-1) -> 0 | BM54: =SUM(BL54*AZ54) -> 0 | BN54: 0 | BO54: =SUM(BL54*BB54) -> 0
F55: 0 | G55: =IF(D55="",0,MAX($G$8:$G54)+F55) -> 0 | H55: =IF(D55="",0,INDEX($K$8:$P106,MATCH($D55,product,0),3)) -> 0 | I55: =IF(D55="",0,INDEX($K$8:$P106,MATCH($D55,product,0),4)+MAX($I$8:$I54)) -> 0 | K55: #16) Shakes 60 Singles (PIF 1M) | L55: 77.25 | M55: 77.25 | N55: 77.25 | O55: 1 | P55: 17 | Q55: -33.5 | U55: 0 | V55: 0 | W55: 0 | X55: IMAGE | Z55: 0 | AA55: 0 | AB55: 0 | AC55: 0 | AD55: 0 | AF55: 0 | AG55: January | AJ55: 0 | AM55: 0 | AN55: 1 | AO55: 0 | AP55: 0 | AQ55: 0 | AR55: 0 | AS55: 0 | AT55: 0 | AU55: 1 | AV55: 0 | AW55: 0 | AX55: 0 | AY55: 0 | AZ55: 0 | BA55: 0 | BB55: 0 | BC55: 0 | BD55: 0 | BE55: 0 | BF55: 0 | BG55: 0 | BH55: 0 | BJ55: 0 | BK55: 0 | BL55: 0 | BM55: 0 | BN55: 0 | BO55: 0 | BQ55: New Distributor Promo PVC only
F56: 0 | G56: =IF(D56="",0,MAX($G$8:$G55)+F56) -> 0 | H56: =IF(D56="",0,INDEX($K$8:$P106,MATCH($D56,product,0),3)) -> 0 | I56: =IF(D56="",0,INDEX($K$8:$P106,MATCH($D56,product,0),4)+MAX($I$8:$I55)) -> 0 | K56: #17) Bars 60 bars (PIF 1M) | L56: 70.5 | M56: 70.5 | N56: 70.5 | O56: 1 | P56: 16 | Q56: -32.5 | U56: 0 | V56: 0 | W56: 0 | X56: Other | Z56: 0 | AA56: 0 | AB56: 0 | AC56: 0 | AD56: 0 | AF56: 0 | AG56: January | AJ56: 0 | AM56: 0 | AN56: 1 | AO56: 0 | AP56: 0 | AQ56: 0 | AR56: 0 | AS56: 0 | AT56: 0 | AU56: 1 | AV56: 0 | AW56: 0 | AX56: 0 | AY56: 0 | AZ56: 0 | BA56: 0 | BB56: 0 | BC56: 0 | BD56: 0 | BE56: 0 | BF56: 0 | BG56: 0 | BH56: 0 | BJ56: 0 | BK56: 0 | BL56: 0 | BM56: 0 | BN56: 0 | BO56: 0
F57: 0 | G57: =IF(D57="",0,MAX($G$8:$G56)+F57) -> 0 | H57: =IF(D57="",0,INDEX($K$8:$P106,MATCH($D57,product,0),3)) -> 0 | I57: =IF(D57="",0,INDEX($K$8:$P106,MATCH($D57,product,0),4)+MAX($I$8:$I56)) -> 0 | K57: #18) Duo Pocket Packs 120 (PIF 1M) | L57: 63 | M57: =L57 -> 63 | N57: =L57 -> 63 | O57: 1 | P57: 11 | Q57: -27 | U57: 0 | V57: 0 | W57: 0 | Z57: 0 | AA57: 0 | AB57: 0 | AC57: 0 | AD57: 0 | AF57: 0 | AG57: January | AJ57: 0 | AM57: 0 | AN57: 1 | AO57: 0 | AP57: 0 | AQ57: 0 | AR57: 0 | AS57: 0 | AT57: 0 | AU57: 1 | AV57: 0 | AW57: 0 | AX57: 0 | AY57: 0 | AZ57: 0 | BA57: 0 | BB57: 0 | BC57: 0 | BD57: 0 | BE57: 0 | BF57: 0 | BG57: 0 | BH57: 0 | BJ57: 0 | BK57: 0 | BL57: 0 | BM57: 0 | BN57: 0 | BO57: 0 | BQ57: Goal DD = 500 pvc
F58: 0 | G58: =IF(D58="",0,MAX($G$8:$G57)+F58) -> 0 | H58: =IF(D58="",0,INDEX($K$8:$P107,MATCH($D58,product,0),3)) -> 0 | I58: =IF(D58="",0,INDEX($K$8:$P107,MATCH($D58,product,0),4)+MAX($I$8:$I57)) -> 0 | J58: =MATCH(K99,months,0)-1 -> 4 | K58: #19) Berry Pocket Pacls 120 (PIF 1M) | L58: 42 | M58: 42 | N58: 42 | O58: 1 | P58: 8 | Q58: -19.25 | U58: 0 | V58: 0 | W58: 0 | Z58: 0 | AA58: 0 | AB58: 0 | AC58: 0 | AD58: 0 | AF58: 0 | AG58: January | AJ58: 0 | AM58: 0 | AN58: 1 | AO58: 0 | AP58: 0 | AQ58: 0 | AR58: 0 | AS58: 0 | AT58: 0 | AU58: 1 | AV58: 0 | AW58: 0 | AX58: 0 | AY58: 0 | AZ58: 0 | BA58: 0 | BB58: 0 | BC58: 0 | BD58: 0 | BE58: 0 | BF58: 0 | BG58: 0 | BH58: 0 | BJ58: 0 | BK58: 0 | BL58: 0 | BM58: 0 | BN58: 0 | BO58: 0 | BQ58: =SUMIFS(AS$8:AS$104,AG$8:AG$104,K74) -> 0
F59: 0 | G59: =IF(D59="",0,MAX($G$8:$G58)+F59) -> 0 | H59: =IF(D59="",0,INDEX($K$8:$P108,MATCH($D59,product,0),3)) -> 0 | I59: =IF(D59="",0,INDEX($K$8:$P108,MATCH($D59,product,0),4)+MAX($I$8:$I58)) -> 0 | U59: 0 | V59: 0 | W59: 0 | Z59: 0 | AA59: 0 | AB59: 0 | AC59: 0 | AD59: 0 | AF59: 0 | AG59: January | AJ59: 0 | AM59: 0 | AN59: 1 | AO59: 0 | AP59: 0 | AQ59: 0 | AR59: 0 | AS59: 0 | AT59: 0 | AU59: 1 | AV59: 0 | AW59: 0 | AX59: 0 | AY59: 0 | AZ59: 0 | BA59: 0 | BB59: 0 | BC59: 0 | BD59: 0 | BE59: 0 | BF59: 0 | BG59: 0 | BH59: 0 | BJ59: 0 | BK59: 0 | BL59: 0 | BM59: 0 | BN59: 0 | BO59: 0 | BQ59: 0
F60: 0 | G60: =IF(D60="",0,MAX($G$8:$G59)+F60) -> 0 | H60: =IF(D60="",0,INDEX($K$8:$P109,MATCH($D60,product,0),3)) -> 0 | I60: =IF(D60="",0,INDEX($K$8:$P109,MATCH($D60,product,0),4)+MAX($I$8:$I59)) -> 0 | K60: ---- Tower Garden. ---- | U60: 0 | V60: 0 | W60: 0 | Z60: 0 | AA60: 0 | AB60: 0 | AC60: 0 | AD60: 0 | AF60: 0 | AG60: January | AJ60: 0 | AM60: 0 | AN60: 1 | AO60: 0 | AP60: 0 | AQ60: 0 | AR60: 0 | AS60: 0 | AT60: 0 | AU60: 1 | AV60: 0 | AW60: 0 | AX60: 0 | AY60: 0 | AZ60: 0 | BA60: 0 | BB60: 0 | BC60: 0 | BD60: 0 | BE60: 0 | BF60: 0 | BG60: 0 | BH60: 0 | BJ60: 0 | BK60: 0 | BL60: 0 | BM60: 0 | BN60: 0 | BO60: 0 | BQ60: 0
F61: 0 | G61: =IF(D61="",0,MAX($G$8:$G60)+F61) -> 0 | H61: =IF(D61="",0,INDEX($K$8:$P110,MATCH($D61,product,0),3)) -> 0 | I61: =IF(D61="",0,INDEX($K$8:$P110,MATCH($D61,product,0),4)+MAX($I$8:$I60)) -> 0 | K61: TG 1 Tower ( Installments) | L61: 352.5 | M61: =SUM(L61/12) -> 29.375 | N61: =M61 -> 29.375 | O61: 1 | P61: 55 | Q61: -45.25 | U61: 0 | V61: 0 | W61: 0 | Z61: 0 | AA61: 0 | AB61: 0 | AC61: 0 | AD61: 0 | AF61: 0 | AG61: January | AJ61: 0 | AM61: 0 | AN61: 1 | AO61: 0 | AP61: 0 | AQ61: 0 | AR61: 0 | AS61: 0 | AT61: 0 | AU61: 1 | AV61: 0 | AW61: 0 | AX61: 0 | AY61: 0 | AZ61: 0 | BA61: 0 | BB61: 0 | BC61: 0 | BD61: 0 | BE61: 0 | BF61: 0 | BG61: 0 | BH61: 0 | BJ61: 0 | BK61: 0 | BL61: 0 | BM61: 0 | BN61: 0 | BO61: 0 | BQ61: 0
F62: 0 | G62: =IF(D62="",0,MAX($G$8:$G61)+F62) -> 0 | H62: =IF(D62="",0,INDEX($K$8:$P111,MATCH($D62,product,0),3)) -> 0 | I62: =IF(D62="",0,INDEX($K$8:$P111,MATCH($D62,product,0),4)+MAX($I$8:$I61)) -> 0 | K62: TG 1 Tower (Pay in Full) | L62: 352.5 | M62: 0 | N62: 0 | O62: 1 | P62: 55 | Q62: 0 | U62: 0 | V62: 0 | W62: 0 | Z62: 0 | AA62: 0 | AB62: 0 | AC62: 0 | AD62: 0 | AF62: 0 | AG62: January | AJ62: 0 | AM62: 0 | AN62: 1 | AO62: 0 | AP62: 0 | AQ62: 0 | AR62: 0 | AS62: 0 | AT62: 0 | AU62: 1 | AV62: 0 | AW62: 0 | AX62: 0 | AY62: 0 | AZ62: 0 | BA62: 0 | BB62: 0 | BC62: 0 | BD62: 0 | BE62: 0 | BF62: 0 | BG62: 0 | BH62: 0 | BJ62: 0 | BK62: 0 | BL62: 0 | BM62: 0 | BN62: 0 | BO62: 0 | BQ62: 0
F63: 0 | G63: =IF(D63="",0,MAX($G$8:$G62)+F63) -> 0 | H63: =IF(D63="",0,INDEX($K$8:$P112,MATCH($D63,product,0),3)) -> 0 | I63: =IF(D63="",0,INDEX($K$8:$P112,MATCH($D63,product,0),4)+MAX($I$8:$I62)) -> 0 | K63: TG Family (3 TG's) ( Installments) | L63: 1132.5 | M63: =SUM(L63/12) -> 94.375 | N63: =M63 -> 94.375 | O63: 3 | P63: 180 | Q63: -142.33 | U63: 0 | V63: 0 | W63: 0 | X63: New 3 Club | Z63: 0 | AA63: 0 | AB63: 0 | AC63: 0 | AD63: 0 | AF63: 0 | AG63: January | AJ63: 0 | AM63: 0 | AN63: 1 | AO63: 0 | AP63: 0 | AQ63: 0 | AR63: 0 | AS63: 0 | AT63: 0 | AU63: 1 | AV63: 0 | AW63: 0 | AX63: 0 | AY63: 0 | AZ63: 0 | BA63: 0 | BB63: 0 | BC63: 0 | BD63: 0 | BE63: 0 | BF63: 0 | BG63: 0 | BH63: 0 | BJ63: 0 | BK63: 0 | BL63: 0 | BM63: 0 | BN63: 0 | BO63: 0 | BQ63: 0
F64: 0 | G64: =IF(D64="",0,MAX($G$8:$G63)+F64) -> 0 | H64: =IF(D64="",0,INDEX($K$8:$P113,MATCH($D64,product,0),3)) -> 0 | I64: =IF(D64="",0,INDEX($K$8:$P113,MATCH($D64,product,0),4)+MAX($I$8:$I63)) -> 0 | J64: =MATCH(K105,months,0)-1 ->  | K64: TG Family (3 TG's) (Pay in Full) | L64: 1132.5 | M64: 0 | N64: 0 | O64: 3 | P64: 180 | Q64: 0 | U64: 0 | V64: 0 | W64: 0 | X64: New 6 Club | Z64: =SUM(H64*AC64) -> 0 | AA64: =SUM(F64*AC64) -> 0 | AB64: =SUM(E64) -> 0 | AC64: =SUM(U64>1-1) -> 0 | AD64: =SUM(AB64*AC64) -> 0 | AF64: 0 | AG64: January | AJ64: =AF64 -> 0 | AM64: =SUM(AF64>1-1) -> 0 | AN64: 1 | AO64: 0 | AP64: 0 | AQ64: =SUM(F64*AP64) -> 0 | AR64: 0 | AS64: 0 | AT64: 0 | AU64: 1 | AV64: =SUM(AU64=1-1) -> 0 | AW64: 0 | AX64: 0 | AY64: =SUM(AX64>1-1) -> 0 | AZ64: 0 | BA64: 0 | BB64: 0 | BC64: 0 | BD64: 0 | BE64: =SUM(AX64-BK64) -> 0 | BF64: =SUM(BE64>1-1) -> 0 | BG64: =SUM(BF64*AZ64) -> 0 | BH64: =SUM(BF64*BA64) -> 0 | BJ64: =SUM(BF64*BB64) -> 0 | BK64: 0 | BL64: =SUM(BK64>1-1) -> 0 | BM64: =SUM(BL64*AZ64) -> 0 | BN64: 0 | BO64: =SUM(BL64*BB64) -> 0 | BQ64: =SUM(BQ58:BQ63) -> 0
F65: 0 | G65: =IF(D65="",0,MAX($G$8:$G64)+F65) -> 0 | H65: =IF(D65="",0,INDEX($K$8:$P114,MATCH($D65,product,0),3)) -> 0 | I65: =IF(D65="",0,INDEX($K$8:$P114,MATCH($D65,product,0),4)+MAX($I$8:$I64)) -> 0 | K65: TG Minerals (A and B) | L65: 20 | M65: 0 | N65: 0 | O65: 0 | P65: 0 | Q65: 40 +ship | U65: 0 | V65: 0 | W65: 0 | X65: New 12 Club | Z65: =SUM(H65*AC65) -> 0 | AA65: =SUM(F65*AC65) -> 0 | AB65: =SUM(E65) -> 0 | AC65: =SUM(U65>1-1) -> 0 | AD65: =SUM(AB65*AC65) -> 0 | AF65: 0 | AG65: January | AJ65: =AF65 -> 0 | AM65: =SUM(AF65>1-1) -> 0 | AN65: 1 | AO65: 0 | AP65: 0 | AQ65: =SUM(F65*AP65) -> 0 | AR65: 0 | AS65: 0 | AT65: 0 | AU65: 1 | AV65: =SUM(AU65=1-1) -> 0 | AW65: 0 | AX65: 0 | AY65: =SUM(AX65>1-1) -> 0 | AZ65: 0 | BA65: 0 | BB65: 0 | BC65: 0 | BD65: 0 | BE65: =SUM(AX65-BK65) -> 0 | BF65: =SUM(BE65>1-1) -> 0 | BG65: =SUM(BF65*AZ65) -> 0 | BH65: =SUM(BF65*BA65) -> 0 | BJ65: =SUM(BF65*BB65) -> 0 | BK65: 0 | BL65: =SUM(BK65>1-1) -> 0 | BM65: =SUM(BL65*AZ65) -> 0 | BN65: 0 | BO65: =SUM(BL65*BB65) -> 0
F66: 0 | G66: =IF(D66="",0,MAX($G$8:$G65)+F66) -> 0 | H66: =IF(D66="",0,INDEX($K$8:$P113,MATCH($D66,product,0),3)) -> 0 | I66: =IF(D66="",0,INDEX($K$8:$P113,MATCH($D66,product,0),4)+MAX($I$8:$I63)) -> 0 | J66: =MATCH(K99,months,0)-1 -> 4 | K66: TG Extension Kit ($19) | L66: 35 | M66: 0 | N66: 0 | O66: 0 | P66: 0 | Q66: 70+ship | U66: 0 | V66: 0 | W66: 0 | X66: New 24 Club | Z66: 0 | AA66: 0 | AB66: 0 | AC66: 0 | AD66: 0 | AF66: 0 | AG66: January | AJ66: 0 | AM66: 0 | AN66: 1 | AO66: 0 | AP66: 0 | AQ66: 0 | AR66: 0 | AS66: 0 | AT66: 0 | AU66: 1 | AV66: 0 | AW66: 0 | AX66: 0 | AY66: 0 | AZ66: 0 | BA66: 0 | BB66: 0 | BC66: 0 | BD66: 0 | BE66: 0 | BF66: 0 | BG66: 0 | BH66: 0 | BJ66: 0 | BK66: 0 | BL66: 0 | BM66: 0 | BN66: 0 | BO66: 0
F67: 0 | G67: =IF(D67="",0,MAX($G$8:$G66)+F67) -> 0 | H67: =IF(D67="",0,INDEX($K$8:$P114,MATCH($D67,product,0),3)) -> 0 | I67: =IF(D67="",0,INDEX($K$8:$P114,MATCH($D67,product,0),4)+MAX($I$8:$I66)) -> 0 | K67: TG Tomato Cage ($19) | L67: 30 | M67: 0 | N67: 0 | O67: 0 | P67: 0 | Q67: 60+ship | U67: 0 | V67: 0 | W67: 0 | X67: New 39 Club | Z67: 0 | AA67: 0 | AB67: 0 | AC67: 0 | AD67: 0 | AF67: 0 | AG67: January | AJ67: 0 | AM67: 0 | AN67: 1 | AO67: 0 | AP67: 0 | AQ67: 0 | AR67: 0 | AS67: 0 | AT67: 0 | AU67: 1 | AV67: 0 | AW67: 0 | AX67: 0 | AY67: 0 | AZ67: 0 | BA67: 0 | BB67: 0 | BC67: 0 | BD67: 0 | BE67: 0 | BF67: 0 | BG67: 0 | BH67: 0 | BJ67: 0 | BK67: 0 | BL67: 0 | BM67: 0 | BN67: 0 | BO67: 0 | BQ67: New Dist PVC * in Column 4
F68: 0 | G68: =IF(D68="",0,MAX($G$8:$G67)+F68) -> 0 | H68: =IF(D68="",0,INDEX($K$8:$P115,MATCH($D68,product,0),3)) -> 0 | I68: =IF(D68="",0,INDEX($K$8:$P115,MATCH($D68,product,0),4)+MAX($I$8:$I67)) -> 0 | K68: TG Grow Lights | L68: 109.5 | M68: 0 | N68: 0 | O68: 0 | P68: 0 | Q68: 219+Ship | U68: 0 | V68: 0 | W68: 0 | Z68: 0 | AA68: 0 | AB68: 0 | AC68: 0 | AD68: 0 | AF68: 0 | AG68: January | AJ68: 0 | AM68: 0 | AN68: 1 | AO68: 0 | AP68: 0 | AQ68: 0 | AR68: 0 | AS68: 0 | AT68: 0 | AU68: 1 | AV68: 0 | AW68: 0 | AX68: 0 | AY68: 0 | AZ68: 0 | BA68: 0 | BB68: 0 | BC68: 0 | BD68: 0 | BE68: 0 | BF68: 0 | BG68: 0 | BH68: 0 | BJ68: 0 | BK68: 0 | BL68: 0 | BM68: 0 | BN68: 0 | BO68: 0
F69: 0 | G69: =IF(D69="",0,MAX($G$8:$G68)+F69) -> 0 | H69: =IF(D69="",0,INDEX($K$8:$P116,MATCH($D69,product,0),3)) -> 0 | I69: =IF(D69="",0,INDEX($K$8:$P116,MATCH($D69,product,0),4)+MAX($I$8:$I68)) -> 0 | U69: 0 | V69: 0 | W69: 0 | Z69: 0 | AA69: 0 | AB69: 0 | AC69: 0 | AD69: 0 | AF69: 0 | AG69: January | AJ69: 0 | AM69: 0 | AN69: 1 | AO69: 0 | AP69: 0 | AQ69: 0 | AR69: 0 | AS69: 0 | AT69: 0 | AU69: 1 | AV69: 0 | AW69: 0 | AX69: 0 | AY69: 0 | AZ69: 0 | BA69: 0 | BB69: 0 | BC69: 0 | BD69: 0 | BE69: 0 | BF69: 0 | BG69: 0 | BH69: 0 | BJ69: 0 | BK69: 0 | BL69: 0 | BM69: 0 | BN69: 0 | BO69: 0 | BQ69: Goal 125-200
F70: 0 | G70: =IF(D70="",0,MAX($G$8:$G69)+F70) -> 0 | H70: =IF(D70="",0,INDEX($K$8:$P118,MATCH($D70,product,0),3)) -> 0 | I70: =IF(D70="",0,INDEX($K$8:$P118,MATCH($D70,product,0),4)+MAX($I$8:$I69)) -> 0 | U70: 0 | V70: 0 | W70: 0 | Z70: 0 | AA70: 0 | AB70: 0 | AC70: 0 | AD70: 0 | AF70: 0 | AG70: January | AJ70: 0 | AM70: 0 | AN70: 1 | AO70: 0 | AP70: 0 | AQ70: 0 | AR70: 0 | AS70: 0 | AT70: 0 | AU70: 1 | AV70: 0 | AW70: 0 | AX70: 0 | AY70: 0 | AZ70: 0 | BA70: 0 | BB70: 0 | BC70: 0 | BD70: 0 | BE70: 0 | BF70: 0 | BG70: 0 | BH70: 0 | BJ70: 0 | BK70: 0 | BL70: 0 | BM70: 0 | BN70: 0 | BO70: 0 | BQ70: =SUMIFS(AT$8:AT$104,AG$8:AG$104,K74) -> 0
F71: 0 | G71: =IF(D71="",0,MAX($G$8:$G70)+F71) -> 0 | H71: =IF(D71="",0,INDEX($K$8:$P118,MATCH($D71,product,0),3)) -> 0 | I71: =IF(D71="",0,INDEX($K$8:$P118,MATCH($D71,product,0),4)+MAX($I$8:$I70)) -> 0 | K71: Fast Track Sales Coordinator Business Summary | L71: Order Count | M71: Your Orders | N71: Personal PVC * Column 6 | O71: Personal Promo PVC | P71: Retail Profit | Q71: Your Combined Promo PVC | R71: New Distributor Promo PVC only | U71: 0 | V71: 0 | W71: 0 | Z71: 0 | AA71: 0 | AB71: 0 | AC71: 0 | AD71: 0 | AF71: 0 | AG71: January | AJ71: 0 | AM71: 0 | AN71: 1 | AO71: 0 | AP71: 0 | AQ71: 0 | AR71: 0 | AS71: 0 | AT71: 0 | AU71: 1 | AV71: 0 | AW71: 0 | AX71: 0 | AY71: 0 | AZ71: 0 | BA71: 0 | BB71: 0 | BC71: 0 | BD71: 0 | BE71: 0 | BF71: 0 | BG71: 0 | BH71: 0 | BJ71: 0 | BK71: 0 | BL71: 0 | BM71: 0 | BN71: 0 | BO71: 0 | BQ71: 0 | BT71: Team Building Bonus Check | BU71: Monthly Check Total | BV71: Total Bonus & Monthly Check
F72: =IF(D72="",0,INDEX($K$8:$P$68,MATCH(D72,product,0),2)) -> 0 | G72: =IF(D72="",0,MAX($G$8:$G71)+F72) -> 0 | H72: =IF(D72="",0,INDEX($K$8:$P118,MATCH($D72,product,0),3)) -> 0 | I72: =IF(D72="",0,INDEX($K$8:$P118,MATCH($D72,product,0),4)+MAX($I$8:$I71)) -> 0 | U72: =IF(C72="",0,IF(MONTH(C72)=$O$2,INDEX($K$8:$O$68,MATCH($D72,product,0),5),0)) -> 0 | V72: =IF(AND(A72="",E72=""),0,IF(MONTH(C72)=$O$2,A72,0)) -> 0 | W72: =IF(V72=0,0,IF(MONTH(C72)=$O$2,INDEX($K$8:$O$68,MATCH($D72,product,0),5),0)) -> 0 | Z72: 0 | AA72: 0 | AB72: 0 | AC72: 0 | AD72: 0 | AF72: =IF(D72="",0,INDEX($K$8:$O$68,MATCH($D72,product,0),5)) -> 0 | AG72: =TEXT(C72,"mmmm") -> January | AJ72: 0 | AM72: 0 | AN72: =COUNTBLANK(A72) -> 1 | AO72: =COUNTIF(A72,"*") -> 0 | AP72: 0 | AQ72: 0 | AR72: 0 | AS72: 0 | AT72: 0 | AU72: =COUNTBLANK(E72) -> 1 | AV72: 0 | AW72: =SUM(AB72*AP72) -> 0 | AX72: =U72 -> 0 | AY72: 0 | AZ72: =SUM(AC72*Z72) -> 0 | BA72: =SUM(AC72*AA72) -> 0 | BB72: =SUM(AC72*AD72) -> 0 | BC72: =SUM(Z72-AZ72) -> 0 | BD72: =SUM(AD72-BB72) -> 0 | BE72: 0 | BF72: 0 | BG72: 0 | BH72: 0 | BJ72: 0 | BK72: =SUM(W72) -> 0 | BL72: 0 | BM72: 0 | BN72: 0 | BO72: 0 | BQ72: 0
E73: =IF(D73="","",INDEX($K$8:$P$68,MATCH(D73,product,0),6)) ->  | F73: 0 | G73: =IF(D73="",0,MAX($G$8:$G72)+F73) -> 0 | H73: =IF(D73="",0,INDEX($K$8:$P118,MATCH($D73,product,0),3)) -> 0 | I73: =IF(D73="",0,INDEX($K$8:$P118,MATCH($D73,product,0),4)+MAX($I$8:$I72)) -> 0 | K73: Select Start Month ( FT - SC ) | L73: You + New Dist | M73: Your Customers | N73: Goal 125-200 | O73: You | P73: Your Customers | Q73: Goal 2,000 | R73: Goal DD = 500 pvc | U73: 0 | V73: 0 | W73: 0 | Z73: 0 | AA73: 0 | AB73: 0 | AC73: 0 | AD73: 0 | AF73: 0 | AG73: January | AJ73: 0 | AM73: 0 | AN73: 1 | AO73: 0 | AP73: 0 | AQ73: 0 | AR73: =SUM(H73*AP73) -> 0 | AS73: 0 | AT73: 0 | AU73: 1 | AV73: 0 | AW73: 0 | AX73: 0 | AY73: 0 | AZ73: 0 | BA73: 0 | BB73: 0 | BC73: 0 | BD73: 0 | BE73: 0 | BF73: 0 | BG73: 0 | BH73: 0 | BJ73: 0 | BK73: 0 | BL73: 0 | BM73: 0 | BN73: =SUM(BL73*BA73) -> 0 | BO73: 0 | BQ73: 0 | BT73: Mo TBB Check | BU73: Reg Mo Check | BV73: Total Mo Inc
F74: 0 | G74: =IF(D74="",0,MAX($G$8:$G73)+F74) -> 0 | H74: =IF(D74="",0,INDEX($K$8:$P118,MATCH($D74,product,0),3)) -> 0 | I74: =IF(D74="",0,INDEX($K$8:$P118,MATCH($D74,product,0),4)+MAX($I$8:$I73)) -> 0 | K74: May | L74: =SUMIFS(AM$8:AM$104,AG$8:AG$104,K74) -> 0 | M74: =SUMIFS(AP$8:AP$104,AG$8:AG$104,K74) -> 0 | N74: =SUMIFS(AR$8:AR$104,AG$8:AG$104,K74) -> 0 | O74: =SUMIFS(AQ$8:AQ$104,AG$8:AG$104,K74) -> 0 | P74: =SUMIFS(AW$8:AW$104,AG$8:AG$104,K74) -> 0 | Q74: =SUMIFS(F$8:F$104,AG$8:AG$104,K74) -> 0 | R74: =SUMIFS(AS$8:AS$104,AG$8:AG$104,K74) -> 0 | U74: 0 | V74: 0 | W74: 0 | Z74: =SUM(H74*AC74) -> 0 | AA74: =SUM(F74*AC74) -> 0 | AB74: =SUM(E74) -> 0 | AC74: =SUM(U74>1-1) -> 0 | AD74: 0 | AF74: 0 | AG74: January | AJ74: 0 | AM74: 0 | AN74: 1 | AO74: 0 | AP74: 0 | AQ74: =SUM(F74*AP74) -> 0 | AR74: 0 | AS74: 0 | AT74: 0 | AU74: 1 | AV74: 0 | AW74: 0 | AX74: 0 | AY74: 0 | AZ74: 0 | BA74: 0 | BB74: 0 | BC74: 0 | BD74: 0 | BE74: 0 | BF74: 0 | BG74: 0 | BH74: 0 | BJ74: 0 | BK74: 0 | BL74: 0 | BM74: 0 | BN74: 0 | BO74: 0 | BQ74: 0 | BT74: =SUMIFS(BT$99:BT$106,K$99:K$106,K74) -> 0 | BU74: =SUMIFS(BU$99:BU$106,I$99:I$106,I74) -> 0 | BV74: =SUM(BR74:BT74) -> 0
F75: 0 | G75: =IF(D75="",0,MAX($G$8:$G74)+F75) -> 0 | H75: =IF(D75="",0,INDEX($K$8:$P118,MATCH($D75,product,0),3)) -> 0 | I75: =IF(D75="",0,INDEX($K$8:$P118,MATCH($D75,product,0),4)+MAX($I$8:$I74)) -> 0 | K75: =INDEX(months,MOD($J$32+ROWS($K$74:K74),12)+1) -> June | L75: 0 | M75: 0 | N75: 0 | O75: 0 | P75: 0 | Q75: 0 | R75: 0 | U75: 0 | V75: 0 | W75: 0 | Z75: 0 | AA75: 0 | AB75: 0 | AC75: 0 | AD75: =SUM(AB75*AC75) -> 0 | AF75: 0 | AG75: January | AJ75: =AF75 -> 0 | AM75: =SUM(AF75>1-1) -> 0 | AN75: 1 | AO75: 0 | AP75: 0 | AQ75: 0 | AR75: 0 | AS75: 0 | AT75: 0 | AU75: 1 | AV75: =SUM(AU75=1-1) -> 0 | AW75: 0 | AX75: 0 | AY75: =SUM(AX75>1-1) -> 0 | AZ75: 0 | BA75: 0 | BB75: 0 | BC75: 0 | BD75: 0 | BE75: 0 | BF75: =SUM(BE75>1-1) -> 0 | BG75: 0 | BH75: =SUM(BF75*BA75) -> 0 | BJ75: =SUM(BF75*BB75) -> 0 | BK75: 0 | BL75: =SUM(BK75>1-1) -> 0 | BM75: 0 | BN75: 0 | BO75: =SUM(BL75*BB75) -> 0 | BQ75: 0 | BT75: 0 | BU75: 0 | BV75: 0
F76: 0 | G76: =IF(D76="",0,MAX($G$8:$G75)+F76) -> 0 | H76: =IF(D76="",0,INDEX($K$8:$P118,MATCH($D76,product,0),3)) -> 0 | I76: =IF(D76="",0,INDEX($K$8:$P118,MATCH($D76,product,0),4)+MAX($I$8:$I75)) -> 0 | K76: =INDEX(months,MOD($J$32+ROWS($K$74:K75),12)+1) -> July | L76: 0 | M76: 0 | N76: 0 | O76: 0 | P76: 0 | Q76: 0 | R76: 0 | U76: 0 | V76: 0 | W76: 0 | Z76: 0 | AA76: 0 | AB76: 0 | AC76: 0 | AD76: 0 | AF76: 0 | AG76: January | AJ76: 0 | AM76: 0 | AN76: 1 | AO76: 0 | AP76: 0 | AQ76: 0 | AR76: 0 | AS76: 0 | AT76: 0 | AU76: 1 | AV76: 0 | AW76: 0 | AX76: 0 | AY76: 0 | AZ76: 0 | BA76: 0 | BB76: 0 | BC76: 0 | BD76: 0 | BE76: 0 | BF76: 0 | BG76: 0 | BH76: 0 | BJ76: 0 | BK76: 0 | BL76: 0 | BM76: 0 | BN76: 0 | BO76: 0 | BQ76: =SUM(BQ70:BQ75) -> 0 | BT76: 0 | BU76: 0 | BV76: 0
F77: 0 | G77: =IF(D77="",0,MAX($G$8:$G76)+F77) -> 0 | H77: =IF(D77="",0,INDEX($K$8:$P118,MATCH($D77,product,0),3)) -> 0 | I77: =IF(D77="",0,INDEX($K$8:$P118,MATCH($D77,product,0),4)+MAX($I$8:$I76)) -> 0 | K77: =INDEX(months,MOD($J$32+ROWS($K$74:K76),12)+1) -> August | L77: 0 | M77: 0 | N77: 0 | O77: 0 | P77: 0 | Q77: 0 | R77: 0 | U77: 0 | V77: 0 | W77: 0 | Z77: 0 | AA77: 0 | AB77: 0 | AC77: 0 | AD77: 0 | AF77: 0 | AG77: January | AJ77: 0 | AM77: 0 | AN77: 1 | AO77: 0 | AP77: 0 | AQ77: 0 | AR77: 0 | AS77: 0 | AT77: 0 | AU77: 1 | AV77: 0 | AW77: 0 | AX77: 0 | AY77: 0 | AZ77: 0 | BA77: 0 | BB77: 0 | BC77: 0 | BD77: 0 | BE77: 0 | BF77: 0 | BG77: 0 | BH77: 0 | BJ77: 0 | BK77: 0 | BL77: 0 | BM77: 0 | BN77: 0 | BO77: 0 | BT77: 0 | BU77: 0 | BV77: 0
F78: 0 | G78: =IF(D78="",0,MAX($G$8:$G77)+F78) -> 0 | H78: =IF(D78="",0,INDEX($K$8:$P119,MATCH($D78,product,0),3)) -> 0 | I78: =IF(D78="",0,INDEX($K$8:$P119,MATCH($D78,product,0),4)+MAX($I$8:$I77)) -> 0 | J78: =MATCH(K111,months,0)-1 ->  | K78: =INDEX(months,MOD($J$32+ROWS($K$74:K77),12)+1) -> September | L78: 0 | M78: 0 | N78: 0 | O78: 0 | P78: 0 | Q78: 0 | R78: 0 | U78: 0 | V78: 0 | W78: 0 | Z78: 0 | AA78: 0 | AB78: 0 | AC78: 0 | AD78: 0 | AF78: 0 | AG78: January | AJ78: 0 | AM78: 0 | AN78: 1 | AO78: 0 | AP78: 0 | AQ78: 0 | AR78: 0 | AS78: 0 | AT78: 0 | AU78: 1 | AV78: 0 | AW78: 0 | AX78: 0 | AY78: 0 | AZ78: 0 | BA78: 0 | BB78: 0 | BC78: 0 | BD78: 0 | BE78: 0 | BF78: 0 | BG78: 0 | BH78: 0 | BJ78: 0 | BK78: 0 | BL78: 0 | BM78: 0 | BN78: 0 | BO78: 0 | BT78: 0 | BU78: 0 | BV78: 0
F79: 0 | G79: =IF(D79="",0,MAX($G$8:$G78)+F79) -> 0 | H79: =IF(D79="",0,INDEX($K$8:$P120,MATCH($D79,product,0),3)) -> 0 | I79: =IF(D79="",0,INDEX($K$8:$P120,MATCH($D79,product,0),4)+MAX($I$8:$I78)) -> 0 | K79: =INDEX(months,MOD($J$32+ROWS($K$74:K78),12)+1) -> October | L79: 0 | M79: 0 | N79: 0 | O79: 0 | P79: 0 | Q79: 0 | R79: 0 | U79: 0 | V79: 0 | W79: 0 | Z79: 0 | AA79: 0 | AB79: 0 | AC79: 0 | AD79: 0 | AF79: 0 | AG79: January | AJ79: 0 | AM79: 0 | AN79: 1 | AO79: 0 | AP79: 0 | AQ79: 0 | AR79: 0 | AS79: 0 | AT79: 0 | AU79: 1 | AV79: 0 | AW79: 0 | AX79: 0 | AY79: 0 | AZ79: 0 | BA79: 0 | BB79: 0 | BC79: 0 | BD79: 0 | BE79: 0 | BF79: 0 | BG79: 0 | BH79: 0 | BJ79: 0 | BK79: 0 | BL79: 0 | BM79: 0 | BN79: 0 | BO79: 0 | BQ79: Combined PVC * Column 4 (PBQ) | BT79: 0 | BU79: 0 | BV79: 0
F80: 0 | G80: =IF(D80="",0,MAX($G$8:$G79)+F80) -> 0 | H80: =IF(D80="",0,INDEX($K$8:$P121,MATCH($D80,product,0),3)) -> 0 | I80: =IF(D80="",0,INDEX($K$8:$P121,MATCH($D80,product,0),4)+MAX($I$8:$I79)) -> 0 | K80: Total Counts: | L80: =SUM(L74:L79) -> 0 | M80: 0 | N80: 0 | O80: 0 | P80: =SUM(P74:P79) -> 0 | Q80: =SUM(Q74:Q79) -> 0 | R80: 0 | U80: 0 | V80: 0 | W80: 0 | Z80: 0 | AA80: 0 | AB80: 0 | AC80: 0 | AD80: 0 | AF80: 0 | AG80: January | AJ80: 0 | AM80: 0 | AN80: 1 | AO80: 0 | AP80: 0 | AQ80: 0 | AR80: 0 | AS80: =SUM(F80*AO80) -> 0 | AT80: =SUM(H80*AO80) -> 0 | AU80: 1 | AV80: 0 | AW80: 0 | AX80: 0 | AY80: 0 | AZ80: 0 | BA80: 0 | BB80: 0 | BC80: 0 | BD80: 0 | BE80: 0 | BF80: 0 | BG80: 0 | BH80: 0 | BJ80: 0 | BK80: 0 | BL80: 0 | BM80: 0 | BN80: 0 | BO80: 0 | BT80: =SUM(BT74:BT79) -> 0 | BU80: =SUM(BU74:BU79) -> 0 | BV80: =SUM(BV74:BV79) -> 0
F81: 0 | G81: =IF(D81="",0,MAX($G$8:$G80)+F81) -> 0 | H81: =IF(D81="",0,INDEX($K$8:$P122,MATCH($D81,product,0),3)) -> 0 | I81: =IF(D81="",0,INDEX($K$8:$P122,MATCH($D81,product,0),4)+MAX($I$8:$I80)) -> 0 | J81: =MATCH(P111,months,0)-1 ->  | U81: 0 | V81: 0 | W81: 0 | Z81: 0 | AA81: 0 | AB81: 0 | AC81: 0 | AD81: 0 | AF81: 0 | AG81: January | AJ81: 0 | AM81: 0 | AN81: 1 | AO81: 0 | AP81: 0 | AQ81: 0 | AR81: 0 | AS81: 0 | AT81: 0 | AU81: 1 | AV81: 0 | AW81: 0 | AX81: 0 | AY81: 0 | AZ81: 0 | BA81: 0 | BB81: 0 | BC81: 0 | BD81: 0 | BE81: 0 | BF81: 0 | BG81: 0 | BH81: 0 | BJ81: 0 | BK81: 0 | BL81: 0 | BM81: 0 | BN81: 0 | BO81: 0 | BQ81: Goal 250-400
F82: 0 | G82: =IF(D82="",0,MAX($G$8:$G81)+F82) -> 0 | H82: =IF(D82="",0,INDEX($K$8:$P123,MATCH($D82,product,0),3)) -> 0 | I82: =IF(D82="",0,INDEX($K$8:$P123,MATCH($D82,product,0),4)+MAX($I$8:$I81)) -> 0 | U82: 0 | V82: 0 | W82: 0 | Z82: 0 | AA82: 0 | AB82: 0 | AC82: 0 | AD82: 0 | AF82: 0 | AG82: January | AJ82: 0 | AM82: 0 | AN82: 1 | AO82: 0 | AP82: 0 | AQ82: 0 | AR82: 0 | AS82: 0 | AT82: 0 | AU82: 1 | AV82: 0 | AW82: 0 | AX82: 0 | AY82: 0 | AZ82: 0 | BA82: 0 | BB82: 0 | BC82: 0 | BD82: 0 | BE82: 0 | BF82: 0 | BG82: 0 | BH82: 0 | BJ82: 0 | BK82: 0 | BL82: 0 | BM82: 0 | BN82: 0 | BO82: 0 | BQ82: =SUMIFS(H$8:H$104,AG$8:AG$104,K74) -> 0
F83: 0 | G83: =IF(D83="",0,MAX($G$8:$G82)+F83) -> 0 | H83: =IF(D83="",0,INDEX($K$8:$P124,MATCH($D83,product,0),3)) -> 0 | I83: =IF(D83="",0,INDEX($K$8:$P124,MATCH($D83,product,0),4)+MAX($I$8:$I82)) -> 0 | K83: Conference to Conference Business Summary | L83: New Orders | M83: Your Orders | N83: Retail Profit | O83: New Dist PVC * in Column 4 | P83: Personal PVC * Column 6 | Q83: Combined PVC * Column 4 (PBQ) | R83: New Distributor Promo PVC | U83: 0 | V83: 0 | W83: 0 | Z83: 0 | AA83: 0 | AB83: 0 | AC83: 0 | AD83: 0 | AF83: 0 | AG83: January | AJ83: 0 | AM83: 0 | AN83: 1 | AO83: 0 | AP83: 0 | AQ83: 0 | AR83: 0 | AS83: 0 | AT83: 0 | AU83: 1 | AV83: 0 | AW83: 0 | AX83: 0 | AY83: 0 | AZ83: 0 | BA83: 0 | BB83: 0 | BC83: 0 | BD83: 0 | BE83: 0 | BF83: 0 | BG83: 0 | BH83: 0 | BJ83: 0 | BK83: 0 | BL83: 0 | BM83: 0 | BN83: 0 | BO83: 0 | BQ83: 0 | BT83: Team Building Bonus Check | BU83: Monthly Check Total | BV83: Total Bonus & Monthly Check
F84: 0 | G84: =IF(D84="",0,MAX($G$8:$G83)+F84) -> 0 | H84: =IF(D84="",0,INDEX($K$8:$P123,MATCH($D84,product,0),3)) -> 0 | I84: =IF(D84="",0,INDEX($K$8:$P123,MATCH($D84,product,0),4)+MAX($I$8:$I83)) -> 0 | U84: 0 | V84: 0 | W84: 0 | Z84: =SUM(H84*AC84) -> 0 | AA84: =SUM(F84*AC84) -> 0 | AB84: =SUM(E84) -> 0 | AC84: =SUM(U84>1-1) -> 0 | AD84: =SUM(AB84*AC84) -> 0 | AF84: 0 | AG84: January | AJ84: =AF84 -> 0 | AM84: =SUM(AF84>1-1) -> 0 | AN84: 1 | AO84: 0 | AP84: 0 | AQ84: =SUM(F84*AP84) -> 0 | AR84: 0 | AS84: 0 | AT84: 0 | AU84: 1 | AV84: =SUM(AU84=1-1) -> 0 | AW84: 0 | AX84: 0 | AY84: =SUM(AX84>1-1) -> 0 | AZ84: 0 | BA84: 0 | BB84: 0 | BC84: 0 | BD84: 0 | BE84: =SUM(AX84-BK84) -> 0 | BF84: =SUM(BE84>1-1) -> 0 | BG84: =SUM(BF84*AZ84) -> 0 | BH84: =SUM(BF84*BA84) -> 0 | BJ84: =SUM(BF84*BB84) -> 0 | BK84: 0 | BL84: =SUM(BK84>1-1) -> 0 | BM84: =SUM(BL84*AZ84) -> 0 | BN84: 0 | BO84: =SUM(BL84*BB84) -> 0 | BQ84: 0
F85: 0 | G85: =IF(D85="",0,MAX($G$8:$G84)+F85) -> 0 | H85: =IF(D85="",0,INDEX($K$8:$P124,MATCH($D85,product,0),3)) -> 0 | I85: =IF(D85="",0,INDEX($K$8:$P124,MATCH($D85,product,0),4)+MAX($I$8:$I84)) -> 0 | K85: Select Start Month | L85: You + New Dist | M85: Your Customers | N85: Your Customers | O85: Goal 125-200 | P85: Goal 125-200 | Q85: Goal 250-400 | R85: DD = 500 pvc | U85: 0 | V85: 0 | W85: 0 | Z85: =SUM(H85*AC85) -> 0 | AA85: =SUM(F85*AC85) -> 0 | AB85: =SUM(E85) -> 0 | AC85: =SUM(U85>1-1) -> 0 | AD85: =SUM(AB85*AC85) -> 0 | AF85: 0 | AG85: January | AJ85: =AF85 -> 0 | AM85: =SUM(AF85>1-1) -> 0 | AN85: 1 | AO85: 0 | AP85: 0 | AQ85: =SUM(F85*AP85) -> 0 | AR85: 0 | AS85: 0 | AT85: 0 | AU85: 1 | AV85: =SUM(AU85=1-1) -> 0 | AW85: 0 | AX85: 0 | AY85: =SUM(AX85>1-1) -> 0 | AZ85: 0 | BA85: 0 | BB85: 0 | BC85: 0 | BD85: 0 | BE85: =SUM(AX85-BK85) -> 0 | BF85: =SUM(BE85>1-1) -> 0 | BG85: =SUM(BF85*AZ85) -> 0 | BH85: =SUM(BF85*BA85) -> 0 | BJ85: =SUM(BF85*BB85) -> 0 | BK85: 0 | BL85: =SUM(BK85>1-1) -> 0 | BM85: =SUM(BL85*AZ85) -> 0 | BN85: 0 | BO85: =SUM(BL85*BB85) -> 0 | BQ85: 0 | BT85: Mo TBB Check | BU85: Reg Mo Check | BV85: Total Mo Inc
F86: 0 | G86: =IF(D86="",0,MAX($G$8:$G85)+F86) -> 0 | H86: =IF(D86="",0,INDEX($K$8:$P125,MATCH($D86,product,0),3)) -> 0 | I86: =IF(D86="",0,INDEX($K$8:$P125,MATCH($D86,product,0),4)+MAX($I$8:$I83)) -> 0 | K86: May | L86: =SUMIFS(AM$8:AM$104,AG$8:AG$104,K86) -> 0 | M86: =SUMIFS(AP$8:AP$104,AG$8:AG$104,K86) -> 0 | N86: =SUMIFS(AW$8:AW$104,AG$8:AG$104,K86) -> 0 | O86: =SUMIFS(AT$8:AT$104,AG$8:AG$104,K86) -> 0 | P86: =SUMIFS(AR$8:AR$104,AG$8:AG$104,K86) -> 0 | Q86: =SUMIFS(H$8:H$104,AG$8:AG$104,K86) -> 0 | R86: =SUMIFS(AS$8:AS$104,AG$8:AG$104,K86) -> 0 | U86: 0 | V86: 0 | W86: 0 | Z86: 0 | AA86: 0 | AB86: 0 | AC86: 0 | AD86: 0 | AF86: 0 | AG86: January | AJ86: 0 | AM86: 0 | AN86: 1 | AO86: 0 | AP86: 0 | AQ86: 0 | AR86: 0 | AS86: 0 | AT86: 0 | AU86: 1 | AV86: 0 | AW86: 0 | AX86: 0 | AY86: 0 | AZ86: 0 | BA86: 0 | BB86: 0 | BC86: 0 | BD86: 0 | BE86: 0 | BF86: 0 | BG86: 0 | BH86: 0 | BJ86: 0 | BK86: 0 | BL86: 0 | BM86: 0 | BN86: 0 | BO86: 0 | BQ86: 0 | BT86: =SUMIFS(BT$99:BT$106,K$99:K$106,K86) -> 0 | BU86: =SUMIFS(BU$99:BU$106,I$99:I$106,I86) -> 0 | BV86: =SUM(BR86:BT86) -> 0
F87: 0 | G87: =IF(D87="",0,MAX($G$8:$G86)+F87) -> 0 | H87: =IF(D87="",0,INDEX($K$8:$P126,MATCH($D87,product,0),3)) -> 0 | I87: =IF(D87="",0,INDEX($K$8:$P126,MATCH($D87,product,0),4)+MAX($I$8:$I86)) -> 0 | K87: =INDEX(months,MOD($J$45+ROWS($K$86:K86),12)+1) -> June | L87: 0 | M87: 0 | N87: 0 | O87: 0 | P87: 0 | Q87: 0 | R87: 0 | U87: 0 | V87: 0 | W87: 0 | Z87: 0 | AA87: 0 | AB87: 0 | AC87: 0 | AD87: 0 | AF87: 0 | AG87: January | AJ87: 0 | AM87: 0 | AN87: 1 | AO87: 0 | AP87: 0 | AQ87: 0 | AR87: 0 | AS87: 0 | AT87: 0 | AU87: 1 | AV87: 0 | AW87: 0 | AX87: 0 | AY87: 0 | AZ87: 0 | BA87: 0 | BB87: 0 | BC87: 0 | BD87: 0 | BE87: 0 | BF87: 0 | BG87: 0 | BH87: 0 | BJ87: 0 | BK87: 0 | BL87: 0 | BM87: 0 | BN87: 0 | BO87: 0 | BQ87: 0 | BT87: 0 | BU87: 0 | BV87: 0
F88: 0 | G88: =IF(D88="",0,MAX($G$8:$G87)+F88) -> 0 | H88: =IF(D88="",0,INDEX($K$8:$P127,MATCH($D88,product,0),3)) -> 0 | I88: =IF(D88="",0,INDEX($K$8:$P127,MATCH($D88,product,0),4)+MAX($I$8:$I87)) -> 0 | K88: =INDEX(months,MOD($J$45+ROWS($K$86:K87),12)+1) -> July | L88: 0 | M88: 0 | N88: 0 | O88: 0 | P88: 0 | Q88: 0 | R88: 0 | U88: 0 | V88: 0 | W88: 0 | Z88: 0 | AA88: 0 | AB88: 0 | AC88: 0 | AD88: 0 | AF88: 0 | AG88: January | AJ88: 0 | AM88: 0 | AN88: 1 | AO88: 0 | AP88: 0 | AQ88: 0 | AR88: 0 | AS88: 0 | AT88: 0 | AU88: 1 | AV88: 0 | AW88: 0 | AX88: 0 | AY88: 0 | AZ88: 0 | BA88: 0 | BB88: 0 | BC88: 0 | BD88: 0 | BE88: 0 | BF88: 0 | BG88: 0 | BH88: 0 | BJ88: 0 | BK88: 0 | BL88: 0 | BM88: 0 | BN88: 0 | BO88: 0 | BQ88: =SUM(BQ82:BQ87) -> 0 | BT88: 0 | BU88: 0 | BV88: 0
F89: 0 | G89: =IF(D89="",0,MAX($G$8:$G88)+F89) -> 0 | H89: =IF(D89="",0,INDEX($K$8:$P128,MATCH($D89,product,0),3)) -> 0 | I89: =IF(D89="",0,INDEX($K$8:$P128,MATCH($D89,product,0),4)+MAX($I$8:$I88)) -> 0 | K89: =INDEX(months,MOD($J$45+ROWS($K$86:K88),12)+1) -> August | L89: 0 | M89: 0 | N89: 0 | O89: 0 | P89: 0 | Q89: 0 | R89: 0 | U89: 0 | V89: 0 | W89: 0 | Z89: 0 | AA89: 0 | AB89: 0 | AC89: 0 | AD89: 0 | AF89: 0 | AG89: January | AJ89: 0 | AM89: 0 | AN89: 1 | AO89: 0 | AP89: 0 | AQ89: 0 | AR89: 0 | AS89: 0 | AT89: 0 | AU89: 1 | AV89: 0 | AW89: 0 | AX89: 0 | AY89: 0 | AZ89: 0 | BA89: 0 | BB89: 0 | BC89: 0 | BD89: 0 | BE89: 0 | BF89: 0 | BG89: 0 | BH89: 0 | BJ89: 0 | BK89: 0 | BL89: 0 | BM89: 0 | BN89: 0 | BO89: 0 | BT89: 0 | BU89: 0 | BV89: 0
F90: 0 | G90: =IF(D90="",0,MAX($G$8:$G89)+F90) -> 0 | H90: =IF(D90="",0,INDEX($K$8:$P129,MATCH($D90,product,0),3)) -> 0 | I90: =IF(D90="",0,INDEX($K$8:$P129,MATCH($D90,product,0),4)+MAX($I$8:$I89)) -> 0 | K90: =INDEX(months,MOD($J$45+ROWS($K$86:K89),12)+1) -> September | L90: 0 | M90: 0 | N90: 0 | O90: 0 | P90: 0 | Q90: 0 | R90: 0 | U90: 0 | V90: 0 | W90: 0 | Z90: 0 | AA90: 0 | AB90: 0 | AC90: 0 | AD90: 0 | AF90: 0 | AG90: January | AJ90: 0 | AM90: 0 | AN90: 1 | AO90: 0 | AP90: 0 | AQ90: 0 | AR90: 0 | AS90: 0 | AT90: 0 | AU90: 1 | AV90: 0 | AW90: 0 | AX90: 0 | AY90: 0 | AZ90: 0 | BA90: 0 | BB90: 0 | BC90: 0 | BD90: 0 | BE90: 0 | BF90: 0 | BG90: 0 | BH90: 0 | BJ90: 0 | BK90: 0 | BL90: 0 | BM90: 0 | BN90: 0 | BO90: 0 | BT90: 0 | BU90: 0 | BV90: 0
F91: 0 | G91: =IF(D91="",0,MAX($G$8:$G90)+F91) -> 0 | H91: =IF(D91="",0,INDEX($K$8:$P130,MATCH($D91,product,0),3)) -> 0 | I91: =IF(D91="",0,INDEX($K$8:$P130,MATCH($D91,product,0),4)+MAX($I$8:$I90)) -> 0 | K91: =INDEX(months,MOD($J$45+ROWS($K$86:K90),12)+1) -> October | L91: 0 | M91: 0 | N91: 0 | O91: 0 | P91: 0 | Q91: 0 | R91: 0 | U91: 0 | V91: 0 | W91: 0 | Z91: 0 | AA91: 0 | AB91: 0 | AC91: 0 | AD91: 0 | AF91: 0 | AG91: January | AJ91: 0 | AM91: 0 | AN91: 1 | AO91: 0 | AP91: 0 | AQ91: 0 | AR91: 0 | AS91: 0 | AT91: 0 | AU91: 1 | AV91: 0 | AW91: 0 | AX91: 0 | AY91: 0 | AZ91: 0 | BA91: 0 | BB91: 0 | BC91: 0 | BD91: 0 | BE91: 0 | BF91: 0 | BG91: 0 | BH91: 0 | BJ91: 0 | BK91: 0 | BL91: 0 | BM91: 0 | BN91: 0 | BO91: 0 | BT91: 0 | BU91: 0 | BV91: 0
F92: 0 | G92: =IF(D92="",0,MAX($G$8:$G91)+F92) -> 0 | H92: =IF(D92="",0,INDEX($K$8:$P131,MATCH($D92,product,0),3)) -> 0 | I92: =IF(D92="",0,INDEX($K$8:$P131,MATCH($D92,product,0),4)+MAX($I$8:$I91)) -> 0 | K92: Total Counts: | L92: =SUM(L86:L91) -> 0 | M92: 0 | N92: 0 | O92: 0 | P92: 0 | Q92: 0 | R92: 0 | U92: 0 | V92: 0 | W92: 0 | Z92: 0 | AA92: 0 | AB92: 0 | AC92: 0 | AD92: 0 | AF92: 0 | AG92: January | AJ92: 0 | AM92: 0 | AN92: 1 | AO92: 0 | AP92: =SUM(AM92-AO92) -> 0 | AQ92: 0 | AR92: 0 | AS92: 0 | AT92: 0 | AU92: 1 | AV92: 0 | AW92: 0 | AX92: 0 | AY92: 0 | AZ92: 0 | BA92: 0 | BB92: 0 | BC92: 0 | BD92: 0 | BE92: 0 | BF92: 0 | BG92: 0 | BH92: 0 | BJ92: 0 | BK92: 0 | BL92: 0 | BM92: 0 | BN92: 0 | BO92: 0 | BT92: =SUM(BT86:BT91) -> 0 | BU92: =SUM(BU86:BU91) -> 0 | BV92: =SUM(BV86:BV91) -> 0
F93: 0 | G93: =IF(D93="",0,MAX($G$8:$G92)+F93) -> 0 | H93: =IF(D93="",0,INDEX($K$8:$P132,MATCH($D93,product,0),3)) -> 0 | I93: =IF(D93="",0,INDEX($K$8:$P132,MATCH($D93,product,0),4)+MAX($I$8:$I92)) -> 0 | U93: 0 | V93: 0 | W93: 0 | Z93: 0 | AA93: 0 | AB93: 0 | AC93: 0 | AD93: 0 | AF93: 0 | AG93: January | AJ93: 0 | AM93: 0 | AN93: 1 | AO93: 0 | AP93: 0 | AQ93: 0 | AR93: 0 | AS93: 0 | AT93: 0 | AU93: 1 | AV93: 0 | AW93: 0 | AX93: 0 | AY93: 0 | AZ93: 0 | BA93: 0 | BB93: 0 | BC93: 0 | BD93: 0 | BE93: 0 | BF93: 0 | BG93: 0 | BH93: 0 | BJ93: 0 | BK93: 0 | BL93: 0 | BM93: 0 | BN93: 0 | BO93: 0
F94: 0 | G94: =IF(D94="",0,MAX($G$8:$G93)+F94) -> 0 | H94: =IF(D94="",0,INDEX($K$8:$P133,MATCH($D94,product,0),3)) -> 0 | I94: =IF(D94="",0,INDEX($K$8:$P133,MATCH($D94,product,0),4)+MAX($I$8:$I93)) -> 0 | U94: 0 | V94: 0 | W94: 0 | Z94: 0 | AA94: 0 | AB94: 0 | AC94: 0 | AD94: 0 | AF94: 0 | AG94: January | AJ94: 0 | AM94: 0 | AN94: 1 | AO94: 0 | AP94: 0 | AQ94: 0 | AR94: 0 | AS94: 0 | AT94: 0 | AU94: 1 | AV94: 0 | AW94: 0 | AX94: 0 | AY94: 0 | AZ94: 0 | BA94: 0 | BB94: 0 | BC94: 0 | BD94: 0 | BE94: 0 | BF94: 0 | BG94: 0 | BH94: 0 | BJ94: 0 | BK94: 0 | BL94: 0 | BM94: 0 | BN94: 0 | BO94: 0
F95: 0 | G95: =IF(D95="",0,MAX($G$8:$G94)+F95) -> 0 | H95: =IF(D95="",0,INDEX($K$8:$P134,MATCH($D95,product,0),3)) -> 0 | I95: =IF(D95="",0,INDEX($K$8:$P134,MATCH($D95,product,0),4)+MAX($I$8:$I94)) -> 0 | K95: Chart 1: Track Monthly Targets to Increase Monthly Income | L95: Did you meet your Col 4 Goal? | M95: Plan & Track Customer Growth | N95: Plan & Track Your Column 4 Growth | O95: Plan & Track Your Column 5 Growth | P95: 1) New HLP/ DD Yourself / or Leg | Q95: 2) New 2000+/ VF Yourself / or Leg | R95: 3) New Qualifier Youself / or Leg | U95: 0 | V95: 0 | W95: 0 | Z95: 0 | AA95: 0 | AB95: 0 | AC95: 0 | AD95: 0 | AF95: 0 | AG95: January | AJ95: 0 | AM95: 0 | AN95: 1 | AO95: 0 | AP95: 0 | AQ95: 0 | AR95: 0 | AS95: 0 | AT95: 0 | AU95: 1 | AV95: 0 | AW95: 0 | AX95: 0 | AY95: 0 | AZ95: 0 | BA95: 0 | BB95: 0 | BC95: 0 | BD95: 0 | BE95: 0 | BF95: 0 | BG95: 0 | BH95: 0 | BJ95: 0 | BK95: 0 | BL95: 0 | BM95: 0 | BN95: 0 | BO95: 0 | BT95: Enter Team Building Bonus Check | BU95: Enter Your Regular Monthly Check | BV95: Total Bonus & Regular Monthly Check
F96: 0 | G96: =IF(D96="",0,MAX($G$8:$G95)+F96) -> 0 | H96: =IF(D96="",0,INDEX($K$8:$P135,MATCH($D96,product,0),3)) -> 0 | I96: =IF(D96="",0,INDEX($K$8:$P135,MATCH($D96,product,0),4)+MAX($I$8:$I95)) -> 0 | U96: 0 | V96: 0 | W96: 0 | Z96: 0 | AA96: 0 | AB96: 0 | AC96: 0 | AD96: 0 | AF96: 0 | AG96: January | AJ96: 0 | AM96: 0 | AN96: 1 | AO96: 0 | AP96: 0 | AQ96: 0 | AR96: 0 | AS96: 0 | AT96: 0 | AU96: 1 | AV96: 0 | AW96: 0 | AX96: 0 | AY96: 0 | AZ96: 0 | BA96: 0 | BB96: 0 | BC96: 0 | BD96: 0 | BE96: 0 | BF96: 0 | BG96: 0 | BH96: 0 | BJ96: 0 | BK96: 0 | BL96: 0 | BM96: 0 | BN96: 0 | BO96: 0
F97: 0 | G97: =IF(D97="",0,MAX($G$8:$G96)+F97) -> 0 | H97: =IF(D97="",0,INDEX($K$8:$P136,MATCH($D97,product,0),3)) -> 0 | I97: =IF(D97="",0,INDEX($K$8:$P136,MATCH($D97,product,0),4)+MAX($I$8:$I96)) -> 0 | U97: 0 | V97: 0 | W97: 0 | Z97: 0 | AA97: 0 | AB97: 0 | AC97: 0 | AD97: 0 | AF97: 0 | AG97: January | AJ97: 0 | AM97: 0 | AN97: 1 | AO97: 0 | AP97: 0 | AQ97: 0 | AR97: 0 | AS97: 0 | AT97: 0 | AU97: 1 | AV97: 0 | AW97: 0 | AX97: 0 | AY97: 0 | AZ97: 0 | BA97: 0 | BB97: 0 | BC97: 0 | BD97: 0 | BE97: 0 | BF97: 0 | BG97: 0 | BH97: 0 | BJ97: 0 | BK97: 0 | BL97: 0 | BM97: 0 | BN97: 0 | BO97: 0
F98: 0 | G98: =IF(D98="",0,MAX($G$8:$G97)+F98) -> 0 | H98: =IF(D98="",0,INDEX($K$8:$P137,MATCH($D98,product,0),3)) -> 0 | I98: =IF(D98="",0,INDEX($K$8:$P137,MATCH($D98,product,0),4)+MAX($I$8:$I97)) -> 0 | K98: 12 Month Snapshot | L98: Yes (Blank = No) | M98: Track Col 6 | N98: Track Col 4 | O98: Track Col 5 | P98: List Name | Q98: List Name | R98: List Name | U98: 0 | V98: 0 | W98: 0 | Z98: 0 | AA98: 0 | AB98: 0 | AC98: 0 | AD98: 0 | AF98: 0 | AG98: January | AJ98: 0 | AM98: 0 | AN98: 1 | AO98: 0 | AP98: 0 | AQ98: 0 | AR98: 0 | AS98: 0 | AT98: 0 | AU98: 1 | AV98: 0 | AW98: 0 | AX98: 0 | AY98: 0 | AZ98: 0 | BA98: 0 | BB98: 0 | BC98: 0 | BD98: 0 | BE98: 0 | BF98: 0 | BG98: 0 | BH98: 0 | BJ98: 0 | BK98: 0 | BL98: 0 | BM98: 0 | BN98: 0 | BO98: 0 | BT98: VO/12 mo | BU98: VO/12 mo | BV98: Auto Cal Total
F99: 0 | G99: =IF(D99="",0,MAX($G$8:$G98)+F99) -> 0 | H99: =IF(D99="",0,INDEX($K$8:$P138,MATCH($D99,product,0),3)) -> 0 | I99: =IF(D99="",0,INDEX($K$8:$P138,MATCH($D99,product,0),4)+MAX($I$8:$I98)) -> 0 | K99: May | U99: 0 | V99: 0 | W99: 0 | Z99: 0 | AA99: 0 | AB99: 0 | AC99: 0 | AD99: 0 | AF99: 0 | AG99: January | AJ99: 0 | AM99: 0 | AN99: 1 | AO99: 0 | AP99: 0 | AQ99: 0 | AR99: 0 | AS99: 0 | AT99: 0 | AU99: 1 | AV99: 0 | AW99: 0 | AX99: 0 | AY99: 0 | AZ99: 0 | BA99: 0 | BB99: 0 | BC99: 0 | BD99: 0 | BE99: 0 | BF99: 0 | BG99: 0 | BH99: 0 | BJ99: 0 | BK99: 0 | BL99: 0 | BM99: 0 | BN99: 0 | BO99: 0 | BV99: =0+SUM(BR99:BT99) -> 0
F100: 0 | G100: =IF(D100="",0,MAX($G$8:$G99)+F100) -> 0 | H100: =IF(D100="",0,INDEX($K$8:$P139,MATCH($D100,product,0),3)) -> 0 | I100: =IF(D100="",0,INDEX($K$8:$P139,MATCH($D100,product,0),4)+MAX($I$8:$I99)) -> 0 | K100: =INDEX(months,MOD($J$66+ROWS($K99:K$99),12)+1) -> June | U100: 0 | V100: 0 | W100: 0 | Z100: 0 | AA100: 0 | AB100: 0 | AC100: 0 | AD100: 0 | AF100: 0 | AG100: January | AJ100: 0 | AM100: 0 | AN100: 1 | AO100: 0 | AP100: 0 | AQ100: 0 | AR100: 0 | AS100: 0 | AT100: 0 | AU100: 1 | AV100: 0 | AW100: 0 | AX100: 0 | AY100: 0 | AZ100: 0 | BA100: 0 | BB100: 0 | BC100: 0 | BD100: 0 | BE100: 0 | BF100: 0 | BG100: 0 | BH100: 0 | BJ100: 0 | BK100: 0 | BL100: 0 | BM100: 0 | BN100: 0 | BO100: 0 | BV100: 0
F101: 0 | G101: =IF(D101="",0,MAX($G$8:$G100)+F101) -> 0 | H101: =IF(D101="",0,INDEX($K$8:$P140,MATCH($D101,product,0),3)) -> 0 | I101: =IF(D101="",0,INDEX($K$8:$P140,MATCH($D101,product,0),4)+MAX($I$8:$I100)) -> 0 | K101: =INDEX(months,MOD($J$66+ROWS($K$99:K100),12)+1) -> July | U101: 0 | V101: 0 | W101: 0 | Z101: 0 | AA101: 0 | AB101: 0 | AC101: 0 | AD101: 0 | AF101: 0 | AG101: January | AJ101: 0 | AM101: 0 | AN101: 1 | AO101: 0 | AP101: 0 | AQ101: 0 | AR101: 0 | AS101: 0 | AT101: 0 | AU101: 1 | AV101: 0 | AW101: 0 | AX101: 0 | AY101: 0 | AZ101: 0 | BA101: 0 | BB101: 0 | BC101: 0 | BD101: 0 | BE101: 0 | BF101: 0 | BG101: 0 | BH101: 0 | BJ101: 0 | BK101: 0 | BL101: 0 | BM101: 0 | BN101: 0 | BO101: 0 | BV101: 0
F102: 0 | G102: =IF(D102="",0,MAX($G$8:$G101)+F102) -> 0 | H102: =IF(D102="",0,INDEX($K$8:$P141,MATCH($D102,product,0),3)) -> 0 | I102: =IF(D102="",0,INDEX($K$8:$P141,MATCH($D102,product,0),4)+MAX($I$8:$I101)) -> 0 | K102: =INDEX(months,MOD($J$66+ROWS($K$99:K101),12)+1) -> August | U102: 0 | V102: 0 | W102: 0 | Z102: 0 | AA102: 0 | AB102: 0 | AC102: 0 | AD102: 0 | AF102: 0 | AG102: January | AJ102: 0 | AM102: 0 | AN102: 1 | AO102: 0 | AP102: 0 | AQ102: 0 | AR102: 0 | AS102: 0 | AT102: 0 | AU102: 1 | AV102: 0 | AW102: 0 | AX102: 0 | AY102: 0 | AZ102: 0 | BA102: 0 | BB102: 0 | BC102: 0 | BD102: 0 | BE102: 0 | BF102: 0 | BG102: 0 | BH102: 0 | BJ102: 0 | BK102: 0 | BL102: 0 | BM102: 0 | BN102: 0 | BO102: 0 | BV102: 0
F103: 0 | G103: =IF(D103="",0,MAX($G$8:$G102)+F103) -> 0 | H103: =IF(D103="",0,INDEX($K$8:$P142,MATCH($D103,product,0),3)) -> 0 | I103: =IF(D103="",0,INDEX($K$8:$P142,MATCH($D103,product,0),4)+MAX($I$8:$I102)) -> 0 | K103: =INDEX(months,MOD($J$66+ROWS($K$99:K102),12)+1) -> September | U103: 0 | V103: 0 | W103: 0 | Z103: 0 | AA103: 0 | AB103: 0 | AC103: 0 | AD103: 0 | AF103: 0 | AG103: January | AJ103: 0 | AM103: 0 | AN103: 1 | AO103: 0 | AP103: 0 | AQ103: 0 | AR103: 0 | AS103: 0 | AT103: 0 | AU103: 1 | AV103: 0 | AW103: 0 | AX103: 0 | AY103: 0 | AZ103: 0 | BA103: 0 | BB103: 0 | BC103: 0 | BD103: 0 | BE103: 0 | BF103: 0 | BG103: 0 | BH103: 0 | BJ103: 0 | BK103: 0 | BL103: 0 | BM103: 0 | BN103: 0 | BO103: 0 | BV103: 0
F104: 0 | G104: =IF(D104="",0,MAX($G$8:$G103)+F104) -> 0 | H104: =IF(D104="",0,INDEX($K$8:$P143,MATCH($D104,product,0),3)) -> 0 | I104: =IF(D104="",0,INDEX($K$8:$P143,MATCH($D104,product,0),4)+MAX($I$8:$I103)) -> 0 | K104: =INDEX(months,MOD($J$66+ROWS($K$99:K103),12)+1) -> October | U104: =IF(C104="",0,IF(MONTH(C104)=$O$2,INDEX($K$8:$O$68,MATCH($D104,product,0),5),0)) -> 0 | V104: =IF(AND(A104="",E104=""),0,IF(MONTH(C104)=$O$2,A104,0)) -> 0 | W104: =IF(V104=0,0,IF(MONTH(C104)=$O$2,INDEX($K$8:$O$68,MATCH($D104,product,0),5),0)) -> 0 | Z104: 0 | AA104: 0 | AB104: 0 | AC104: 0 | AD104: 0 | AF104: =IF(D104="",0,INDEX($K$8:$O$68,MATCH($D104,product,0),5)) -> 0 | AG104: =TEXT(C104,"mmmm") -> January | AJ104: 0 | AM104: 0 | AN104: 1 | AO104: =COUNTIF(A104,"*") -> 0 | AP104: 0 | AQ104: 0 | AR104: 0 | AS104: 0 | AT104: 0 | AU104: =COUNTBLANK(E104) -> 1 | AV104: 0 | AW104: =SUM(AB104*AP104) -> 0 | AX104: =U104 -> 0 | AY104: 0 | AZ104: =SUM(AC104*Z104) -> 0 | BA104: =SUM(AC104*AA104) -> 0 | BB104: =SUM(AC104*AD104) -> 0 | BC104: =SUM(Z104-AZ104) -> 0 | BD104: =SUM(AD104-BB104) -> 0 | BE104: 0 | BF104: 0 | BG104: 0 | BH104: 0 | BJ104: 0 | BK104: =SUM(W104) -> 0 | BL104: 0 | BM104: 0 | BN104: 0 | BO104: 0 | BV104: 0
A105: End of Data Range. Do not enter data below this line. | K105: 6 Mo Total | L105: =COUNTIF(L99:L104,"?*") -> 0 | M105: Enter Goal | N105: Enter Goal | O105: Enter Goal | P105: =COUNTIF(P99:P104,"?*") -> 0 | Q105: =COUNTIF(Q99:Q104,"?*") -> 0 | R105: =COUNTIF(R99:R104,"?*") -> 0 | U105: 0 | V105: 0 | W105: 0 | Z105: =SUM(H105*AC105) -> 0 | AA105: =SUM(F105*AC105) -> 0 | AB105: =SUM(E105) -> 0 | AC105: =SUM(U105>1-1) -> 0 | AD105: =SUM(AB105*AC105) -> 0 | AF105: 0 | AG105: January | AJ105: =AF105 -> 0 | AM105: =SUM(AF105>1-1) -> 0 | AN105: 0 | AO105: 1 | AP105: -1 | AQ105: =SUM(F105*AP105) -> 0 | AR105: 0 | AS105: 0 | AT105: 0 | AU105: 1 | AV105: =SUM(AU105=1-1) -> 0 | AW105: 0 | AX105: 0 | AY105: =SUM(AX105>1-1) -> 0 | AZ105: 0 | BA105: 0 | BB105: 0 | BC105: 0 | BD105: 0 | BE105: =SUM(AX105-BK105) -> 0 | BF105: =SUM(BE105>1-1) -> 0 | BG105: =SUM(BF105*AZ105) -> 0 | BH105: =SUM(BF105*BA105) -> 0 | BJ105: =SUM(BF105*BB105) -> 0 | BK105: 0 | BL105: =SUM(BK105>1-1) -> 0 | BM105: =SUM(BL105*AZ105) -> 0 | BN105: 0 | BO105: =SUM(BL105*BB105) -> 0 | BT105: =0+SUM(BT99:BT104) -> 0 | BU105: =0+SUM(BU99:BU104) -> 0 | BV105: =0+SUM(BV99:BV104) -> 0
U106: 0 | V106: 0 | W106: 0 | Z106: 0 | AA106: 0 | AB106: 0 | AC106: 0 | AD106: 0 | AF106: 0 | AG106: January | AJ106: 0 | AM106: 0 | AN106: 1 | AO106: 0 | AP106: 0 | AQ106: 0 | AR106: 0 | AS106: 0 | AT106: 0 | AU106: 1 | AV106: 0 | AW106: 0 | AX106: 0 | AY106: 0 | AZ106: 0 | BA106: 0 | BB106: 0 | BC106: 0 | BD106: 0 | BE106: 0 | BF106: 0 | BG106: 0 | BH106: 0 | BJ106: 0 | BK106: 0 | BL106: 0 | BM106: 0 | BN106: 0 | BO106: 0
B107: Created by Dawn Rathmann | U107: 0 | V107: 0 | W107: 0 | Z107: 0 | AA107: 0 | AB107: 0 | AC107: 0 | AD107: 0 | AF107: 0 | AG107: January | AJ107: 0 | AM107: 0 | AN107: =COUNTBLANK(B107) -> 0 | AO107: 0 | AP107: 0 | AQ107: 0 | AR107: 0 | AS107: 0 | AT107: 0 | AU107: 1 | AV107: 0 | AW107: 0 | AX107: 0 | AY107: 0 | AZ107: 0 | BA107: 0 | BB107: 0 | BC107: 0 | BD107: 0 | BE107: 0 | BF107: 0 | BG107: 0 | BH107: 0 | BJ107: 0 | BK107: 0 | BL107: 0 | BM107: 0 | BN107: 0 | BO107: 0
B108: Special thanks to Kevin & Erinn Lynam for their expert help in excel programming | U108: 0 | V108: 0 | W108: 0 | Z108: 0 | AA108: 0 | AB108: 0 | AC108: 0 | AD108: 0 | AF108: 0 | AG108: January | AJ108: 0 | AM108: 0 | AN108: =COUNTBLANK(B108) -> 0 | AO108: 0 | AP108: 0 | AQ108: 0 | AR108: 0 | AS108: 0 | AT108: 0 | AU108: 1 | AV108: 0 | AW108: 0 | AX108: 0 | AY108: 0 | AZ108: 0 | BA108: 0 | BB108: 0 | BC108: 0 | BD108: 0 | BE108: 0 | BF108: 0 | BG108: 0 | BH108: 0 | BJ108: 0 | BK108: 0 | BL108: 0 | BM108: 0 | BN108: 0 | BO108: 0
B109: Latest Revision: 7/19/18 | U109: 0 | V109: 0 | W109: 0 | Z109: 0 | AA109: 0 | AB109: 0 | AC109: 0 | AD109: 0 | AF109: 0 | AG109: January | AJ109: 0 | AM109: 0 | AN109: =COUNTBLANK(B109) -> 0 | AO109: 0 | AP109: 0 | AQ109: 0 | AR109: 0 | AS109: 0 | AT109: 0 | AU109: 1 | AV109: 0 | AW109: 0 | AX109: 0 | AY109: 0 | AZ109: 0 | BA109: 0 | BB109: 0 | BC109: 0 | BD109: 0 | BE109: 0 | BF109: 0 | BG109: 0 | BH109: 0 | BJ109: 0 | BK109: 0 | BL109: 0 | BM109: 0 | BN109: 0 | BO109: 0
U110: 0 | V110: 0 | W110: 0 | Z110: 0 | AA110: 0 | AB110: 0 | AC110: 0 | AD110: 0 | AF110: 0 | AG110: January | AJ110: 0 | AM110: 0 | AN110: =COUNTBLANK(A110) -> 1 | AO110: 0 | AP110: 0 | AQ110: 0 | AR110: 0 | AS110: 0 | AT110: 0 | AU110: 1 | AV110: 0 | AW110: 0 | AX110: 0 | AY110: 0 | AZ110: 0 | BA110: 0 | BB110: 0 | BC110: 0 | BD110: 0 | BE110: 0 | BF110: 0 | BG110: 0 | BH110: 0 | BJ110: 0 | BK110: 0 | BL110: 0 | BM110: 0 | BN110: 0 | BO110: 0
U111: 0 | V111: 0 | W111: 0 | Z111: 0 | AA111: 0 | AB111: 0 | AC111: 0 | AD111: 0 | AF111: 0 | AG111: January | AJ111: 0 | AM111: 0 | AN111: 1 | AO111: 0 | AP111: 0 | AQ111: 0 | AR111: 0 | AS111: 0 | AT111: 0 | AU111: 1 | AV111: 0 | AW111: 0 | AX111: 0 | AY111: 0 | AZ111: 0 | BA111: 0 | BB111: 0 | BC111: 0 | BD111: 0 | BE111: 0 | BF111: 0 | BG111: 0 | BH111: 0 | BJ111: 0 | BK111: 0 | BL111: 0 | BM111: 0 | BN111: 0 | BO111: 0
U112: 0 | V112: 0 | W112: 0 | Z112: 0 | AA112: 0 | AB112: 0 | AC112: 0 | AD112: 0 | AF112: 0 | AG112: January | AJ112: 0 | AM112: 0 | AN112: 1 | AO112: 0 | AP112: 0 | AQ112: 0 | AR112: 0 | AS112: 0 | AT112: 0 | AU112: 1 | AV112: 0 | AW112: 0 | AX112: 0 | AY112: 0 | AZ112: 0 | BA112: 0 | BB112: 0 | BC112: 0 | BD112: 0 | BE112: 0 | BF112: 0 | BG112: 0 | BH112: 0 | BJ112: 0 | BK112: 0 | BL112: 0 | BM112: 0 | BN112: 0 | BO112: 0
U113: 0 | V113: 0 | W113: 0 | Z113: 0 | AA113: 0 | AB113: 0 | AC113: 0 | AD113: 0 | AF113: 0 | AG113: January | AJ113: 0 | AM113: 0 | AN113: 1 | AO113: 0 | AP113: 0 | AQ113: 0 | AR113: 0 | AS113: 0 | AT113: 0 | AU113: 1 | AV113: 0 | AW113: 0 | AX113: 0 | AY113: 0 | AZ113: 0 | BA113: 0 | BB113: 0 | BC113: 0 | BD113: 0 | BE113: 0 | BF113: 0 | BG113: 0 | BH113: 0 | BJ113: 0 | BK113: 0 | BL113: 0 | BM113: 0 | BN113: 0 | BO113: 0
U114: 0 | V114: 0 | W114: 0 | Z114: 0 | AA114: 0 | AB114: 0 | AC114: 0 | AD114: 0 | AF114: 0 | AG114: January | AJ114: 0 | AM114: 0 | AN114: 1 | AO114: 0 | AP114: 0 | AQ114: 0 | AR114: 0 | AS114: 0 | AT114: 0 | AU114: 1 | AV114: 0 | AW114: 0 | AX114: 0 | AY114: 0 | AZ114: 0 | BA114: 0 | BB114: 0 | BC114: 0 | BD114: 0 | BE114: 0 | BF114: 0 | BG114: 0 | BH114: 0 | BJ114: 0 | BK114: 0 | BL114: 0 | BM114: 0 | BN114: 0 | BO114: 0
U115: 0 | V115: 0 | W115: 0 | Z115: 0 | AA115: 0 | AB115: 0 | AC115: 0 | AD115: 0 | AF115: 0 | AG115: January | AJ115: 0 | AM115: 0 | AN115: 1 | AO115: 0 | AP115: 0 | AQ115: 0 | AR115: 0 | AS115: 0 | AT115: 0 | AU115: 1 | AV115: 0 | AW115: 0 | AX115: 0 | AY115: 0 | AZ115: 0 | BA115: 0 | BB115: 0 | BC115: 0 | BD115: 0 | BE115: 0 | BF115: 0 | BG115: 0 | BH115: 0 | BJ115: 0 | BK115: 0 | BL115: 0 | BM115: 0 | BN115: 0 | BO115: 0
U116: 0 | V116: 0 | W116: 0 | Z116: 0 | AA116: 0 | AB116: 0 | AC116: 0 | AD116: 0 | AF116: 0 | AG116: January | AJ116: 0 | AM116: 0 | AN116: 1 | AO116: 0 | AP116: 0 | AQ116: 0 | AR116: 0 | AS116: 0 | AT116: 0 | AU116: 1 | AV116: 0 | AW116: 0 | AX116: 0 | AY116: 0 | AZ116: 0 | BA116: 0 | BB116: 0 | BC116: 0 | BD116: 0 | BE116: 0 | BF116: 0 | BG116: 0 | BH116: 0 | BJ116: 0 | BK116: 0 | BL116: 0 | BM116: 0 | BN116: 0 | BO116: 0
U117: 0 | V117: 0 | W117: 0 | Z117: 0 | AA117: 0 | AB117: 0 | AC117: 0 | AD117: 0 | AF117: 0 | AG117: January | AJ117: 0 | AM117: 0 | AN117: 1 | AO117: 0 | AP117: 0 | AQ117: 0 | AR117: 0 | AS117: 0 | AT117: 0 | AU117: 1 | AV117: 0 | AW117: 0 | AX117: 0 | AY117: 0 | AZ117: 0 | BA117: 0 | BB117: 0 | BC117: 0 | BD117: 0 | BE117: 0 | BF117: 0 | BG117: 0 | BH117: 0 | BJ117: 0 | BK117: 0 | BL117: 0 | BM117: 0 | BN117: 0 | BO117: 0
U118: 0 | V118: 0 | W118: 0 | Z118: 0 | AA118: 0 | AB118: 0 | AC118: 0 | AD118: 0 | AF118: 0 | AG118: January | AJ118: 0 | AM118: 0 | AN118: 1 | AO118: 0 | AP118: 0 | AQ118: 0 | AR118: 0 | AS118: 0 | AT118: 0 | AU118: 1 | AV118: 0 | AW118: 0 | AX118: 0 | AY118: 0 | AZ118: 0 | BA118: 0 | BB118: 0 | BC118: 0 | BD118: 0 | BE118: 0 | BF118: 0 | BG118: 0 | BH118: 0 | BJ118: 0 | BK118: 0 | BL118: 0 | BM118: 0 | BN118: 0 | BO118: 0
U119: 0 | V119: 0 | W119: 0 | Z119: 0 | AA119: 0 | AB119: 0 | AC119: 0 | AD119: 0 | AF119: 0 | AG119: January | AJ119: 0 | AM119: 0 | AN119: 1 | AO119: 0 | AP119: 0 | AQ119: 0 | AR119: 0 | AS119: 0 | AT119: 0 | AU119: 1 | AV119: 0 | AW119: 0 | AX119: 0 | AY119: 0 | AZ119: 0 | BA119: 0 | BB119: 0 | BC119: 0 | BD119: 0 | BE119: 0 | BF119: 0 | BG119: 0 | BH119: 0 | BJ119: 0 | BK119: 0 | BL119: 0 | BM119: 0 | BN119: 0 | BO119: 0
U120: 0 | V120: 0 | W120: 0 | Z120: 0 | AA120: 0 | AB120: 0 | AC120: 0 | AD120: 0 | AF120: 0 | AG120: January | AJ120: 0 | AM120: 0 | AN120: 1 | AO120: 0 | AP120: 0 | AQ120: 0 | AR120: 0 | AS120: 0 | AT120: 0 | AU120: 1 | AV120: 0 | AW120: 0 | AX120: 0 | AY120: 0 | AZ120: 0 | BA120: 0 | BB120: 0 | BC120: 0 | BD120: 0 | BE120: 0 | BF120: 0 | BG120: 0 | BH120: 0 | BJ120: 0 | BK120: 0 | BL120: 0 | BM120: 0 | BN120: 0 | BO120: 0
U121: 0 | V121: 0 | W121: 0 | Z121: 0 | AA121: 0 | AB121: 0 | AC121: 0 | AD121: 0 | AF121: 0 | AG121: January | AJ121: 0 | AM121: 0 | AN121: 1 | AO121: 0 | AP121: 0 | AQ121: 0 | AR121: 0 | AS121: 0 | AT121: 0 | AU121: 1 | AV121: 0 | AW121: 0 | AX121: 0 | AY121: 0 | AZ121: 0 | BA121: 0 | BB121: 0 | BC121: 0 | BD121: 0 | BE121: 0 | BF121: 0 | BG121: 0 | BH121: 0 | BJ121: 0 | BK121: 0 | BL121: 0 | BM121: 0 | BN121: 0 | BO121: 0
U122: 0 | V122: 0 | W122: 0 | Z122: 0 | AA122: 0 | AB122: 0 | AC122: 0 | AD122: 0 | AF122: 0 | AG122: January | AJ122: 0 | AM122: 0 | AN122: 1 | AO122: 0 | AP122: 0 | AQ122: 0 | AR122: 0 | AS122: 0 | AT122: 0 | AU122: 1 | AV122: 0 | AW122: 0 | AX122: 0 | AY122: 0 | AZ122: 0 | BA122: 0 | BB122: 0 | BC122: 0 | BD122: 0 | BE122: 0 | BF122: 0 | BG122: 0 | BH122: 0 | BJ122: 0 | BK122: 0 | BL122: 0 | BM122: 0 | BN122: 0 | BO122: 0
U123: 0 | V123: 0 | W123: 0 | Z123: 0 | AA123: 0 | AB123: 0 | AC123: 0 | AD123: 0 | AF123: 0 | AG123: January | AJ123: 0 | AM123: 0 | AN123: 1 | AO123: 0 | AP123: 0 | AQ123: 0 | AR123: 0 | AS123: 0 | AT123: 0 | AU123: 1 | AV123: 0 | AW123: 0 | AX123: 0 | AY123: 0 | AZ123: 0 | BA123: 0 | BB123: 0 | BC123: 0 | BD123: 0 | BE123: 0 | BF123: 0 | BG123: 0 | BH123: 0 | BJ123: 0 | BK123: 0 | BL123: 0 | BM123: 0 | BN123: 0 | BO123: 0
U124: 0 | V124: 0 | W124: 0 | Z124: 0 | AA124: 0 | AB124: 0 | AC124: 0 | AD124: 0 | AF124: 0 | AG124: January | AJ124: 0 | AM124: 0 | AN124: 1 | AO124: 0 | AP124: 0 | AQ124: 0 | AR124: 0 | AS124: 0 | AT124: 0 | AU124: 1 | AV124: 0 | AW124: 0 | AX124: 0 | AY124: 0 | AZ124: 0 | BA124: 0 | BB124: 0 | BC124: 0 | BD124: 0 | BE124: 0 | BF124: 0 | BG124: 0 | BH124: 0 | BJ124: 0 | BK124: 0 | BL124: 0 | BM124: 0 | BN124: 0 | BO124: 0
U125: 0 | V125: 0 | W125: 0 | Z125: 0 | AA125: 0 | AB125: 0 | AC125: 0 | AD125: 0 | AF125: 0 | AG125: January | AJ125: 0 | AM125: 0 | AN125: 1 | AO125: 0 | AP125: 0 | AQ125: 0 | AR125: 0 | AS125: 0 | AT125: 0 | AU125: 1 | AV125: 0 | AW125: 0 | AX125: 0 | AY125: 0 | AZ125: 0 | BA125: 0 | BB125: 0 | BC125: 0 | BD125: 0 | BE125: 0 | BF125: 0 | BG125: 0 | BH125: 0 | BJ125: 0 | BK125: 0 | BL125: 0 | BM125: 0 | BN125: 0 | BO125: 0
U126: 0 | V126: 0 | W126: 0 | Z126: 0 | AA126: 0 | AB126: 0 | AC126: 0 | AD126: 0 | AF126: 0 | AG126: January | AJ126: 0 | AM126: 0 | AN126: 1 | AO126: 0 | AP126: 0 | AQ126: 0 | AR126: 0 | AS126: 0 | AT126: 0 | AU126: 1 | AV126: 0 | AW126: 0 | AX126: 0 | AY126: 0 | AZ126: 0 | BA126: 0 | BB126: 0 | BC126: 0 | BD126: 0 | BE126: 0 | BF126: 0 | BG126: 0 | BH126: 0 | BJ126: 0 | BK126: 0 | BL126: 0 | BM126: 0 | BN126: 0 | BO126: 0
U127: 0 | V127: 0 | W127: 0 | Z127: 0 | AA127: 0 | AB127: 0 | AC127: 0 | AD127: 0 | AF127: 0 | AG127: January | AJ127: 0 | AM127: 0 | AN127: 1 | AO127: 0 | AP127: 0 | AQ127: 0 | AR127: 0 | AS127: 0 | AT127: 0 | AU127: 1 | AV127: 0 | AW127: 0 | AX127: 0 | AY127: 0 | AZ127: 0 | BA127: 0 | BB127: 0 | BC127: 0 | BD127: 0 | BE127: 0 | BF127: 0 | BG127: 0 | BH127: 0 | BJ127: 0 | BK127: 0 | BL127: 0 | BM127: 0 | BN127: 0 | BO127: 0
U128: 0 | V128: 0 | W128: 0 | Z128: 0 | AA128: 0 | AB128: 0 | AC128: 0 | AD128: 0 | AF128: 0 | AG128: January | AJ128: 0 | AM128: 0 | AN128: 1 | AO128: 0 | AP128: 0 | AQ128: 0 | AR128: 0 | AS128: 0 | AT128: 0 | AU128: 1 | AV128: 0 | AW128: 0 | AX128: 0 | AY128: 0 | AZ128: 0 | BA128: 0 | BB128: 0 | BC128: 0 | BD128: 0 | BE128: 0 | BF128: 0 | BG128: 0 | BH128: 0 | BJ128: 0 | BK128: 0 | BL128: 0 | BM128: 0 | BN128: 0 | BO128: 0
U129: 0 | V129: 0 | W129: 0 | Z129: 0 | AA129: 0 | AB129: 0 | AC129: 0 | AD129: 0 | AF129: 0 | AG129: January | AJ129: 0 | AM129: 0 | AN129: 1 | AO129: 0 | AP129: 0 | AQ129: 0 | AR129: 0 | AS129: 0 | AT129: 0 | AU129: 1 | AV129: 0 | AW129: 0 | AX129: 0 | AY129: 0 | AZ129: 0 | BA129: 0 | BB129: 0 | BC129: 0 | BD129: 0 | BE129: 0 | BF129: 0 | BG129: 0 | BH129: 0 | BJ129: 0 | BK129: 0 | BL129: 0 | BM129: 0 | BN129: 0 | BO129: 0
U130: 0 | V130: 0 | W130: 0 | Z130: 0 | AA130: 0 | AB130: 0 | AC130: 0 | AD130: 0 | AF130: 0 | AG130: January | AJ130: 0 | AM130: 0 | AN130: 1 | AO130: 0 | AP130: 0 | AQ130: 0 | AR130: 0 | AS130: 0 | AT130: 0 | AU130: 1 | AV130: 0 | AW130: 0 | AX130: 0 | AY130: 0 | AZ130: 0 | BA130: 0 | BB130: 0 | BC130: 0 | BD130: 0 | BE130: 0 | BF130: 0 | BG130: 0 | BH130: 0 | BJ130: 0 | BK130: 0 | BL130: 0 | BM130: 0 | BN130: 0 | BO130: 0
U131: 0 | V131: 0 | W131: 0 | Z131: 0 | AA131: 0 | AB131: 0 | AC131: 0 | AD131: 0 | AF131: 0 | AG131: January | AJ131: 0 | AM131: 0 | AN131: 1 | AO131: 0 | AP131: 0 | AQ131: 0 | AR131: 0 | AS131: 0 | AT131: 0 | AU131: 1 | AV131: 0 | AW131: 0 | AX131: 0 | AY131: 0 | AZ131: 0 | BA131: 0 | BB131: 0 | BC131: 0 | BD131: 0 | BE131: 0 | BF131: 0 | BG131: 0 | BH131: 0 | BJ131: 0 | BK131: 0 | BL131: 0 | BM131: 0 | BN131: 0 | BO131: 0
U132: 0 | V132: 0 | W132: 0 | Z132: 0 | AA132: 0 | AB132: 0 | AC132: 0 | AD132: 0 | AF132: 0 | AG132: January | AJ132: 0 | AM132: 0 | AN132: 1 | AO132: 0 | AP132: 0 | AQ132: 0 | AR132: 0 | AS132: 0 | AT132: 0 | AU132: 1 | AV132: 0 | AW132: 0 | AX132: 0 | AY132: 0 | AZ132: 0 | BA132: 0 | BB132: 0 | BC132: 0 | BD132: 0 | BE132: 0 | BF132: 0 | BG132: 0 | BH132: 0 | BJ132: 0 | BK132: 0 | BL132: 0 | BM132: 0 | BN132: 0 | BO132: 0
U133: 0 | V133: 0 | W133: 0 | Z133: 0 | AA133: 0 | AB133: 0 | AC133: 0 | AD133: 0 | AF133: 0 | AG133: January | AJ133: 0 | AM133: 0 | AN133: 1 | AO133: 0 | AP133: 0 | AQ133: 0 | AR133: 0 | AS133: 0 | AT133: 0 | AU133: 1 | AV133: 0 | AW133: 0 | AX133: 0 | AY133: 0 | AZ133: 0 | BA133: 0 | BB133: 0 | BC133: 0 | BD133: 0 | BE133: 0 | BF133: 0 | BG133: 0 | BH133: 0 | BJ133: 0 | BK133: 0 | BL133: 0 | BM133: 0 | BN133: 0 | BO133: 0
U134: 0 | V134: 0 | W134: 0 | Z134: 0 | AA134: 0 | AB134: 0 | AC134: 0 | AD134: 0 | AF134: 0 | AG134: January | AJ134: 0 | AM134: 0 | AN134: 1 | AO134: 0 | AP134: 0 | AQ134: 0 | AR134: 0 | AS134: 0 | AT134: 0 | AU134: 1 | AV134: 0 | AW134: 0 | AX134: 0 | AY134: 0 | AZ134: 0 | BA134: 0 | BB134: 0 | BC134: 0 | BD134: 0 | BE134: 0 | BF134: 0 | BG134: 0 | BH134: 0 | BJ134: 0 | BK134: 0 | BL134: 0 | BM134: 0 | BN134: 0 | BO134: 0
U135: 0 | V135: 0 | W135: 0 | Z135: 0 | AA135: 0 | AB135: 0 | AC135: 0 | AD135: 0 | AF135: 0 | AG135: January | AJ135: 0 | AM135: 0 | AN135: 1 | AO135: 0 | AP135: 0 | AQ135: 0 | AR135: 0 | AS135: 0 | AT135: 0 | AU135: 1 | AV135: 0 | AW135: 0 | AX135: 0 | AY135: 0 | AZ135: 0 | BA135: 0 | BB135: 0 | BC135: 0 | BD135: 0 | BE135: 0 | BF135: 0 | BG135: 0 | BH135: 0 | BJ135: 0 | BK135: 0 | BL135: 0 | BM135: 0 | BN135: 0 | BO135: 0
U136: =IF(C136="",0,IF(MONTH(C136)=$O$2,INDEX($K$8:$O$68,MATCH($D136,product,0),5),0)) -> 0 | V136: =IF(AND(A136="",E136=""),0,IF(MONTH(C136)=$O$2,A136,0)) -> 0 | W136: =IF(V136=0,0,IF(MONTH(C136)=$O$2,INDEX($K$8:$O$68,MATCH($D136,product,0),5),0)) -> 0 | Z136: 0 | AA136: 0 | AB136: 0 | AC136: 0 | AD136: 0 | AF136: =IF(D136="",0,INDEX($K$8:$O$68,MATCH($D136,product,0),5)) -> 0 | AG136: =TEXT(C136,"mmmm") -> January | AJ136: 0 | AM136: 0 | AN136: 1 | AO136: =COUNTIF(A136,"*") -> 0 | AP136: 0 | AQ136: 0 | AR136: 0 | AS136: 0 | AT136: 0 | AU136: =COUNTBLANK(E136) -> 1 | AV136: 0 | AW136: =SUM(AB136*AP136) -> 0 | AX136: =U136 -> 0 | AY136: 0 | AZ136: =SUM(AC136*Z136) -> 0 | BA136: =SUM(AC136*AA136) -> 0 | BB136: =SUM(AC136*AD136) -> 0 | BC136: =SUM(Z136-AZ136) -> 0 | BD136: =SUM(AD136-BB136) -> 0 | BE136: 0 | BF136: 0 | BG136: 0 | BH136: 0 | BJ136: 0 | BK136: =SUM(W136) -> 0 | BL136: 0 | BM136: 0 | BN136: 0 | BO136: 0
U137: 0 | V137: 0 | W137: 0 | Z137: 0 | AA137: 0 | AB137: 0 | AC137: 0 | AD137: 0 | AF137: 0 | AG137: January | AJ137: 0 | AM137: 0 | AN137: 1 | AO137: 0 | AP137: 0 | AQ137: 0 | AR137: =SUM(H137*AP137) -> 0 | AS137: 0 | AT137: 0 | AU137: 1 | AV137: 0 | AW137: 0 | AX137: 0 | AY137: 0 | AZ137: 0 | BA137: 0 | BB137: 0 | BC137: 0 | BD137: 0 | BE137: 0 | BF137: 0 | BG137: 0 | BH137: 0 | BJ137: 0 | BK137: 0 | BL137: 0 | BM137: 0 | BN137: =SUM(BL137*BA137) -> 0 | BO137: 0
U138: 0 | V138: 0 | W138: 0 | Z138: 0 | AA138: 0 | AB138: 0 | AC138: 0 | AD138: 0 | AF138: 0 | AG138: January | AJ138: 0 | AM138: 0 | AN138: 1 | AO138: 0 | AP138: 0 | AQ138: 0 | AR138: 0 | AS138: 0 | AT138: 0 | AU138: 1 | AV138: 0 | AW138: 0 | AX138: 0 | AY138: 0 | AZ138: 0 | BA138: 0 | BB138: 0 | BC138: 0 | BD138: 0 | BE138: 0 | BF138: 0 | BG138: 0 | BH138: 0 | BJ138: 0 | BK138: 0 | BL138: 0 | BM138: 0 | BN138: 0 | BO138: 0
U139: 0 | V139: 0 | W139: 0 | Z139: 0 | AA139: 0 | AB139: 0 | AC139: 0 | AD139: 0 | AF139: 0 | AG139: January | AJ139: 0 | AM139: 0 | AN139: 1 | AO139: 0 | AP139: 0 | AQ139: 0 | AR139: 0 | AS139: 0 | AT139: 0 | AU139: 1 | AV139: 0 | AW139: 0 | AX139: 0 | AY139: 0 | AZ139: 0 | BA139: 0 | BB139: 0 | BC139: 0 | BD139: 0 | BE139: 0 | BF139: 0 | BG139: 0 | BH139: 0 | BJ139: 0 | BK139: 0 | BL139: 0 | BM139: 0 | BN139: 0 | BO139: 0
U140: 0 | V140: 0 | W140: 0 | Z140: 0 | AA140: 0 | AB140: 0 | AC140: 0 | AD140: 0 | AF140: 0 | AG140: January | AJ140: 0 | AM140: 0 | AN140: 1 | AO140: 0 | AP140: 0 | AQ140: 0 | AR140: 0 | AS140: 0 | AT140: 0 | AU140: 1 | AV140: 0 | AW140: 0 | AX140: 0 | AY140: 0 | AZ140: 0 | BA140: 0 | BB140: 0 | BC140: 0 | BD140: 0 | BE140: 0 | BF140: 0 | BG140: 0 | BH140: 0 | BJ140: 0 | BK140: 0 | BL140: 0 | BM140: 0 | BN140: 0 | BO140: 0
U141: 0 | V141: 0 | W141: 0 | Z141: 0 | AA141: 0 | AB141: 0 | AC141: 0 | AD141: 0 | AF141: 0 | AG141: January | AJ141: 0 | AM141: 0 | AN141: 1 | AO141: 0 | AP141: 0 | AQ141: 0 | AR141: 0 | AS141: 0 | AT141: 0 | AU141: 1 | AV141: 0 | AW141: 0 | AX141: 0 | AY141: 0 | AZ141: 0 | BA141: 0 | BB141: 0 | BC141: 0 | BD141: 0 | BE141: 0 | BF141: 0 | BG141: 0 | BH141: 0 | BJ141: 0 | BK141: 0 | BL141: 0 | BM141: 0 | BN141: 0 | BO141: 0
U142: 0 | V142: 0 | W142: 0 | Z142: 0 | AA142: 0 | AB142: 0 | AC142: 0 | AD142: 0 | AF142: 0 | AG142: January | AJ142: 0 | AM142: 0 | AN142: =COUNTBLANK(A142) -> 1 | AO142: 0 | AP142: 0 | AQ142: 0 | AR142: 0 | AS142: 0 | AT142: 0 | AU142: 1 | AV142: 0 | AW142: 0 | AX142: 0 | AY142: 0 | AZ142: 0 | BA142: 0 | BB142: 0 | BC142: 0 | BD142: 0 | BE142: 0 | BF142: 0 | BG142: 0 | BH142: 0 | BJ142: 0 | BK142: 0 | BL142: 0 | BM142: 0 | BN142: 0 | BO142: 0
U143: 0 | V143: 0 | W143: 0 | Z143: 0 | AA143: 0 | AB143: 0 | AC143: 0 | AD143: 0 | AF143: 0 | AG143: January | AJ143: 0 | AM143: 0 | AN143: 1 | AO143: 0 | AP143: 0 | AQ143: 0 | AR143: 0 | AS143: 0 | AT143: 0 | AU143: 1 | AV143: 0 | AW143: 0 | AX143: 0 | AY143: 0 | AZ143: 0 | BA143: 0 | BB143: 0 | BC143: 0 | BD143: 0 | BE143: 0 | BF143: 0 | BG143: 0 | BH143: 0 | BJ143: 0 | BK143: 0 | BL143: 0 | BM143: 0 | BN143: 0 | BO143: 0
U144: 0 | V144: 0 | W144: 0 | Z144: 0 | AA144: 0 | AB144: 0 | AC144: 0 | AD144: 0 | AF144: 0 | AG144: January | AJ144: 0 | AM144: 0 | AN144: 1 | AO144: 0 | AP144: 0 | AQ144: 0 | AR144: 0 | AS144: =SUM(F144*AO144) -> 0 | AT144: =SUM(H144*AO144) -> 0 | AU144: 1 | AV144: 0 | AW144: 0 | AX144: 0 | AY144: 0 | AZ144: 0 | BA144: 0 | BB144: 0 | BC144: 0 | BD144: 0 | BE144: 0 | BF144: 0 | BG144: 0 | BH144: 0 | BJ144: 0 | BK144: 0 | BL144: 0 | BM144: 0 | BN144: 0 | BO144: 0
U145: 0 | V145: 0 | W145: 0 | Z145: 0 | AA145: 0 | AB145: 0 | AC145: 0 | AD145: 0 | AF145: 0 | AG145: January | AJ145: 0 | AM145: 0 | AN145: 1 | AO145: 0 | AP145: 0 | AQ145: 0 | AR145: 0 | AS145: 0 | AT145: 0 | AU145: 1 | AV145: 0 | AW145: 0 | AX145: 0 | AY145: 0 | AZ145: 0 | BA145: 0 | BB145: 0 | BC145: 0 | BD145: 0 | BE145: 0 | BF145: 0 | BG145: 0 | BH145: 0 | BJ145: 0 | BK145: 0 | BL145: 0 | BM145: 0 | BN145: 0 | BO145: 0
U146: 0 | V146: 0 | W146: 0 | Z146: 0 | AA146: 0 | AB146: 0 | AC146: 0 | AD146: 0 | AF146: 0 | AG146: January | AJ146: 0 | AM146: 0 | AN146: 1 | AO146: 0 | AP146: 0 | AQ146: 0 | AR146: 0 | AS146: 0 | AT146: 0 | AU146: 1 | AV146: 0 | AW146: 0 | AX146: 0 | AY146: 0 | AZ146: 0 | BA146: 0 | BB146: 0 | BC146: 0 | BD146: 0 | BE146: 0 | BF146: 0 | BG146: 0 | BH146: 0 | BJ146: 0 | BK146: 0 | BL146: 0 | BM146: 0 | BN146: 0 | BO146: 0
U147: 0 | V147: 0 | W147: 0 | Z147: 0 | AA147: 0 | AB147: 0 | AC147: 0 | AD147: 0 | AF147: 0 | AG147: January | AJ147: 0 | AM147: 0 | AN147: 1 | AO147: 0 | AP147: 0 | AQ147: 0 | AR147: 0 | AS147: 0 | AT147: 0 | AU147: 1 | AV147: 0 | AW147: 0 | AX147: 0 | AY147: 0 | AZ147: 0 | BA147: 0 | BB147: 0 | BC147: 0 | BD147: 0 | BE147: 0 | BF147: 0 | BG147: 0 | BH147: 0 | BJ147: 0 | BK147: 0 | BL147: 0 | BM147: 0 | BN147: 0 | BO147: 0
U148: 0 | V148: 0 | W148: 0 | Z148: 0 | AA148: 0 | AB148: 0 | AC148: 0 | AD148: 0 | AF148: 0 | AG148: January | AJ148: 0 | AM148: 0 | AN148: 1 | AO148: 0 | AP148: 0 | AQ148: 0 | AR148: 0 | AS148: 0 | AT148: 0 | AU148: 1 | AV148: 0 | AW148: 0 | AX148: 0 | AY148: 0 | AZ148: 0 | BA148: 0 | BB148: 0 | BC148: 0 | BD148: 0 | BE148: 0 | BF148: 0 | BG148: 0 | BH148: 0 | BJ148: 0 | BK148: 0 | BL148: 0 | BM148: 0 | BN148: 0 | BO148: 0
U149: 0 | V149: 0 | W149: 0 | Z149: 0 | AA149: 0 | AB149: 0 | AC149: 0 | AD149: 0 | AF149: 0 | AG149: January | AJ149: 0 | AM149: 0 | AN149: 1 | AO149: 0 | AP149: 0 | AQ149: 0 | AR149: 0 | AS149: 0 | AT149: 0 | AU149: 1 | AV149: 0 | AW149: 0 | AX149: 0 | AY149: 0 | AZ149: 0 | BA149: 0 | BB149: 0 | BC149: 0 | BD149: 0 | BE149: 0 | BF149: 0 | BG149: 0 | BH149: 0 | BJ149: 0 | BK149: 0 | BL149: 0 | BM149: 0 | BN149: 0 | BO149: 0
U150: 0 | V150: 0 | W150: 0 | Z150: 0 | AA150: 0 | AB150: 0 | AC150: 0 | AD150: 0 | AF150: 0 | AG150: January | AJ150: 0 | AM150: 0 | AN150: 1 | AO150: 0 | AP150: 0 | AQ150: 0 | AR150: 0 | AS150: 0 | AT150: 0 | AU150: 1 | AV150: 0 | AW150: 0 | AX150: 0 | AY150: 0 | AZ150: 0 | BA150: 0 | BB150: 0 | BC150: 0 | BD150: 0 | BE150: 0 | BF150: 0 | BG150: 0 | BH150: 0 | BJ150: 0 | BK150: 0 | BL150: 0 | BM150: 0 | BN150: 0 | BO150: 0
U151: 0 | V151: 0 | W151: 0 | Z151: 0 | AA151: 0 | AB151: 0 | AC151: 0 | AD151: 0 | AF151: 0 | AG151: January | AJ151: 0 | AM151: 0 | AN151: 1 | AO151: 0 | AP151: 0 | AQ151: 0 | AR151: 0 | AS151: 0 | AT151: 0 | AU151: 1 | AV151: 0 | AW151: 0 | AX151: 0 | AY151: 0 | AZ151: 0 | BA151: 0 | BB151: 0 | BC151: 0 | BD151: 0 | BE151: 0 | BF151: 0 | BG151: 0 | BH151: 0 | BJ151: 0 | BK151: 0 | BL151: 0 | BM151: 0 | BN151: 0 | BO151: 0
U152: 0 | V152: 0 | W152: 0 | Z152: 0 | AA152: 0 | AB152: 0 | AC152: 0 | AD152: 0 | AF152: 0 | AG152: January | AJ152: 0 | AM152: 0 | AN152: 1 | AO152: 0 | AP152: 0 | AQ152: 0 | AR152: 0 | AS152: 0 | AT152: 0 | AU152: 1 | AV152: 0 | AW152: 0 | AX152: 0 | AY152: 0 | AZ152: 0 | BA152: 0 | BB152: 0 | BC152: 0 | BD152: 0 | BE152: 0 | BF152: 0 | BG152: 0 | BH152: 0 | BJ152: 0 | BK152: 0 | BL152: 0 | BM152: 0 | BN152: 0 | BO152: 0
U153: 0 | V153: 0 | W153: 0 | Z153: 0 | AA153: 0 | AB153: 0 | AC153: 0 | AD153: 0 | AF153: 0 | AG153: January | AJ153: 0 | AM153: 0 | AN153: 1 | AO153: 0 | AP153: 0 | AQ153: 0 | AR153: 0 | AS153: 0 | AT153: 0 | AU153: 1 | AV153: 0 | AW153: 0 | AX153: 0 | AY153: 0 | AZ153: 0 | BA153: 0 | BB153: 0 | BC153: 0 | BD153: 0 | BE153: 0 | BF153: 0 | BG153: 0 | BH153: 0 | BJ153: 0 | BK153: 0 | BL153: 0 | BM153: 0 | BN153: 0 | BO153: 0
U154: 0 | V154: 0 | W154: 0 | Z154: 0 | AA154: 0 | AB154: 0 | AC154: 0 | AD154: 0 | AF154: 0 | AG154: January | AJ154: 0 | AM154: 0 | AN154: 1 | AO154: 0 | AP154: 0 | AQ154: 0 | AR154: 0 | AS154: 0 | AT154: 0 | AU154: 1 | AV154: 0 | AW154: 0 | AX154: 0 | AY154: 0 | AZ154: 0 | BA154: 0 | BB154: 0 | BC154: 0 | BD154: 0 | BE154: 0 | BF154: 0 | BG154: 0 | BH154: 0 | BJ154: 0 | BK154: 0 | BL154: 0 | BM154: 0 | BN154: 0 | BO154: 0
U155: 0 | V155: 0 | W155: 0 | Z155: 0 | AA155: 0 | AB155: 0 | AC155: 0 | AD155: 0 | AF155: 0 | AG155: January | AJ155: 0 | AM155: 0 | AN155: 1 | AO155: 0 | AP155: 0 | AQ155: 0 | AR155: 0 | AS155: 0 | AT155: 0 | AU155: 1 | AV155: 0 | AW155: 0 | AX155: 0 | AY155: 0 | AZ155: 0 | BA155: 0 | BB155: 0 | BC155: 0 | BD155: 0 | BE155: 0 | BF155: 0 | BG155: 0 | BH155: 0 | BJ155: 0 | BK155: 0 | BL155: 0 | BM155: 0 | BN155: 0 | BO155: 0
U156: 0 | V156: 0 | W156: 0 | Z156: 0 | AA156: 0 | AB156: 0 | AC156: 0 | AD156: 0 | AF156: 0 | AG156: January | AJ156: 0 | AM156: 0 | AN156: 1 | AO156: 0 | AP156: =SUM(AM156-AO156) -> 0 | AQ156: 0 | AR156: 0 | AS156: 0 | AT156: 0 | AU156: 1 | AV156: 0 | AW156: 0 | AX156: 0 | AY156: 0 | AZ156: 0 | BA156: 0 | BB156: 0 | BC156: 0 | BD156: 0 | BE156: 0 | BF156: 0 | BG156: 0 | BH156: 0 | BJ156: 0 | BK156: 0 | BL156: 0 | BM156: 0 | BN156: 0 | BO156: 0
U157: 0 | V157: 0 | W157: 0 | Z157: 0 | AA157: 0 | AB157: 0 | AC157: 0 | AD157: 0 | AF157: 0 | AG157: January | AJ157: 0 | AM157: 0 | AN157: 1 | AO157: 0 | AP157: 0 | AQ157: 0 | AR157: 0 | AS157: 0 | AT157: 0 | AU157: 1 | AV157: 0 | AW157: 0 | AX157: 0 | AY157: 0 | AZ157: 0 | BA157: 0 | BB157: 0 | BC157: 0 | BD157: 0 | BE157: 0 | BF157: 0 | BG157: 0 | BH157: 0 | BJ157: 0 | BK157: 0 | BL157: 0 | BM157: 0 | BN157: 0 | BO157: 0
U158: 0 | V158: 0 | W158: 0 | Z158: 0 | AA158: 0 | AB158: 0 | AC158: 0 | AD158: 0 | AF158: 0 | AG158: January | AJ158: 0 | AM158: 0 | AN158: 1 | AO158: 0 | AP158: 0 | AQ158: 0 | AR158: 0 | AS158: 0 | AT158: 0 | AU158: 1 | AV158: 0 | AW158: 0 | AX158: 0 | AY158: 0 | AZ158: 0 | BA158: 0 | BB158: 0 | BC158: 0 | BD158: 0 | BE158: 0 | BF158: 0 | BG158: 0 | BH158: 0 | BJ158: 0 | BK158: 0 | BL158: 0 | BM158: 0 | BN158: 0 | BO158: 0
U159: 0 | V159: 0 | W159: 0 | Z159: 0 | AA159: 0 | AB159: 0 | AC159: 0 | AD159: 0 | AF159: 0 | AG159: January | AJ159: 0 | AM159: 0 | AN159: 1 | AO159: 0 | AP159: 0 | AQ159: 0 | AR159: 0 | AS159: 0 | AT159: 0 | AU159: 1 | AV159: 0 | AW159: 0 | AX159: 0 | AY159: 0 | AZ159: 0 | BA159: 0 | BB159: 0 | BC159: 0 | BD159: 0 | BE159: 0 | BF159: 0 | BG159: 0 | BH159: 0 | BJ159: 0 | BK159: 0 | BL159: 0 | BM159: 0 | BN159: 0 | BO159: 0
U160: 0 | V160: 0 | W160: 0 | Z160: 0 | AA160: 0 | AB160: 0 | AC160: 0 | AD160: 0 | AF160: 0 | AG160: January | AJ160: 0 | AM160: 0 | AN160: 1 | AO160: 0 | AP160: 0 | AQ160: 0 | AR160: 0 | AS160: 0 | AT160: 0 | AU160: 1 | AV160: 0 | AW160: 0 | AX160: 0 | AY160: 0 | AZ160: 0 | BA160: 0 | BB160: 0 | BC160: 0 | BD160: 0 | BE160: 0 | BF160: 0 | BG160: 0 | BH160: 0 | BJ160: 0 | BK160: 0 | BL160: 0 | BM160: 0 | BN160: 0 | BO160: 0
U161: 0 | V161: 0 | W161: 0 | Z161: 0 | AA161: 0 | AB161: 0 | AC161: 0 | AD161: 0 | AF161: 0 | AG161: January | AJ161: 0 | AM161: 0 | AN161: 1 | AO161: 0 | AP161: 0 | AQ161: 0 | AR161: 0 | AS161: 0 | AT161: 0 | AU161: 1 | AV161: 0 | AW161: 0 | AX161: 0 | AY161: 0 | AZ161: 0 | BA161: 0 | BB161: 0 | BC161: 0 | BD161: 0 | BE161: 0 | BF161: 0 | BG161: 0 | BH161: 0 | BJ161: 0 | BK161: 0 | BL161: 0 | BM161: 0 | BN161: 0 | BO161: 0
U162: 0 | V162: 0 | W162: 0 | Z162: 0 | AA162: 0 | AB162: 0 | AC162: 0 | AD162: 0 | AF162: 0 | AG162: January | AJ162: 0 | AM162: 0 | AN162: 1 | AO162: 0 | AP162: 0 | AQ162: 0 | AR162: 0 | AS162: 0 | AT162: 0 | AU162: 1 | AV162: 0 | AW162: 0 | AX162: 0 | AY162: 0 | AZ162: 0 | BA162: 0 | BB162: 0 | BC162: 0 | BD162: 0 | BE162: 0 | BF162: 0 | BG162: 0 | BH162: 0 | BJ162: 0 | BK162: 0 | BL162: 0 | BM162: 0 | BN162: 0 | BO162: 0
U163: 0 | V163: 0 | W163: 0 | Z163: 0 | AA163: 0 | AB163: 0 | AC163: 0 | AD163: 0 | AF163: 0 | AG163: January | AJ163: 0 | AM163: 0 | AN163: 1 | AO163: 0 | AP163: 0 | AQ163: 0 | AR163: 0 | AS163: 0 | AT163: 0 | AU163: 1 | AV163: 0 | AW163: 0 | AX163: 0 | AY163: 0 | AZ163: 0 | BA163: 0 | BB163: 0 | BC163: 0 | BD163: 0 | BE163: 0 | BF163: 0 | BG163: 0 | BH163: 0 | BJ163: 0 | BK163: 0 | BL163: 0 | BM163: 0 | BN163: 0 | BO163: 0
U164: 0 | V164: 0 | W164: 0 | Z164: 0 | AA164: 0 | AB164: 0 | AC164: 0 | AD164: 0 | AF164: 0 | AG164: January | AJ164: 0 | AM164: 0 | AN164: 1 | AO164: 0 | AP164: 0 | AQ164: 0 | AR164: 0 | AS164: 0 | AT164: 0 | AU164: 1 | AV164: 0 | AW164: 0 | AX164: 0 | AY164: 0 | AZ164: 0 | BA164: 0 | BB164: 0 | BC164: 0 | BD164: 0 | BE164: 0 | BF164: 0 | BG164: 0 | BH164: 0 | BJ164: 0 | BK164: 0 | BL164: 0 | BM164: 0 | BN164: 0 | BO164: 0
U165: 0 | V165: 0 | W165: 0 | Z165: 0 | AA165: 0 | AB165: 0 | AC165: 0 | AD165: 0 | AF165: 0 | AG165: January | AJ165: 0 | AM165: 0 | AN165: 1 | AO165: 0 | AP165: 0 | AQ165: 0 | AR165: 0 | AS165: 0 | AT165: 0 | AU165: 1 | AV165: 0 | AW165: 0 | AX165: 0 | AY165: 0 | AZ165: 0 | BA165: 0 | BB165: 0 | BC165: 0 | BD165: 0 | BE165: 0 | BF165: 0 | BG165: 0 | BH165: 0 | BJ165: 0 | BK165: 0 | BL165: 0 | BM165: 0 | BN165: 0 | BO165: 0
U166: 0 | V166: 0 | W166: 0 | Z166: 0 | AA166: 0 | AB166: 0 | AC166: 0 | AD166: 0 | AF166: 0 | AG166: January | AJ166: 0 | AM166: 0 | AN166: 1 | AO166: 0 | AP166: 0 | AQ166: 0 | AR166: 0 | AS166: 0 | AT166: 0 | AU166: 1 | AV166: 0 | AW166: 0 | AX166: 0 | AY166: 0 | AZ166: 0 | BA166: 0 | BB166: 0 | BC166: 0 | BD166: 0 | BE166: 0 | BF166: 0 | BG166: 0 | BH166: 0 | BJ166: 0 | BK166: 0 | BL166: 0 | BM166: 0 | BN166: 0 | BO166: 0
U167: 0 | V167: 0 | W167: 0 | Z167: 0 | AA167: 0 | AB167: 0 | AC167: 0 | AD167: 0 | AF167: 0 | AG167: January | AJ167: 0 | AM167: 0 | AN167: 1 | AO167: 0 | AP167: 0 | AQ167: 0 | AR167: 0 | AS167: 0 | AT167: 0 | AU167: 1 | AV167: 0 | AW167: 0 | AX167: 0 | AY167: 0 | AZ167: 0 | BA167: 0 | BB167: 0 | BC167: 0 | BD167: 0 | BE167: 0 | BF167: 0 | BG167: 0 | BH167: 0 | BJ167: 0 | BK167: 0 | BL167: 0 | BM167: 0 | BN167: 0 | BO167: 0
U168: =IF(C168="",0,IF(MONTH(C168)=$O$2,INDEX($K$8:$O$68,MATCH($D168,product,0),5),0)) -> 0 | V168: =IF(AND(A168="",E168=""),0,IF(MONTH(C168)=$O$2,A168,0)) -> 0 | W168: =IF(V168=0,0,IF(MONTH(C168)=$O$2,INDEX($K$8:$O$68,MATCH($D168,product,0),5),0)) -> 0 | Z168: 0 | AA168: 0 | AB168: 0 | AC168: 0 | AD168: 0 | AF168: =IF(D168="",0,INDEX($K$8:$O$68,MATCH($D168,product,0),5)) -> 0 | AG168: =TEXT(C168,"mmmm") -> January | AJ168: 0 | AM168: 0 | AN168: 1 | AO168: =COUNTIF(A168,"*") -> 0 | AP168: 0 | AQ168: 0 | AR168: 0 | AS168: 0 | AT168: 0 | AU168: =COUNTBLANK(E168) -> 1 | AV168: 0 | AW168: =SUM(AB168*AP168) -> 0 | AX168: =U168 -> 0 | AY168: 0 | AZ168: =SUM(AC168*Z168) -> 0 | BA168: =SUM(AC168*AA168) -> 0 | BB168: =SUM(AC168*AD168) -> 0 | BC168: =SUM(Z168-AZ168) -> 0 | BD168: =SUM(AD168-BB168) -> 0 | BE168: 0 | BF168: 0 | BG168: 0 | BH168: 0 | BJ168: 0 | BK168: =SUM(W168) -> 0 | BL168: 0 | BM168: 0 | BN168: 0 | BO168: 0
U169: 0 | V169: 0 | W169: 0 | Z169: =SUM(H169*AC169) -> 0 | AA169: =SUM(F169*AC169) -> 0 | AB169: =SUM(E169) -> 0 | AC169: =SUM(U169>1-1) -> 0 | AD169: =SUM(AB169*AC169) -> 0 | AF169: 0 | AG169: January | AJ169: =AF169 -> 0 | AM169: =SUM(AF169>1-1) -> 0 | AN169: 1 | AO169: 0 | AP169: 0 | AQ169: =SUM(F169*AP169) -> 0 | AR169: 0 | AS169: 0 | AT169: 0 | AU169: 1 | AV169: =SUM(AU169=1-1) -> 0 | AW169: 0 | AX169: 0 | AY169: =SUM(AX169>1-1) -> 0 | AZ169: 0 | BA169: 0 | BB169: 0 | BC169: 0 | BD169: 0 | BE169: =SUM(AX169-BK169) -> 0 | BF169: =SUM(BE169>1-1) -> 0 | BG169: =SUM(BF169*AZ169) -> 0 | BH169: =SUM(BF169*BA169) -> 0 | BJ169: =SUM(BF169*BB169) -> 0 | BK169: 0 | BL169: =SUM(BK169>1-1) -> 0 | BM169: =SUM(BL169*AZ169) -> 0 | BN169: 0 | BO169: =SUM(BL169*BB169) -> 0
U170: 0 | V170: 0 | W170: 0 | Z170: 0 | AA170: 0 | AB170: 0 | AC170: 0 | AD170: 0 | AF170: 0 | AG170: January | AJ170: 0 | AM170: 0 | AN170: 1 | AO170: 0 | AP170: 0 | AQ170: 0 | AR170: 0 | AS170: 0 | AT170: 0 | AU170: 1 | AV170: 0 | AW170: 0 | AX170: 0 | AY170: 0 | AZ170: 0 | BA170: 0 | BB170: 0 | BC170: 0 | BD170: 0 | BE170: 0 | BF170: 0 | BG170: 0 | BH170: 0 | BJ170: 0 | BK170: 0 | BL170: 0 | BM170: 0 | BN170: 0 | BO170: 0
U171: 0 | V171: 0 | W171: 0 | Z171: 0 | AA171: 0 | AB171: 0 | AC171: 0 | AD171: 0 | AF171: 0 | AG171: January | AJ171: 0 | AM171: 0 | AN171: 1 | AO171: 0 | AP171: 0 | AQ171: 0 | AR171: 0 | AS171: 0 | AT171: 0 | AU171: 1 | AV171: 0 | AW171: 0 | AX171: 0 | AY171: 0 | AZ171: 0 | BA171: 0 | BB171: 0 | BC171: 0 | BD171: 0 | BE171: 0 | BF171: 0 | BG171: 0 | BH171: 0 | BJ171: 0 | BK171: 0 | BL171: 0 | BM171: 0 | BN171: 0 | BO171: 0
U172: 0 | V172: 0 | W172: 0 | Z172: 0 | AA172: 0 | AB172: 0 | AC172: 0 | AD172: 0 | AF172: 0 | AG172: January | AJ172: 0 | AM172: 0 | AN172: 1 | AO172: 0 | AP172: 0 | AQ172: 0 | AR172: 0 | AS172: 0 | AT172: 0 | AU172: 1 | AV172: 0 | AW172: 0 | AX172: 0 | AY172: 0 | AZ172: 0 | BA172: 0 | BB172: 0 | BC172: 0 | BD172: 0 | BE172: 0 | BF172: 0 | BG172: 0 | BH172: 0 | BJ172: 0 | BK172: 0 | BL172: 0 | BM172: 0 | BN172: 0 | BO172: 0
U173: 0 | V173: 0 | W173: 0 | Z173: 0 | AA173: 0 | AB173: 0 | AC173: 0 | AD173: 0 | AF173: 0 | AG173: January | AJ173: 0 | AM173: 0 | AN173: 1 | AO173: 0 | AP173: 0 | AQ173: 0 | AR173: 0 | AS173: 0 | AT173: 0 | AU173: 1 | AV173: 0 | AW173: 0 | AX173: 0 | AY173: 0 | AZ173: 0 | BA173: 0 | BB173: 0 | BC173: 0 | BD173: 0 | BE173: 0 | BF173: 0 | BG173: 0 | BH173: 0 | BJ173: 0 | BK173: 0 | BL173: 0 | BM173: 0 | BN173: 0 | BO173: 0
U174: 0 | V174: 0 | W174: 0 | Z174: 0 | AA174: 0 | AB174: 0 | AC174: 0 | AD174: 0 | AF174: 0 | AG174: January | AJ174: 0 | AM174: 0 | AN174: =COUNTBLANK(A174) -> 1 | AO174: 0 | AP174: 0 | AQ174: 0 | AR174: 0 | AS174: 0 | AT174: 0 | AU174: 1 | AV174: 0 | AW174: 0 | AX174: 0 | AY174: 0 | AZ174: 0 | BA174: 0 | BB174: 0 | BC174: 0 | BD174: 0 | BE174: 0 | BF174: 0 | BG174: 0 | BH174: 0 | BJ174: 0 | BK174: 0 | BL174: 0 | BM174: 0 | BN174: 0 | BO174: 0
U175: 0 | V175: 0 | W175: 0 | Z175: 0 | AA175: 0 | AB175: 0 | AC175: 0 | AD175: 0 | AF175: 0 | AG175: January | AJ175: 0 | AM175: 0 | AN175: 1 | AO175: 0 | AP175: 0 | AQ175: 0 | AR175: 0 | AS175: 0 | AT175: 0 | AU175: 1 | AV175: 0 | AW175: 0 | AX175: 0 | AY175: 0 | AZ175: 0 | BA175: 0 | BB175: 0 | BC175: 0 | BD175: 0 | BE175: 0 | BF175: 0 | BG175: 0 | BH175: 0 | BJ175: 0 | BK175: 0 | BL175: 0 | BM175: 0 | BN175: 0 | BO175: 0
U176: 0 | V176: 0 | W176: 0 | Z176: 0 | AA176: 0 | AB176: 0 | AC176: 0 | AD176: 0 | AF176: 0 | AG176: January | AJ176: 0 | AM176: 0 | AN176: 1 | AO176: 0 | AP176: 0 | AQ176: 0 | AR176: 0 | AS176: 0 | AT176: 0 | AU176: 1 | AV176: 0 | AW176: 0 | AX176: 0 | AY176: 0 | AZ176: 0 | BA176: 0 | BB176: 0 | BC176: 0 | BD176: 0 | BE176: 0 | BF176: 0 | BG176: 0 | BH176: 0 | BJ176: 0 | BK176: 0 | BL176: 0 | BM176: 0 | BN176: 0 | BO176: 0
U177: 0 | V177: 0 | W177: 0 | Z177: 0 | AA177: 0 | AB177: 0 | AC177: 0 | AD177: 0 | AF177: 0 | AG177: January | AJ177: 0 | AM177: 0 | AN177: 1 | AO177: 0 | AP177: 0 | AQ177: 0 | AR177: 0 | AS177: 0 | AT177: 0 | AU177: 1 | AV177: 0 | AW177: 0 | AX177: 0 | AY177: 0 | AZ177: 0 | BA177: 0 | BB177: 0 | BC177: 0 | BD177: 0 | BE177: 0 | BF177: 0 | BG177: 0 | BH177: 0 | BJ177: 0 | BK177: 0 | BL177: 0 | BM177: 0 | BN177: 0 | BO177: 0
U178: 0 | V178: 0 | W178: 0 | Z178: 0 | AA178: 0 | AB178: 0 | AC178: 0 | AD178: 0 | AF178: 0 | AG178: January | AJ178: 0 | AM178: 0 | AN178: 1 | AO178: 0 | AP178: 0 | AQ178: 0 | AR178: 0 | AS178: 0 | AT178: 0 | AU178: 1 | AV178: 0 | AW178: 0 | AX178: 0 | AY178: 0 | AZ178: 0 | BA178: 0 | BB178: 0 | BC178: 0 | BD178: 0 | BE178: 0 | BF178: 0 | BG178: 0 | BH178: 0 | BJ178: 0 | BK178: 0 | BL178: 0 | BM178: 0 | BN178: 0 | BO178: 0
U179: 0 | V179: 0 | W179: 0 | Z179: 0 | AA179: 0 | AB179: 0 | AC179: 0 | AD179: 0 | AF179: 0 | AG179: January | AJ179: 0 | AM179: 0 | AN179: 1 | AO179: 0 | AP179: 0 | AQ179: 0 | AR179: 0 | AS179: 0 | AT179: 0 | AU179: 1 | AV179: 0 | AW179: 0 | AX179: 0 | AY179: 0 | AZ179: 0 | BA179: 0 | BB179: 0 | BC179: 0 | BD179: 0 | BE179: 0 | BF179: 0 | BG179: 0 | BH179: 0 | BJ179: 0 | BK179: 0 | BL179: 0 | BM179: 0 | BN179: 0 | BO179: 0
U180: 0 | V180: 0 | W180: 0 | Z180: 0 | AA180: 0 | AB180: 0 | AC180: 0 | AD180: 0 | AF180: 0 | AG180: January | AJ180: 0 | AM180: 0 | AN180: 1 | AO180: 0 | AP180: 0 | AQ180: 0 | AR180: 0 | AS180: 0 | AT180: 0 | AU180: 1 | AV180: 0 | AW180: 0 | AX180: 0 | AY180: 0 | AZ180: 0 | BA180: 0 | BB180: 0 | BC180: 0 | BD180: 0 | BE180: 0 | BF180: 0 | BG180: 0 | BH180: 0 | BJ180: 0 | BK180: 0 | BL180: 0 | BM180: 0 | BN180: 0 | BO180: 0
U181: 0 | V181: 0 | W181: 0 | Z181: 0 | AA181: 0 | AB181: 0 | AC181: 0 | AD181: 0 | AF181: 0 | AG181: January | AJ181: 0 | AM181: 0 | AN181: 1 | AO181: 0 | AP181: 0 | AQ181: 0 | AR181: 0 | AS181: 0 | AT181: 0 | AU181: 1 | AV181: 0 | AW181: 0 | AX181: 0 | AY181: 0 | AZ181: 0 | BA181: 0 | BB181: 0 | BC181: 0 | BD181: 0 | BE181: 0 | BF181: 0 | BG181: 0 | BH181: 0 | BJ181: 0 | BK181: 0 | BL181: 0 | BM181: 0 | BN181: 0 | BO181: 0
U182: 0 | V182: 0 | W182: 0 | Z182: 0 | AA182: 0 | AB182: 0 | AC182: 0 | AD182: 0 | AF182: 0 | AG182: January | AJ182: 0 | AM182: 0 | AN182: 1 | AO182: 0 | AP182: 0 | AQ182: 0 | AR182: 0 | AS182: 0 | AT182: 0 | AU182: 1 | AV182: 0 | AW182: 0 | AX182: 0 | AY182: 0 | AZ182: 0 | BA182: 0 | BB182: 0 | BC182: 0 | BD182: 0 | BE182: 0 | BF182: 0 | BG182: 0 | BH182: 0 | BJ182: 0 | BK182: 0 | BL182: 0 | BM182: 0 | BN182: 0 | BO182: 0
U183: 0 | V183: 0 | W183: 0 | Z183: 0 | AA183: 0 | AB183: 0 | AC183: 0 | AD183: 0 | AF183: 0 | AG183: January | AJ183: 0 | AM183: 0 | AN183: 1 | AO183: 0 | AP183: 0 | AQ183: 0 | AR183: 0 | AS183: 0 | AT183: 0 | AU183: 1 | AV183: 0 | AW183: 0 | AX183: 0 | AY183: 0 | AZ183: 0 | BA183: 0 | BB183: 0 | BC183: 0 | BD183: 0 | BE183: 0 | BF183: 0 | BG183: 0 | BH183: 0 | BJ183: 0 | BK183: 0 | BL183: 0 | BM183: 0 | BN183: 0 | BO183: 0
U184: 0 | V184: 0 | W184: 0 | Z184: 0 | AA184: 0 | AB184: 0 | AC184: 0 | AD184: 0 | AF184: 0 | AG184: January | AJ184: 0 | AM184: 0 | AN184: 1 | AO184: 0 | AP184: 0 | AQ184: 0 | AR184: 0 | AS184: 0 | AT184: 0 | AU184: 1 | AV184: 0 | AW184: 0 | AX184: 0 | AY184: 0 | AZ184: 0 | BA184: 0 | BB184: 0 | BC184: 0 | BD184: 0 | BE184: 0 | BF184: 0 | BG184: 0 | BH184: 0 | BJ184: 0 | BK184: 0 | BL184: 0 | BM184: 0 | BN184: 0 | BO184: 0
U185: 0 | V185: 0 | W185: 0 | Z185: 0 | AA185: 0 | AB185: 0 | AC185: 0 | AD185: 0 | AF185: 0 | AG185: January | AJ185: 0 | AM185: 0 | AN185: 1 | AO185: 0 | AP185: 0 | AQ185: 0 | AR185: 0 | AS185: 0 | AT185: 0 | AU185: 1 | AV185: 0 | AW185: 0 | AX185: 0 | AY185: 0 | AZ185: 0 | BA185: 0 | BB185: 0 | BC185: 0 | BD185: 0 | BE185: 0 | BF185: 0 | BG185: 0 | BH185: 0 | BJ185: 0 | BK185: 0 | BL185: 0 | BM185: 0 | BN185: 0 | BO185: 0
U186: 0 | V186: 0 | W186: 0 | Z186: 0 | AA186: 0 | AB186: 0 | AC186: 0 | AD186: 0 | AF186: 0 | AG186: January | AJ186: 0 | AM186: 0 | AN186: 1 | AO186: 0 | AP186: 0 | AQ186: 0 | AR186: 0 | AS186: 0 | AT186: 0 | AU186: 1 | AV186: 0 | AW186: 0 | AX186: 0 | AY186: 0 | AZ186: 0 | BA186: 0 | BB186: 0 | BC186: 0 | BD186: 0 | BE186: 0 | BF186: 0 | BG186: 0 | BH186: 0 | BJ186: 0 | BK186: 0 | BL186: 0 | BM186: 0 | BN186: 0 | BO186: 0
U187: 0 | V187: 0 | W187: 0 | Z187: 0 | AA187: 0 | AB187: 0 | AC187: 0 | AD187: 0 | AF187: 0 | AG187: January | AJ187: 0 | AM187: 0 | AN187: 1 | AO187: 0 | AP187: 0 | AQ187: 0 | AR187: 0 | AS187: 0 | AT187: 0 | AU187: 1 | AV187: 0 | AW187: 0 | AX187: 0 | AY187: 0 | AZ187: 0 | BA187: 0 | BB187: 0 | BC187: 0 | BD187: 0 | BE187: 0 | BF187: 0 | BG187: 0 | BH187: 0 | BJ187: 0 | BK187: 0 | BL187: 0 | BM187: 0 | BN187: 0 | BO187: 0
U188: 0 | V188: 0 | W188: 0 | Z188: 0 | AA188: 0 | AB188: 0 | AC188: 0 | AD188: 0 | AF188: 0 | AG188: January | AJ188: 0 | AM188: 0 | AN188: 1 | AO188: 0 | AP188: 0 | AQ188: 0 | AR188: 0 | AS188: 0 | AT188: 0 | AU188: 1 | AV188: 0 | AW188: 0 | AX188: 0 | AY188: 0 | AZ188: 0 | BA188: 0 | BB188: 0 | BC188: 0 | BD188: 0 | BE188: 0 | BF188: 0 | BG188: 0 | BH188: 0 | BJ188: 0 | BK188: 0 | BL188: 0 | BM188: 0 | BN188: 0 | BO188: 0
U189: 0 | V189: 0 | W189: 0 | Z189: 0 | AA189: 0 | AB189: 0 | AC189: 0 | AD189: 0 | AF189: 0 | AG189: January | AJ189: 0 | AM189: 0 | AN189: 1 | AO189: 0 | AP189: 0 | AQ189: 0 | AR189: 0 | AS189: 0 | AT189: 0 | AU189: 1 | AV189: 0 | AW189: 0 | AX189: 0 | AY189: 0 | AZ189: 0 | BA189: 0 | BB189: 0 | BC189: 0 | BD189: 0 | BE189: 0 | BF189: 0 | BG189: 0 | BH189: 0 | BJ189: 0 | BK189: 0 | BL189: 0 | BM189: 0 | BN189: 0 | BO189: 0
U190: 0 | V190: 0 | W190: 0 | Z190: 0 | AA190: 0 | AB190: 0 | AC190: 0 | AD190: 0 | AF190: 0 | AG190: January | AJ190: 0 | AM190: 0 | AN190: 1 | AO190: 0 | AP190: 0 | AQ190: 0 | AR190: 0 | AS190: 0 | AT190: 0 | AU190: 1 | AV190: 0 | AW190: 0 | AX190: 0 | AY190: 0 | AZ190: 0 | BA190: 0 | BB190: 0 | BC190: 0 | BD190: 0 | BE190: 0 | BF190: 0 | BG190: 0 | BH190: 0 | BJ190: 0 | BK190: 0 | BL190: 0 | BM190: 0 | BN190: 0 | BO190: 0
U191: 0 | V191: 0 | W191: 0 | BN191: 0
U192: 0 | V192: 0 | W192: 0 | BN192: 0
U193: 0 | V193: 0 | W193: 0 | BN193: 0
U194: 0 | V194: 0 | W194: 0 | BN194: 0
U195: 0 | V195: 0 | W195: 0 | BN195: 0
U196: 0 | V196: 0 | W196: 0 | BN196: 0
U197: 0 | V197: 0 | W197: 0 | BN197: 0
U198: 0 | V198: 0 | W198: 0 | BN198: 0
U199: 0 | V199: 0 | W199: 0 | BN199: 0
BN200: 0
... 53 more rows

Sheet VF (hidden)
U2: Use for Calculating your Monthly PVC Goals
U4: Product / PVC | W4: Quantity | X4: Total PVC
U5: Trio | V5: 42.5 | W5: 3 | X5: =SUM(V5*W5) -> 127.5
U6: Shake | V6: 16 | W6: 3 | X6: =SUM(V6*W6) -> 48
U7: TG | V7: 55 | W7: 3 | X7: 165
U8: O/G | V8: 25.63 | W8: 3 | X8: 76.89
U9: Enter | V9: 0 | W9: 0 | X9: 0
U10: Other | V10: 0 | W10: 0 | X10: 0
U11: Total New Projected PVC | X11: =SUM(X5:X10) -> 417.39
B14: A | C14: Example Trio Cust's in Col 6 | E14: PVC/$ | F14: # Cust | G14: Col 6 PVC | I14: To Calculate Commission: Enter Rate & Col 6 PVC | M14: Retail Profit | P14: Income from 6-4-5 Example | U14: Retail Profit is paid right away on New Orders | Y14: Total
B15: Monthly Trio = 169.5 / 4 Mo Instm't | E15: 42.375 | F15: 40 | G15: =SUM(E15*F15) -> 1695 | I15: % Rate | K15: Enter Col 6 PVC | L15: Commission | M15: Residual | N15: New Orders | P15: A | Q15: B-1 | R15: B-2 | S15: Total | U15: Product | W15: New Orders | X15: SubTotal | Y15: =SUM(X16:X17) -> 156
B16: Monthly Retail Profit ($39 /4) | E16: 9.75 | F16: 40 | G16: =SUM(E16*F16) -> 390 | P16: Col 6 Inc | Q16: Income | R16: Income | S16: Income | U16: Trio | V16: 39 | W16: 4 | X16: =SUM(V16*W16) -> 156
B17: Experiment with (6-4-5) Income to right | H17:  | I17: SC | J17: 0.22 | L17: =SUM(J17*K17) -> 0 | O17: = | P17: =SUM(L17+M17+N17) -> 0 | Q17: =G58 -> 0 | R17: =N58 -> 0 | S17: =SUM(P17:R17) -> 0 | U17: Shake | V17: 16 | X17: =SUM(V17*W17) -> 0
B21: B-1 | C21: Dist | D21: Your Lev 1 DLR or DD's & any DLR or DD's below them | I21: B-2 | J21: VF | K21: Track Col 4 of Your Level 1 VF's & any VF's below them | P21: Your Monthly Plan | R21: Must enter numbers to auto calculate total | U21: List Level, Name, Col 5 PVC of all SC & above | AA21: Income Earned on your Team's Col 5 | AE21: List all VF & Above with 1,000 or moe in Col 4
B22: Lev | C22: Title | D22: Your DLR & DD's Names | E22: End Mo Col 6 | F22: New PVC | G22: Total Dist Col 6 PVC | I22: Lev | J22: Title | K22: Your VF's Names | L22: End Mo Col 4 | M22: New PVC | N22: Total VF Col 4 PVC | P22: Your 6-4-5 | Q22: End Mo PVC | R22: New PVC | S22: Total PVC | U22: Lev | V22: Title | W22: Name of SC or Above | X22: End Mo Col 5 PVC | Y22: New Col 5 PVC | Z22: Total Col 5 PVC | AA22: Bonus % | AB22: PB & POB Income | AE22: Lev | AF22: Title | AG22: Name | AH22: End Mo Col 4 | AI22: New PVC | AJ22: Total Col 4 | AK22: Clubs
G23: =IF(F23<>"",E23+F23,"") ->  | N23: =IF(M23<>"",L23+M23,"") ->  | P23: Your Col 6 | R23: 0 | S23: =IF(R23<>"",Q23+R23,"") -> 0 | Z23: =IF(Y23<>"",X23+Y23,"") ->  | AB23: =IF(Z23<>"",Z23*AA23,"") ->  | AJ23: =IF(AI23<>"",AH23+AI23,"") -> 
G24: =IF(F24<>"",E24+F24,"") ->  | N24: =IF(M24<>"",L24+M24,"") ->  | P24: Your Col 4 | Q24: =SUM(Q23+E57) -> 0 | R24: =F57 -> 0 | S24: =IF(R24<>"",Q24+R23+R24,"") -> 0 | AB24: =IF(Z24<>"",Z24*AA24,"") ->  | AJ24: =IF(AI24<>"",AH24+AI24,"") -> 
N25: =IF(M25<>"",L25+M25,"") ->  | P25: Your Col 5 | Q25: =SUM(Q24+L57) -> 0 | R25: =M57 -> 0 | S25: =IF(R25<>"",Q25+R23+R24+R25,"") -> 0
N26: =IF(M26<>"",L26+M26,"") ->  | P26: Pay in Full
P27: Your 6-4-5 | Q27: =SUM(Q25:Q26) -> 0 | R27: =SUM(R23:R26) -> 0 | S27: =SUM(Q27+R27) -> 0
P30: Use to Calculate your Monthly PVC Goals
G31: =IF(F31<>"",E31+F31,"") -> 
P32: Product | Q32: PVC | R32: Quantity | S32: Total PVC
P33: Trio | Q33: 42.5 | R33: 1 | S33: =SUM(Q33*R33) -> 42.5
P34: Shake | Q34: 16 | R34: 1 | S34: =SUM(Q34*R34) -> 16
P35: TG | Q35: 55 | R35: 0 | S35: 0
G36: =IF(F36<>"",E36+F36,"") ->  | P36: O/G | Q36: 25.63 | R36: 0 | S36: 0
P37: Enter Other | Q37: 0 | R37: 0 | S37: 0
P38: Enter Other | Q38: 0 | R38: 0 | S38: 0
P39: Total New Projected PVC | S39: =SUM(S33:S38) -> 58.5
P42: Tracking Stucture & Club Levels
P44: Bus Growth | Q44: Last Month | R44: New | S44: Category
P45: by Category | Q45: 12 Mo Report | R45: This Month | S45: Total
P46: Club Level | Q46: 0 | R46: 0 | S46: =IF(R46<>"",Q46+R46,"") -> 0
P47: # PB Legs | Q47: 0 | R47: 0 | S47: =IF(R47<>"",Q47+R47,"") -> 0
P48: # POB Legs | Q48: 0 | R48: 0 | S48: 0
P49: Payline PVC | Q49: 0 | R49: 0 | S49: 0
P54: Team Totals | Q54: Last Mo | R54: New PVC | S54: Total PVC | U54: Column Totals from SC and Above | X54: =SUM(X23:X53) -> 0 | Y54: =SUM(Y23:Y53) -> 0 | Z54: =SUM(Z23:Z53) -> 0 | AA54: Team | AB54: =SUM(AB23:AB53) -> 0
W55: Your 6-4-5 Commission Income | AA55: You | AB55: =SUM(L17+Q17+R17) -> 0
P56: Your 6-4-5 | Q56: =Q27 -> 0 | R56: =R27 -> 0 | S56: =SUM(S27) -> 0 | X56: Total Commission Income | AA56: Com | AB56: =SUM(AB54:AB55) -> 0
D57: Total PVC from your DLR's & DD's | E57: =SUM(E23:E56) -> 0 | F57: =SUM(F23:F56) -> 0 | G57: =SUM(G23:G56) -> 0 | K57: Total PVC from your VF's | L57: =SUM(L23:L56) -> 0 | M57: =SUM(M23:M56) -> 0 | N57: =SUM(N23:N56) -> 0 | P57: SC  Col 5 | Q57: =X54 -> 0 | R57: =Y54 -> 0 | S57: =Z54 -> 0 | X57: Business Incentive Bonus | AB57: =SUM(AB56*AA57) -> 0 | AE57: Planning Col 4 Club Levels | AH57: =SUM(AH23:AH56) -> 0 | AI57: =SUM(AI23:AI56) -> 0 | AJ57: =SUM(AJ23:AJ56) -> 0
B58: Goal | C58: 1600 | D58: $ 1,600 x 21% = $336 | E58: Rate | F58: 0.21 | G58: =SUM(G57 *F58) -> 0 | I58: Goal | J58: 3200 | K58: $ 3,200 x 13% = $416 | L58: Rate | M58: 0.13 | N58: =SUM(N57 *M58) -> 0 | P58: Team Total | Q58: =SUM(Q27+Q57) -> 0 | R58: =SUM(R27+R57) -> 0 | S58: =SUM(Q58+R58) -> 0 | W58: Retail Profit Only: Consider Residual & New Orders | AA58: RSP | AB58: =SUM(M17:N17) -> 0 | AE58: Goal | AJ58: Clubs | AK58: =SUM(AK23:AK57) -> 0
W59: Estimate of Combined Income: Your 6-4-5 , PB, POB & BIB | AA59: Total | AB59: =SUM(AB56:AB58) -> 0
AB60: =SUM(AB59*12) -> 0 | AC60: Annual
Z61: Remember to Add any Suppliment Bonus Checks, TBB's + Yr End Bonus | AB61: =IF(AA61<>"",AB60+AA61,"") ->  | AC61: Total
C62: Current Month 6-4-5
B63: B-3 | D63: Team Income Estimator | E63: Your Col 6 | F63: Your Col 4 | G63: Your Col 5 | H63: Income | K63: Comments or Goals
B64: Your 6-4-5 Data | D64: Your 6-4-5 | E64: 1600 | F64: 3200 | G64: 6400
D65: Your 6-4-5 Income | E65: 750 | F65: 336 | G65: 416 | I65: =SUM(E65:G65) -> 1502
B66: Lev | C66: Title | D66: SC & Above Name | E66: Current Col 5 | F66: New PVC | G66: Total Col 5 | H66: Rate | I66: Income | K66: Comments & Next Steps
B67: 1 | C67: SC | D67: Level 1 ( 1st SC in Leg) | E67: 6400 | G67: =SUM(E67+F67) -> 6400 | H67: 0.09 | I67: =IF(H67<>"",G67*H67,"") -> 576
B68: 2 | C68: SC | D68: Level 1 | E68: =E67 -> 6400 | G68: =SUM(E68+F68) -> 6400 | H68: 0.09 | I68: =IF(H68<>"",G68*H68,"") -> 576
B69: 3 | C69: SC | D69: Level 1 | E69: =E68 -> 6400 | G69: 6400 | H69: 0.09 | I69: 576
B70: 4 | C70: SC | D70: Level 1 | E70: 6400 | G70: 6400 | H70: 0.09 | I70: 576
B71: 5 | C71: SC | D71: Level 1 | E71: 6400 | G71: 6400 | H71: 0.09 | I71: 576
B72: SC under another another POB SC
B73: 6 | C73: SC | D73: Level 2 - 5 | E73: =E71 -> 6400 | G73: 6400 | H73: 0.05 | I73: 320
B74: 7 | C74: SC | D74: Level 2 - 5 | E74: 6400 | G74: 6400 | H74: 0.05 | I74: 320
B75: 8 | C75: SC | D75: Level 2 - 5 | E75: 6400 | G75: 6400 | H75: 0.05 | I75: 320
B76: 9 | C76: SC | D76: Level 2 - 5 | E76: 6400 | G76: 6400 | H76: 0.05 | I76: 320
B77: 10 | C77: SC | D77: Level 2 - 5 | E77: 6400 | G77: 6400 | H77: 0.05 | I77: 320
B78: 11 | C78: SC | D78: Level 2 - 5 | E78: 6400 | G78: 6400 | H78: 0.05 | I78: 320
B79: 12 | C79: SC | D79: Level 2 - 5 | E79: 6400 | G79: 6400 | H79: 0.05 | I79: 320
B80: 13 | C80: SC | D80: Level 2 - 5 | E80: 6400 | G80: 6400 | H80: 0.05 | I80: 320
B81: 14 | C81: SC | D81: Level 2 - 6 | E81: 6400 | G81: 6400 | H81: 0.05 | I81: 320
B82: 15 | C82: SC | D82: Level 2 - 7 | E82: 6400 | G82: 6400 | H82: 0.05 | I82: 320
I83: =IF(H83<>"",G83*H83,"") -> 
I84: =IF(H84<>"",G84*H84,"") -> 
I107: =IF(H107<>"",G107*H107,"") -> 
G115: Subtotal before BIB is added if you qualify for that Bonus | I115: =SUM(I67:J114) -> 6080
G116: Subtract your Retail Profit for subtotal to calculate BIB | I116: -320
I117: =SUM(I115:I116) -> 5760
G118: Enter Your BIB Rate | H118: 0.2 | I118: =SUM(I117*H118) -> 1152
F119: Your Col 6 | G119: =G64 -> 6400
D120: This is an approximate estimate of Income | G120: =SUM(G67:G119) -> 102400 | H120: Aprx | I120: =SUM(I117:I119) -> 6912
B126: Timeline | D126: Plan to Sales Coordinator | F126: Bonus | G126: Column | H126: Line Totals | L126: Position of SC in Team | Q126: Inc | R126: (6-4-5) SC | S126: Income | T126: Annual
A127: 1st 30-60 Days | D127: HLP & 2000+ | F127: 350 | G127: Col 6 | H127: 750 | L127: Your | M127: (6-4-5) SC Position (rounded) | Q127: 750 | R127: 750 | S127: 1500
A128: Months | C128: 2 to 6 | D128: Sales Coordinator | F128: 500 | G128: Col 4 | H128: 353 | L128: # of | M128: (6-4-5) SC Legs (structure wide) | Q128: 575 | R128: 5 | S128: =SUM(Q128*R128) -> 2875
D129: 3 (2000+) Sponsor Bonuses | F129: 750 | G129: Col 5 | H129: 441 | L129: # of | M129: (6-4-5) SC's (under other SC's) | Q129: 320 | R129: 7 | S129: =SUM(Q129*R129) -> 2240
A130: Total | D130: (6 - 4- 5) Sales Coordinator | F130: =SUM(F127:F129) -> 1600 | G130: =SUM(H127:H129) -> 1544 | H130: =SUM(F130:G130) -> 3144 | L130: Club Level & Mo Residual Inc | R130: =SUM(R128:R129) -> 12 | S130: =SUM(S127:S129) -> 6615
P131: BIB on Commissions | Q131: 0.2 | R131: =SUM(S130-390) -> 6225 | S131: =SUM(R131*Q131) -> 1245
A132: Months 6-12 | D132: Sr Sales Coordinator | F132: 1000 | G132: Payline | H132: 8000 | N132: Example of a New NMD 12 Club | S132: =SUM(S130:S131) -> 7860 | T132: =SUM(S132*12) -> 94320
B134: Years | C134: 1 to 3 | D134: SC Legs - Direct to You | H134: Income | L134: Yrs | M134: 1 to 3 | N134: SC Legs - under SCs | Q134: Inc | R134: Club Level | S134: Income
D135: Duplicate 6-4-5 SC's | F135: 1 Leg | G135: Level 1 SC | H135: 575 | L135: Ex | M135: Leg 1 | N135: 1 Club (Example) | Q135: 320 | R135: 1 | S135: =SUM(Q135*R135) -> 320
D136: Duplicate 6-4-5 SC's | F136: 2 Leg | G136: Level 1 SC | H136: 575 | L136: Ex | M136: Leg 2 | N136: 3 Club (Example) | Q136: 320 | R136: 3 | S136: =SUM(Q136*R136) -> 960
D137: Duplicate 6-4-5 SC's | F137: 3 Leg | G137: Level 1 SC | H137: 575 | L137: Ex | M137: Leg 3 | N137: 6 Club (Example) | Q137: 320 | R137: 6 | S137: =SUM(Q137*R137) -> 1920
D138: Duplicate 6-4-5 SC's | F138: 4 Leg | G138: Level 1 SC | H138: 575 | L138: Ex | M138: Leg 4 | N138: 12 Club (Example) | Q138: 320 | R138: 12 | S138: =SUM(Q138*R138) -> 3840
D139: Duplicate 6-4-5 SC's | F139: 5 Leg | G139: Level 1 SC | H139: 575 | L139: Ex | M139: Leg 5 | N139: 24 Club (Example) | Q139: 320 | R139: 24 | S139: =SUM(Q139*R139) -> 7680
B140: You and 5 6 -4-5 Sales Coordinator Legs | G140: Mo Residual Inc | H140: =SUM(G130+H135+H136+H137+H138+H139-390) -> 4029 | P140: Mo Residual Income | R140: =SUM(R135:R139) -> 46 | S140: =SUM(S135:S139) -> 14720
D141: BIB on Commissions | F141: 0.2 | G141: =SUM(H140-390) -> 3639 | H141: =SUM(G141*F141) -> 727.8 | P141: BIB on Commissions | Q141: 0.2 | R141: =S140 -> 14720 | S141: =SUM(R141*Q141) -> 2944
H142: =SUM(H140:H141) -> 4756.8 | S142: =SUM(S140:S141) -> 17664

Sheet VF Sample (hidden)
U2: Use for Calculating your Monthly PVC Goals
U4: Product / PVC | W4: Quantity | X4: Total PVC
U5: Trio | V5: 42.5 | W5: 3 | X5: =SUM(V5*W5) -> 127.5
U6: Shake | V6: 16 | W6: 3 | X6: =SUM(V6*W6) -> 48
U7: TG | V7: 55 | W7: 3 | X7: 165
U8: O/G | V8: 25.63 | W8: 3 | X8: 76.89
U9: Enter | V9: 0 | W9: 0 | X9: 0
U10: Other | V10: 0 | W10: 0 | X10: 0
U11: Total New Projected PVC | X11: =SUM(X5:X10) -> 417.39
B14: A | C14: Example Trio Cust's in Col 6 | E14: PVC/$ | F14: # Cust | G14: Col 6 PVC | I14: To Calculate Commission: Enter Rate & Col 6 PVC | M14: Retail Profit | P14: Income from 6-4-5 Example | U14: Retail Profit is paid right away on New Orders | Y14: Total
B15: Monthly Trio = 169.5 / 4 Mo Instm't | E15: 42.375 | F15: 40 | G15: =SUM(E15*F15) -> 1695 | I15: % Rate | K15: Enter Col 6 PVC | L15: Commission | M15: Residual | N15: New Orders | P15: A | Q15: B-1 | R15: B-2 | S15: Total | U15: Product | W15: New Orders | X15: SubTotal | Y15: =SUM(X16:X17) -> 195
B16: Monthly Retail Profit ($39 /4) | E16: 9.75 | F16: 40 | G16: =SUM(E16*F16) -> 390 | P16: Col 6 Inc | Q16: Income | R16: Income | S16: Income | U16: Trio | V16: 39 | W16: 5 | X16: =SUM(V16*W16) -> 195
B17: Experiment with (6-4-5) Income to right | H17:  | I17: SC | J17: 0.22 | K17: 1695 | L17: =SUM(J17*K17) -> 372.9 | M17: 390 | O17: = | P17: =SUM(L17+M17+N17) -> 762.9 | Q17: =G58 -> 357 | R17: =N58 -> 417.69 | S17: =SUM(P17:R17) -> 1537.59 | U17: Shake | V17: 16 | X17: =SUM(V17*W17) -> 0
B21: B-1 | C21: Dist | D21: Your Lev 1 DLR or DD's & any DLR or DD's below them | I21: B-2 | J21: VF | K21: Track Col 4 of Your Level 1 VF's & any VF's below them | P21: Your Monthly Plan | R21: Must enter numbers to auto calculate total | U21: List Level, Name, Col 5 PVC of all SC & above | AA21: Income Earned on your Team's Col 5 | AE21: List all VF & Above with 1,000 or moe in Col 4
B22: Lev | C22: Title | D22: Your DLR & DD's Names | E22: End Mo Col 6 | F22: New PVC | G22: Total Dist Col 6 PVC | I22: Lev | J22: Title | K22: Your VF's Names | L22: End Mo Col 4 | M22: New PVC | N22: Total VF Col 4 PVC | P22: Your 6-4-5 | Q22: End Mo PVC | R22: New PVC | S22: Total PVC | U22: Lev | V22: Title | W22: Name of SC or Above | X22: End Mo Col 5 PVC | Y22: New Col 5 PVC | Z22: Total Col 5 PVC | AA22: Bonus % | AB22: PB & POB Income | AE22: Lev | AF22: Title | AG22: Name | AH22: End Mo Col 4 | AI22: New PVC | AJ22: Total Col 4 | AK22: Clubs
B23: 1 | C23: DD | D23: Rep 1 (4 Trios) | E23: 170 | F23: 0 | G23: =IF(F23<>"",E23+F23,"") -> 170 | I23: 1 | J23: VF | K23: Rep 1 24 Trios | L23: 500 | M23: 500 | N23: =IF(M23<>"",L23+M23,"") -> 1000 | P23: Your Col 6 | Q23: 1695 | R23: 0 | S23: =IF(R23<>"",Q23+R23,"") -> 1695 | Z23: =IF(Y23<>"",X23+Y23,"") ->  | AA23: 0.09 | AB23: =IF(Z23<>"",Z23*AA23,"") ->  | AJ23: =IF(AI23<>"",AH23+AI23,"") -> 
B24: 1 | C24: DD | D24: Rep 2 | E24: 170 | F24: 0 | G24: =IF(F24<>"",E24+F24,"") -> 170 | I24: 1 | J24: VF | K24: Rep 2 | L24: 500 | M24: 500 | N24: =IF(M24<>"",L24+M24,"") -> 1000 | P24: Your Col 4 | Q24: =SUM(Q23+E57) -> 3395 | R24: =F57 -> 0 | S24: =IF(R24<>"",Q24+R23+R24,"") -> 3395 | AB24: =IF(Z24<>"",Z24*AA24,"") ->  | AJ24: =IF(AI24<>"",AH24+AI24,"") -> 
B25: 1 | C25: DD | D25: Rep 3 | E25: 170 | F25: 0 | G25: 170 | I25: 1 | J25: VF | K25: Rep 3 12 Trios | L25: 500 | M25: 0 | N25: =IF(M25<>"",L25+M25,"") -> 500 | P25: Your Col 5 | Q25: =SUM(Q24+L57) -> 5608 | R25: =M57 -> 1000 | S25: =IF(R25<>"",Q25+R23+R24+R25,"") -> 6608
B26: 1 | C26: DD | D26: Rep 4 | E26: 170 | F26: 0 | G26: 170 | I26: 1 | J26: VF | K26: Rep 4 | L26: 500 | M26: 0 | N26: =IF(M26<>"",L26+M26,"") -> 500 | P26: Pay in Full
B27: 1 | C27: DD | D27: Rep 4 | E27: 170 | F27: 0 | G27: 170 | I27: 1 | J27: VF | K27: Rep 5 5 Trios | L27: 213 | M27: 0 | N27: 213 | P27: Your 6-4-5 | Q27: =SUM(Q25:Q26) -> 5608 | R27: =SUM(R23:R26) -> 1000 | S27: =SUM(Q27+R27) -> 6608
B28: 1 | C28: DD | D28: Rep 5 | E28: 170 | F28: 0 | G28: 170
D29: Rep 7
D30: Rep 8 | P30: Use to Calculate your Monthly PVC Goals
D31: Rep 9 | G31: =IF(F31<>"",E31+F31,"") -> 
D32: Rep 10 | P32: Product | Q32: PVC | R32: Quantity | S32: Total PVC
D33: Rep 11 | P33: Trio | Q33: 42.5 | R33: 1 | S33: =SUM(Q33*R33) -> 42.5
D34: Rep 12 | P34: Shake | Q34: 16 | R34: 1 | S34: =SUM(Q34*R34) -> 16
D35: Rep 13 | P35: TG | Q35: 55 | R35: 0 | S35: 0
D36: Rep 14 | G36: =IF(F36<>"",E36+F36,"") ->  | P36: O/G | Q36: 25.63 | R36: 0 | S36: 0
D37: Rep 15 | P37: Enter Other | Q37: 0 | R37: 0 | S37: 0
D38: Rep 16 | P38: Enter Other | Q38: 0 | R38: 0 | S38: 0
D39: Rep 17 | P39: Total New Projected PVC | S39: =SUM(S33:S38) -> 58.5
D40: Rep 18
D41: Rep 19
D42: Rep 20 | P42: Tracking Stucture & Club Levels
D43: Rep 21
D44: Rep 22 | P44: Bus Growth | Q44: Last Month | R44: New | S44: Category
D45: Rep 23 | P45: by Category | Q45: 12 Mo Report | R45: This Month | S45: Total
D46: Rep 24 | P46: Club Level | Q46: 0 | R46: 0 | S46: =IF(R46<>"",Q46+R46,"") -> 0
D47: Rep 25 | P47: # PB Legs | Q47: 0 | R47: 0 | S47: =IF(R47<>"",Q47+R47,"") -> 0
D48: Rep 26 | P48: # POB Legs | Q48: 0 | R48: 0 | S48: 0
D49: Rep 27 | P49: Payline PVC | Q49: 0 | R49: 0 | S49: 0
D50: Rep 28
D51: Rep 29
D52: Rep 30
B53: 1 | C53: DD | D53: Rep 6 | E53: 170 | F53: 0 | G53: 170
B54: 1 | C54: DD | D54: Rep 7 | E54: 170 | F54: 0 | G54: 170 | P54: Team Totals | Q54: Last Mo | R54: New PVC | S54: Total PVC | U54: Column Totals from SC and Above | X54: =SUM(X23:X53) -> 0 | Y54: =SUM(Y23:Y53) -> 0 | Z54: =SUM(Z23:Z53) -> 0 | AA54: Team | AB54: =SUM(AB23:AB53) -> 0
B55: 1 | C55: DD | D55: Rep 8 | E55: 170 | F55: 0 | G55: 170 | W55: Your 6-4-5 Commission Income | AA55: You | AB55: =SUM(L17+Q17+R17) -> 1147.59
B56: 1 | C56: DD | D56: Rep 9 | E56: 170 | F56: 0 | G56: 170 | P56: Your 6-4-5 | Q56: =Q27 -> 5608 | R56: =R27 -> 1000 | S56: =SUM(S27) -> 6608 | X56: Total Commission Income | AA56: Com | AB56: =SUM(AA54:AB55) -> 1147.59
D57: Total PVC from your DLR's & DD's | E57: =SUM(E23:E56) -> 1700 | F57: =SUM(F23:F56) -> 0 | G57: =SUM(G23:G56) -> 1700 | K57: Total PVC from your VF's | L57: =SUM(L23:L56) -> 2213 | M57: =SUM(M23:M56) -> 1000 | N57: =SUM(N23:N56) -> 3213 | P57: SC  Col 5 | Q57: =X54 -> 0 | R57: =Y54 -> 0 | S57: =Z54 -> 0 | X57: Business Incentive Bonus | AB57: =SUM(AB56*AA57) -> 0 | AE57: Planning Col 4 Club Levels | AH57: =SUM(AH23:AH56) -> 0 | AI57: =SUM(AI23:AI56) -> 0 | AJ57: =SUM(AJ23:AJ56) -> 0
B58: Goal | C58: 1600 | D58: $ 1,600 x 21% = $336 | E58: Rate | F58: 0.21 | G58: =SUM(G57 *F58) -> 357 | I58: Goal | J58: 3200 | K58: $ 3,200 x 13% = $416 | L58: Rate | M58: 0.13 | N58: =SUM(N57 *M58) -> 417.69 | P58: Team Total | Q58: =SUM(Q27+Q57) -> 5608 | R58: =SUM(R27+R57) -> 1000 | S58: =SUM(Q58+R58) -> 6608 | W58: Retail Profit Only: Consider Residual & New Orders | AA58: RSP | AB58: =SUM(M17:N17) -> 390 | AE58: Goal | AJ58: Clubs | AK58: =SUM(AK23:AK57) -> 0
W59: Estimate of Combined Income: Your 6-4-5 , PB, POB & BIB | AA59: Total | AB59: =SUM(AB56:AB58) -> 1537.59
AB60: =SUM(AB59*12) -> 18451.08 | AC60: Annual
Z61: Remember to Add any Suppliment Bonus Checks, TBB's + Yr End Bonus | AB61: =IF(AA61<>"",AB60+AA61,"") ->  | AC61: Total
C62: Current Month 6-4-5
B63: B-3 | D63: Team Income Estimator | E63: Your Col 6 | F63: Your Col 4 | G63: Your Col 5 | H63: Income | K63: Comments or Goals
B64: Your 6-4-5 Data | D64: Your 6-4-5 | E64: 1600 | F64: 3200 | G64: 6400
D65: Your 6-4-5 Income | E65: 750 | F65: 336 | G65: 416 | I65: =SUM(E65:G65) -> 1502
B66: Lev | C66: Title | D66: SC & Above Name | E66: Current Col 5 | F66: New PVC | G66: Total Col 5 | H66: Rate | I66: Income | K66: Comments & Next Steps
B67: 1 | C67: SC | D67: Level 1 ( 1st SC in Leg) | E67: 6400 | G67: =SUM(E67+F67) -> 6400 | H67: 0.09 | I67: =IF(H67<>"",G67*H67,"") -> 576
B68: 2 | C68: SC | D68: Level 1 | E68: =E67 -> 6400 | G68: =SUM(E68+F68) -> 6400 | H68: 0.09 | I68: =IF(H68<>"",G68*H68,"") -> 576
B69: 3 | C69: SC | D69: Level 1 | E69: =E68 -> 6400 | G69: 6400 | H69: 0.09 | I69: 576
B70: 4 | C70: SC | D70: Level 1 | E70: 6400 | G70: 6400 | H70: 0.09 | I70: 576
B71: 5 | C71: SC | D71: Level 1 | E71: 6400 | G71: 6400 | H71: 0.09 | I71: 576
B72: SC under another another POB SC
B73: 6 | C73: SC | D73: Level 2 - 5 | E73: =E71 -> 6400 | G73: 6400 | H73: 0.05 | I73: 320
B74: 7 | C74: SC | D74: Level 2 - 5 | E74: 6400 | G74: 6400 | H74: 0.05 | I74: 320
B75: 8 | C75: SC | D75: Level 2 - 5 | E75: 6400 | G75: 6400 | H75: 0.05 | I75: 320
B76: 9 | C76: SC | D76: Level 2 - 5 | E76: 6400 | G76: 6400 | H76: 0.05 | I76: 320
B77: 10 | C77: SC | D77: Level 2 - 5 | E77: 6400 | G77: 6400 | H77: 0.05 | I77: 320
B78: 11 | C78: SC | D78: Level 2 - 5 | E78: 6400 | G78: 6400 | H78: 0.05 | I78: 320
B79: 12 | C79: SC | D79: Level 2 - 5 | E79: 6400 | G79: 6400 | H79: 0.05 | I79: 320
B80: 13 | C80: SC | D80: Level 2 - 5 | E80: 6400 | G80: 6400 | H80: 0.05 | I80: 320
B81: 14 | C81: SC | D81: Level 2 - 6 | E81: 6400 | G81: 6400 | H81: 0.05 | I81: 320
B82: 15 | C82: SC | D82: Level 2 - 7 | E82: 6400 | G82: 6400 | H82: 0.05 | I82: 320
I83: =IF(H83<>"",G83*H83,"") -> 
I84: =IF(H84<>"",G84*H84,"") -> 
I107: =IF(H107<>"",G107*H107,"") -> 
G115: Subtotal before BIB is added if you qualify for that Bonus | I115: =SUM(I67:J114) -> 6080
G116: Subtract your Retail Profit for subtotal to calculate BIB | I116: -320
I117: =SUM(I115:I116) -> 5760
G118: Enter Your BIB Rate | H118: 0.2 | I118: =SUM(I117*H118) -> 1152
F119: Your Col 6 | G119: =G64 -> 6400
D120: This is an approximate estimate of Income | G120: =SUM(G67:G119) -> 102400 | H120: Aprx | I120: =SUM(I117:I119) -> 6912
B126: Timeline | D126: Plan to Sales Coordinator | F126: Bonus | G126: Column | H126: Line Totals | L126: Position of SC in Team | Q126: Inc | R126: (6-4-5) SC | S126: Income | T126: Annual
A127: 1st 30-60 Days | D127: HLP & 2000+ | F127: 350 | G127: Col 6 | H127: 750 | L127: Your | M127: (6-4-5) SC Position (rounded) | Q127: 750 | R127: 750 | S127: 1500
A128: Months | C128: 2 to 6 | D128: Sales Coordinator | F128: 500 | G128: Col 4 | H128: 353 | L128: # of | M128: (6-4-5) SC Legs (structure wide) | Q128: 575 | R128: 5 | S128: =SUM(Q128*R128) -> 2875
D129: 3 (2000+) Sponsor Bonuses | F129: 750 | G129: Col 5 | H129: 441 | L129: # of | M129: (6-4-5) SC's (under other SC's) | Q129: 320 | R129: 7 | S129: =SUM(Q129*R129) -> 2240
A130: Total | D130: (6 - 4- 5) Sales Coordinator | F130: =SUM(F127:F129) -> 1600 | G130: =SUM(H127:H129) -> 1544 | H130: =SUM(F130:G130) -> 3144 | L130: Club Level & Mo Residual Inc | R130: =SUM(R128:R129) -> 12 | S130: =SUM(S127:S129) -> 6615
P131: BIB on Commissions | Q131: 0.2 | R131: =SUM(S130-390) -> 6225 | S131: =SUM(R131*Q131) -> 1245
A132: Months 6-12 | D132: Sr Sales Coordinator | F132: 1000 | G132: Payline | H132: 8000 | N132: Example of a New NMD 12 Club | S132: =SUM(S130:S131) -> 7860 | T132: =SUM(S132*12) -> 94320
B134: Years | C134: 1 to 3 | D134: SC Legs - Direct to You | H134: Income | L134: Yrs | M134: 1 to 3 | N134: SC Legs - under SCs | Q134: Inc | R134: Club Level | S134: Income
D135: Duplicate 6-4-5 SC's | F135: 1 Leg | G135: Level 1 SC | H135: 575 | L135: Ex | M135: Leg 1 | N135: 1 Club (Example) | Q135: 320 | R135: 1 | S135: =SUM(Q135*R135) -> 320
D136: Duplicate 6-4-5 SC's | F136: 2 Leg | G136: Level 1 SC | H136: 575 | L136: Ex | M136: Leg 2 | N136: 3 Club (Example) | Q136: 320 | R136: 3 | S136: =SUM(Q136*R136) -> 960
D137: Duplicate 6-4-5 SC's | F137: 3 Leg | G137: Level 1 SC | H137: 575 | L137: Ex | M137: Leg 3 | N137: 6 Club (Example) | Q137: 320 | R137: 6 | S137: =SUM(Q137*R137) -> 1920
D138: Duplicate 6-4-5 SC's | F138: 4 Leg | G138: Level 1 SC | H138: 575 | L138: Ex | M138: Leg 4 | N138: 12 Club (Example) | Q138: 320 | R138: 12 | S138: =SUM(Q138*R138) -> 3840
D139: Duplicate 6-4-5 SC's | F139: 5 Leg | G139: Level 1 SC | H139: 575 | L139: Ex | M139: Leg 5 | N139: 24 Club (Example) | Q139: 320 | R139: 24 | S139: =SUM(Q139*R139) -> 7680
B140: You and 5 6 -4-5 Sales Coordinator Legs | G140: Mo Residual Inc | H140: =SUM(G130+H135+H136+H137+H138+H139-390) -> 4029 | P140: Mo Residual Income | R140: =SUM(R135:R139) -> 46 | S140: =SUM(S135:S139) -> 14720
D141: BIB on Commissions | F141: 0.2 | G141: =SUM(H140-390) -> 3639 | H141: =SUM(G141*F141) -> 727.8 | P141: BIB on Commissions | Q141: 0.2 | R141: =S140 -> 14720 | S141: =SUM(R141*Q141) -> 2944
H142: =SUM(H140:H141) -> 4756.8 | S142: =SUM(S140:S141) -> 17664

Sheet SC Blank (hidden)
U2: Use for Calculating your Monthly PVC Goals
U4: Product / PVC | W4: Quantity | X4: Total PVC
U5: Trio | V5: 42.5 | W5: 3 | X5: =SUM(V5*W5) -> 127.5
U6: Shake | V6: 16 | W6: 3 | X6: =SUM(V6*W6) -> 48
U7: TG | V7: 55 | W7: 3 | X7: 165
U8: O/G | V8: 25.63 | W8: 3 | X8: 76.89
U9: Enter | V9: 0 | W9: 0 | X9: 0
U10: Other | V10: 0 | W10: 0 | X10: 0
U11: Total New Projected PVC | X11: =SUM(X5:X10) -> 417.39
B14: A | C14: Example Trio Cust's in Col 6 | E14: PVC/$ | F14: # Cust | G14: Col 6 PVC | I14: To Calculate Commission: Enter Rate & Col 6 PVC | M14: Retail Profit | P14: Income from 6-4-5 Example | U14: Retail Profit is paid right away on New Orders | Y14: Total
B15: Monthly Trio = 169.5 / 4 Mo Instm't | E15: 42.375 | F15: 40 | G15: =SUM(E15*F15) -> 1695 | I15: % Rate | K15: Enter Col 6 PVC | L15: Commission | M15: Residual | N15: New Orders | P15: A | Q15: B-1 | R15: B-2 | S15: Total | U15: Product | W15: New Orders | X15: SubTotal | Y15: =SUM(X16:X17) -> 156
B16: Monthly Retail Profit ($39 /4) | E16: 9.75 | F16: 40 | G16: =SUM(E16*F16) -> 390 | P16: Col 6 Inc | Q16: Income | R16: Income | S16: Income | U16: Trio | V16: 39 | W16: 4 | X16: =SUM(V16*W16) -> 156
B17: Experiment with (6-4-5) Income to right | H17:  | I17: SC | J17: 0.22 | L17: =SUM(J17*K17) -> 0 | O17: = | P17: =SUM(L17+M17+N17) -> 0 | Q17: =G58 -> 0 | R17: =N58 -> 0 | S17: =SUM(P17:R17) -> 0 | U17: Shake | V17: 16 | X17: =SUM(V17*W17) -> 0
B21: B-1 | C21: Dist | D21: Your Lev 1 DLR or DD's & any DLR or DD's below them | I21: B-2 | J21: VF | K21: Track Col 4 of Your Level 1 VF's & any VF's below them | P21: Your Monthly Plan | R21: Must enter numbers to auto calculate total | U21: List Level, Name, Col 5 PVC of all SC & above | AA21: Income Earned on your Team's Col 5 | AE21: List all VF & Above with 1,000 or moe in Col 4
B22: Lev | C22: Title | D22: Your DLR & DD's Names | E22: End Mo Col 6 | F22: New PVC | G22: Total Dist Col 6 PVC | I22: Lev | J22: Title | K22: Your VF's Names | L22: End Mo Col 4 | M22: New PVC | N22: Total VF Col 4 PVC | P22: Your 6-4-5 | Q22: End Mo PVC | R22: New PVC | S22: Total PVC | U22: Lev | V22: Title | W22: Name of SC or Above | X22: End Mo Col 5 PVC | Y22: New Col 5 PVC | Z22: Total Col 5 PVC | AA22: Bonus % | AB22: PB & POB Income | AE22: Lev | AF22: Title | AG22: Name | AH22: End Mo Col 4 | AI22: New PVC | AJ22: Total Col 4 | AK22: Clubs
G23: =IF(F23<>"",E23+F23,"") ->  | N23: =IF(M23<>"",L23+M23,"") ->  | P23: Your Col 6 | S23: =IF(R23<>"",Q23+R23,"") ->  | Z23: =IF(Y23<>"",X23+Y23,"") ->  | AA23: 0.09 | AB23: =IF(Z23<>"",Z23*AA23,"") ->  | AJ23: =IF(AI23<>"",AH23+AI23,"") -> 
P24: Your Col 4 | Q24: =SUM(Q23+E57) -> 0 | R24: =F57 -> 0 | S24: =IF(R24<>"",Q24+R23+R24,"") -> 0 | AB24: =IF(Z24<>"",Z24*AA24,"") ->  | AJ24: =IF(AI24<>"",AH24+AI24,"") -> 
P25: Your Col 5 | Q25: =SUM(Q24+L57) -> 0 | R25: =M57 -> 0 | S25: =IF(R25<>"",Q25+R23+R24+R25,"") -> 0
P26: Pay in Full
P27: Your 6-4-5 | Q27: =SUM(Q25:Q26) -> 0 | R27: =SUM(R23:R26) -> 0 | S27: =SUM(Q27+R27) -> 0
N29: =IF(M29<>"",L29+M29,"") -> 
P30: Use to Calculate your Monthly PVC Goals
P32: Product | Q32: PVC | R32: Quantity | S32: Total PVC
P33: Trio | Q33: 42.5 | R33: 1 | S33: =SUM(Q33*R33) -> 42.5
P34: Shake | Q34: 16 | R34: 1 | S34: =SUM(Q34*R34) -> 16
P35: TG | Q35: 55 | R35: 0 | S35: 0
P36: O/G | Q36: 25.63 | R36: 0 | S36: 0
P37: Enter Other | Q37: 0 | R37: 0 | S37: 0
G38: =IF(F38<>"",E38+F38,"") ->  | P38: Enter Other | Q38: 0 | R38: 0 | S38: 0
P39: Total New Projected PVC | S39: =SUM(S33:S38) -> 58.5
P42: Tracking Stucture & Club Levels
P44: Bus Growth | Q44: Last Month | R44: New | S44: Category
P45: by Category | Q45: 12 Mo Report | R45: This Month | S45: Total
P46: Club Level | Q46: 0 | R46: 0 | S46: =IF(R46<>"",Q46+R46,"") -> 0
P47: # PB Legs | Q47: 0 | R47: 0 | S47: =IF(R47<>"",Q47+R47,"") -> 0
P48: # POB Legs | Q48: 0 | R48: 0 | S48: 0
P49: Payline PVC | Q49: 0 | R49: 0 | S49: 0
P54: Team Totals | Q54: Last Mo | R54: New PVC | S54: Total PVC | U54: Column Totals from SC and Above | X54: =SUM(X23:X53) -> 0 | Y54: =SUM(Y23:Y53) -> 0 | Z54: =SUM(Z23:Z53) -> 0 | AA54: Team | AB54: =SUM(AB23:AB53) -> 0
W55: Your 6-4-5 Commission Income | AA55: You | AB55: =SUM(L17+Q17+R17) -> 0
P56: Your 6-4-5 | Q56: =Q27 -> 0 | R56: =R27 -> 0 | S56: =SUM(S27) -> 0 | X56: Total Commission Income | AA56: Com | AB56: =SUM(AB54:AB55) -> 0
D57: Total PVC from your DLR's & DD's | E57: =SUM(E23:E56) -> 0 | F57: =SUM(F23:F56) -> 0 | G57: =SUM(G23:G56) -> 0 | K57: Total PVC from your VF's | L57: =SUM(L23:L56) -> 0 | M57: =SUM(M23:M56) -> 0 | N57: =SUM(N23:N56) -> 0 | P57: SC  Col 5 | Q57: =X54 -> 0 | R57: =Y54 -> 0 | S57: =SUM(Q57+R57) -> 0 | X57: Business Incentive Bonus | AA57: 0.2 | AB57: =SUM(AB56*AA57) -> 0 | AE57: Planning Col 4 Club Levels | AH57: =SUM(AH23:AH56) -> 0 | AI57: =SUM(AI23:AI56) -> 0 | AJ57: =SUM(AJ23:AJ56) -> 0
B58: Goal | C58: 1600 | D58: $ 1,600 x 21% = $336 | E58: Rate | F58: 0.21 | G58: =SUM(G57 *F58) -> 0 | I58: Goal | J58: 3200 | K58: $ 3,200 x 13% = $416 | L58: Rate | M58: 0.13 | N58: =SUM(N57 *M58) -> 0 | P58: Team Total | Q58: =SUM(Q27+Q57) -> 0 | R58: =SUM(R27+R57) -> 0 | S58: =SUM(Q58+R58) -> 0 | W58: Retail Profit Only: Consider Residual & New Orders | AA58: RSP | AB58: =SUM(M17:N17) -> 0 | AE58: Goal | AJ58: Clubs | AK58: =SUM(AK23:AK57) -> 0
W59: Estimate of Combined Income: Your 6-4-5 , PB, POB & BIB | AA59: Total | AB59: =SUM(AB56:AB58) -> 0
AB60: =SUM(AB59*12) -> 0 | AC60: Annual
Z61: Remember to Add any Suppliment Bonus Checks, TBB's + Yr End Bonus | AB61: =IF(AA61<>"",AB60+AA61,"") ->  | AC61: Total
C62: Current Month 6-4-5
B63: B-3 | D63: Team Income Estimator | E63: Your Col 6 | F63: Your Col 4 | G63: Your Col 5 | H63: Income | K63: Comments or Goals
B64: Your 6-4-5 Data | D64: Your 6-4-5 | E64: 1600 | F64: 3200 | G64: 6400
D65: Your 6-4-5 Income | E65: 750 | F65: 336 | G65: 416 | I65: =SUM(E65:G65) -> 1502
B66: Lev | C66: Title | D66: SC & Above Name | E66: Current Col 5 | F66: New PVC | G66: Total Col 5 | H66: Rate | I66: Income | K66: Comments & Next Steps
B67: 1 | C67: SC | D67: Level 1 ( 1st SC in Leg) | E67: 6400 | G67: =SUM(E67+F67) -> 6400 | H67: 0.09 | I67: =IF(H67<>"",G67*H67,"") -> 576
B68: 2 | C68: SC | D68: Level 1 | E68: =E67 -> 6400 | G68: =SUM(E68+F68) -> 6400 | H68: 0.09 | I68: =IF(H68<>"",G68*H68,"") -> 576
B69: 3 | C69: SC | D69: Level 1 | E69: =E68 -> 6400 | G69: 6400 | H69: 0.09 | I69: 576
B70: 4 | C70: SC | D70: Level 1 | E70: 6400 | G70: 6400 | H70: 0.09 | I70: 576
B71: 5 | C71: SC | D71: Level 1 | E71: 6400 | G71: 6400 | H71: 0.09 | I71: 576
B72: SC under another another POB SC
B73: 6 | C73: SC | D73: Level 2 - 5 | E73: =E71 -> 6400 | G73: 6400 | H73: 0.05 | I73: 320
B74: 7 | C74: SC | D74: Level 2 - 5 | E74: 6400 | G74: 6400 | H74: 0.05 | I74: 320
B75: 8 | C75: SC | D75: Level 2 - 5 | E75: 6400 | G75: 6400 | H75: 0.05 | I75: 320
B76: 9 | C76: SC | D76: Level 2 - 5 | E76: 6400 | G76: 6400 | H76: 0.05 | I76: 320
B77: 10 | C77: SC | D77: Level 2 - 5 | E77: 6400 | G77: 6400 | H77: 0.05 | I77: 320
B78: 11 | C78: SC | D78: Level 2 - 5 | E78: 6400 | G78: 6400 | H78: 0.05 | I78: 320
B79: 12 | C79: SC | D79: Level 2 - 5 | E79: 6400 | G79: 6400 | H79: 0.05 | I79: 320
B80: 13 | C80: SC | D80: Level 2 - 5 | E80: 6400 | G80: 6400 | H80: 0.05 | I80: 320
B81: 14 | C81: SC | D81: Level 2 - 6 | E81: 6400 | G81: 6400 | H81: 0.05 | I81: 320
B82: 15 | C82: SC | D82: Level 2 - 7 | E82: 6400 | G82: 6400 | H82: 0.05 | I82: 320
I83: =IF(H83<>"",G83*H83,"") -> 
I84: =IF(H84<>"",G84*H84,"") -> 
I107: =IF(H107<>"",G107*H107,"") -> 
G115: Subtotal before BIB is added if you qualify for that Bonus | I115: =SUM(I67:J114) -> 6080
G116: Subtract your Retail Profit for subtotal to calculate BIB | I116: -320
I117: =SUM(I115:I116) -> 5760
G118: Enter Your BIB Rate | H118: 0.2 | I118: =SUM(I117*H118) -> 1152
F119: Your Col 6 | G119: =G64 -> 6400
D120: This is an approximate estimate of Income | G120: =SUM(G67:G119) -> 102400 | H120: Aprx | I120: =SUM(I117:I119) -> 6912
B126: Timeline | D126: Plan to Sales Coordinator | F126: Bonus | G126: Column | H126: Line Totals | L126: Position of SC in Team | Q126: Inc | R126: (6-4-5) SC | S126: Income | T126: Annual
A127: 1st 30-60 Days | D127: HLP & 2000+ | F127: 350 | G127: Col 6 | H127: 750 | L127: Your | M127: (6-4-5) SC Position (rounded) | Q127: 750 | R127: 750 | S127: 1500
A128: Months | C128: 2 to 6 | D128: Sales Coordinator | F128: 500 | G128: Col 4 | H128: 353 | L128: # of | M128: (6-4-5) SC Legs (structure wide) | Q128: 575 | R128: 5 | S128: =SUM(Q128*R128) -> 2875
D129: 3 (2000+) Sponsor Bonuses | F129: 750 | G129: Col 5 | H129: 441 | L129: # of | M129: (6-4-5) SC's (under other SC's) | Q129: 320 | R129: 7 | S129: =SUM(Q129*R129) -> 2240
A130: Total | D130: (6 - 4- 5) Sales Coordinator | F130: =SUM(F127:F129) -> 1600 | G130: =SUM(H127:H129) -> 1544 | H130: =SUM(F130:G130) -> 3144 | L130: Club Level & Mo Residual Inc | R130: =SUM(R128:R129) -> 12 | S130: =SUM(S127:S129) -> 6615
P131: BIB on Commissions | Q131: 0.2 | R131: =SUM(S130-390) -> 6225 | S131: =SUM(R131*Q131) -> 1245
A132: Months 6-12 | D132: Sr Sales Coordinator | F132: 1000 | G132: Payline | H132: 8000 | N132: Example of a New NMD 12 Club | S132: =SUM(S130:S131) -> 7860 | T132: =SUM(S132*12) -> 94320
B134: Years | C134: 1 to 3 | D134: SC Legs - Direct to You | H134: Income | L134: Yrs | M134: 1 to 3 | N134: SC Legs - under SCs | Q134: Inc | R134: Club Level | S134: Income
D135: Duplicate 6-4-5 SC's | F135: 1 Leg | G135: Level 1 SC | H135: 575 | L135: Ex | M135: Leg 1 | N135: 1 Club (Example) | Q135: 320 | R135: 1 | S135: =SUM(Q135*R135) -> 320
D136: Duplicate 6-4-5 SC's | F136: 2 Leg | G136: Level 1 SC | H136: 575 | L136: Ex | M136: Leg 2 | N136: 3 Club (Example) | Q136: 320 | R136: 3 | S136: =SUM(Q136*R136) -> 960
D137: Duplicate 6-4-5 SC's | F137: 3 Leg | G137: Level 1 SC | H137: 575 | L137: Ex | M137: Leg 3 | N137: 6 Club (Example) | Q137: 320 | R137: 6 | S137: =SUM(Q137*R137) -> 1920
D138: Duplicate 6-4-5 SC's | F138: 4 Leg | G138: Level 1 SC | H138: 575 | L138: Ex | M138: Leg 4 | N138: 12 Club (Example) | Q138: 320 | R138: 12 | S138: =SUM(Q138*R138) -> 3840
D139: Duplicate 6-4-5 SC's | F139: 5 Leg | G139: Level 1 SC | H139: 575 | L139: Ex | M139: Leg 5 | N139: 24 Club (Example) | Q139: 320 | R139: 24 | S139: =SUM(Q139*R139) -> 7680
B140: You and 5 6 -4-5 Sales Coordinator Legs | G140: Mo Residual Inc | H140: =SUM(G130+H135+H136+H137+H138+H139-390) -> 4029 | P140: Mo Residual Income | R140: =SUM(R135:R139) -> 46 | S140: =SUM(S135:S139) -> 14720
D141: BIB on Commissions | F141: 0.2 | G141: =SUM(H140-390) -> 3639 | H141: =SUM(G141*F141) -> 727.8 | P141: BIB on Commissions | Q141: 0.2 | R141: =S140 -> 14720 | S141: =SUM(R141*Q141) -> 2944
H142: =SUM(H140:H141) -> 4756.8 | S142: =SUM(S140:S141) -> 17664

Sheet Blank Sheet

Sheet Sample (hidden)
U2: Use for Calculating your Monthly PVC Goals
U4: Product / PVC | W4: Quantity | X4: Total PVC
U5: Trio | V5: 42.5 | W5: 3 | X5: =SUM(V5*W5) -> 127.5
U6: Shake | V6: 16 | W6: 3 | X6: =SUM(V6*W6) -> 48
U7: TG | V7: 55 | W7: 3 | X7: 165
U8: O/G | V8: 25.63 | W8: 3 | X8: 76.89
U9: Enter | V9: 0 | W9: 0 | X9: 0
U10: Other | V10: 0 | W10: 0 | X10: 0
U11: Total New Projected PVC | X11: =SUM(X5:X10) -> 417.39
B14: A | C14: Example Trio Cust's in Col 6 | E14: PVC/$ | F14: # Cust | G14: Col 6 PVC | I14: To Calculate Commission: Enter Rate & Col 6 PVC | M14: Retail Profit | P14: Income from 6-4-5 Example | U14: Retail Profit is paid right away on New Orders | Y14: Total
B15: Monthly Trio = 169.5 / 4 Mo Instm't | E15: 42.375 | F15: 40 | G15: =SUM(E15*F15) -> 1695 | I15: % Rate | K15: Enter Col 6 PVC | L15: Commission | M15: Residual | N15: New Orders | P15: A | Q15: B-1 | R15: B-2 | S15: Total | U15: Product | W15: New Orders | X15: SubTotal | Y15: =SUM(X16:X17) -> 211
B16: Monthly Retail Profit ($39 /4) | E16: 9.75 | F16: 40 | G16: =SUM(E16*F16) -> 390 | P16: Col 6 Inc | Q16: Income | R16: Income | S16: Income | U16: Trio | V16: 39 | W16: 5 | X16: =SUM(V16*W16) -> 195
B17: Experiment with (6-4-5) Income to right | H17:  | I17: SC | J17: 0.22 | K17: 1695 | L17: =SUM(J17*K17) -> 372.9 | M17: 390 | O17: = | P17: =SUM(L17+M17+N17) -> 762.9 | Q17: =G58 -> 357 | R17: =N58 -> 417.69 | S17: =SUM(P17:R17) -> 1537.59 | U17: Shake | V17: 16 | W17: 1 | X17: =SUM(V17*W17) -> 16
B21: B-1 | C21: Dist | D21: Your Lev 1 DLR or DD's & any DLR or DD's below them | I21: B-2 | J21: VF | K21: Track Col 4 of Your Level 1 VF's & any VF's below them | P21: Your Monthly Plan | R21: Must enter numbers to auto calculate total | U21: List Level, Name, Col 5 PVC of all SC & above | AA21: Income Earned on your Team's Col 5 | AE21: List all VF & Above with 1,000 or moe in Col 4
B22: Lev | C22: Title | D22: Your DLR & DD's Names | E22: End Mo Col 6 | F22: New PVC | G22: Total Dist Col 6 PVC | I22: Lev | J22: Title | K22: Your VF's Names | L22: End Mo Col 4 | M22: New PVC | N22: Total VF Col 4 PVC | P22: Your 6-4-5 | Q22: End Mo PVC | R22: New PVC | S22: Total PVC | U22: Lev | V22: Title | W22: Name of SC or Above | X22: End Mo Col 5 PVC | Y22: New Col 5 PVC | Z22: Total Col 5 PVC | AA22: Bonus % | AB22: PB & POB Income | AE22: Lev | AF22: Title | AG22: Name | AH22: End Mo Col 4 | AI22: New PVC | AJ22: Total Col 4 | AK22: Clubs
B23: 1 | C23: DD | D23: Rep 1 (4 Trios) | E23: 170 | F23: 0 | G23: =IF(F23<>"",E23+F23,"") -> 170 | I23: 1 | J23: VF | K23: Rep 1 24 Trios | L23: 500 | M23: 500 | N23: =IF(M23<>"",L23+M23,"") -> 1000 | P23: Your Col 6 | Q23: 1695 | R23: 0 | S23: =IF(R23<>"",Q23+R23,"") -> 1695 | Z23: =IF(Y23<>"",X23+Y23,"") ->  | AA23: 0.09 | AB23: =IF(Z23<>"",Z23*AA23,"") ->  | AJ23: =IF(AI23<>"",AH23+AI23,"") -> 
B24: 1 | C24: DD | D24: Rep 2 | E24: 170 | F24: 0 | G24: =IF(F24<>"",E24+F24,"") -> 170 | I24: 1 | J24: VF | K24: Rep 2 | L24: 500 | M24: 500 | N24: =IF(M24<>"",L24+M24,"") -> 1000 | P24: Your Col 4 | Q24: =SUM(Q23+E57) -> 3395 | R24: =F57 -> 0 | S24: =IF(R24<>"",Q24+R23+R24,"") -> 3395 | AB24: =IF(Z24<>"",Z24*AA24,"") ->  | AJ24: =IF(AI24<>"",AH24+AI24,"") -> 
B25: 1 | C25: DD | D25: Rep 3 | E25: 170 | F25: 0 | G25: 170 | I25: 1 | J25: VF | K25: Rep 3 12 Trios | L25: 500 | M25: 0 | N25: =IF(M25<>"",L25+M25,"") -> 500 | P25: Your Col 5 | Q25: =SUM(Q24+L57) -> 5608 | R25: =M57 -> 1000 | S25: =IF(R25<>"",Q25+R23+R24+R25,"") -> 6608
B26: 1 | C26: DD | D26: Rep 4 | E26: 170 | F26: 0 | G26: 170 | I26: 1 | J26: VF | K26: Rep 4 | L26: 500 | M26: 0 | N26: =IF(M26<>"",L26+M26,"") -> 500 | P26: Pay in Full
B27: 1 | C27: DD | D27: Rep 4 | E27: 170 | F27: 0 | G27: 170 | I27: 1 | J27: VF | K27: Rep 5 5 Trios | L27: 213 | M27: 0 | N27: 213 | P27: Your 6-4-5 | Q27: =SUM(Q25:Q26) -> 5608 | R27: =SUM(R23:R26) -> 1000 | S27: =SUM(Q27+R27) -> 6608
B28: 1 | C28: DD | D28: Rep 5 | E28: 170 | F28: 0 | G28: 170
P30: Use to Calculate your Monthly PVC Goals
G31: =IF(F31<>"",E31+F31,"") -> 
P32: Product | Q32: PVC | R32: Quantity | S32: Total PVC
P33: Trio | Q33: 42.5 | R33: 1 | S33: =SUM(Q33*R33) -> 42.5
P34: Shake | Q34: 16 | R34: 1 | S34: =SUM(Q34*R34) -> 16
P35: TG | Q35: 55 | R35: 0 | S35: 0
G36: =IF(F36<>"",E36+F36,"") ->  | P36: O/G | Q36: 25.63 | R36: 0 | S36: 0
P37: Enter Other | Q37: 0 | R37: 0 | S37: 0
P38: Enter Other | Q38: 0 | R38: 0 | S38: 0
P39: Total New Projected PVC | S39: =SUM(S33:S38) -> 58.5
P42: Tracking Stucture & Club Levels
P44: Bus Growth | Q44: Last Month | R44: New | S44: Category
P45: by Category | Q45: 12 Mo Report | R45: This Month | S45: Total
P46: Club Level | Q46: 0 | R46: 0 | S46: =IF(R46<>"",Q46+R46,"") -> 0
P47: # PB Legs | Q47: 0 | R47: 0 | S47: =IF(R47<>"",Q47+R47,"") -> 0
P48: # POB Legs | Q48: 0 | R48: 0 | S48: 0
P49: Payline PVC | Q49: 0 | R49: 0 | S49: 0
B53: 1 | C53: DD | D53: Rep 6 | E53: 170 | F53: 0 | G53: 170
B54: 1 | C54: DD | D54: Rep 7 | E54: 170 | F54: 0 | G54: 170 | P54: Team Totals | Q54: Last Mo | R54: New PVC | S54: Total PVC | U54: Column Totals from SC and Above | X54: =SUM(X23:X53) -> 0 | Y54: =SUM(Y23:Y53) -> 0 | Z54: =SUM(Z23:Z53) -> 0 | AA54: Team | AB54: =SUM(AB23:AB53) -> 0
B55: 1 | C55: DD | D55: Rep 8 | E55: 170 | F55: 0 | G55: 170 | W55: Your 6-4-5 Commission Income | AA55: You | AB55: =SUM(L17+Q17+R17) -> 1147.59
B56: 1 | C56: DD | D56: Rep 9 | E56: 170 | F56: 0 | G56: 170 | P56: Your 6-4-5 | Q56: =Q27 -> 5608 | R56: =R27 -> 1000 | S56: =SUM(S27) -> 6608 | X56: Total Commission Income | AA56: Com | AB56: =SUM(AA54:AB55) -> 1147.59
D57: Total PVC from your DLR's & DD's | E57: =SUM(E23:E56) -> 1700 | F57: =SUM(F23:F56) -> 0 | G57: =SUM(G23:G56) -> 1700 | K57: Total PVC from your VF's | L57: =SUM(L23:L56) -> 2213 | M57: =SUM(M23:M56) -> 1000 | N57: =SUM(N23:N56) -> 3213 | P57: SC  Col 5 | Q57: =X54 -> 0 | R57: =Y54 -> 0 | S57: =Z54 -> 0 | X57: Business Incentive Bonus | AA57: 0.2 | AB57: =SUM(AB56*AA57) -> 229.518 | AE57: Planning Col 4 Club Levels | AH57: =SUM(AH23:AH56) -> 0 | AI57: =SUM(AI23:AI56) -> 0 | AJ57: =SUM(AJ23:AJ56) -> 0
B58: Goal | C58: 1600 | D58: $ 1,600 x 21% = $336 | E58: Rate | F58: 0.21 | G58: =SUM(G57 *F58) -> 357 | I58: Goal | J58: 3200 | K58: $ 3,200 x 13% = $416 | L58: Rate | M58: 0.13 | N58: =SUM(N57 *M58) -> 417.69 | P58: Team Total | Q58: =SUM(Q27+Q57) -> 5608 | R58: =SUM(R27+R57) -> 1000 | S58: =SUM(Q58+R58) -> 6608 | W58: Retail Profit Only: Consider Residual & New Orders | AA58: RSP | AB58: =SUM(M17:N17) -> 390 | AE58: Goal | AJ58: Clubs | AK58: =SUM(AK23:AK57) -> 0
W59: Estimate of Combined Income: Your 6-4-5 , PB, POB & BIB | AA59: Total | AB59: =SUM(AB56:AB58) -> 1767.108
AB60: =SUM(AB59*12) -> 21205.296 | AC60: Annual
Z61: Remember to Add any Suppliment Bonus Checks, TBB's + Yr End Bonus | AB61: =IF(AA61<>"",AB60+AA61,"") ->  | AC61: Total
C62: Current Month 6-4-5
B63: B-3 | D63: Team Income Estimator | E63: Your Col 6 | F63: Your Col 4 | G63: Your Col 5 | H63: Income | K63: Comments or Goals
B64: Your 6-4-5 Data | D64: Your 6-4-5 | E64: 1600 | F64: 3200 | G64: 6400
D65: Your 6-4-5 Income | E65: 750 | F65: 336 | G65: 416 | I65: =SUM(E65:G65) -> 1502
B66: Lev | C66: Title | D66: SC & Above Name | E66: Current Col 5 | F66: New PVC | G66: Total Col 5 | H66: Rate | I66: Income | K66: Comments & Next Steps
B67: 1 | C67: SC | D67: Level 1 ( 1st SC in Leg) | E67: 6400 | G67: =SUM(E67+F67) -> 6400 | H67: 0.09 | I67: =IF(H67<>"",G67*H67,"") -> 576
B68: 2 | C68: SC | D68: Level 1 | E68: =E67 -> 6400 | G68: =SUM(E68+F68) -> 6400 | H68: 0.09 | I68: =IF(H68<>"",G68*H68,"") -> 576
B69: 3 | C69: SC | D69: Level 1 | E69: =E68 -> 6400 | G69: 6400 | H69: 0.09 | I69: 576
B70: 4 | C70: SC | D70: Level 1 | E70: 6400 | G70: 6400 | H70: 0.09 | I70: 576
B71: 5 | C71: SC | D71: Level 1 | E71: 6400 | G71: 6400 | H71: 0.09 | I71: 576
B72: SC under another another POB SC
B73: 6 | C73: SC | D73: Level 2 - 5 | E73: =E71 -> 6400 | G73: 6400 | H73: 0.05 | I73: 320
B74: 7 | C74: SC | D74: Level 2 - 5 | E74: 6400 | G74: 6400 | H74: 0.05 | I74: 320
B75: 8 | C75: SC | D75: Level 2 - 5 | E75: 6400 | G75: 6400 | H75: 0.05 | I75: 320
B76: 9 | C76: SC | D76: Level 2 - 5 | E76: 6400 | G76: 6400 | H76: 0.05 | I76: 320
B77: 10 | C77: SC | D77: Level 2 - 5 | E77: 6400 | G77: 6400 | H77: 0.05 | I77: 320
B78: 11 | C78: SC | D78: Level 2 - 5 | E78: 6400 | G78: 6400 | H78: 0.05 | I78: 320
B79: 12 | C79: SC | D79: Level 2 - 5 | E79: 6400 | G79: 6400 | H79: 0.05 | I79: 320
B80: 13 | C80: SC | D80: Level 2 - 5 | E80: 6400 | G80: 6400 | H80: 0.05 | I80: 320
B81: 14 | C81: SC | D81: Level 2 - 6 | E81: 6400 | G81: 6400 | H81: 0.05 | I81: 320
B82: 15 | C82: SC | D82: Level 2 - 7 | E82: 6400 | G82: 6400 | H82: 0.05 | I82: 320
I83: =IF(H83<>"",G83*H83,"") -> 
I84: =IF(H84<>"",G84*H84,"") -> 
I107: =IF(H107<>"",G107*H107,"") -> 
G115: Subtotal before BIB is added if you qualify for that Bonus | I115: =SUM(I67:J114) -> 6080
G116: Subtract your Retail Profit for subtotal to calculate BIB | I116: -320
I117: =SUM(I115:I116) -> 5760
G118: Enter Your BIB Rate | H118: 0.2 | I118: =SUM(I117*H118) -> 1152
F119: Your Col 6 | G119: =G64 -> 6400
D120: This is an approximate estimate of Income | G120: =SUM(G67:G119) -> 102400 | H120: Aprx | I120: =SUM(I117:I119) -> 6912
B126: Timeline | D126: Plan to Sales Coordinator | F126: Bonus | G126: Column | H126: Line Totals | L126: Position of SC in Team | Q126: Inc | R126: (6-4-5) SC | S126: Income | T126: Annual
A127: 1st 30-60 Days | D127: HLP & 2000+ | F127: 350 | G127: Col 6 | H127: 750 | L127: Your | M127: (6-4-5) SC Position (rounded) | Q127: 750 | R127: 750 | S127: 1500
A128: Months | C128: 2 to 6 | D128: Sales Coordinator | F128: 500 | G128: Col 4 | H128: 353 | L128: # of | M128: (6-4-5) SC Legs (structure wide) | Q128: 575 | R128: 5 | S128: =SUM(Q128*R128) -> 2875
D129: 3 (2000+) Sponsor Bonuses | F129: 750 | G129: Col 5 | H129: 441 | L129: # of | M129: (6-4-5) SC's (under other SC's) | Q129: 320 | R129: 7 | S129: =SUM(Q129*R129) -> 2240
A130: Total | D130: (6 - 4- 5) Sales Coordinator | F130: =SUM(F127:F129) -> 1600 | G130: =SUM(H127:H129) -> 1544 | H130: =SUM(F130:G130) -> 3144 | L130: Club Level & Mo Residual Inc | R130: =SUM(R128:R129) -> 12 | S130: =SUM(S127:S129) -> 6615
P131: BIB on Commissions | Q131: 0.2 | R131: =SUM(S130-390) -> 6225 | S131: =SUM(R131*Q131) -> 1245
A132: Months 6-12 | D132: Sr Sales Coordinator | F132: 1000 | G132: Payline | H132: 8000 | N132: Example of a New NMD 12 Club | S132: =SUM(S130:S131) -> 7860 | T132: =SUM(S132*12) -> 94320
B134: Years | C134: 1 to 3 | D134: SC Legs - Direct to You | H134: Income | L134: Yrs | M134: 1 to 3 | N134: SC Legs - under SCs | Q134: Inc | R134: Club Level | S134: Income
D135: Duplicate 6-4-5 SC's | F135: 1 Leg | G135: Level 1 SC | H135: 575 | L135: Ex | M135: Leg 1 | N135: 1 Club (Example) | Q135: 320 | R135: 1 | S135: =SUM(Q135*R135) -> 320
D136: Duplicate 6-4-5 SC's | F136: 2 Leg | G136: Level 1 SC | H136: 575 | L136: Ex | M136: Leg 2 | N136: 3 Club (Example) | Q136: 320 | R136: 3 | S136: =SUM(Q136*R136) -> 960
D137: Duplicate 6-4-5 SC's | F137: 3 Leg | G137: Level 1 SC | H137: 575 | L137: Ex | M137: Leg 3 | N137: 6 Club (Example) | Q137: 320 | R137: 6 | S137: =SUM(Q137*R137) -> 1920
D138: Duplicate 6-4-5 SC's | F138: 4 Leg | G138: Level 1 SC | H138: 575 | L138: Ex | M138: Leg 4 | N138: 12 Club (Example) | Q138: 320 | R138: 12 | S138: =SUM(Q138*R138) -> 3840
D139: Duplicate 6-4-5 SC's | F139: 5 Leg | G139: Level 1 SC | H139: 575 | L139: Ex | M139: Leg 5 | N139: 24 Club (Example) | Q139: 320 | R139: 24 | S139: =SUM(Q139*R139) -> 7680
B140: You and 5 6 -4-5 Sales Coordinator Legs | G140: Mo Residual Inc | H140: =SUM(G130+H135+H136+H137+H138+H139-390) -> 4029 | P140: Mo Residual Income | R140: =SUM(R135:R139) -> 46 | S140: =SUM(S135:S139) -> 14720
D141: BIB on Commissions | F141: 0.2 | G141: =SUM(H140-390) -> 3639 | H141: =SUM(G141*F141) -> 727.8 | P141: BIB on Commissions | Q141: 0.2 | R141: =S140 -> 14720 | S141: =SUM(R141*Q141) -> 2944
H142: =SUM(H140:H141) -> 4756.8 | S142: =SUM(S140:S141) -> 17664

Sheet NMD Plan (hidden)
U2: Use for Calculating your Monthly PVC Goals
U4: Product / PVC | W4: Quantity | X4: Total PVC
U5: Trio | V5: 42.5 | W5: 4 | X5: =SUM(V5*W5) -> 170
U6: Shake | V6: 16 | W6: 3 | X6: =SUM(V6*W6) -> 48
U7: TG | V7: 55 | W7: 3 | X7: 165
U8: O/G | V8: 25.63 | W8: 3 | X8: 76.89
U9: Enter | V9: 0 | W9: 0 | X9: 0
U10: Other | V10: 0 | W10: 0 | X10: 0
U11: Total New Projected PVC | X11: =SUM(X5:X10) -> 459.89
B14: A | C14: Example Trio Cust's in Col 6 | E14: PVC/$ | F14: # Cust | G14: Col 6 PVC | I14: To Calculate Commission: Enter Rate & Col 6 PVC | M14: Retail Profit | P14: Income from 6-4-5 Example | U14: Retail Profit is paid right away on New Orders | Y14: Total
B15: Monthly Trio = 169.5 / 4 Mo Instm't | E15: 42.375 | F15: 40 | G15: =SUM(E15*F15) -> 1695 | I15: % Rate | K15: Enter Col 6 PVC | L15: Commission | M15: Residual | N15: New Orders | P15: A | Q15: B-1 | R15: B-2 | S15: Total | U15: Product | W15: New Orders | X15: SubTotal | Y15: =SUM(X16:X17) -> 211
B16: Monthly Retail Profit ($39 /4) | E16: 9.75 | F16: 40 | G16: =SUM(E16*F16) -> 390 | P16: Col 6 Inc | Q16: Income | R16: Income | S16: Income | U16: Trio | V16: 39 | W16: 5 | X16: =SUM(V16*W16) -> 195
B17: Experiment with (6-4-5) Income to right | H17:  | I17: SC | J17: 0.22 | K17: 1695 | L17: =SUM(J17*K17) -> 372.9 | M17: 390 | O17: = | P17: =SUM(L17+M17+N17) -> 762.9 | Q17: =G58 -> 337.2873 | R17: =N58 -> 420.81 | S17: =SUM(P17:R17) -> 1520.9973 | U17: Shake | V17: 16 | W17: 1 | X17: =SUM(V17*W17) -> 16
B21: B-1 | C21: Dist | D21: Your Lev 1 DLR or DD's & any DLR or DD's below them | I21: B-2 | J21: VF | K21: Track Col 4 of Your Level 1 VF's & any VF's below them | P21: Your Monthly Plan | R21: Must enter numbers to auto calculate total | U21: List Level, Name, Col 5 PVC of all SC & above | AA21: Income Earned on your Team's Col 5 | AE21: List all VF & Above with 1,000 or moe in Col 4
B22: Lev | C22: Title | D22: Your DLR & DD's Names | E22: End Mo Col 6 | F22: New PVC | G22: Total Dist Col 6 PVC | I22: Lev | J22: Title | K22: Your VF's Names | L22: End Mo Col 4 | M22: New PVC | N22: Total VF Col 4 PVC | P22: Your 6-4-5 | Q22: End Mo PVC | R22: New PVC | S22: Total PVC | U22: Lev | V22: Title | W22: Name of SC or Above | X22: End Mo Col 5 PVC | Y22: New Col 5 PVC | Z22: Total Col 5 PVC | AA22: Bonus % | AB22: PB & POB Income | AE22: Lev | AF22: Title | AG22: Name | AH22: End Mo Col 4 | AI22: New PVC | AJ22: Total Col 4 | AK22: Clubs
B23: 1 | C23: DD | D23: Dist 1 (4 Trios) | E23: 250 | F23: 169.5 | G23: =IF(F23<>"",E23+F23,"") -> 419.5 | I23: 1 | J23: VF | K23: Dist 1 Goal: 5 Trios (212 ) | L23: 789 | M23: 212 | N23: =IF(M23<>"",L23+M23,"") -> 1001 | P23: Your Col 6 | Q23: =K17 -> 1695 | R23: 170 | S23: =IF(R23<>"",Q23+R23,"") -> 1865 | U23: 1 | V23: SC | W23: Rep Leg 1 | X23: 3200 | Y23: 3200 | Z23: =IF(Y23<>"",X23+Y23,"") -> 6400 | AA23: 0.09 | AB23: =IF(Z23<>"",Z23*AA23,"") -> 576 | AJ23: =IF(AI23<>"",AH23+AI23,"") -> 
B24: 1 | C24: DD | D24: Dist 2 (4 Trios) | E24: 169.5 | F24: 169.5 | G24: =IF(F24<>"",E24+F24,"") -> 339 | N24: =IF(M24<>"",L24+M24,"") ->  | P24: Your Col 4 | Q24: =SUM(Q23+E57) -> 2623 | R24: =F57 -> 678.13 | S24: =IF(R24<>"",Q24+R23+R24,"") -> 3471.13 | AB24: =IF(Z24<>"",Z24*AA24,"") ->  | AJ24: =IF(AI24<>"",AH24+AI24,"") -> 
B25: 1 | C25: DD | D25: Dist 3 (3 Trios) | E25: 169.5 | F25: 127.13 | G25: 296.63 | I25: 1 | J25: VF | K25: Dist 2 Goal: 4 Trios (169) | L25: 710 | M25: 297 | N25: =IF(M25<>"",L25+M25,"") -> 1007 | P25: Your Col 5 | Q25: =SUM(Q24+L57) -> 5054 | R25: =M57 -> 806 | S25: =IF(R25<>"",Q25+R23+R24+R25,"") -> 6708.13 | U25: 1 | V25: SC | W25: Rep Leg 2 | X25: 3200 | Y25: 3200 | Z25: 6400 | AA25: 0.09 | AB25: 576
B26: 1 | C26: DD | D26: Dist 4 (2 Trios) | E26: 169.5 | F26: 85 | G26: 254.5 | K26: Goal: 4 Trios ( 169) HLP | N26: =IF(M26<>"",L26+M26,"") ->  | P26: Pay in Full
B27: 1 | C27: DD | D27: Dist 5 ( HLP ) | E27: 169.5 | F27: 127 | G27: 296.5 | P27: Your 6-4-5 | Q27: =SUM(Q25:Q26) -> 5054 | R27: =SUM(R23:R26) -> 1654.13 | S27: =SUM(Q27+R27) -> 6708.13 | U27: 1 | V27: SC | W27: Rep Leg 3 | X27: 3200 | Y27: 3200 | Z27: 6400 | AA27: 0.09 | AB27: 576
I28: 1 | J28: VF | K28: Dist 3 Goal: 4 Trios | L28: 424 | M28: 170 | N28: 594
U29: 1 | V29: SC | W29: Rep Leg 4 | X29: 3200 | Y29: 3200 | Z29: 6400 | AA29: 0.09 | AB29: 576
I30: 1 | J30: VF | K30: Dist 4 Goal: 3 Trios | L30: 508 | M30: 127 | N30: 635 | P30: Use to Calculate your Monthly PVC Goals
G31: =IF(F31<>"",E31+F31,"") ->  | N31: =IF(M31<>"",L31+M31,"") ->  | U31: 1 | V31: SC | W31: Rep Leg 5 | X31: 3200 | Y31: 3200 | Z31: 6400 | AA31: 0.09 | AB31: 576
P32: Product | Q32: PVC | R32: Quantity | S32: Total PVC
P33: Trio | Q33: 42.5 | R33: 5 | S33: =SUM(Q33*R33) -> 212.5
P34: Shake | Q34: 16 | R34: 1 | S34: =SUM(Q34*R34) -> 16
P35: TG | Q35: 55 | R35: 0 | S35: 0
G36: =IF(F36<>"",E36+F36,"") ->  | P36: O/G | Q36: 25.63 | R36: 0 | S36: 0
P37: Enter Other | Q37: 0 | R37: 0 | S37: 0
P38: Enter Other | Q38: 0 | R38: 0 | S38: 0
P39: Total New Projected PVC | S39: =SUM(S33:S38) -> 228.5
P42: Tracking Stucture & Club Levels
P44: Bus Growth | Q44: Last Month | R44: New | S44: Category
P45: by Category | Q45: 12 Mo Report | R45: This Month | S45: Total
P46: Club Level | Q46: 0 | R46: 0 | S46: =IF(R46<>"",Q46+R46,"") -> 0
P47: # PB Legs | Q47: 0 | R47: 0 | S47: =IF(R47<>"",Q47+R47,"") -> 0
P48: # POB Legs | Q48: 0 | R48: 0 | S48: 0
P49: Payline PVC | Q49: 0 | R49: 0 | S49: 0
P54: Team Totals | Q54: Last Mo | R54: New PVC | S54: Total PVC | U54: Column Totals from SC and Above | X54: =SUM(X23:X53) -> 16000 | Y54: =SUM(Y23:Y53) -> 16000 | Z54: =SUM(Z23:Z53) -> 32000 | AA54: Team | AB54: =SUM(AB23:AB53) -> 2880
W55: Your 6-4-5 Commission Income | AA55: You | AB55: =SUM(L17+Q17+R17) -> 1130.9973
P56: Your 6-4-5 | Q56: =Q27 -> 5054 | R56: =R27 -> 1654.13 | S56: =SUM(S27) -> 6708.13 | X56: Total Commission Income | AA56: Com | AB56: =SUM(AA54:AB55) -> 4010.9973
D57: Total PVC from your DLR's & DD's | E57: =SUM(E23:E56) -> 928 | F57: =SUM(F23:F56) -> 678.13 | G57: =SUM(G23:G56) -> 1606.13 | K57: Total PVC from your VF's | L57: =SUM(L23:L56) -> 2431 | M57: =SUM(M23:M56) -> 806 | N57: =SUM(N23:N56) -> 3237 | P57: SC  Col 5 | Q57: =X54 -> 16000 | R57: =Y54 -> 16000 | S57: =SUM(Q57+R57) -> 32000 | X57: Business Incentive Bonus | AA57: 0.2 | AB57: =SUM(AB56*AA57) -> 802.19946 | AE57: Planning Col 4 Club Levels | AH57: =SUM(AH23:AH56) -> 0 | AI57: =SUM(AI23:AI56) -> 0 | AJ57: =SUM(AJ23:AJ56) -> 0
B58: Goal | C58: 1600 | D58: $ 1,600 x 21% = $336 | E58: Rate | F58: 0.21 | G58: =SUM(G57 *F58) -> 337.2873 | I58: Goal | J58: 3200 | K58: $ 3,200 x 13% = $416 | L58: Rate | M58: 0.13 | N58: =SUM(N57 *M58) -> 420.81 | P58: Team Total | Q58: =SUM(Q27+Q57) -> 21054 | R58: =SUM(R27+R57) -> 17654.13 | S58: =SUM(Q58+R58) -> 38708.13 | W58: Retail Profit Only: Consider Residual & New Orders | AA58: RSP | AB58: =SUM(M17:N17) -> 390 | AE58: Goal | AJ58: Clubs | AK58: =SUM(AK23:AK57) -> 0
W59: Estimate of Combined Income: Your 6-4-5 , PB, POB & BIB | AA59: Total | AB59: =SUM(AB56:AB58) -> 5203.19676
AB60: =SUM(AB59*12) -> 62438.36112 | AC60: Annual
Z61: Remember to Add any Suppliment Bonus Checks, TBB's + Yr End Bonus | AA61: 3500 | AB61: =IF(AA61<>"",AB60+AA61,"") -> 65938.36112 | AC61: Total
C62: Current Month 6-4-5
B63: B-3 | D63: Team Income Estimator | E63: Your Col 6 | F63: Your Col 4 | G63: Your Col 5 | H63: Income | K63: Comments or Goals
B64: Your 6-4-5 Data | D64: Your 6-4-5 | E64: 1600 | F64: 3200 | G64: 6400
D65: Your 6-4-5 Income | E65: 750 | F65: 336 | G65: 416 | I65: =SUM(E65:G65) -> 1502
B66: Lev | C66: Title | D66: SC & Above Name | E66: Current Col 5 | F66: New PVC | G66: Total Col 5 | H66: Rate | I66: Income | K66: Comments & Next Steps
B67: 1 | C67: SC | D67: Level 1 ( 1st SC in Leg) | E67: 6400 | G67: =SUM(E67+F67) -> 6400 | H67: 0.09 | I67: =IF(H67<>"",G67*H67,"") -> 576
B68: 2 | C68: SC | D68: Level 1 | E68: =E67 -> 6400 | G68: =SUM(E68+F68) -> 6400 | H68: 0.09 | I68: =IF(H68<>"",G68*H68,"") -> 576
B69: 3 | C69: SC | D69: Level 1 | E69: =E68 -> 6400 | G69: 6400 | H69: 0.09 | I69: 576
B70: 4 | C70: SC | D70: Level 1 | E70: 6400 | G70: 6400 | H70: 0.09 | I70: 576
B71: 5 | C71: SC | D71: Level 1 | E71: 6400 | G71: 6400 | H71: 0.09 | I71: 576
B72: SC under another another POB SC
B73: 6 | C73: SC | D73: Level 2 - 5 | E73: =E71 -> 6400 | G73: 6400 | H73: 0.05 | I73: 320
B74: 7 | C74: SC | D74: Level 2 - 5 | E74: 6400 | G74: 6400 | H74: 0.05 | I74: 320
B75: 8 | C75: SC | D75: Level 2 - 5 | E75: 6400 | G75: 6400 | H75: 0.05 | I75: 320
B76: 9 | C76: SC | D76: Level 2 - 5 | E76: 6400 | G76: 6400 | H76: 0.05 | I76: 320
B77: 10 | C77: SC | D77: Level 2 - 5 | E77: 6400 | G77: 6400 | H77: 0.05 | I77: 320
B78: 11 | C78: SC | D78: Level 2 - 5 | E78: 6400 | G78: 6400 | H78: 0.05 | I78: 320
B79: 12 | C79: SC | D79: Level 2 - 5 | E79: 6400 | G79: 6400 | H79: 0.05 | I79: 320
B80: 13 | C80: SC | D80: Level 2 - 5 | E80: 6400 | G80: 6400 | H80: 0.05 | I80: 320
B81: 14 | C81: SC | D81: Level 2 - 6 | E81: 6400 | G81: 6400 | H81: 0.05 | I81: 320
B82: 15 | C82: SC | D82: Level 2 - 7 | E82: 6400 | G82: 6400 | H82: 0.05 | I82: 320
I83: =IF(H83<>"",G83*H83,"") -> 
I84: =IF(H84<>"",G84*H84,"") -> 
I107: =IF(H107<>"",G107*H107,"") -> 
G115: Subtotal before BIB is added if you qualify for that Bonus | I115: =SUM(I67:J114) -> 6080
G116: Subtract your Retail Profit for subtotal to calculate BIB | I116: -320
I117: =SUM(I115:I116) -> 5760
G118: Enter Your BIB Rate | H118: 0.2 | I118: =SUM(I117*H118) -> 1152
F119: Your Col 6 | G119: =G64 -> 6400
D120: This is an approximate estimate of Income | G120: =SUM(G67:G119) -> 102400 | H120: Aprx | I120: =SUM(I117:I119) -> 6912
B126: Timeline | D126: Plan to Sales Coordinator | F126: Bonus | G126: Column | H126: Line Totals | L126: Position of SC in Team | Q126: Inc | R126: (6-4-5) SC | S126: Income | T126: Annual
A127: 1st 30-60 Days | D127: HLP & 2000+ | F127: 350 | G127: Col 6 | H127: 750 | L127: Your | M127: (6-4-5) SC Position (rounded) | Q127: 750 | R127: 750 | S127: 1500
A128: Months | C128: 2 to 6 | D128: Sales Coordinator | F128: 500 | G128: Col 4 | H128: 353 | L128: # of | M128: (6-4-5) SC Legs (structure wide) | Q128: 575 | R128: 5 | S128: =SUM(Q128*R128) -> 2875
D129: 3 (2000+) Sponsor Bonuses | F129: 750 | G129: Col 5 | H129: 441 | L129: # of | M129: (6-4-5) SC's (under other SC's) | Q129: 320 | R129: 7 | S129: =SUM(Q129*R129) -> 2240
A130: Total | D130: (6 - 4- 5) Sales Coordinator | F130: =SUM(F127:F129) -> 1600 | G130: =SUM(H127:H129) -> 1544 | H130: =SUM(F130:G130) -> 3144 | L130: Club Level & Mo Residual Inc | R130: =SUM(R128:R129) -> 12 | S130: =SUM(S127:S129) -> 6615
P131: BIB on Commissions | Q131: 0.2 | R131: =SUM(S130-390) -> 6225 | S131: =SUM(R131*Q131) -> 1245
A132: Months 6-12 | D132: Sr Sales Coordinator | F132: 1000 | G132: Payline | H132: 8000 | N132: Example of a New NMD 12 Club | S132: =SUM(S130:S131) -> 7860 | T132: =SUM(S132*12) -> 94320
B134: Years | C134: 1 to 3 | D134: SC Legs - Direct to You | H134: Income | L134: Yrs | M134: 1 to 3 | N134: SC Legs - under SCs | Q134: Inc | R134: Club Level | S134: Income
D135: Duplicate 6-4-5 SC's | F135: 1 Leg | G135: Level 1 SC | H135: 575 | L135: Ex | M135: Leg 1 | N135: 1 Club (Example) | Q135: 320 | R135: 1 | S135: =SUM(Q135*R135) -> 320
D136: Duplicate 6-4-5 SC's | F136: 2 Leg | G136: Level 1 SC | H136: 575 | L136: Ex | M136: Leg 2 | N136: 3 Club (Example) | Q136: 320 | R136: 3 | S136: =SUM(Q136*R136) -> 960
D137: Duplicate 6-4-5 SC's | F137: 3 Leg | G137: Level 1 SC | H137: 575 | L137: Ex | M137: Leg 3 | N137: 6 Club (Example) | Q137: 320 | R137: 6 | S137: =SUM(Q137*R137) -> 1920
D138: Duplicate 6-4-5 SC's | F138: 4 Leg | G138: Level 1 SC | H138: 575 | L138: Ex | M138: Leg 4 | N138: 12 Club (Example) | Q138: 320 | R138: 12 | S138: =SUM(Q138*R138) -> 3840
D139: Duplicate 6-4-5 SC's | F139: 5 Leg | G139: Level 1 SC | H139: 575 | L139: Ex | M139: Leg 5 | N139: 24 Club (Example) | Q139: 320 | R139: 24 | S139: =SUM(Q139*R139) -> 7680
B140: You and 5 6 -4-5 Sales Coordinator Legs | G140: Mo Residual Inc | H140: =SUM(G130+H135+H136+H137+H138+H139-390) -> 4029 | P140: Mo Residual Income | R140: =SUM(R135:R139) -> 46 | S140: =SUM(S135:S139) -> 14720
D141: BIB on Commissions | F141: 0.2 | G141: =SUM(H140-390) -> 3639 | H141: =SUM(G141*F141) -> 727.8 | P141: BIB on Commissions | Q141: 0.2 | R141: =S140 -> 14720 | S141: =SUM(R141*Q141) -> 2944
H142: =SUM(H140:H141) -> 4756.8 | S142: =SUM(S140:S141) -> 17664

Sheet NMD Inc Sample (hidden)
U2: Use for Calculating your Monthly PVC Goals
U4: Product / PVC | W4: Quantity | X4: Total PVC
U5: Trio | V5: 42.5 | W5: 3 | X5: =SUM(V5*W5) -> 127.5
U6: Shake | V6: 16 | W6: 3 | X6: =SUM(V6*W6) -> 48
U7: TG | V7: 55 | W7: 3 | X7: 165
U8: O/G | V8: 25.63 | W8: 3 | X8: 76.89
U9: Enter | V9: 0 | W9: 0 | X9: 0
U10: Other | V10: 0 | W10: 0 | X10: 0
U11: Total New Projected PVC | X11: =SUM(X5:X10) -> 417.39
B14: A | C14: Example Trio Cust's in Col 6 | E14: PVC/$ | F14: # Cust | G14: Col 6 PVC | I14: To Calculate Commission: Enter Rate & Col 6 PVC | M14: Retail Profit | P14: Income from 6-4-5 Example | U14: Retail Profit is paid right away on New Orders | Y14: Total
B15: Monthly Trio = 169.5 / 4 Mo Instm't | E15: 42.375 | F15: 40 | G15: =SUM(E15*F15) -> 1695 | I15: % Rate | K15: Enter Col 6 PVC | L15: Commission | M15: Residual | N15: New Orders | P15: A | Q15: B-1 | R15: B-2 | S15: Total | U15: Product | W15: New Orders | X15: SubTotal | Y15: =SUM(X16:X17) -> 156
B16: Monthly Retail Profit ($39 /4) | E16: 9.75 | F16: 40 | G16: =SUM(E16*F16) -> 390 | P16: Col 6 Inc | Q16: Income | R16: Income | S16: Income | U16: Trio | V16: 39 | W16: 4 | X16: =SUM(V16*W16) -> 156
B17: Experiment with (6-4-5) Income to right | H17:  | I17: SC | J17: 0.22 | K17: 1696 | L17: =SUM(J17*K17) -> 373.12 | M17: 390 | O17: = | P17: =SUM(L17+M17+N17) -> 763.12 | Q17: =G58 -> 357 | R17: =N58 -> 417.69 | S17: =SUM(P17:R17) -> 1537.81 | U17: Shake | V17: 16 | X17: =SUM(V17*W17) -> 0
B21: B-1 | C21: Dist | D21: Your Lev 1 DLR or DD's & any DLR or DD's below them | I21: B-2 | J21: VF | K21: Track Col 4 of Your Level 1 VF's & any VF's below them | P21: Your Monthly Plan | R21: Must enter numbers to auto calculate total | U21: List Level, Name, Col 5 PVC of all SC & above | AA21: Income Earned on your Team's Col 5 | AE21: List all VF & Above with 1,000 or moe in Col 4
B22: Lev | C22: Title | D22: Your DLR & DD's Names | E22: End Mo Col 6 | F22: New PVC | G22: Total Dist Col 6 PVC | I22: Lev | J22: Title | K22: Your VF's Names | L22: End Mo Col 4 | M22: New PVC | N22: Total VF Col 4 PVC | P22: Your 6-4-5 | Q22: End Mo PVC | R22: New PVC | S22: Total PVC | U22: Lev | V22: Title | W22: Name of SC or Above | X22: End Mo Col 5 PVC | Y22: New Col 5 PVC | Z22: Total Col 5 PVC | AA22: Bonus % | AB22: PB & POB Income | AE22: Lev | AF22: Title | AG22: Name | AH22: End Mo Col 4 | AI22: New PVC | AJ22: Total Col 4 | AK22: Clubs
B23: 1 | C23: DD | D23: Rep 1 (4 Trios) | E23: 170 | F23: 0 | G23: =IF(F23<>"",E23+F23,"") -> 170 | I23: 1 | J23: VF | K23: Rep 1 24 Trios | L23: 500 | M23: 500 | N23: =IF(M23<>"",L23+M23,"") -> 1000 | P23: Your Col 6 | Q23: 1696 | R23: 0 | S23: =IF(R23<>"",Q23+R23,"") -> 1696 | U23: 1 | V23: SC | W23: Name Rep 1 | X23: 3200 | Y23: 3200 | Z23: =IF(Y23<>"",X23+Y23,"") -> 6400 | AA23: 0.09 | AB23: =IF(Z23<>"",Z23*AA23,"") -> 576 | AE23: 1 | AF23: SC | AG23: Name Qualifier 1 | AH23: 405 | AJ23: =IF(AI23<>"",AH23+AI23,"") -> 
B24: 1 | C24: DD | D24: Rep 2 | E24: 170 | F24: 0 | G24: =IF(F24<>"",E24+F24,"") -> 170 | I24: 1 | J24: VF | K24: Rep 2 | L24: 500 | M24: 500 | N24: =IF(M24<>"",L24+M24,"") -> 1000 | P24: Your Col 4 | Q24: =SUM(Q23+E57) -> 2886 | R24: =F57 -> 510 | S24: =IF(R24<>"",Q24+R23+R24,"") -> 3396 | U24: 1 | V24: SC | W24: Name Rep 2 | X24: 3200 | Y24: 3200 | Z24: 6400 | AA24: 0.09 | AB24: =IF(Z24<>"",Z24*AA24,"") -> 576 | AF24: 2 VF | AG24: Name Qualifier 2 | AH24: 1345 | AJ24: =IF(AI24<>"",AH24+AI24,"") ->  | AK24: 1
B25: 1 | C25: DD | D25: Rep 3 | E25: 170 | F25: 0 | G25: 170 | I25: 1 | J25: VF | K25: Rep 3 12 Trios | L25: 500 | M25: 0 | N25: =IF(M25<>"",L25+M25,"") -> 500 | P25: Your Col 5 | Q25: =SUM(Q24+L57) -> 5099 | R25: =M57 -> 1000 | S25: =IF(R25<>"",Q25+R23+R24+R25,"") -> 6609 | U25: 1 | V25: SC | W25: Name Rep 3 | X25: 3200 | Y25: 3200 | Z25: 6400 | AA25: 0.09 | AB25: 576 | AF25: 2 VF | AG25: Name Qualifier 3
B26: 1 | C26: DD | D26: Rep 4 | E26: 170 | F26: 0 | G26: 170 | I26: 1 | J26: VF | K26: Rep 4 | L26: 500 | M26: 0 | N26: =IF(M26<>"",L26+M26,"") -> 500 | P26: Pay in Full | U26: 1 | V26: SC | W26: Name Rep 4 | X26: 3200 | Y26: 3200 | Z26: 6400 | AA26: 0.09 | AB26: 576 | AE26: 1 | AF26: SC | AG26: Name Qualifier 4 | AH26: 1091 | AK26: 1
B27: 1 | C27: DD | D27: Rep 4 | E27: 170 | F27: 0 | G27: 170 | I27: 1 | J27: VF | K27: Rep 5 5 Trios | L27: 213 | M27: 0 | N27: 213 | P27: Your 6-4-5 | Q27: =SUM(Q25:Q26) -> 5099 | R27: =SUM(R23:R26) -> 1510 | S27: =SUM(Q27+R27) -> 6609 | U27: 1 | V27: SC | W27: Name Rep 5 | X27: 3200 | Y27: 3200 | Z27: 6400 | AA27: 0.09 | AB27: 576 | AF27: 2 VF | AG27: Name Qualifier 5
B28: 1 | C28: DD | D28: Rep 5 | E28: 170 | F28: 0 | G28: 170 | AF28: 3 VF | AG28: Name Qualifier 6
B29: 1 | C29: DD | D29: Rep 6 | E29: 170 | F29: 0 | G29: 170 | AF29: 2 VF | AG29: Name Qualifier 7
B30: 1 | C30: DD | D30: Rep 7 | F30: 170 | G30: 170 | P30: Use to Calculate your Monthly PVC Goals | AE30: 1 | AF30: SC | AG30: Name Qualifier 8
B31: 1 | C31: DD | D31: Rep 8 | F31: 170 | G31: =IF(F31<>"",E31+F31,"") -> 170 | AE31: 1 | AF31: SC | AG31: Name Qualifier 9
B32: 1 | C32: DD | D32: Rep 9 | F32: 170 | G32: 170 | N32: =IF(M32<>"",L32+M32,"") ->  | P32: Product | Q32: PVC | R32: Quantity | S32: Total PVC | AF32: 2 VF | AG32: Name Qualifier 10
P33: Trio | Q33: 42.5 | R33: 1 | S33: =SUM(Q33*R33) -> 42.5 | AE33: 1 | AF33: VF | AG33: Name Qualifier 11
P34: Shake | Q34: 16 | R34: 1 | S34: =SUM(Q34*R34) -> 16 | AF34: 2 VF | AG34: Name Qualifier 12
P35: TG | Q35: 55 | R35: 0 | S35: 0
G36: =IF(F36<>"",E36+F36,"") ->  | P36: O/G | Q36: 25.63 | R36: 0 | S36: 0 | AG36: An option to Plan & Track
P37: Enter Other | Q37: 0 | R37: 0 | S37: 0 | AG37: people with Goal of
P38: Enter Other | Q38: 0 | R38: 0 | S38: 0 | AG38: Qualifying
P39: Total New Projected PVC | S39: =SUM(S33:S38) -> 58.5
P42: Tracking Stucture & Club Levels
P44: Bus Growth | Q44: Last Month | R44: New | S44: Category
P45: by Category | Q45: 12 Mo Report | R45: This Month | S45: Total
P46: Club Level | Q46: 0 | R46: 0 | S46: =IF(R46<>"",Q46+R46,"") -> 0
P47: # PB Legs | Q47: 0 | R47: 0 | S47: =IF(R47<>"",Q47+R47,"") -> 0
P48: # POB Legs | Q48: 0 | R48: 0 | S48: 0
P49: Payline PVC | Q49: 0 | R49: 0 | S49: 0
P54: Team Totals | Q54: Last Mo | R54: New PVC | S54: Total PVC | U54: Column Totals from SC and Above | X54: =SUM(X23:X53) -> 16000 | Y54: =SUM(Y23:Y53) -> 16000 | Z54: =SUM(Z23:Z53) -> 32000 | AA54: Team | AB54: =SUM(AB23:AB53) -> 2880
W55: Your 6-4-5 Commission Income | AA55: You | AB55: =SUM(L17+Q17+R17) -> 1147.81
P56: Your 6-4-5 | Q56: =Q27 -> 5099 | R56: =R27 -> 1510 | S56: =SUM(S27) -> 6609 | X56: Total Commission Income | AA56: Com | AB56: =SUM(AB54:AB55) -> 4027.81
D57: Total PVC from your DLR's & DD's | E57: =SUM(E23:E56) -> 1190 | F57: =SUM(F23:F56) -> 510 | G57: =SUM(G23:G56) -> 1700 | K57: Total PVC from your VF's | L57: =SUM(L23:L56) -> 2213 | M57: =SUM(M23:M56) -> 1000 | N57: =SUM(N23:N56) -> 3213 | P57: SC  Col 5 | Q57: =X54 -> 16000 | R57: =Y54 -> 16000 | S57: =SUM(Q57+R57) -> 32000 | X57: Business Incentive Bonus | AA57: 0.2 | AB57: =SUM(AB56*AA57) -> 805.562 | AE57: Planning Col 4 Club Levels | AH57: =SUM(AH23:AH56) -> 2841 | AI57: =SUM(AI23:AI56) -> 0 | AJ57: =SUM(AJ23:AJ56) -> 0
B58: Goal | C58: 1600 | D58: $ 1,600 x 21% = $336 | E58: Rate | F58: 0.21 | G58: =SUM(G57 *F58) -> 357 | I58: Goal | J58: 3200 | K58: $ 3,200 x 13% = $416 | L58: Rate | M58: 0.13 | N58: =SUM(N57 *M58) -> 417.69 | P58: Team Total | Q58: =SUM(Q27+Q57) -> 21099 | R58: =SUM(R27+R57) -> 17510 | S58: =SUM(Q58+R58) -> 38609 | W58: Retail Profit Only: Consider Residual & New Orders | AA58: RSP | AB58: =SUM(M17:N17) -> 390 | AE58: Goal | AJ58: Clubs | AK58: =SUM(AK23:AK57) -> 2
W59: Estimate of Combined Income: Your 6-4-5 , PB, POB & BIB | AA59: Total | AB59: =SUM(AB56:AB58) -> 5223.372
AB60: =SUM(AB59*12) -> 62680.464 | AC60: Annual
Z61: Remember to Add any Suppliment Bonus Checks, TBB's + Yr End Bonus | AB61: =IF(AA61<>"",AB60+AA61,"") ->  | AC61: Total
C62: Current Month 6-4-5
B63: B-3 | D63: Team Income Estimator | E63: Your Col 6 | F63: Your Col 4 | G63: Your Col 5 | H63: Income | K63: Comments or Goals
B64: Your 6-4-5 Data | D64: Your 6-4-5 | E64: 1600 | F64: 3200 | G64: 6400
D65: Your 6-4-5 Income | E65: 750 | F65: 336 | G65: 416 | I65: =SUM(E65:G65) -> 1502
B66: Lev | C66: Title | D66: SC & Above Name | E66: Current Col 5 | F66: New PVC | G66: Total Col 5 | H66: Rate | I66: Income | K66: Comments & Next Steps
B67: 1 | C67: SC | D67: Level 1 ( 1st SC in Leg) | E67: 6400 | G67: =SUM(E67+F67) -> 6400 | H67: 0.09 | I67: =IF(H67<>"",G67*H67,"") -> 576
B68: 2 | C68: SC | D68: Level 1 | E68: =E67 -> 6400 | G68: =SUM(E68+F68) -> 6400 | H68: 0.09 | I68: =IF(H68<>"",G68*H68,"") -> 576
B69: 3 | C69: SC | D69: Level 1 | E69: =E68 -> 6400 | G69: 6400 | H69: 0.09 | I69: 576
B70: 4 | C70: SC | D70: Level 1 | E70: 6400 | G70: 6400 | H70: 0.09 | I70: 576
B71: 5 | C71: SC | D71: Level 1 | E71: 6400 | G71: 6400 | H71: 0.09 | I71: 576
B72: SC under another another POB SC
B73: 6 | C73: SC | D73: Level 2 - 5 | E73: =E71 -> 6400 | G73: 6400 | H73: 0.05 | I73: 320
B74: 7 | C74: SC | D74: Level 2 - 5 | E74: 6400 | G74: 6400 | H74: 0.05 | I74: 320
B75: 8 | C75: SC | D75: Level 2 - 5 | E75: 6400 | G75: 6400 | H75: 0.05 | I75: 320
B76: 9 | C76: SC | D76: Level 2 - 5 | E76: 6400 | G76: 6400 | H76: 0.05 | I76: 320
B77: 10 | C77: SC | D77: Level 2 - 5 | E77: 6400 | G77: 6400 | H77: 0.05 | I77: 320
B78: 11 | C78: SC | D78: Level 2 - 5 | E78: 6400 | G78: 6400 | H78: 0.05 | I78: 320
B79: 12 | C79: SC | D79: Level 2 - 5 | E79: 6400 | G79: 6400 | H79: 0.05 | I79: 320
B80: 13 | C80: SC | D80: Level 2 - 5 | E80: 6400 | G80: 6400 | H80: 0.05 | I80: 320
B81: 14 | C81: SC | D81: Level 2 - 6 | E81: 6400 | G81: 6400 | H81: 0.05 | I81: 320
B82: 15 | C82: SC | D82: Level 2 - 7 | E82: 6400 | G82: 6400 | H82: 0.05 | I82: 320
I83: =IF(H83<>"",G83*H83,"") -> 
I84: =IF(H84<>"",G84*H84,"") -> 
I107: =IF(H107<>"",G107*H107,"") -> 
G115: Subtotal before BIB is added if you qualify for that Bonus | I115: =SUM(I67:J114) -> 6080
G116: Subtract your Retail Profit for subtotal to calculate BIB | I116: -320
I117: =SUM(I115:I116) -> 5760
G118: Enter Your BIB Rate | H118: 0.2 | I118: =SUM(I117*H118) -> 1152
F119: Your Col 6 | G119: =G64 -> 6400
D120: This is an approximate estimate of Income | G120: =SUM(G67:G119) -> 102400 | H120: Aprx | I120: =SUM(I117:I119) -> 6912
B126: Timeline | D126: Plan to Sales Coordinator | F126: Bonus | G126: Column | H126: Line Totals | L126: Position of SC in Team | Q126: Inc | R126: (6-4-5) SC | S126: Income | T126: Annual
A127: 1st 30-60 Days | D127: HLP & 2000+ | F127: 350 | G127: Col 6 | H127: 750 | L127: Your | M127: (6-4-5) SC Position (rounded) | Q127: 750 | R127: 750 | S127: 1500
A128: Months | C128: 2 to 6 | D128: Sales Coordinator | F128: 500 | G128: Col 4 | H128: 353 | L128: # of | M128: (6-4-5) SC Legs (structure wide) | Q128: 575 | R128: 5 | S128: =SUM(Q128*R128) -> 2875
D129: 3 (2000+) Sponsor Bonuses | F129: 750 | G129: Col 5 | H129: 441 | L129: # of | M129: (6-4-5) SC's (under other SC's) | Q129: 320 | R129: 7 | S129: =SUM(Q129*R129) -> 2240
A130: Total | D130: (6 - 4- 5) Sales Coordinator | F130: =SUM(F127:F129) -> 1600 | G130: =SUM(H127:H129) -> 1544 | H130: =SUM(F130:G130) -> 3144 | L130: Club Level & Mo Residual Inc | R130: =SUM(R128:R129) -> 12 | S130: =SUM(S127:S129) -> 6615
P131: BIB on Commissions | Q131: 0.2 | R131: =SUM(S130-390) -> 6225 | S131: =SUM(R131*Q131) -> 1245
A132: Months 6-12 | D132: Sr Sales Coordinator | F132: 1000 | G132: Payline | H132: 8000 | N132: Example of a New NMD 12 Club | S132: =SUM(S130:S131) -> 7860 | T132: =SUM(S132*12) -> 94320
B134: Years | C134: 1 to 3 | D134: SC Legs - Direct to You | H134: Income | L134: Yrs | M134: 1 to 3 | N134: SC Legs - under SCs | Q134: Inc | R134: Club Level | S134: Income
D135: Duplicate 6-4-5 SC's | F135: 1 Leg | G135: Level 1 SC | H135: 575 | L135: Ex | M135: Leg 1 | N135: 1 Club (Example) | Q135: 320 | R135: 1 | S135: =SUM(Q135*R135) -> 320
D136: Duplicate 6-4-5 SC's | F136: 2 Leg | G136: Level 1 SC | H136: 575 | L136: Ex | M136: Leg 2 | N136: 3 Club (Example) | Q136: 320 | R136: 3 | S136: =SUM(Q136*R136) -> 960
D137: Duplicate 6-4-5 SC's | F137: 3 Leg | G137: Level 1 SC | H137: 575 | L137: Ex | M137: Leg 3 | N137: 6 Club (Example) | Q137: 320 | R137: 6 | S137: =SUM(Q137*R137) -> 1920
D138: Duplicate 6-4-5 SC's | F138: 4 Leg | G138: Level 1 SC | H138: 575 | L138: Ex | M138: Leg 4 | N138: 12 Club (Example) | Q138: 320 | R138: 12 | S138: =SUM(Q138*R138) -> 3840
D139: Duplicate 6-4-5 SC's | F139: 5 Leg | G139: Level 1 SC | H139: 575 | L139: Ex | M139: Leg 5 | N139: 24 Club (Example) | Q139: 320 | R139: 24 | S139: =SUM(Q139*R139) -> 7680
B140: You and 5 6 -4-5 Sales Coordinator Legs | G140: Mo Residual Inc | H140: =SUM(G130+H135+H136+H137+H138+H139-390) -> 4029 | P140: Mo Residual Income | R140: =SUM(R135:R139) -> 46 | S140: =SUM(S135:S139) -> 14720
D141: BIB on Commissions | F141: 0.2 | G141: =SUM(H140-390) -> 3639 | H141: =SUM(G141*F141) -> 727.8 | P141: BIB on Commissions | Q141: 0.2 | R141: =S140 -> 14720 | S141: =SUM(R141*Q141) -> 2944
H142: =SUM(H140:H141) -> 4756.8 | S142: =SUM(S140:S141) -> 17664

Sheet SSC Inc Sample (hidden)
U2: Use for Calculating your Monthly PVC Goals
U4: Product / PVC | W4: Quantity | X4: Total PVC
U5: Trio | V5: 42.5 | W5: 3 | X5: =SUM(V5*W5) -> 127.5
U6: Shake | V6: 16 | W6: 3 | X6: =SUM(V6*W6) -> 48
U7: TG | V7: 55 | W7: 3 | X7: 165
U8: O/G | V8: 25.63 | W8: 3 | X8: 76.89
U9: Enter | V9: 0 | W9: 0 | X9: 0
U10: Other | V10: 0 | W10: 0 | X10: 0
U11: Total New Projected PVC | X11: =SUM(X5:X10) -> 417.39
B14: A | C14: Example Trio Cust's in Col 6 | E14: PVC/$ | F14: # Cust | G14: Col 6 PVC | I14: To Calculate Commission: Enter Rate & Col 6 PVC | M14: Retail Profit | P14: Income from 6-4-5 Example | U14: Retail Profit is paid right away on New Orders | Y14: Total
B15: Monthly Trio = 169.5 / 4 Mo Instm't | E15: 42.375 | F15: 40 | G15: =SUM(E15*F15) -> 1695 | I15: % Rate | K15: Enter Col 6 PVC | L15: Commission | M15: Residual | N15: New Orders | P15: A | Q15: B-1 | R15: B-2 | S15: Total | U15: Product | W15: New Orders | X15: SubTotal | Y15: =SUM(X16:X17) -> 156
B16: Monthly Retail Profit ($39 /4) | E16: 9.75 | F16: 40 | G16: =SUM(E16*F16) -> 390 | P16: Col 6 Inc | Q16: Income | R16: Income | S16: Income | U16: Trio | V16: 39 | W16: 4 | X16: =SUM(V16*W16) -> 156
B17: Experiment with (6-4-5) Income to right | H17:  | I17: SC | J17: 0.22 | K17: 1695 | L17: =SUM(J17*K17) -> 372.9 | M17: 390 | O17: = | P17: =SUM(L17+M17+N17) -> 762.9 | Q17: =G58 -> 410.34 | R17: =N58 -> 1072.5 | S17: =SUM(P17:R17) -> 2245.74 | U17: Shake | V17: 16 | X17: =SUM(V17*W17) -> 0
B21: B-1 | C21: Dist | D21: Your Lev 1 DLR or DD's & any DLR or DD's below them | I21: B-2 | J21: VF | K21: Track Col 4 of Your Level 1 VF's & any VF's below them | P21: Your Monthly Plan | R21: Must enter numbers to auto calculate total | U21: List Level, Name, Col 5 PVC of all SC & above | AA21: Income Earned on your Team's Col 5 | AE21: List all VF & Above with 1,000 or moe in Col 4
B22: Lev | C22: Title | D22: Your DLR & DD's Names | E22: End Mo Col 6 | F22: New PVC | G22: Total Dist Col 6 PVC | I22: Lev | J22: Title | K22: Your VF's Names | L22: End Mo Col 4 | M22: New PVC | N22: Total VF Col 4 PVC | P22: Your 6-4-5 | Q22: End Mo PVC | R22: New PVC | S22: Total PVC | U22: Lev | V22: Title | W22: Name of SC or Above | X22: End Mo Col 5 PVC | Y22: New Col 5 PVC | Z22: Total Col 5 PVC | AA22: Bonus % | AB22: PB & POB Income | AE22: Lev | AF22: Title | AG22: Name | AH22: End Mo Col 4 | AI22: New PVC | AJ22: Total Col 4 | AK22: Clubs
B23: 1 | C23: DD | D23: Rep 1 (4 Trios) | E23: 170 | F23: 0 | G23: =IF(F23<>"",E23+F23,"") -> 170 | I23: 1 | J23: VF | K23: Rep 1 24 Trios | L23: 1000 | M23: 1000 | N23: =IF(M23<>"",L23+M23,"") -> 2000 | P23: Your Col 6 | Q23: 1695 | R23: 128 | S23: =IF(R23<>"",Q23+R23,"") -> 1823 | U23: 1 | V23: SC | W23: Name of 1st SC | X23: 6400 | Y23: 0 | Z23: =IF(Y23<>"",X23+Y23,"") -> 6400 | AA23: 0.09 | AB23: =IF(Z23<>"",Z23*AA23,"") -> 576 | AJ23: =IF(AI23<>"",AH23+AI23,"") -> 
B24: 1 | C24: DD | D24: Rep 2 | E24: 170 | F24: 0 | G24: =IF(F24<>"",E24+F24,"") -> 170 | I24: 1 | J24: VF | K24: Rep 2 | L24: 1000 | M24: 1000 | N24: =IF(M24<>"",L24+M24,"") -> 2000 | P24: Your Col 4 | Q24: =SUM(Q23+E57) -> 3395 | R24: =F57 -> 254 | S24: =IF(R24<>"",Q24+R23+R24,"") -> 3777 | AB24: =IF(Z24<>"",Z24*AA24,"") ->  | AJ24: =IF(AI24<>"",AH24+AI24,"") -> 
B25: 1 | C25: DD | D25: Rep 3 | E25: 170 | F25: 0 | G25: 170 | I25: 1 | J25: VF | K25: Rep 3 12 Trios | L25: 500 | M25: 500 | N25: =IF(M25<>"",L25+M25,"") -> 1000 | P25: Your Col 5 | Q25: =SUM(Q24+L57) -> 7895 | R25: =M57 -> 3750 | S25: =IF(R25<>"",Q25+R23+R24+R25,"") -> 12027
B26: 1 | C26: DD | D26: Rep 4 | E26: 170 | F26: 128 | G26: 298 | I26: 1 | J26: VF | K26: Rep 4 | L26: 500 | M26: 500 | N26: =IF(M26<>"",L26+M26,"") -> 1000 | P26: Pay in Full
B27: 1 | C27: DD | D27: Rep 4 | E27: 170 | F27: 0 | G27: 170 | I27: 1 | J27: VF | K27: Rep 5 | L27: 500 | M27: 250 | N27: 750 | P27: Your 6-4-5 | Q27: =SUM(Q25:Q26) -> 7895 | R27: =SUM(R23:R26) -> 4132 | S27: =SUM(Q27+R27) -> 12027
B28: 1 | C28: DD | D28: Rep 5 | E28: 170 | F28: 0 | G28: 170 | I28: 2 | J28: VF | K28: Rep 6 5 Trios | L28: 500 | M28: 250 | N28: 750
P30: Use to Calculate your Monthly PVC Goals
G31: =IF(F31<>"",E31+F31,"") -> 
P32: Product | Q32: PVC | R32: Quantity | S32: Total PVC
P33: Trio | Q33: 42.5 | R33: 1 | S33: =SUM(Q33*R33) -> 42.5
P34: Shake | Q34: 16 | R34: 1 | S34: =SUM(Q34*R34) -> 16
P35: TG | Q35: 55 | R35: 0 | S35: 0
G36: =IF(F36<>"",E36+F36,"") ->  | P36: O/G | Q36: 25.63 | R36: 0 | S36: 0
P37: Enter Other | Q37: 0 | R37: 0 | S37: 0
P38: Enter Other | Q38: 0 | R38: 0 | S38: 0
P39: Total New Projected PVC | S39: =SUM(S33:S38) -> 58.5
P42: Tracking Stucture & Club Levels
P44: Bus Growth | Q44: Last Month | R44: New | S44: Category
P45: by Category | Q45: 12 Mo Report | R45: This Month | S45: Total
P46: Club Level | Q46: 0 | R46: 0 | S46: =IF(R46<>"",Q46+R46,"") -> 0
P47: # PB Legs | Q47: 0 | R47: 0 | S47: =IF(R47<>"",Q47+R47,"") -> 0
P48: # POB Legs | Q48: 0 | R48: 0 | S48: 0
P49: Payline PVC | Q49: 0 | R49: 0 | S49: 0
B53: 1 | C53: DD | D53: Rep 6 | E53: 170 | F53: 42 | G53: 212 | I53: 3 | J53: VF | K53: Rep 7 5 Trios | L53: 500 | M53: 250 | N53: 750
B54: 1 | C54: DD | D54: Rep 7 | E54: 170 | F54: 0 | G54: 170 | P54: Team Totals | Q54: Last Mo | R54: New PVC | S54: Total PVC | U54: Column Totals from SC and Above | X54: =SUM(X23:X53) -> 6400 | Y54: =SUM(Y23:Y53) -> 0 | Z54: =SUM(Z23:Z53) -> 6400 | AA54: Team | AB54: =SUM(AB23:AB53) -> 576
B55: 1 | C55: DD | D55: Rep 8 | E55: 170 | F55: 84 | G55: 254 | W55: Your 6-4-5 Commission Income | AA55: You | AB55: =SUM(L17+Q17+R17) -> 1855.74
B56: 1 | C56: DD | D56: Rep 9 | E56: 170 | F56: 0 | G56: 170 | P56: Your 6-4-5 | Q56: =Q27 -> 7895 | R56: =R27 -> 4132 | S56: =SUM(S27) -> 12027 | X56: Total Commission Income | AA56: Com | AB56: =SUM(AB54:AB55) -> 2431.74
D57: Total PVC from your DLR's & DD's | E57: =SUM(E23:E56) -> 1700 | F57: =SUM(F23:F56) -> 254 | G57: =SUM(G23:G56) -> 1954 | K57: Total PVC from your VF's | L57: =SUM(L23:L56) -> 4500 | M57: =SUM(M23:M56) -> 3750 | N57: =SUM(N23:N56) -> 8250 | P57: SC  Col 5 | Q57: =X54 -> 6400 | R57: =Y54 -> 0 | S57: =SUM(Q57+R57) -> 6400 | X57: Business Incentive Bonus | AA57: 0.2 | AB57: =SUM(AB56*AA57) -> 486.348 | AE57: Planning Col 4 Club Levels | AH57: =SUM(AH23:AH56) -> 0 | AI57: =SUM(AI23:AI56) -> 0 | AJ57: =SUM(AJ23:AJ56) -> 0
B58: Goal | C58: 1600 | D58: $ 1,600 x 21% = $336 | E58: Rate | F58: 0.21 | G58: =SUM(G57 *F58) -> 410.34 | I58: Goal | J58: 3200 | K58: $ 3,200 x 13% = $416 | L58: Rate | M58: 0.13 | N58: =SUM(N57 *M58) -> 1072.5 | P58: Team Total | Q58: =SUM(Q27+Q57) -> 14295 | R58: =SUM(R27+R57) -> 4132 | S58: =SUM(Q58+R58) -> 18427 | W58: Retail Profit Only: Consider Residual & New Orders | AA58: RSP | AB58: =SUM(M17:N17) -> 390 | AE58: Goal | AJ58: Clubs | AK58: =SUM(AK23:AK57) -> 0
W59: Estimate of Combined Income: Your 6-4-5 , PB, POB & BIB | AA59: Total | AB59: =SUM(AB56:AB58) -> 3308.088
AB60: =SUM(AB59*12) -> 39697.056 | AC60: Annual
Z61: Remember to Add any Suppliment Bonus Checks, TBB's + Yr End Bonus | AB61: =IF(AA61<>"",AB60+AA61,"") ->  | AC61: Total
C62: Current Month 6-4-5
B63: B-3 | D63: Team Income Estimator | E63: Your Col 6 | F63: Your Col 4 | G63: Your Col 5 | H63: Income | K63: Comments or Goals
B64: Your 6-4-5 Data | D64: Your 6-4-5 | E64: 1600 | F64: 3200 | G64: 6400
D65: Your 6-4-5 Income | E65: 750 | F65: 336 | G65: 416 | I65: =SUM(E65:G65) -> 1502
B66: Lev | C66: Title | D66: SC & Above Name | E66: Current Col 5 | F66: New PVC | G66: Total Col 5 | H66: Rate | I66: Income | K66: Comments & Next Steps
B67: 1 | C67: SC | D67: Level 1 ( 1st SC in Leg) | E67: 6400 | G67: =SUM(E67+F67) -> 6400 | H67: 0.09 | I67: =IF(H67<>"",G67*H67,"") -> 576
B68: 2 | C68: SC | D68: Level 1 | E68: =E67 -> 6400 | G68: =SUM(E68+F68) -> 6400 | H68: 0.09 | I68: =IF(H68<>"",G68*H68,"") -> 576
B69: 3 | C69: SC | D69: Level 1 | E69: =E68 -> 6400 | G69: 6400 | H69: 0.09 | I69: 576
B70: 4 | C70: SC | D70: Level 1 | E70: 6400 | G70: 6400 | H70: 0.09 | I70: 576
B71: 5 | C71: SC | D71: Level 1 | E71: 6400 | G71: 6400 | H71: 0.09 | I71: 576
B72: SC under another another POB SC
B73: 6 | C73: SC | D73: Level 2 - 5 | E73: =E71 -> 6400 | G73: 6400 | H73: 0.05 | I73: 320
B74: 7 | C74: SC | D74: Level 2 - 5 | E74: 6400 | G74: 6400 | H74: 0.05 | I74: 320
B75: 8 | C75: SC | D75: Level 2 - 5 | E75: 6400 | G75: 6400 | H75: 0.05 | I75: 320
B76: 9 | C76: SC | D76: Level 2 - 5 | E76: 6400 | G76: 6400 | H76: 0.05 | I76: 320
B77: 10 | C77: SC | D77: Level 2 - 5 | E77: 6400 | G77: 6400 | H77: 0.05 | I77: 320
B78: 11 | C78: SC | D78: Level 2 - 5 | E78: 6400 | G78: 6400 | H78: 0.05 | I78: 320
B79: 12 | C79: SC | D79: Level 2 - 5 | E79: 6400 | G79: 6400 | H79: 0.05 | I79: 320
B80: 13 | C80: SC | D80: Level 2 - 5 | E80: 6400 | G80: 6400 | H80: 0.05 | I80: 320
B81: 14 | C81: SC | D81: Level 2 - 6 | E81: 6400 | G81: 6400 | H81: 0.05 | I81: 320
B82: 15 | C82: SC | D82: Level 2 - 7 | E82: 6400 | G82: 6400 | H82: 0.05 | I82: 320
I83: =IF(H83<>"",G83*H83,"") -> 
I84: =IF(H84<>"",G84*H84,"") -> 
I107: =IF(H107<>"",G107*H107,"") -> 
G115: Subtotal before BIB is added if you qualify for that Bonus | I115: =SUM(I67:J114) -> 6080
G116: Subtract your Retail Profit for subtotal to calculate BIB | I116: -320
I117: =SUM(I115:I116) -> 5760
G118: Enter Your BIB Rate | H118: 0.2 | I118: =SUM(I117*H118) -> 1152
F119: Your Col 6 | G119: =G64 -> 6400
D120: This is an approximate estimate of Income | G120: =SUM(G67:G119) -> 102400 | H120: Aprx | I120: =SUM(I117:I119) -> 6912
B126: Timeline | D126: Plan to Sales Coordinator | F126: Bonus | G126: Column | H126: Line Totals | L126: Position of SC in Team | Q126: Inc | R126: (6-4-5) SC | S126: Income | T126: Annual
A127: 1st 30-60 Days | D127: HLP & 2000+ | F127: 350 | G127: Col 6 | H127: 750 | L127: Your | M127: (6-4-5) SC Position (rounded) | Q127: 750 | R127: 750 | S127: 1500
A128: Months | C128: 2 to 6 | D128: Sales Coordinator | F128: 500 | G128: Col 4 | H128: 353 | L128: # of | M128: (6-4-5) SC Legs (structure wide) | Q128: 575 | R128: 5 | S128: =SUM(Q128*R128) -> 2875
D129: 3 (2000+) Sponsor Bonuses | F129: 750 | G129: Col 5 | H129: 441 | L129: # of | M129: (6-4-5) SC's (under other SC's) | Q129: 320 | R129: 7 | S129: =SUM(Q129*R129) -> 2240
A130: Total | D130: (6 - 4- 5) Sales Coordinator | F130: =SUM(F127:F129) -> 1600 | G130: =SUM(H127:H129) -> 1544 | H130: =SUM(F130:G130) -> 3144 | L130: Club Level & Mo Residual Inc | R130: =SUM(R128:R129) -> 12 | S130: =SUM(S127:S129) -> 6615
P131: BIB on Commissions | Q131: 0.2 | R131: =SUM(S130-390) -> 6225 | S131: =SUM(R131*Q131) -> 1245
A132: Months 6-12 | D132: Sr Sales Coordinator | F132: 1000 | G132: Payline | H132: 8000 | N132: Example of a New NMD 12 Club | S132: =SUM(S130:S131) -> 7860 | T132: =SUM(S132*12) -> 94320
B134: Years | C134: 1 to 3 | D134: SC Legs - Direct to You | H134: Income | L134: Yrs | M134: 1 to 3 | N134: SC Legs - under SCs | Q134: Inc | R134: Club Level | S134: Income
D135: Duplicate 6-4-5 SC's | F135: 1 Leg | G135: Level 1 SC | H135: 575 | L135: Ex | M135: Leg 1 | N135: 1 Club (Example) | Q135: 320 | R135: 1 | S135: =SUM(Q135*R135) -> 320
D136: Duplicate 6-4-5 SC's | F136: 2 Leg | G136: Level 1 SC | H136: 575 | L136: Ex | M136: Leg 2 | N136: 3 Club (Example) | Q136: 320 | R136: 3 | S136: =SUM(Q136*R136) -> 960
D137: Duplicate 6-4-5 SC's | F137: 3 Leg | G137: Level 1 SC | H137: 575 | L137: Ex | M137: Leg 3 | N137: 6 Club (Example) | Q137: 320 | R137: 6 | S137: =SUM(Q137*R137) -> 1920
D138: Duplicate 6-4-5 SC's | F138: 4 Leg | G138: Level 1 SC | H138: 575 | L138: Ex | M138: Leg 4 | N138: 12 Club (Example) | Q138: 320 | R138: 12 | S138: =SUM(Q138*R138) -> 3840
D139: Duplicate 6-4-5 SC's | F139: 5 Leg | G139: Level 1 SC | H139: 575 | L139: Ex | M139: Leg 5 | N139: 24 Club (Example) | Q139: 320 | R139: 24 | S139: =SUM(Q139*R139) -> 7680
B140: You and 5 6 -4-5 Sales Coordinator Legs | G140: Mo Residual Inc | H140: =SUM(G130+H135+H136+H137+H138+H139-390) -> 4029 | P140: Mo Residual Income | R140: =SUM(R135:R139) -> 46 | S140: =SUM(S135:S139) -> 14720
D141: BIB on Commissions | F141: 0.2 | G141: =SUM(H140-390) -> 3639 | H141: =SUM(G141*F141) -> 727.8 | P141: BIB on Commissions | Q141: 0.2 | R141: =S140 -> 14720 | S141: =SUM(R141*Q141) -> 2944
H142: =SUM(H140:H141) -> 4756.8 | S142: =SUM(S140:S141) -> 17664

Sheet SSC 1 (hidden)
U2: Use for Calculating your Monthly PVC Goals
U4: Product / PVC | W4: Quantity | X4: Total PVC
U5: Trio | V5: 42.5 | W5: 3 | X5: =SUM(V5*W5) -> 127.5
U6: Shake | V6: 16 | W6: 3 | X6: =SUM(V6*W6) -> 48
U7: TG | V7: 55 | W7: 3 | X7: 165
U8: O/G | V8: 25.63 | W8: 3 | X8: 76.89
U9: Enter | V9: 0 | W9: 0 | X9: 0
U10: Other | V10: 0 | W10: 0 | X10: 0
U11: Total New Projected PVC | X11: =SUM(X5:X10) -> 417.39
B14: A | C14: Example Trio Cust's in Col 6 | E14: PVC/$ | F14: # Cust | G14: Col 6 PVC | I14: To Calculate Commission: Enter Rate & Col 6 PVC | M14: Retail Profit | P14: Income from 6-4-5 Example | U14: Retail Profit is paid right away on New Orders | Y14: Total
B15: Monthly Trio = 169.5 / 4 Mo Instm't | E15: 42.375 | F15: 40 | G15: =SUM(E15*F15) -> 1695 | I15: % Rate | K15: Enter Col 6 PVC | L15: Commission | M15: Residual | N15: New Orders | P15: A | Q15: B-1 | R15: B-2 | S15: Total | U15: Product | W15: New Orders | X15: SubTotal | Y15: =SUM(X16:X17) -> 156
B16: Monthly Retail Profit ($39 /4) | E16: 9.75 | F16: 40 | G16: =SUM(E16*F16) -> 390 | P16: Col 6 Inc | Q16: Income | R16: Income | S16: Income | U16: Trio | V16: 39 | W16: 4 | X16: =SUM(V16*W16) -> 156
B17: Experiment with (6-4-5) Income to right | H17:  | I17: SC | J17: 0.22 | L17: =SUM(J17*K17) -> 0 | O17: = | P17: =SUM(L17+M17+N17) -> 0 | Q17: =G58 -> 0 | R17: =N58 -> 0 | S17: =SUM(P17:R17) -> 0 | U17: Shake | V17: 16 | X17: =SUM(V17*W17) -> 0
B21: B-1 | C21: Dist | D21: Your Lev 1 DLR or DD's & any DLR or DD's below them | I21: B-2 | J21: VF | K21: Track Col 4 of Your Level 1 VF's & any VF's below them | P21: Your Monthly Plan | R21: Must enter numbers to auto calculate total | U21: List Level, Name, Col 5 PVC of all SC & above | AA21: Income Earned on your Team's Col 5 | AE21: List all VF & Above with 1,000 or moe in Col 4
B22: Lev | C22: Title | D22: Your DLR & DD's Names | E22: End Mo Col 6 | F22: New PVC | G22: Total Dist Col 6 PVC | I22: Lev | J22: Title | K22: Your VF's Names | L22: End Mo Col 4 | M22: New PVC | N22: Total VF Col 4 PVC | P22: Your 6-4-5 | Q22: End Mo PVC | R22: New PVC | S22: Total PVC | U22: Lev | V22: Title | W22: Name of SC or Above | X22: End Mo Col 5 PVC | Y22: New Col 5 PVC | Z22: Total Col 5 PVC | AA22: Bonus % | AB22: PB & POB Income | AE22: Lev | AF22: Title | AG22: Name | AH22: End Mo Col 4 | AI22: New PVC | AJ22: Total Col 4 | AK22: Clubs
G23: =IF(F23<>"",E23+F23,"") ->  | N23: =IF(M23<>"",L23+M23,"") ->  | P23: Your Col 6 | S23: =IF(R23<>"",Q23+R23,"") ->  | Z23: =IF(Y23<>"",X23+Y23,"") ->  | AB23: =IF(Z23<>"",Z23*AA23,"") ->  | AJ23: =IF(AI23<>"",AH23+AI23,"") -> 
G24: =IF(F24<>"",E24+F24,"") ->  | N24: =IF(M24<>"",L24+M24,"") ->  | P24: Your Col 4 | Q24: =SUM(Q23+E57) -> 0 | R24: =F57 -> 0 | S24: =IF(R24<>"",Q24+R23+R24,"") -> 0 | AB24: =IF(Z24<>"",Z24*AA24,"") ->  | AJ24: =IF(AI24<>"",AH24+AI24,"") -> 
N25: =IF(M25<>"",L25+M25,"") ->  | P25: Your Col 5 | Q25: =SUM(Q24+L57) -> 0 | R25: =M57 -> 0 | S25: =IF(R25<>"",Q25+R23+R24+R25,"") -> 0
N26: =IF(M26<>"",L26+M26,"") ->  | P26: Pay in Full
P27: Your 6-4-5 | Q27: =SUM(Q25:Q26) -> 0 | R27: =SUM(R23:R26) -> 0 | S27: =SUM(Q27+R27) -> 0
P30: Use to Calculate your Monthly PVC Goals
G31: =IF(F31<>"",E31+F31,"") -> 
N32: =IF(M32<>"",L32+M32,"") ->  | P32: Product | Q32: PVC | R32: Quantity | S32: Total PVC
P33: Trio | Q33: 42.5 | R33: 1 | S33: =SUM(Q33*R33) -> 42.5
P34: Shake | Q34: 16 | R34: 1 | S34: =SUM(Q34*R34) -> 16
P35: TG | Q35: 55 | R35: 0 | S35: 0
G36: =IF(F36<>"",E36+F36,"") ->  | P36: O/G | Q36: 25.63 | R36: 0 | S36: 0
P37: Enter Other | Q37: 0 | R37: 0 | S37: 0
P38: Enter Other | Q38: 0 | R38: 0 | S38: 0
P39: Total New Projected PVC | S39: =SUM(S33:S38) -> 58.5
P42: Tracking Stucture & Club Levels
P44: Bus Growth | Q44: Last Month | R44: New | S44: Category
P45: by Category | Q45: 12 Mo Report | R45: This Month | S45: Total
P46: Club Level | Q46: 0 | R46: 0 | S46: =IF(R46<>"",Q46+R46,"") -> 0
P47: # PB Legs | Q47: 0 | R47: 0 | S47: =IF(R47<>"",Q47+R47,"") -> 0
P48: # POB Legs | Q48: 0 | R48: 0 | S48: 0
P49: Payline PVC | Q49: 0 | R49: 0 | S49: 0
AK50: `
P54: Team Totals | Q54: Last Mo | R54: New PVC | S54: Total PVC | U54: Column Totals from SC and Above | X54: =SUM(X23:X53) -> 0 | Y54: =SUM(Y23:Y53) -> 0 | Z54: =SUM(Z23:Z53) -> 0 | AA54: Team | AB54: =SUM(AB23:AB53) -> 0
W55: Your 6-4-5 Commission Income | AA55: You | AB55: =SUM(L17+Q17+R17) -> 0
P56: Your 6-4-5 | Q56: =Q27 -> 0 | R56: =R27 -> 0 | S56: =SUM(S27) -> 0 | X56: Total Commission Income | AA56: Com | AB56: =SUM(AB54:AB55) -> 0
D57: Total PVC from your DLR's & DD's | E57: =SUM(E23:E56) -> 0 | F57: =SUM(F23:F56) -> 0 | G57: =SUM(G23:G56) -> 0 | K57: Total PVC from your VF's | L57: =SUM(L23:L56) -> 0 | M57: =SUM(M23:M56) -> 0 | N57: =SUM(N23:N56) -> 0 | P57: SC  Col 5 | Q57: =X54 -> 0 | R57: =Y54 -> 0 | S57: =SUM(Q57+R57) -> 0 | X57: Business Incentive Bonus | AA57: 0.2 | AB57: =SUM(AB56*AA57) -> 0 | AE57: Planning Col 4 Club Levels | AH57: =SUM(AH23:AH56) -> 0 | AI57: =SUM(AI23:AI56) -> 0 | AJ57: =SUM(AJ23:AJ56) -> 0
B58: Goal | C58: 1600 | D58: $ 1,600 x 21% = $336 | E58: Rate | F58: 0.21 | G58: =SUM(G57 *F58) -> 0 | I58: Goal | J58: 3200 | K58: $ 3,200 x 13% = $416 | L58: Rate | M58: 0.13 | N58: =SUM(N57 *M58) -> 0 | P58: Team Total | Q58: =SUM(Q27+Q57) -> 0 | R58: =SUM(R27+R57) -> 0 | S58: =SUM(Q58+R58) -> 0 | W58: Retail Profit Only: Consider Residual & New Orders | AA58: RSP | AB58: =SUM(M17:N17) -> 0 | AE58: Goal | AJ58: Clubs | AK58: =SUM(AK23:AK57) -> 0
W59: Estimate of Combined Income: Your 6-4-5 , PB, POB & BIB | AA59: Total | AB59: =SUM(AB56:AB58) -> 0
AB60: =SUM(AB59*12) -> 0 | AC60: Annual
Z61: Remember to Add any Suppliment Bonus Checks, TBB's + Yr End Bonus | AB61: =IF(AA61<>"",AB60+AA61,"") ->  | AC61: Total
C62: Current Month 6-4-5
B63: B-3 | D63: Team Income Estimator | E63: Your Col 6 | F63: Your Col 4 | G63: Your Col 5 | H63: Income | K63: Comments or Goals
B64: Your 6-4-5 Data | D64: Your 6-4-5 | E64: 1600 | F64: 3200 | G64: 6400
D65: Your 6-4-5 Income | E65: 750 | F65: 336 | G65: 416 | I65: =SUM(E65:G65) -> 1502
B66: Lev | C66: Title | D66: SC & Above Name | E66: Current Col 5 | F66: New PVC | G66: Total Col 5 | H66: Rate | I66: Income | K66: Comments & Next Steps
B67: 1 | C67: SC | D67: Level 1 ( 1st SC in Leg) | E67: 6400 | G67: =SUM(E67+F67) -> 6400 | H67: 0.09 | I67: =IF(H67<>"",G67*H67,"") -> 576
B68: 2 | C68: SC | D68: Level 1 | E68: =E67 -> 6400 | G68: =SUM(E68+F68) -> 6400 | H68: 0.09 | I68: =IF(H68<>"",G68*H68,"") -> 576
B69: 3 | C69: SC | D69: Level 1 | E69: =E68 -> 6400 | G69: 6400 | H69: 0.09 | I69: 576
B70: 4 | C70: SC | D70: Level 1 | E70: 6400 | G70: 6400 | H70: 0.09 | I70: 576
B71: 5 | C71: SC | D71: Level 1 | E71: 6400 | G71: 6400 | H71: 0.09 | I71: 576
B72: SC under another another POB SC
B73: 6 | C73: SC | D73: Level 2 - 5 | E73: =E71 -> 6400 | G73: 6400 | H73: 0.05 | I73: 320
B74: 7 | C74: SC | D74: Level 2 - 5 | E74: 6400 | G74: 6400 | H74: 0.05 | I74: 320
B75: 8 | C75: SC | D75: Level 2 - 5 | E75: 6400 | G75: 6400 | H75: 0.05 | I75: 320
B76: 9 | C76: SC | D76: Level 2 - 5 | E76: 6400 | G76: 6400 | H76: 0.05 | I76: 320
B77: 10 | C77: SC | D77: Level 2 - 5 | E77: 6400 | G77: 6400 | H77: 0.05 | I77: 320
B78: 11 | C78: SC | D78: Level 2 - 5 | E78: 6400 | G78: 6400 | H78: 0.05 | I78: 320
B79: 12 | C79: SC | D79: Level 2 - 5 | E79: 6400 | G79: 6400 | H79: 0.05 | I79: 320
B80: 13 | C80: SC | D80: Level 2 - 5 | E80: 6400 | G80: 6400 | H80: 0.05 | I80: 320
B81: 14 | C81: SC | D81: Level 2 - 6 | E81: 6400 | G81: 6400 | H81: 0.05 | I81: 320
B82: 15 | C82: SC | D82: Level 2 - 7 | E82: 6400 | G82: 6400 | H82: 0.05 | I82: 320
I83: =IF(H83<>"",G83*H83,"") -> 
I84: =IF(H84<>"",G84*H84,"") -> 
I107: =IF(H107<>"",G107*H107,"") -> 
G115: Subtotal before BIB is added if you qualify for that Bonus | I115: =SUM(I67:J114) -> 6080
G116: Subtract your Retail Profit for subtotal to calculate BIB | I116: -320
I117: =SUM(I115:I116) -> 5760
G118: Enter Your BIB Rate | H118: 0.2 | I118: =SUM(I117*H118) -> 1152
F119: Your Col 6 | G119: =G64 -> 6400
D120: This is an approximate estimate of Income | G120: =SUM(G67:G119) -> 102400 | H120: Aprx | I120: =SUM(I117:I119) -> 6912
B126: Timeline | D126: Plan to Sales Coordinator | F126: Bonus | G126: Column | H126: Line Totals | L126: Position of SC in Team | Q126: Inc | R126: (6-4-5) SC | S126: Income | T126: Annual
A127: 1st 30-60 Days | D127: HLP & 2000+ | F127: 350 | G127: Col 6 | H127: 750 | L127: Your | M127: (6-4-5) SC Position (rounded) | Q127: 750 | R127: 750 | S127: 1500
A128: Months | C128: 2 to 6 | D128: Sales Coordinator | F128: 500 | G128: Col 4 | H128: 353 | L128: # of | M128: (6-4-5) SC Legs (structure wide) | Q128: 575 | R128: 5 | S128: =SUM(Q128*R128) -> 2875
D129: 3 (2000+) Sponsor Bonuses | F129: 750 | G129: Col 5 | H129: 441 | L129: # of | M129: (6-4-5) SC's (under other SC's) | Q129: 320 | R129: 7 | S129: =SUM(Q129*R129) -> 2240
A130: Total | D130: (6 - 4- 5) Sales Coordinator | F130: =SUM(F127:F129) -> 1600 | G130: =SUM(H127:H129) -> 1544 | H130: =SUM(F130:G130) -> 3144 | L130: Club Level & Mo Residual Inc | R130: =SUM(R128:R129) -> 12 | S130: =SUM(S127:S129) -> 6615
P131: BIB on Commissions | Q131: 0.2 | R131: =SUM(S130-390) -> 6225 | S131: =SUM(R131*Q131) -> 1245
A132: Months 6-12 | D132: Sr Sales Coordinator | F132: 1000 | G132: Payline | H132: 8000 | N132: Example of a New NMD 12 Club | S132: =SUM(S130:S131) -> 7860 | T132: =SUM(S132*12) -> 94320
B134: Years | C134: 1 to 3 | D134: SC Legs - Direct to You | H134: Income | L134: Yrs | M134: 1 to 3 | N134: SC Legs - under SCs | Q134: Inc | R134: Club Level | S134: Income
D135: Duplicate 6-4-5 SC's | F135: 1 Leg | G135: Level 1 SC | H135: 575 | L135: Ex | M135: Leg 1 | N135: 1 Club (Example) | Q135: 320 | R135: 1 | S135: =SUM(Q135*R135) -> 320
D136: Duplicate 6-4-5 SC's | F136: 2 Leg | G136: Level 1 SC | H136: 575 | L136: Ex | M136: Leg 2 | N136: 3 Club (Example) | Q136: 320 | R136: 3 | S136: =SUM(Q136*R136) -> 960
D137: Duplicate 6-4-5 SC's | F137: 3 Leg | G137: Level 1 SC | H137: 575 | L137: Ex | M137: Leg 3 | N137: 6 Club (Example) | Q137: 320 | R137: 6 | S137: =SUM(Q137*R137) -> 1920
D138: Duplicate 6-4-5 SC's | F138: 4 Leg | G138: Level 1 SC | H138: 575 | L138: Ex | M138: Leg 4 | N138: 12 Club (Example) | Q138: 320 | R138: 12 | S138: =SUM(Q138*R138) -> 3840
D139: Duplicate 6-4-5 SC's | F139: 5 Leg | G139: Level 1 SC | H139: 575 | L139: Ex | M139: Leg 5 | N139: 24 Club (Example) | Q139: 320 | R139: 24 | S139: =SUM(Q139*R139) -> 7680
B140: You and 5 6 -4-5 Sales Coordinator Legs | G140: Mo Residual Inc | H140: =SUM(G130+H135+H136+H137+H138+H139-390) -> 4029 | P140: Mo Residual Income | R140: =SUM(R135:R139) -> 46 | S140: =SUM(S135:S139) -> 14720
D141: BIB on Commissions | F141: 0.2 | G141: =SUM(H140-390) -> 3639 | H141: =SUM(G141*F141) -> 727.8 | P141: BIB on Commissions | Q141: 0.2 | R141: =S140 -> 14720 | S141: =SUM(R141*Q141) -> 2944
H142: =SUM(H140:H141) -> 4756.8 | S142: =SUM(S140:S141) -> 17664

Sheet NMD Inc & Clubs (hidden)
U2: Use for Calculating your Monthly PVC Goals
U4: Product / PVC | W4: Quantity | X4: Total PVC
U5: Trio | V5: 42.5 | W5: 4 | X5: =SUM(V5*W5) -> 170
U6: Shake | V6: 16 | W6: 1 | X6: =SUM(V6*W6) -> 16
U7: TG | V7: 55 | W7: 1 | X7: 55
U8: O/G | V8: 25.63 | W8: 1 | X8: 25.63
U9: Enter | V9: 0 | W9: 0 | X9: 0
U10: Other | V10: 0 | W10: 0 | X10: 0
U11: Total New Projected PVC | X11: =SUM(X5:X10) -> 266.63
B14: A | C14: Example Trio Cust's in Col 6 | E14: PVC/$ | F14: # Cust | G14: Col 6 PVC | I14: To Calculate Commission: Enter Rate & Col 6 PVC | M14: Retail Profit | P14: Income from 6-4-5 Example | U14: Retail Profit is paid right away on New Orders | Y14: Total
B15: Monthly Trio = 169.5 / 4 Mo Instm't | E15: 42.375 | F15: 40 | G15: =SUM(E15*F15) -> 1695 | I15: % Rate | K15: Enter Col 6 PVC | L15: Commission | M15: Residual | N15: New Orders | P15: A | Q15: B-1 | R15: B-2 | S15: Total | U15: Product | W15: New Orders | X15: SubTotal | Y15: =SUM(X16:X17) -> 156
B16: Monthly Retail Profit ($39 /4) | E16: 9.75 | F16: 40 | G16: =SUM(E16*F16) -> 390 | P16: Col 6 Inc | Q16: Income | R16: Income | S16: Income | U16: Trio | V16: 39 | W16: 4 | X16: =SUM(V16*W16) -> 156
B17: Experiment with (6-4-5) Income to right | H17:  | I17: SC | J17: 0.22 | K17: 1695 | L17: =SUM(J17*K17) -> 372.9 | M17: 390 | O17: = | P17: =SUM(L17+M17+N17) -> 762.9 | Q17: =G58 -> 337.2873 | R17: =N58 -> 420.81 | S17: =SUM(P17:R17) -> 1520.9973 | U17: Shake | V17: 16 | X17: =SUM(V17*W17) -> 0
B21: B-1 | C21: Dist | D21: Your Lev 1 DLR or DD's & any DLR or DD's below them | I21: B-2 | J21: VF | K21: Track Col 4 of Your Level 1 VF's & any VF's below them | P21: Your Monthly Plan | R21: Must enter numbers to auto calculate total | U21: List Level, Name, Col 5 PVC of all SC & above | AA21: Income Earned on your Team's Col 5 | AE21: List all VF & Above with 1,000 or moe in Col 4
B22: Lev | C22: Title | D22: Your DLR & DD's Names | E22: End Mo Col 6 | F22: New PVC | G22: Total Dist Col 6 PVC | I22: Lev | J22: Title | K22: Your VF's Names | L22: End Mo Col 4 | M22: New PVC | N22: Total VF Col 4 PVC | P22: Your 6-4-5 | Q22: End Mo PVC | R22: New PVC | S22: Total PVC | U22: Lev | V22: Title | W22: Name of SC or Above | X22: End Mo Col 5 PVC | Y22: New Col 5 PVC | Z22: Total Col 5 PVC | AA22: Bonus % | AB22: PB & POB Income | AE22: Lev | AF22: Title | AG22: Name | AH22: End Mo Col 4 | AI22: New PVC | AJ22: Total Col 4 | AK22: Clubs
B23: 1 | C23: DD | D23: Dist 1 (4 Trios) | E23: 250 | F23: 169.5 | G23: =IF(F23<>"",E23+F23,"") -> 419.5 | I23: 1 | J23: VF | K23: Dist 1 Goal: 5 Trios (212 ) | L23: 789 | M23: 212 | N23: =IF(M23<>"",L23+M23,"") -> 1001 | P23: Your Col 6 | Q23: =K17 -> 1695 | R23: 170 | S23: =IF(R23<>"",Q23+R23,"") -> 1865 | U23: 1 | V23: SC | W23: Name 1 | X23: 6400 | Y23: 0 | Z23: =IF(Y23<>"",X23+Y23,"") -> 6400 | AA23: 0.09 | AB23: =IF(Z23<>"",Z23*AA23,"") -> 576 | AE23: 1 | AF23: SC | AG23: Qualifier 1 | AH23: 3200 | AI23: 0 | AJ23: =IF(AI23<>"",AH23+AI23,"") -> 3200 | AK23: 1
B24: 1 | C24: DD | D24: Dist 2 (4 Trios) | E24: 169.5 | F24: 169.5 | G24: =IF(F24<>"",E24+F24,"") -> 339 | N24: =IF(M24<>"",L24+M24,"") ->  | P24: Your Col 4 | Q24: =SUM(Q23+E57) -> 2623 | R24: =F57 -> 678.13 | S24: =IF(R24<>"",Q24+R23+R24,"") -> 3471.13 | V24: 2 SC | W24: Name 2 | X24: 6400 | Y24: 0 | Z24: 6400 | AA24: 0.05 | AB24: =IF(Z24<>"",Z24*AA24,"") -> 320 | AF24: 2 SC | AG24: Qualifier 2 | AH24: 3200 | AI24: 0 | AJ24: =IF(AI24<>"",AH24+AI24,"") -> 3200 | AK24: 1
B25: 1 | C25: DD | D25: Dist 3 (3 Trios) | E25: 169.5 | F25: 127.13 | G25: 296.63 | I25: 1 | J25: VF | K25: Dist 2 Goal: 4 Trios (169) | L25: 710 | M25: 297 | N25: =IF(M25<>"",L25+M25,"") -> 1007 | P25: Your Col 5 | Q25: =SUM(Q24+L57) -> 5054 | R25: =M57 -> 806 | S25: =IF(R25<>"",Q25+R23+R24+R25,"") -> 6708.13 | AF25: 2 VF | AG25: Qualifier 3 | AH25: 3200 | AI25: 0 | AJ25: 3200 | AK25: 1
B26: 1 | C26: DD | D26: Dist 4 (2 Trios) | E26: 169.5 | F26: 85 | G26: 254.5 | K26: Goal: 4 Trios ( 169) HLP | N26: =IF(M26<>"",L26+M26,"") ->  | P26: Pay in Full | U26: 1 | V26: SC | W26: Name 3 | X26: 6400 | Y26: 0 | Z26: 6400 | AA26: 0.09 | AB26: 576 | AF26: 2 VF | AG26: Qualifier 4 | AH26: 3200 | AI26: 0 | AJ26: 3200 | AK26: 1
B27: 1 | C27: DD | D27: Dist 5 ( HLP ) | E27: 169.5 | F27: 127 | G27: 296.5 | P27: Your 6-4-5 | Q27: =SUM(Q25:Q26) -> 5054 | R27: =SUM(R23:R26) -> 1654.13 | S27: =SUM(Q27+R27) -> 6708.13 | AE27: 1 | AF27: SC | AG27: Qualifier 4 | AH27: 3200 | AI27: 0 | AJ27: 3200 | AK27: 1
I28: 1 | J28: VF | K28: Dist 3 Goal: 4 Trios | L28: 424 | M28: 170 | N28: 594 | U28: 1 | V28: SC | W28: Name 4 | X28: 6400 | Y28: 0 | Z28: 6400 | AA28: 0.05 | AB28: 320 | AF28: 2 SC | AG28: Qualifier 5 | AH28: 3200 | AI28: 0 | AJ28: 3200 | AK28: 1
AF29: 2 VF | AG29: Qualifier 6 | AH29: 3200 | AI29: 0 | AJ29: 3200 | AK29: 1
I30: 1 | J30: VF | K30: Dist 4 Goal: 3 Trios | L30: 508 | M30: 127 | N30: 635 | P30: Use to Calculate your Monthly PVC Goals | U30: 1 | V30: SC | W30: Name 5 | X30: 6400 | Y30: 0 | Z30: 6400 | AA30: 0.09 | AB30: 576 | AF30: 2 VF | AG30: Qualifier 7 | AH30: 3200 | AI30: 0 | AJ30: 3200 | AK30: 1
G31: =IF(F31<>"",E31+F31,"") ->  | N31: =IF(M31<>"",L31+M31,"") ->  | V31: 2 SC | X31: 6400 | Y31: 0 | Z31: 6400 | AA31: 0.05 | AB31: 320 | AE31: 1 | AF31: SC | AG31: Qualifier 7 | AH31: 3200 | AI31: 0 | AJ31: 3200 | AK31: 1
N32: =IF(M32<>"",L32+M32,"") ->  | P32: Product | Q32: PVC | R32: Quantity | S32: Total PVC | AF32: 2 SC | AG32: Qualifier 8 | AH32: 3200 | AI32: 0 | AJ32: 3200 | AK32: 1
P33: Trio | Q33: 42.5 | R33: 1 | S33: =SUM(Q33*R33) -> 42.5 | U33: 1 | V33: SSC | W33: Name 7 | X33: 6400 | Y33: 0 | Z33: 6400 | AA33: 0.09 | AB33: 576 | AF33: 2 VF | AG33: Qualifier 9 | AH33: 3200 | AI33: 0 | AJ33: 3200 | AK33: 1
P34: Shake | Q34: 16 | R34: 1 | S34: =SUM(Q34*R34) -> 16 | V34: 2 SC | W34: Name 8 | X34: 6400 | Y34: 0 | Z34: 6400 | AA34: 0.05 | AB34: 320 | AF34: 2 VF | AG34: Qualifier 10 | AH34: 3200 | AI34: 0 | AJ34: 3200 | AK34: 1
P35: TG | Q35: 55 | R35: 0 | S35: 0 | AE35: 1 | AF35: SC | AG35: Qualifier 11 | AH35: 3200 | AI35: 0 | AJ35: 3200 | AK35: 1
G36: =IF(F36<>"",E36+F36,"") ->  | P36: O/G | Q36: 25.63 | R36: 0 | S36: 0 | AF36: 2 SC | AG36: Qualifier 12 | AH36: 3200 | AI36: 0 | AJ36: 3200 | AK36: 1
P37: Enter Other | Q37: 0 | R37: 0 | S37: 0 | AE37: 1 | AF37: SC | AG37: Qualifier 13 | AH37: 3200 | AI37: 0 | AJ37: 3200 | AK37: 1
P38: Enter Other | Q38: 0 | R38: 0 | S38: 0 | AF38: 2 SC | AG38: Qualifier 15 | AH38: 3200 | AI38: 0 | AJ38: 3200 | AK38: 1
P39: Total New Projected PVC | S39: =SUM(S33:S38) -> 58.5
P42: Tracking Stucture & Club Levels
P44: Bus Growth | Q44: Last Month | R44: New | S44: Category
P45: by Category | Q45: 12 Mo Report | R45: This Month | S45: Total
P46: Club Level | Q46: 0 | R46: 0 | S46: =IF(R46<>"",Q46+R46,"") -> 0
P47: # PB Legs | Q47: 0 | R47: 0 | S47: =IF(R47<>"",Q47+R47,"") -> 0
P48: # POB Legs | Q48: 0 | R48: 0 | S48: 0
P49: Payline PVC | Q49: 0 | R49: 0 | S49: 0
P54: Team Totals | Q54: Last Mo | R54: New PVC | S54: Total PVC | U54: Column Totals from SC and Above | X54: =SUM(X23:X53) -> 51200 | Y54: =SUM(Y23:Y53) -> 0 | Z54: =SUM(Z23:Z53) -> 51200 | AA54: Team | AB54: =SUM(AA23:AB53) -> 3584.56
W55: Your 6-4-5 Commission Income | AA55: You | AB55: =SUM(L17+Q17+R17) -> 1130.9973
P56: Your 6-4-5 | Q56: =Q27 -> 5054 | R56: =R27 -> 1654.13 | S56: =SUM(S27) -> 6708.13 | X56: Total Commission Income | AA56: Com | AB56: =SUM(AA54:AB55) -> 4715.5573
D57: Total PVC from your DLR's & DD's | E57: =SUM(E23:E56) -> 928 | F57: =SUM(F23:F56) -> 678.13 | G57: =SUM(G23:G56) -> 1606.13 | K57: Total PVC from your VF's | L57: =SUM(L23:L56) -> 2431 | M57: =SUM(M23:M56) -> 806 | N57: =SUM(N23:N56) -> 3237 | P57: SC  Col 5 | Q57: =X54 -> 51200 | R57: =Y54 -> 0 | S57: =SUM(Q57+R57) -> 51200 | X57: Business Incentive Bonus | AA57: 0.2 | AB57: =SUM(AB56*AA57) -> 943.11146 | AE57: Planning Col 4 Club Levels | AH57: =SUM(AH23:AH56) -> 51200 | AI57: =SUM(AI23:AI56) -> 0 | AJ57: =SUM(AJ23:AJ56) -> 51200
B58: Goal | C58: 1600 | D58: $ 1,600 x 21% = $336 | E58: Rate | F58: 0.21 | G58: =SUM(G57 *F58) -> 337.2873 | I58: Goal | J58: 3200 | K58: $ 3,200 x 13% = $416 | L58: Rate | M58: 0.13 | N58: =SUM(N57 *M58) -> 420.81 | P58: Team Total | Q58: =SUM(Q27+Q57) -> 56254 | R58: =SUM(R27+R57) -> 1654.13 | S58: =SUM(Q58+R58) -> 57908.13 | W58: Retail Profit Only: Consider Residual & New Orders | AA58: RSP | AB58: =SUM(M17:N17) -> 390 | AE58: Goal | AJ58: Clubs | AK58: =SUM(AK23:AK57) -> 16
W59: Estimate of Combined Income: Your 6-4-5 , PB, POB & BIB | AA59: Total | AB59: =SUM(AB56:AB58) -> 6048.66876
AB60: =SUM(AB59*12) -> 72584.02512 | AC60: Annual
Z61: Remember to Add any Suppliment Bonus Checks, TBB's + Yr End Bonus | AB61: =IF(AA61<>"",AB60+AA61,"") ->  | AC61: Total
C62: Current Month 6-4-5
B63: B-3 | D63: Team Income Estimator | E63: Your Col 6 | F63: Your Col 4 | G63: Your Col 5 | H63: Income | K63: Comments or Goals
B64: Your 6-4-5 Data | D64: Your 6-4-5 | E64: 1600 | F64: 3200 | G64: 6400
D65: Your 6-4-5 Income | E65: 750 | F65: 336 | G65: 416 | I65: 1502
B66: Lev | C66: Title | D66: SC & Above Name | E66: Current Col 5 | F66: New PVC | G66: Total Col 5 | H66: Rate | I66: Income | K66: Comments & Next Steps
B67: 1 | C67: SC | D67: Level 1 ( 1st SC in Leg) | E67: 6400 | G67: 6400 | H67: 0.09 | I67: 576
B68: 2 | C68: SC | D68: Level 1 | E68: 6400 | G68: 6400 | H68: 0.09 | I68: 576
B69: 3 | C69: SC | D69: Level 1 | E69: 6400 | G69: 6400 | H69: 0.09 | I69: 576
B70: 4 | C70: SC | D70: Level 1 | E70: 6400 | G70: 6400 | H70: 0.09 | I70: 576
B71: 5 | C71: SC | D71: Level 1 | E71: 6400 | G71: 6400 | H71: 0.09 | I71: 576
B72: SC under another another POB SC
B73: 6 | C73: SC | D73: Level 2 - 5 | E73: 6400 | G73: 6400 | H73: 0.05 | I73: 320
B74: 7 | C74: SC | D74: Level 2 - 5 | E74: 6400 | G74: 6400 | H74: 0.05 | I74: 320
B75: 8 | C75: SC | D75: Level 2 - 5 | E75: 6400 | G75: 6400 | H75: 0.05 | I75: 320
B76: 9 | C76: SC | D76: Level 2 - 5 | E76: 6400 | G76: 6400 | H76: 0.05 | I76: 320
B77: 10 | C77: SC | D77: Level 2 - 5 | E77: 6400 | G77: 6400 | H77: 0.05 | I77: 320
B78: 11 | C78: SC | D78: Level 2 - 5 | E78: 6400 | G78: 6400 | H78: 0.05 | I78: 320
B79: 12 | C79: SC | D79: Level 2 - 5 | E79: 6400 | G79: 6400 | H79: 0.05 | I79: 320
B80: 13 | C80: SC | D80: Level 2 - 5 | E80: 6400 | G80: 6400 | H80: 0.05 | I80: 320
B81: 14 | C81: SC | D81: Level 2 - 6 | E81: 6400 | G81: 6400 | H81: 0.05 | I81: 320
B82: 15 | C82: SC | D82: Level 2 - 7 | E82: 6400 | G82: 6400 | H82: 0.05 | I82: 320
G115: Subtotal before BIB is added if you qualify for that Bonus | I115: 6080
G116: Subtract your Retail Profit for subtotal to calculate BIB | I116: -320
I117: 5760
G118: Enter Your BIB Rate | H118: 0.2 | I118: 1152
F119: Your Col 6 | G119: 6400
D120: This is an approximate estimate of Income | G120: 102400 | H120: Aprx | I120: 6912
B126: Timeline | D126: Plan to Sales Coordinator | F126: Bonus | G126: Column | H126: Line Totals | L126: Position of SC in Team | Q126: Inc | R126: (6-4-5) SC | S126: Income | T126: Annual
A127: 1st 30-60 Days | D127: HLP & 2000+ | F127: 350 | G127: Col 6 | H127: 750 | L127: Your | M127: (6-4-5) SC Position (rounded) | Q127: 750 | R127: 750 | S127: 1500
A128: Months | C128: 2 to 6 | D128: Sales Coordinator | F128: 500 | G128: Col 4 | H128: 353 | L128: # of | M128: (6-4-5) SC Legs (structure wide) | Q128: 575 | R128: 5 | S128: 2875
D129: 3 (2000+) Sponsor Bonuses | F129: 750 | G129: Col 5 | H129: 441 | L129: # of | M129: (6-4-5) SC's (under other SC's) | Q129: 320 | R129: 7 | S129: 2240
A130: Total | D130: (6 - 4- 5) Sales Coordinator | F130: 1600 | G130: 1544 | H130: 3144 | L130: Club Level & Mo Residual Inc | R130: 12 | S130: 6615
P131: BIB on Commissions | Q131: 0.2 | R131: 6225 | S131: 1245
A132: Months 6-12 | D132: Sr Sales Coordinator | F132: 1000 | G132: Payline | H132: 8000 | N132: Example of a New NMD 12 Club | S132: 7860 | T132: 94320
B134: Years | C134: 1 to 3 | D134: SC Legs - Direct to You | H134: Income | L134: Yrs | M134: 1 to 3 | N134: SC Legs - under SCs | Q134: Inc | R134: Club Level | S134: Income
D135: Duplicate 6-4-5 SC's | F135: 1 Leg | G135: Level 1 SC | H135: 575 | L135: Ex | M135: Leg 1 | N135: 1 Club (Example) | Q135: 320 | R135: 1 | S135: 320
D136: Duplicate 6-4-5 SC's | F136: 2 Leg | G136: Level 1 SC | H136: 575 | L136: Ex | M136: Leg 2 | N136: 3 Club (Example) | Q136: 320 | R136: 3 | S136: 960
D137: Duplicate 6-4-5 SC's | F137: 3 Leg | G137: Level 1 SC | H137: 575 | L137: Ex | M137: Leg 3 | N137: 6 Club (Example) | Q137: 320 | R137: 6 | S137: 1920
D138: Duplicate 6-4-5 SC's | F138: 4 Leg | G138: Level 1 SC | H138: 575 | L138: Ex | M138: Leg 4 | N138: 12 Club (Example) | Q138: 320 | R138: 12 | S138: 3840
D139: Duplicate 6-4-5 SC's | F139: 5 Leg | G139: Level 1 SC | H139: 575 | L139: Ex | M139: Leg 5 | N139: 24 Club (Example) | Q139: 320 | R139: 24 | S139: 7680
B140: You and 5 6 -4-5 Sales Coordinator Legs | G140: Mo Residual Inc | H140: 4029 | P140: Mo Residual Income | R140: 46 | S140: 14720
D141: BIB on Commissions | F141: 0.2 | G141: 3639 | H141: 728 | P141: BIB on Commissions | Q141: 0.2 | R141: 14720 | S141: 2944
H142: 4757 | S142: 17664

Sheet Master List Don't delete (hidden)
U2: Use for Calculating your Monthly PVC Goals | AX2: Title | AY2: Rate | BA2: IncLevel | BB2: RateDD | BC2: SCStatus | BD2: RateVF | BF2: POB | BG2: BIB
U4: Product / PVC | W4: Quantity | X4: Total PVC | AX4: DLR | AY4: 0 | BA4: Rate | BB4: 0.08 | BC4: Rate | BD4: 0.05 | BF4: 0.09 | BG4: 0
U5: Trio | V5: 42.5 | W5: 3 | X5: =SUM(V5*W5) -> 127.5 | AX5: DD | AY5: 0.06 | BA5: VF | BB5: 0.13 | BC5: Q-VF | BD5: 0.08 | BF5: 0.05 | BG5: 0.1
U6: Shake | V6: 16 | W6: 3 | X6: =SUM(V6*W6) -> 48 | AX6: VF | AY6: 0.14 | BA6: Q-VF | BB6: 0.16 | BC6: SC | BD6: 0.13 | BG6: 0.15
U7: TG | V7: 55 | W7: 3 | X7: 165 | AX7: SC | AY7: 0.22 | BA7: SC | BB7: 0.21 | BC7: Q-SC | BG7: 0.2
U8: O/G | V8: 25.63 | W8: 3 | X8: =SUM(V8*W8) -> 76.89 | BA8: Q-SC
U9: Enter | V9: 0 | W9: 0 | X9: =SUM(V9*W9) -> 0
U10: Other | V10: 0 | W10: 0 | X10: 0
U11: Total New Projected PVC | X11: =SUM(X5:X10) -> 417.39
B14: A | C14: Example Trio Cust's in Col 6 | E14: PVC/$ | F14: # Cust | G14: Col 6 PVC | I14: To Calculate Commission: Enter Rate & Col 6 PVC | M14: Retail Profit | P14: Income from 6-4-5 Example | U14: Retail Profit is paid right away on New Orders | Y14: Total
B15: Monthly Trio = 169.5 / 4 Mo Instm't | E15: 42.375 | F15: 40 | G15: =SUM(E15*F15) -> 1695 | I15: % Rate | K15: Enter Col 6 PVC | L15: Commission | M15: Residual | N15: New Orders | P15: A | Q15: B-1 | R15: B-2 | S15: Total | U15: Product | W15: New Orders | X15: SubTotal | Y15: =SUM(X16:X17) -> 156
B16: Monthly Retail Profit ($39 /4) | E16: 9.75 | F16: 40 | G16: =SUM(E16*F16) -> 390 | P16: Col 6 Inc | Q16: Income | R16: Income | S16: Income | U16: Trio | V16: 39 | W16: 4 | X16: =SUM(V16*W16) -> 156
B17: Experiment with (6-4-5) Income to right | H17:  | I17: SC | J17: 0.22 | K17: 1695 | L17: =SUM(J17*K17) -> 372.9 | M17: 390 | O17: = | P17: =SUM(L17+M17+N17) -> 762.9 | Q17: =G58 -> 337.2873 | R17: =N58 -> 420.81 | S17: =SUM(P17:R17) -> 1520.9973 | U17: Shake | V17: 16 | X17: =SUM(V17*W17) -> 0
B21: B-1 | C21: Dist | D21: Your Lev 1 DLR or DD's & any DLR or DD's below them | I21: B-2 | J21: VF | K21: Track Col 4 of Your Level 1 VF's & any VF's below them | P21: Your Monthly Plan | R21: Must enter numbers to auto calculate total | U21: List Level, Name, Col 5 PVC of all SC & above | AA21: Income Earned on your Team's Col 5 | AE21: List all VF & Above with 1,000 or moe in Col 4
B22: Lev | C22: Title | D22: Your DLR & DD's Names | E22: End Mo Col 6 | F22: New PVC | G22: Total Dist Col 6 PVC | I22: Lev | J22: Title | K22: Your VF's Names | L22: End Mo Col 4 | M22: New PVC | N22: Total VF Col 4 PVC | P22: Your 6-4-5 | Q22: End Mo PVC | R22: New PVC | S22: Total PVC | U22: Lev | V22: Title | W22: Name of SC or Above | X22: End Mo Col 5 PVC | Y22: New Col 5 PVC | Z22: Total Col 5 PVC | AA22: Bonus % | AB22: PB & POB Income | AE22: Lev | AF22: Title | AG22: Name | AH22: End Mo Col 4 | AI22: New PVC | AJ22: Total Col 4 | AK22: Clubs
B23: 1 | C23: DD | D23: Dist 1 (4 Trios) | E23: 250 | F23: 169.5 | G23: =IF(F23<>"",E23+F23,"") -> 419.5 | I23: 1 | J23: VF | K23: Dist 1 Goal: 5 Trios (212 ) | L23: 789 | M23: 212 | N23: =IF(M23<>"",L23+M23,"") -> 1001 | P23: Your Col 6 | Q23: =G16 -> 390 | R23: 170 | S23: =IF(R23<>"",Q23+R23,"") -> 560 | U23: 1 | V23: SC | W23: Name 1 | X23: 6400 | Y23: 0 | Z23: =IF(Y23<>"",X23+Y23,"") -> 6400 | AA23: 0.09 | AB23: =IF(Z23<>"",Z23*AA23,"") -> 576 | AJ23: =IF(AI23<>"",AH23+AI23,"") -> 
B24: 1 | C24: DD | D24: Dist 2 HLP (4 Trios) | E24: 169.5 | F24: 169.5 | G24: =IF(F24<>"",E24+F24,"") -> 339 | N24: =IF(M24<>"",L24+M24,"") ->  | P24: Your Col 4 | Q24: =SUM(Q23+E57) -> 1318 | R24: =F57 -> 678.13 | S24: =IF(R24<>"",Q24+R23+R24,"") -> 2166.13 | V24: 2 SC | W24: Name 2 | X24: 6400 | Y24: 0 | Z24: 6400 | AA24: 0.05 | AB24: =IF(Z24<>"",Z24*AA24,"") -> 320 | AJ24: =IF(AI24<>"",AH24+AI24,"") -> 
B25: 1 | C25: DD | D25: Dist 3 (Add 3 Trios) | E25: 169.5 | F25: 127.13 | G25: 296.63 | I25: 1 | J25: VF | K25: Dist 2 Goal: 4 Trios (169) | L25: 710 | M25: 297 | N25: =IF(M25<>"",L25+M25,"") -> 1007 | P25: Your Col 5 | Q25: =SUM(Q24+L57) -> 3749 | R25: =M57 -> 806 | S25: =IF(R25<>"",Q25+R23+R24+R25,"") -> 5403.13 | AB25: =IF(Z25<>"",Z25*AA25,"") -> 
B26: 1 | C26: DD | D26: Dist 4 ( Add 2 Trios) | E26: 169.5 | F26: 85 | G26: 254.5 | K26: Goal: 4 Trios ( 169) HLP | N26: =IF(M26<>"",L26+M26,"") ->  | P26: Pay in Full | U26: 1 | V26: SC | W26: Name 3 | X26: 6400 | Y26: 0 | Z26: 6400 | AA26: 0.09 | AB26: 576
B27: 1 | C27: DD | D27: Dist 5 ( Add HLP ) | E27: 169.5 | F27: 127 | G27: 296.5 | P27: Your 6-4-5 | Q27: =SUM(Q25:Q26) -> 3749 | R27: =SUM(R23:R26) -> 1654.13 | S27: =SUM(Q27+R27) -> 5403.13
I28: 1 | J28: VF | K28: Dist 3 Goal: 4 Trios | L28: 424 | M28: 170 | N28: 594 | U28: 1 | V28: SC | W28: Name 4 | X28: 6400 | Y28: 0 | Z28: 6400 | AA28: 0.05 | AB28: 320
I30: 1 | J30: VF | K30: Dist 4 Goal: 3 Trios | L30: 508 | M30: 127 | N30: 635 | P30: Use to Calculate your Monthly PVC Goals | U30: 1 | V30: SC | W30: Name 5 | X30: 6400 | Y30: 0 | Z30: 6400 | AA30: 0.09 | AB30: 576
G31: =IF(F31<>"",E31+F31,"") ->  | V31: 2 SC | X31: 6400 | Y31: 0 | Z31: 6400 | AA31: 0.05 | AB31: 320
N32: =IF(M32<>"",L32+M32,"") ->  | P32: Product | Q32: PVC | R32: Quantity | S32: Total PVC
P33: Trio | Q33: 42.5 | R33: 1 | S33: =SUM(Q33*R33) -> 42.5 | U33: 1 | V33: SSC | W33: Name 7 | X33: 6400 | Y33: 0 | Z33: 6400 | AA33: 0.09 | AB33: 576
P34: Shake | Q34: 16 | R34: 1 | S34: =SUM(Q34*R34) -> 16 | V34: 2 SC | W34: Name 8 | X34: 6400 | Y34: 0 | Z34: 6400 | AA34: 0.05 | AB34: 320
P35: TG | Q35: 55 | R35: 0 | S35: 0 | AB35: =IF(Z35<>"",Z35*AA35,"") -> 
G36: =IF(F36<>"",E36+F36,"") ->  | P36: O/G | Q36: 25.63 | R36: 0 | S36: 0
P37: Enter Other | Q37: 0 | R37: 0 | S37: 0
P38: Enter Other | Q38: 0 | R38: 0 | S38: 0
P39: Total New Projected PVC | S39: =SUM(S33:S38) -> 58.5
P42: Tracking Stucture & Club Levels | AB42: =IF(Z42<>"",Z42*AA42,"") -> 
P44: Bus Growth | Q44: Last Month | R44: New | S44: Category
P45: by Category | Q45: 12 Mo Report | R45: This Month | S45: Total
P46: Club Level | Q46: 0 | R46: 0 | S46: =IF(R46<>"",Q46+R46,"") -> 0
P47: # PB Legs | Q47: 0 | R47: 0 | S47: =IF(R47<>"",Q47+R47,"") -> 0
P48: # POB Legs | Q48: 0 | R48: 0 | S48: 0
P49: Payline PVC | Q49: 0 | R49: 0 | S49: 0
AJ53: =IF(AI53<>"",AH53+AI53,"") -> 
P54: Team Totals | Q54: Last Mo | R54: New PVC | S54: Total PVC | U54: Column Totals from SC and Above | X54: =SUM(X23:X53) -> 51200 | Y54: =SUM(Y23:Y53) -> 0 | Z54: =SUM(Z23:Z53) -> 51200 | AA54: Team | AB54: =SUM(AB23:AB53) -> 3584
W55: Your 6-4-5 Commission Income | AA55: You | AB55: =SUM(L17+Q17+R17) -> 1130.9973
P56: Your 6-4-5 | Q56: =Q27 -> 3749 | R56: =R27 -> 1654.13 | S56: =SUM(S27) -> 5403.13 | X56: Total Commission Income | AA56: Com | AB56: =SUM(AB54:AB55) -> 4714.9973
D57: Total PVC from your DLR's & DD's | E57: =SUM(E23:E56) -> 928 | F57: =SUM(F23:F56) -> 678.13 | G57: =SUM(G23:G56) -> 1606.13 | K57: Total PVC from your VF's | L57: =SUM(L23:L56) -> 2431 | M57: =SUM(M23:M56) -> 806 | N57: =SUM(N23:N56) -> 3237 | P57: SC  Col 5 | Q57: =X54 -> 51200 | R57: =Y54 -> 0 | S57: =SUM(Q57+R57) -> 51200 | X57: Business Incentive Bonus | AA57: 0.2 | AB57: =SUM(AB56*AA57) -> 942.99946 | AE57: Planning Col 4 Club Levels | AH57: =SUM(AG23:AG56) -> 0 | AI57: =SUM(AH23:AH56) -> 0 | AJ57: =SUM(AI23:AI56) -> 0
B58: Goal | C58: 1600 | D58: $ 1,600 x 21% = $336 | E58: Rate | F58: 0.21 | G58: =SUM(G57 *F58) -> 337.2873 | I58: Goal | J58: 3200 | K58: $ 3,200 x 13% = $416 | L58: Rate | M58: 0.13 | N58: =SUM(N57 *M58) -> 420.81 | P58: Team Total | Q58: =SUM(Q27+Q57) -> 54949 | R58: =SUM(R27+R57) -> 1654.13 | S58: =SUM(Q58+R58) -> 56603.13 | W58: Retail Profit Only: Consider Residual & New Orders | AA58: RSP | AB58: =SUM(M17:N17) -> 390 | AE58: Goal | AJ58: Clubs | AK58: =SUM(AK23:AK57) -> 0
W59: Estimate of Combined Income: Your 6-4-5 , PB, POB & BIB | AA59: Total | AB59: =SUM(AB56:AB58) -> 6047.99676
AB60: =SUM(AB59*12) -> 72575.96112 | AC60: Annual
Z61: Remember to Add any Suppliment Bonus Checks, TBB's + Yr End Bonus | AB61: =IF(AA61<>"",AB60+AA61,"") ->  | AC61: Total
C62: Current Month 6-4-5
B63: B-3 | D63: Team Income Estimator | E63: Your Col 6 | F63: Your Col 4 | G63: Your Col 5 | H63: Income | K63: Comments or Goals
B64: Your 6-4-5 Data | D64: Your 6-4-5 | E64: 1600 | F64: 3200 | G64: 6400
D65: Your 6-4-5 Income | E65: 750 | F65: 336 | G65: 416 | I65: =SUM(E65:G65) -> 1502
B66: Lev | C66: Title | D66: SC & Above Name | E66: Current Col 5 | F66: New PVC | G66: Total Col 5 | H66: Rate | I66: Income | K66: Comments & Next Steps
B67: 1 | C67: SC | D67: Level 1 ( 1st SC in Leg) | E67: 6400 | G67: =SUM(E67+F67) -> 6400 | H67: 0.09 | I67: =IF(H67<>"",G67*H67,"") -> 576
B68: 2 | C68: SC | D68: Level 1 | E68: =E67 -> 6400 | G68: =SUM(E68+F68) -> 6400 | H68: 0.09 | I68: =IF(H68<>"",G68*H68,"") -> 576
B69: 3 | C69: SC | D69: Level 1 | E69: =E68 -> 6400 | G69: 6400 | H69: 0.09 | I69: 576
B70: 4 | C70: SC | D70: Level 1 | E70: 6400 | G70: 6400 | H70: 0.09 | I70: 576
B71: 5 | C71: SC | D71: Level 1 | E71: 6400 | G71: 6400 | H71: 0.09 | I71: 576
B72: SC under another another POB SC
B73: 6 | C73: SC | D73: Level 2 - 5 | E73: =E71 -> 6400 | G73: 6400 | H73: 0.05 | I73: 320
B74: 7 | C74: SC | D74: Level 2 - 5 | E74: 6400 | G74: 6400 | H74: 0.05 | I74: 320
B75: 8 | C75: SC | D75: Level 2 - 5 | E75: 6400 | G75: 6400 | H75: 0.05 | I75: 320
B76: 9 | C76: SC | D76: Level 2 - 5 | E76: 6400 | G76: 6400 | H76: 0.05 | I76: 320
B77: 10 | C77: SC | D77: Level 2 - 5 | E77: 6400 | G77: 6400 | H77: 0.05 | I77: 320
B78: 11 | C78: SC | D78: Level 2 - 5 | E78: 6400 | G78: 6400 | H78: 0.05 | I78: 320
B79: 12 | C79: SC | D79: Level 2 - 5 | E79: 6400 | G79: 6400 | H79: 0.05 | I79: 320
B80: 13 | C80: SC | D80: Level 2 - 5 | E80: 6400 | G80: 6400 | H80: 0.05 | I80: 320
B81: 14 | C81: SC | D81: Level 2 - 6 | E81: 6400 | G81: 6400 | H81: 0.05 | I81: 320
B82: 15 | C82: SC | D82: Level 2 - 7 | E82: 6400 | G82: 6400 | H82: 0.05 | I82: 320
I83: =IF(H83<>"",G83*H83,"") -> 
I84: =IF(H84<>"",G84*H84,"") -> 
I107: =IF(H107<>"",G107*H107,"") -> 
G115: Subtotal before BIB is added if you qualify for that Bonus | I115: =SUM(I67:J114) -> 6080
G116: Subtract your Retail Profit for subtotal to calculate BIB | I116: -320
I117: =SUM(I115:I116) -> 5760
G118: Enter Your BIB Rate | H118: 0.2 | I118: =SUM(I117*H118) -> 1152
F119: Your Col 6 | G119: =G64 -> 6400
D120: This is an approximate estimate of Income | G120: =SUM(G67:G119) -> 102400 | H120: Aprx | I120: =SUM(I117:I119) -> 6912
B126: Timeline | D126: Plan to Sales Coordinator | F126: Bonus | G126: Column | H126: Line Totals | L126: Position of SC in Team | Q126: Inc | R126: (6-4-5) SC | S126: Income | T126: Annual
A127: 1st 30-60 Days | D127: HLP & 2000+ | F127: 350 | G127: Col 6 | H127: 750 | L127: Your | M127: (6-4-5) SC Position (rounded) | Q127: 750 | R127: 750 | S127: 1500
A128: Months | C128: 2 to 6 | D128: Sales Coordinator | F128: 500 | G128: Col 4 | H128: 353 | L128: # of | M128: (6-4-5) SC Legs (structure wide) | Q128: 575 | R128: 5 | S128: =SUM(Q128*R128) -> 2875
D129: 3 (2000+) Sponsor Bonuses | F129: 750 | G129: Col 5 | H129: 441 | L129: # of | M129: (6-4-5) SC's (under other SC's) | Q129: 320 | R129: 7 | S129: =SUM(Q129*R129) -> 2240
A130: Total | D130: (6 - 4- 5) Sales Coordinator | F130: =SUM(F127:F129) -> 1600 | G130: =SUM(H127:H129) -> 1544 | H130: =SUM(F130:G130) -> 3144 | L130: Club Level & Mo Residual Inc | R130: =SUM(R128:R129) -> 12 | S130: =SUM(S127:S129) -> 6615
P131: BIB on Commissions | Q131: 0.2 | R131: =SUM(S130-390) -> 6225 | S131: =SUM(R131*Q131) -> 1245
A132: Months 6-12 | D132: Sr Sales Coordinator | F132: 1000 | G132: Payline | H132: 8000 | N132: Example of a New NMD 12 Club | S132: =SUM(S130:S131) -> 7860 | T132: =SUM(S132*12) -> 94320
B134: Years | C134: 1 to 3 | D134: SC Legs - Direct to You | H134: Income | L134: Yrs | M134: 1 to 3 | N134: SC Legs - under SCs | Q134: Inc | R134: Club Level | S134: Income
D135: Duplicate 6-4-5 SC's | F135: 1 Leg | G135: Level 1 SC | H135: 575 | L135: Ex | M135: Leg 1 | N135: 1 Club (Example) | Q135: 320 | R135: 1 | S135: =SUM(Q135*R135) -> 320
D136: Duplicate 6-4-5 SC's | F136: 2 Leg | G136: Level 1 SC | H136: 575 | L136: Ex | M136: Leg 2 | N136: 3 Club (Example) | Q136: 320 | R136: 3 | S136: =SUM(Q136*R136) -> 960
D137: Duplicate 6-4-5 SC's | F137: 3 Leg | G137: Level 1 SC | H137: 575 | L137: Ex | M137: Leg 3 | N137: 6 Club (Example) | Q137: 320 | R137: 6 | S137: =SUM(Q137*R137) -> 1920
D138: Duplicate 6-4-5 SC's | F138: 4 Leg | G138: Level 1 SC | H138: 575 | L138: Ex | M138: Leg 4 | N138: 12 Club (Example) | Q138: 320 | R138: 12 | S138: =SUM(Q138*R138) -> 3840
D139: Duplicate 6-4-5 SC's | F139: 5 Leg | G139: Level 1 SC | H139: 575 | L139: Ex | M139: Leg 5 | N139: 24 Club (Example) | Q139: 320 | R139: 24 | S139: =SUM(Q139*R139) -> 7680
B140: You and 5 6 -4-5 Sales Coordinator Legs | G140: Mo Residual Inc | H140: =SUM(G130+H135+H136+H137+H138+H139-390) -> 4029 | P140: Mo Residual Income | R140: =SUM(R135:R139) -> 46 | S140: =SUM(S135:S139) -> 14720
D141: BIB on Commissions | F141: 0.2 | G141: =SUM(H140-390) -> 3639 | H141: =SUM(G141*F141) -> 727.8 | P141: BIB on Commissions | Q141: 0.2 | R141: =S140 -> 14720 | S141: =SUM(R141*Q141) -> 2944
H142: =SUM(H140:H141) -> 4756.8 | S142: =SUM(S140:S141) -> 17664

Sheet Activity (hidden)
A1: Weekly Activity for Success:
A2: “Connections and Next Steps” with Prospects, Customers and Distributors
A3: 1. Review My Business and Team At-A-Glance from Virtual Office.
A4: 2. Check Daily Planner/Calendar – Schedule 2x2x2x2x2 activity.
A5: 3. Set Intention on adding customers, HLPs and 2000+ as your monthly goal. Record activity in your Tracer or Organizational Workbook.
A6: a. Monthly Event Planner – Update event and invitation lists, print flyers, save to computer and INVITE, INVITE, INVITE
A7: b. Prospect Care – Update Memory Jogger and Connection Record Forms
A8: c. Customer Care – Print/Review Preferred Customer Genealogy (Virtual Office) and update Connection Record Forms
A9: d. Distributor Care – Print and review End of Month Downline Growth and PVC Report (check V0 – Business At-A-Glance)
A11: 2 – Prospects: Connect with 2 new prospects for Juice Plus and/or the Virtual Franchise
A12: Tell your story, share educations tools and Invite live or by phone to webwalks, WPs, PPLs and training events
A13: Schedule follow-up appointments in daily planner/calendar with prospects
A14: Seek upline support on voicecom and live connection calls for suggestions on “connections and next step thinking”
A15: 1 | B15: 6
A16: 2 | B16: 7
A17: 3 | B17: 8
A18: 4 | B18: 9
A19: 5 | B19: 10
A21: 2 – Prospect Care: Follow up with those 2 prospects- Create series of educational and relationship building exposures
A22: 1 | B22: 6
A23: 2 | B23: 7
A24: 3 | B24: 8
A25: 4 | B25: 9
A26: 5 | B26: 10
A28: 2 – Customer Care: Check in with 2 customers
A29: Fill out JP+ Effect Questionnaire, Send articles by mail/email, Invite “Raving Fans” to team, Schedule 3-way calls w/customer and upline
A30: 1 | B30: 6
A31: 2 | B31: 7
A32: 3 | B32: 8
A33: 4 | B33: 9
A34: 5 | B34: 10
A36: 2 – Distributor Care: Check in with 2 distributors | B36: Review Connection Record sheets with team members
A37: Create and commit to attending events | B37: Schedule 3-way calls for self & team members for “Invitation and Welcome
A38: Schedule trainings for team members to review Starter Guide | B38: to the Team”, Congratulations and Coaching sessions
A39: 1 | B39: 1
A40: 2 | B40: 7
A41: 3 | B41: 8
A42: 4 | B42: 9
A43: 5 | B43: 10

Sheet Headers (hidden)
A1: Level | B1: FIN Number | C1: First Name | D1: Last Name | E1: Title | F1: Sales Order Number | G1: Date Shipped | H1: PVC Amount | I1: Ship To Name | J1: ARO Number
A3: KPI PB Report
A5: This Header is found on the home page of your Virtual Office: KPI's Reports...
A7: Run report at "End of the Month" to include all your "PB" or "POB" Customers
B9: This report can be helpful to check the accuracy of your Planner Tracker
A15: ARO Number | B15: First Name | C15: Last Name | D15: City | E15: State | F15: Phone | G15: Status | H15: Next Ship Date | I15: Product Description
A18: This Header is for... | C18: "Customer Search & Follow Up Report" include "Status Field"
B21: Find Report go to My Customers - Then select Edit Customer Order Press run report
B23: Do not enter any names so you see all your orders
A25: Copy Header on top of header after either Macro AroCustSort 3
A27: ARO Number | B27: Customer First Name | C27: Customer Last Name | D27: Name | E27: City | F27: State | G27: Phone | H27: Status | I27: Next Ship Date
A30: Copy Header on top of header after either Macro AroCustSort 5
A32: ARO Number | B32: Customer First Name | C32: Customer Last Name | D32: Name | E32: Name to be Copied | F32: City | G32: State | H32: Phone | I32: Status
B37: On Home Page of Virtual Office
C38: Paste your Search and Follow up Customer Report into the Advanced Planner Tracker
B40: Select | C40: MY Customers - on Home Page
C41: To the lower right Select Customer Search & Follow Up
B42: At the top | C42: Leave the custromer First & Last Name Black
B43: In the middle | C43: Next Select "Excel" in the drop down in middle
B44: at the Bottom | C44: Select format
B45: To Format | C45: Check "Status" if not already checked
B46: Return back | C46: At bottom Select "Return to Next Step"
B47: Download Cust Report | C47: Select Run Report
C49: Your report should either open or was downloaded to your download folder
C50: Open the file and select the entire contents
C51: Past into a blank worksheet in your Advanced Planner Tracker

Sheet PB Sample (hidden)
A1: Level | B1: FIN Number | C1: First Name | D1: Last Name | E1: Title | F1: Sales Order Number | G1: Date Shipped | H1: PVC Amount | I1: Ship To Name | J1: ARO Number
A2: 0 | B2: USM0037569 | C2: Mary | D2: Smith | E2: SC | F2: USO56456934 | G2: 2016-01-02 | H2: 26.62 | I2: Jane Doe | J2: 891891
A3: 0 | B3: USM0037569 | C3: Mary | D3: Smith | E3: SC | F3: USO56456935 | G3: 2016-01-03 | H3: 15.75 | I3: Jane Doe | J3: 892408
A4: 0 | B4: USM0037570 | C4: Mary | D4: Smith | E4: SC | F4: USO56456936 | G4: 2016-01-04 | H4: 42.37 | I4: John Deer | J4: 915675
A5: 0 | B5: USM0037571 | C5: Mary | D5: Smith | E5: SC | F5: USO56456937 | G5: 2016-01-05 | H5: 42.37 | I5: Kasey Mackey | J5: 915675
A6: 0 | B6: USM0037572 | C6: Mary | D6: Smith | E6: SC | F6: USO56456938 | G6: 2016-02-04 | H6: 42.37 | I6: George Jetson | J6: 102456
A7: 0 | B7: USM0037573 | C7: Mary | D7: Smith | E7: SC | F7: USO56456939 | G7: 2016-02-05 | H7: 42.37 | I7: Jack Frost | J7: 102456
A8: 0 | B8: USM0037574 | C8: Mary | D8: Smith | E8: SC | F8: USO56456940 | G8: 2016-02-06 | H8: 42.37 | I8: Forest Gump | J8: 102456
A9: 0 | B9: USM0037575 | C9: Mary | D9: Smith | E9: SC | F9: USO56456941 | G9: 2016-02-07 | H9: 181.5 | I9: Jean Start | J9: 102456
A10: 0 | B10: USM0037576 | C10: Mary | D10: Smith | E10: SC | F10: USO56456942 | G10: 2016-02-08 | H10: 70.5 | I10: Jask Pot | J10: 102456
A11: 0 | B11: USM0037577 | C11: Mary | D11: Smith | E11: SC | F11: USO56456943 | G11: 2016-02-09 | H11: 106.5 | I11: Jack Be Nimble | J11: 102456
A12: 0 | B12: USM0037578 | C12: Mary | D12: Smith | E12: SC | F12: USO56456944 | G12: 2016-02-10 | H12: 106.5 | I12: Orange Sherbert | J12: 102456
A13: 0 | B13: USM0037579 | C13: Mary | D13: Smith | E13: SC | F13: USO56456945 | G13: 2016-02-11 | H13: 70.5 | I13: Wheates Cereai | J13: 102456
A14: 0 | B14: USM0037580 | C14: Mary | D14: Smith | E14: SC | F14: USO56456946 | G14: 2016-03-04 | H14: 70.5 | I14: Michael Jackson | J14: 102456
A15: 0 | B15: USM0037581 | C15: Mary | D15: Smith | E15: SC | F15: USO56456947 | G15: 2016-03-05 | H15: 15.75 | I15: Marie Osman | J15: 124567
A16: 0 | B16: USM0037582 | C16: Mary | D16: Smith | E16: SC | F16: USO56456948 | G16: 2016-03-06 | H16: 42.37 | I16: Tina Turner | J16: 124567
A17: 0 | B17: USM0037583 | C17: Mary | D17: Smith | E17: SC | F17: USO56456949 | G17: 2016-03-07 | H17: 42.37 | I17: Barry Bonds | J17: 124567
A18: 0 | B18: USM0037584 | C18: Mary | D18: Smith | E18: SC | F18: USO56456950 | G18: 2016-03-08 | H18: 42.37 | I18: Michael Jordon | J18: 124567
A19: 0 | B19: USM0037585 | C19: Mary | D19: Smith | E19: SC | F19: USO56456951 | G19: 2016-04-08 | H19: 42.37 | I19: Jean Frazier | J19: 124567
A20: 0 | B20: USM0037586 | C20: Mary | D20: Smith | E20: SC | F20: USO56456952 | G20: 2016-04-09 | H20: 42.37 | I20: Morris Code | J20: 124567
A21: 0 | B21: USM0037587 | C21: Mary | D21: Smith | E21: SC | F21: USO56456953 | G21: 2016-04-10 | H21: 181.5 | I21: Gordon jones | J21: 124567
A22: 0 | B22: USM0037588 | C22: Mary | D22: Smith | E22: SC | F22: USO56456954 | G22: 2016-04-11 | H22: 70.5 | I22: Jay Martin | J22: 124567
A23: 0 | B23: USM0037589 | C23: Mary | D23: Smith | E23: SC | F23: USO56456955 | G23: 2016-04-12 | H23: 106.5 | I23: Randy Matthews | J23: 124567
A24: 0 | B24: USM0037590 | C24: Mary | D24: Smith | E24: SC | F24: USO56456956 | G24: 2016-04-13 | H24: 106.5 | I24: Jason LaChance | J24: 124567
A25: 0 | B25: USM0037591 | C25: Mary | D25: Smith | E25: SC | F25: USO56456957 | G25: 2016-05-03 | H25: 70.5 | I25: Janet Black | J25: 134765
A26: 0 | B26: USM0037592 | C26: Mary | D26: Smith | E26: SC | F26: USO56456958 | G26: 2016-04-02 | H26: 70.5 | I26: Mike Cliffton | J26: 134765
H27: Total PV :1699.82
A31: 13 row(s) returned

Sheet Cust Sample (hidden)
A1: ARO Number | B1: First Name | C1: Last Name | D1: Name | E1: Name to be Copied | F1: City | G1: State | H1: Phone | I1: Status | J1: Next Ship Date | K1: Product Description
A2: 134766 | B2: Sally | C2: Bailey | D2: =CONCATENATE(B2," ",C2) -> Sally Bailey | E2: Sally Bailey | F2: Homtown | G2: Missouri | H2: 314-545-7712 | I2: C | J2: 2016-05-25 | K2: (12)JP+ CHEWABLES (3 BLEND) | M2: 1) Select drop down arrow to sort any column
A3: 102456 | B3: Sally | C3: Bailey | D3: Sally Bailey | E3: Sally Bailey | F3: Homtown | G3: Missouri | H3: 314-545-7698 | I3: O | J3: 2016-06-04 | K3: DARK CHOCOLATE + FIG
A4: 124567 | B4: Mary | C4: Jones | D4: Mary Jones | E4: Mary Jones | F4: Homtown | G4: Missouri | H4: 314-545-7701 | I4: O | J4: 2016-06-23 | K4: (12)JP+ CHEWABLES (3 BLEND) | M4: 2) Sort the Product Description Column
A5: 134765 | B5: Janet | C5: Black | D5: Janet Black | E5: Janet Black | F5: Homtown | G5: Missouri | H5: 314-545-7710 | I5: O | J5: 2016-06-24 | K5: CHOCOLATE COMPLETE
A6: 102456 | B6: George | C6: Bailey | D6: George Bailey | E6: George Bailey | F6: Homtown | G6: Missouri | H6: 314-545-7693 | I6: O | J6: 2016-06-24 | K6: JUICE PLUS+ CAPSULES | M6: 3) Then Delete the Two or Four Month Processing Rows
A7: 124567 | B7: Tom | C7: Hanks | D7: Tom Hanks | E7: Tom Hanks | F7: Homtown | G7: Missouri | H7: 314-545-7709 | I7: O | J7: 2016-06-24 | K7: VARIETY BAR DC+F(30)TC+H(30)
A8: 892408 | B8: Jane | C8: Doe | D8: Jane Doe | E8: Jane Doe | F8: Homtown | G8: Missouri | H8: 314-545-7688 | I8: O | J8: 2016-06-25 | K8: JUICE PLUS+ CAPSULES
A9: 102456 | B9: George | C9: Jetson | D9: George Jetson | E9: George Jetson | F9: Homtown | G9: Missouri | H9: 314-545-7691 | I9: O | J9: 2016-06-25 | K9: JUICE PLUS+ CAPSULES
A10: 102456 | B10: Jean | C10: Start | D10: Jean Start | E10: Jean Start | F10: Homtown | G10: Missouri | H10: 314-545-7694 | I10: O | J10: 2016-07-01 | K10: ORCHARD (4) JP+ CAPS
A11: 134765 | B11: Mike | C11: Matheny | D11: Mike Matheny | E11: Mike Matheny | F11: Homtown | G11: Missouri | H11: 314-545-7711 | I11: O | J11: 2016-07-02 | K11: (12)JP+ CHEWABLES (3 BLEND)
A12: 134769 | B12: Chris | C12: Carpenter | D12: Chris Carpenter | E12: Chris Carpenter | F12: Homtown | G12: Missouri | H12: 314-545-7715 | I12: O | J12: 2016-07-09 | K12: JUICE PLUS+ CAPSULES
A13: 134768 | B13: Matt | C13: Adams | D13: Matt Adams | E13: Matt Adams | F13: Homtown | G13: Missouri | H13: 314-545-7714 | I13: O | J13: 2016-09-15 | K13: JUICE PLUS+ VINEYARD BLEND
A14: 102456 | B14: Joe | C14: Lehmann | D14: Joe Lehmann | E14: Joe Lehmann | F14: Homtown | G14: Missouri | H14: 314-545-7696 | I14: R | J14: 2016-09-23 | K14: (6) JP+ CAPSULES
A15: 124567 | B15: Marie | C15: Osman | D15: Marie Osman | E15: Marie Osman | F15: Homtown | G15: Missouri | H15: 314-545-7700 | I15: O | J15: 2016-09-23 | K15: (6) JP+ CAPSULES
A16: 124568 | B16: Jean | C16: Frazier | D16: Jean Frazier | E16: Jean Frazier | F16: Homtown | G16: Missouri | H16: 314-545-7704 | I16: I | J16: 2016-09-23 | K16: (6) JP+ CAPSULES
A17: 124570 | B17: Janet | C17: Jackson | D17: Janet Jackson | E17: Janet Jackson | F17: Homtown | G17: Missouri | H17: 314-545-7707 | I17: O | J17: 2016-09-23 | K17: (6) JP+ CAPSULES
A18: 124571 | B18: Janet | C18: Jackson | D18: =CONCATENATE(B18," ",C18) -> Janet Jackson | E18: Janet Jackson | F18: Homtown | G18: Missouri | H18: 314-545-7707 | I18: O | J18: 2016-09-23 | K18: (6) JP+ CAPSULES
A19: 102572 | B19: Michele | C19: Obama | D19: =CONCATENATE(B19," ",C19) -> Michele Obama | E19: Michele Obama | F19: Homtown | G19: Missouri | H19: 314-545-7692 | I19: O | J19: 2016-09-24 | K19: JUICE PLUS+ CAPSULES
A20: 102573 | B20: John | C20: Deer | D20: =CONCATENATE(B20," ",C20) -> John Deer | E20: John Deer | F20: Homtown | G20: Missouri | H20: 314-545-7689 | I20: R | J20: 2016-09-24 | K20: JUICE PLUS+ VINEYARD BLEND
A21: 102574 | B21: Barry | C21: Bonds | D21: Barry Bonds | E21: Barry Bonds | F21: Homtown | G21: Missouri | H21: 314-545-7702 | I21: C | J21: 42637 | K21: VARIETY COMPLETE
D45: =CONCATENATE(B45," ",C45) -> 
D57: =CONCATENATE(B57," ",C57) -> 

Sheet Ex 12 Mo (hidden)
B2: Name | C2: Month | F2: 2017-04-16 | G2: 2017-05-16 | H2: 2017-06-16 | I2: 2017-07-16 | J2: 2017-08-16 | K2: 2017-09-16 | L2: 2017-10-16 | M2: 2017-11-16 | N2: 2017-12-16 | O2: 2017-01-17 | P2: 2017-02-17 | Q2: 2017-03-17
C3: Month Payout | E3: Month-end Payout | F3: 952 | G3: 692 | H3: 655 | I3: 890 | J3: 783 | K3: 888 | L3: 828 | M3: 1302 | N3: 1248 | O3: 1223 | P3: 1296 | Q3: 1535 | R3: =Q3 -> 1535 | S3: Check
C4: Supp Payout | E4: Supp Payout | F4: 0 | G4: 0 | H4: 0 | I4: 0 | J4: 0 | K4: 250 | L4: 0 | M4: 0 | N4: 0 | O4: 0 | P4: 0 | Q4: 0
C5: RSP | E5: RSP | F5: 454 | G5: 281 | H5: 184 | I5: 228 | J5: 280 | K5: 377 | L5: 231 | M5: 518 | N5: 344 | O5: 423 | P5: 371 | Q5: 485
B6: Earnings | C6: Commissions | D6: Earnings | E6: Commissions | F6: 456 | G6: 445 | H6: 488 | I6: 600 | J6: 497 | K6: 487 | L6: 538 | M6: 731 | N6: 801 | O6: 735 | P6: 819 | Q6: 953
C7: PB | E7: PB | F7: 106 | G7: 96 | H7: 105 | I7: 138 | J7: 133 | K7: 106 | L7: 140 | M7: 184 | N7: 183 | O7: 161 | P7: 182 | Q7: 214
C8: POB | E8: POB | F8: 5 | G8: 8 | H8: 4 | I8: 9 | J8: 6 | K8: 9 | L8: 6 | M8: 11 | N8: 5 | O8: 10 | P8: 10 | Q8: 12
C9: Bonus | E9: Bonus | F9: 0 | G9: 0 | H9: 0 | I9: 0 | J9: 0 | K9: 250 | L9: 0 | M9: 0 | N9: 0 | O9: 0 | P9: 0 | Q9: 0
C11: New Cust) | E11: Pers(New Cust) | F11: 350 | G11: 172 | H11: 0 | I11: 126 | J11: 178 | K11: 76 | L11: 82 | M11: 181 | N11: 37 | O11: 206 | P11: 252 | Q11: 220
B12: Col 6 | C12: Pers(Total) | E12: Pers(Total) | F12: 1071 | G12: 1203 | H12: 1163 | I12: 1380 | J12: 972 | K12: 1181 | L12: 939 | M12: 1394 | N12: 1440 | O12: 1541 | P12: 1773 | Q12: 1752 | R12: 1752 | S12: Col 6
C13: Pers & DLRs | E13: Pers & DLRs | F13: 1309 | G13: 1377 | H13: 1465 | I13: 1779 | J13: 1295 | K13: 1470 | L13: 1394 | M13: 2026 | N13: 2277 | O13: 2165 | P13: 2281 | Q13: 2719
B14: Col 4 | C14: PBQ | E14: PBQ | F14: 1376 | G14: 1404 | H14: 1505 | I14: 1820 | J14: 1378 | K14: 1553 | L14: 1662 | M14: 2169 | N14: 2447 | O14: 2377 | P14: 2804 | Q14: 3117 | R14: 3117 | S14: Col 4
B15: Col 5 | C15: POBQ(OPEN) | E15: POBQ(OPEN) | F15: 3571 | G15: 3103 | H15: 3459 | I15: 4308 | J15: 3802 | K15: 3368 | L15: 4107 | M15: 5527 | N15: 5806 | O15: 5140 | P15: 5687 | Q15: 6698 | R15: 6698 | S15: Col 5
C16: PB1 | D16: Volume | E16: PB1 | F16: 1690 | G16: 1799 | H16: 1880 | I16: 2031 | J16: 2205 | K16: 1873 | L16: 1850 | M16: 3101 | N16: 3090 | O16: 2831 | P16: 3138 | Q16: 3468
C17: PB2 | E17: PB2 | F17: 434 | G17: 127 | H17: 212 | I17: 728 | J17: 452 | K17: 238 | L17: 955 | M17: 577 | N17: 561 | O17: 392 | P17: 508 | Q17: 803
B18: Volume | C18: PB3 | E18: PB3 | F18: 0 | G18: 0 | H18: 0 | I18: 0 | J18: 0 | K18: 0 | L18: 0 | M18: 0 | N18: 0 | O18: 0 | P18: 0 | Q18: 0
C19: PB4 | E19: PB4 | F19: 0 | G19: 0 | H19: 0 | I19: 0 | J19: 0 | K19: 0 | L19: 0 | M19: 0 | N19: 0 | O19: 0 | P19: 0 | Q19: 0
C20: PB5 | E20: PB5 | F20: 0 | G20: 0 | H20: 0 | I20: 0 | J20: 0 | K20: 0 | L20: 0 | M20: 0 | N20: 0 | O20: 0 | P20: 0 | Q20: 0
B21: Payline | C21: Payline | E21: Payline | F21: 3500 | G21: 3330 | H21: 3596 | I21: 4578 | J21: 4036 | K21: 3664 | L21: 4240 | M21: 5745 | N21: 5996 | O21: 5455 | P21: 5969 | Q21: 7058 | R21: 7058 | S21: Payline
C23: PB Legs | E23: PB Legs | F23: 1 | G23: 1 | H23: 1 | I23: 1 | J23: 1 | K23: 1 | L23: 2 | M23: 2 | N23: 2 | O23: 2 | P23: 2 | Q23: 2
B24: Structure | C24: POB Legs | D24: Structure | E24: POB Legs | F24: 0 | G24: 0 | H24: 0 | I24: 0 | J24: 0 | K24: 0 | L24: 0 | M24: 0 | N24: 0 | O24: 0 | P24: 0 | Q24: 0
C25: PB Qualifiers | E25: PB Qualifiers | F25: 1 | G25: 1 | H25: 1 | I25: 1 | J25: 1 | K25: 1 | L25: 2 | M25: 2 | N25: 2 | O25: 2 | P25: 2 | Q25: 2
C26: POB Qualifiers
C27: Leg Balance%(top3) | E27: Leg Balance%(top3) | F27: 47 0 0 | G27: 37 0 0 | H27: 38 0 0 | I27: 40 0 0 | J27: 39 0 0 | K27: 33 0 0 | L27: 29 28 0 | M27: 33 24 0 | N27: 22 20 0 | O27: 23 18 0 | P27: 26 17 0 | Q27: 23 23 0
R29: Conf to Conference - 6 Months
C30: New DLRs | F30: 0 | G30: 0 | H30: 0 | I30: 1 | J30: 1 | K30: 0 | L30: 1 | M30: 0 | N30: 0 | O30: 1 | P30: 0 | Q30: 1 | R30: =SUM(L30:Q30) -> 3 | S30: New Reps
C31: New DDs | D31: Promotions | E31: New DLRs | F31: 0 | G31: 0 | H31: 0 | I31: 1 | J31: 0 | K31: 0 | L31: 0 | M31: 0 | N31: 0 | O31: 1 | P31: 0 | Q31: 2 | R31: =SUM(L31:Q31) -> 3 | S31: HLP's
B32: Promotions | C32: New VFs | E32: New DDs | F32: 0 | G32: 0 | H32: 0 | I32: 0 | J32: 0 | K32: 0 | L32: 1 | M32: 0 | N32: 0 | O32: 0 | P32: 0 | Q32: 0 | R32: =SUM(L32:Q32) -> 1 | S32: 2000+
C33: New SCs | E33: New VFs
C34: New SSC
C35: New QNMD
C36: New NMD
C38: Cntry - % Avg PVC | F38: USA
C39: Qualified Legs | E39: Cntry | F39: 1
C40: PB | E40: % Avg PVC | F40: Mary Joe | G40: 0.2303 | H40: Susie Smith | I40: 0.2329
C41: POB | E41: Qualified Legs

Sheet MJ Next Steps (hidden)
A1: Memory Jogger - Next Steps Worksheet
A3: Hover curser pver title | C3: 1 | D3: 2 | E3: 3 | F3: 4 | G3: 5 | H3: Revised 11/01/2013
A4: Develop skills by planning conversations | C4: Relational Next Step | D4: Educational Next Step | E4: What Educational Tool? | F4: What Story? | G4: What Event? | H4: Have a Vision for Next Step & Record Result
A5: Identify 10 People a Week from Memory Jogger | C5: Discuss how and when to effectively "Connect" and "Invite" them to learn more. | D5: Discuss where they are in their health journey. Identify interests to determine best tool | E5: Match the Educational tool with their Needs or Interests | F5: Invite those 10 to an Event by sharing stories that relate | G5: Involve those 10 in community as they are being Educated | H5: Imagine Conversation ahead of time.Close with a call to action - "A Next Step"
A6: 1
A7: 2
A8: 3
A9: 4
A10: 5
A11: 6
A12: 7
A13: 8
A14: 9
A15: 10
A16: 11
A17: 12
A18: 13
A19: 14
A20: 15
A21: 16
A22: 17
A23: 18
A24: 19
A25: 20
A26: 21
A27: 22
A28: 23
A29: 24
A30: 25
A31: 26
A32: 27
A33: 28
A34: 29
A35: 30
A36: 31
A37: 32
A38: 33
A39: 34
A40: 35
A41: 36
A42: 37
A43: 38
A44: 39
A45: 40
A46: 41
A47: 42
A48: 43
A49: 44
A50: 45
A51: 46
A52: 47
A53: 48
A54: 49
A55: 50
A56: 51
A57: 52
A58: 53
A59: 54
A60: 55
A61: 56
A62: 57
A63: 58
A64: 59
A65: 60
A66: 61
A67: 62
A68: 63
A69: 64
A70: 65
A71: 66
A72: 67
A73: 68
A74: 69
A75: 70
A76: 71
A77: 72
A78: 73
A79: 74
A80: 75
A81: 76
A82: 77
A83: 78
A84: 79
A85: 80
A86: 81
A87: 82
A88: 83
A89: 84
A90: 85
A91: 86
A92: 87
A93: 88
A94: 89
A95: 90
A96: 91
A97: 92
A98: 93
A99: 94
A100: 95
A101: 96
A102: 97
A103: 98
A104: 99
A105: 100
A106: 101
A107: 102
A108: 103
A109: 104
A110: 105
A111: 106
A112: 107
A113: 108
A114: 109
A115: 110
A116: 111
A117: 112
A118: 113
A119: 114
A120: 115
A121: 116
A122: 117
A123: 118
A124: 119
A125: 120
A126: 121
A127: 122
A128: 123
A129: 124
A130: 125
A131: 126
A132: 127
A133: 128
A134: 129
A135: 130
A136: 131
A137: 132
A138: 133
A139: 134
A140: 135
A141: 136
A142: 137
A143: 138
A144: 139
A145: 140
A146: 141
A147: 142
A148: 143
A149: 144
A150: 145
A151: 146
A152: 147
A153: 148
A154: 149
A155: 150
A156: 151
A157: 152
A158: 153
A159: 154
A160: 155
A161: 156
A162: 157
A163: 158
A164: 159
A165: 160
A166: 161
A167: 162
A168: 163
A169: 164
A170: 165
A171: 166
A172: 167
A173: 168
A174: 169
A175: 170
A176: 171
A177: 172
A178: 173
A179: 174
A180: 175
A181: 176
A182: 177
A183: 178
A184: 179
A185: 180
A186: 181
A187: 182
A188: 183
A189: 184
A190: 185
A191: 186
A192: 187
A193: 188
A194: 189
A195: 190
A196: 191
A197: 192
A198: 193
A199: 194
A200: 195
A201: 196
... 5 more rows

Sheet Dream Team (hidden)
E1: Dream Team: Identify, Invite & Involve
E2: Our Philosophy: We Hire for Attitude and Train for Skill
A3: Hover Curser over column title for Training
A4: Identify | C4: F.O.R.M. | D4: S.I.G.N. | E4: History with Your Previous Ed Exposures | F4: Best way to Connect | G4: Invite | H4: Involve | I4: Next Step Vision Record Result
A5: List 15 Dream Team Sponsor models how to Pre-Qualify people with Criteria of 4 Characteristics | C5: General Information if known Family / Friends …… Occupation………. Recreation……. Message/Money/Motivation | D5: Specific Info if known Strengths…… Interests…. Goals …… Needs… | E5: What is Next Step? Relational or Eductional or Both? Sponsor teaches " 4 Step Success Formula" | F5: What Communication Setting or Tool is best? Phone or in Person Online or Local Event | G5: Match your Approach Tool and Story to their F.O.R.M. & S.I.G.N. | H5: What Event? Involve them in our Community. Utilize 3-way Connections | I5: Imagine Conversation ahead of time.Close with a call to action - "A Next Step"
A6: 1
A7: 2
A8: 3
A9: 4
A10: 5
A11: 6
A12: 7
A13: 8
A14: 9
A15: 10
A16: 11
A17: 12
A18: 13
A19: 14
A20: 15
A21: 16
A22: 17
A23: 18
A24: 19
A25: 20
A26: 21
A27: 22
A28: 23
A29: 24
A30: 25
A31: 26
A32: 27
A33: 28
A34: 29
A35: 30
A36: 31
A37: 32
A38: 33
A39: 34
A40: 35
A41: 36
A42: 37
A43: 38
A44: 39
A45: 40
A46: 41
A47: 42
A48: 43
A49: 44
A50: 45
A51: 46
A52: 47
A53: 48
A54: 49
A55: 50
B58: Print out and hole punch to keep in Organizational Notebook

Sheet PB (KPI Report) (hidden)
A3: <style>
A4: body table td {
B5: vertical-align: top;
A6: }
A8: body table {
B9: height: auto;
A10: }
A11: </style>
A12: Performance Bonus (PB)
A13: Performance Bonus (PB)
A14: This report was run on May 24, 2016 10:54:19 PM CDT by SC Rep
A15: The information on this report is as of 2016-May-24 22:50
A17: Report Parameters:PVC Amount greater than: 0
A19: ****************************************************
A20: *** DUPLICATE SALES ORDER NUMBERS MAY APPEAR.
A21: *** This is due to multiple products belonging to a single Sales Order Number.
A22: *** If you want, you can change the report format to view product descriptions and show the differences between the Sales Order Numbers.
A23: ****************************************************
A27: Level | B27: FIN Number | C27: First Name | D27: Last Name | E27: Title | F27: Sales Order Number | G27: Date Shipped | H27: PVC Amount | I27: Ship To Name | J27: ARO Number
A28: 0 | B28: USM0037569 | C28: Mary | D28: Smith | E28: SC | F28: USO56456934 | G28: 2016-01-02 | H28: 26.62 | I28: Jane Doe | J28: 891891
A29: 0 | B29: USM0037569 | C29: Mary | D29: Smith | E29: SC | F29: USO56456935 | G29: 2016-01-03 | H29: 15.75 | I29: Jane Doe | J29: 892408
A30: 0 | B30: USM0037570 | C30: Mary | D30: Smith | E30: SC | F30: USO56456936 | G30: 2016-01-04 | H30: 42.37 | I30: John Deer | J30: 915675
A31: 0 | B31: USM0037571 | C31: Mary | D31: Smith | E31: SC | F31: USO56456937 | G31: 2016-01-05 | H31: 42.37 | I31: Case Mackey | J31: 915675
A32: 0 | B32: USM0037572 | C32: Mary | D32: Smith | E32: SC | F32: USO56456938 | G32: 2016-02-04 | H32: 42.37 | I32: George Jetson | J32: 102456
A33: 0 | B33: USM0037573 | C33: Mary | D33: Smith | E33: SC | F33: USO56456939 | G33: 2016-02-05 | H33: 42.37 | I33: Jack Frost | J33: 102456
A34: 0 | B34: USM0037574 | C34: Mary | D34: Smith | E34: SC | F34: USO56456940 | G34: 2016-02-06 | H34: 42.37 | I34: Forest Gump | J34: 102456
A35: 0 | B35: USM0037575 | C35: Mary | D35: Smith | E35: SC | F35: USO56456941 | G35: 2016-02-07 | H35: 181.5 | I35: Jean Start | J35: 102456
A36: 0 | B36: USM0037576 | C36: Mary | D36: Smith | E36: SC | F36: USO56456942 | G36: 2016-02-08 | H36: 70.5 | I36: Jask Pot | J36: 102456
A37: 0 | B37: USM0037577 | C37: Mary | D37: Smith | E37: SC | F37: USO56456943 | G37: 2016-02-09 | H37: 106.5 | I37: Jack Be Nimble | J37: 102456
A38: 0 | B38: USM0037578 | C38: Mary | D38: Smith | E38: SC | F38: USO56456944 | G38: 2016-02-10 | H38: 106.5 | I38: Orange Sherbert | J38: 102456
A39: 0 | B39: USM0037579 | C39: Mary | D39: Smith | E39: SC | F39: USO56456945 | G39: 2016-02-11 | H39: 70.5 | I39: Wheates Cereai | J39: 102456
A40: 0 | B40: USM0037580 | C40: Mary | D40: Smith | E40: SC | F40: USO56456946 | G40: 2016-03-04 | H40: 70.5 | I40: Michael Jackson | J40: 102456
A41: 0 | B41: USM0037581 | C41: Mary | D41: Smith | E41: SC | F41: USO56456947 | G41: 2016-03-05 | H41: 15.75 | I41: Marie Osman | J41: 124567
A42: 0 | B42: USM0037582 | C42: Mary | D42: Smith | E42: SC | F42: USO56456948 | G42: 2016-03-06 | H42: 42.37 | I42: Tina Turner | J42: 124567
A43: 0 | B43: USM0037583 | C43: Mary | D43: Smith | E43: SC | F43: USO56456949 | G43: 2016-03-07 | H43: 42.37 | I43: Barry Bonds | J43: 124567
A44: 0 | B44: USM0037584 | C44: Mary | D44: Smith | E44: SC | F44: USO56456950 | G44: 2016-03-08 | H44: 42.37 | I44: Michael Jordon | J44: 124567
A45: 0 | B45: USM0037585 | C45: Mary | D45: Smith | E45: SC | F45: USO56456951 | G45: 2016-04-08 | H45: 42.37 | I45: Jean Frazier | J45: 124567
A46: 0 | B46: USM0037586 | C46: Mary | D46: Smith | E46: SC | F46: USO56456952 | G46: 2016-04-09 | H46: 42.37 | I46: Morris Code | J46: 124567
A47: 0 | B47: USM0037587 | C47: Mary | D47: Smith | E47: SC | F47: USO56456953 | G47: 2016-04-10 | H47: 181.5 | I47: Gordon jones | J47: 124567
A48: 0 | B48: USM0037588 | C48: Mary | D48: Smith | E48: SC | F48: USO56456954 | G48: 2016-04-11 | H48: 70.5 | I48: Jay Martin | J48: 124567
A49: 0 | B49: USM0037589 | C49: Mary | D49: Smith | E49: SC | F49: USO56456955 | G49: 2016-04-12 | H49: 106.5 | I49: Randy Matthews | J49: 124567
A50: 0 | B50: USM0037590 | C50: Mary | D50: Smith | E50: SC | F50: USO56456956 | G50: 2016-04-13 | H50: 106.5 | I50: Jason LaChance | J50: 124567
A51: 0 | B51: USM0037591 | C51: Mary | D51: Smith | E51: SC | F51: USO56456957 | G51: 2016-05-03 | H51: 70.5 | I51: Janet Black | J51: 134765
A52: 0 | B52: USM0037592 | C52: Mary | D52: Smith | E52: SC | F52: USO56456958 | G52: 2016-04-02 | H52: 70.5 | I52: Mike Cliffton | J52: 134765
H53: Total PV :1699.82
A57: 13 row(s) returned

Sheet Cust Report (hidden)
A3: <style>
A4: body table td {
B5: vertical-align: top;
A6: }
A8: body table {
B9: height: auto;
A10: }
A11: </style>
A12: Click on the ARO Number to make a change to that customers record
A13: Click on the ARO Number to make a change to that customers record
A14: This report was run on May 24, 2016 10:03:31 PM CDT by DAWN A
A15: The information on this report is as of 2016-May-24 21:52
A17: ****************************************************
A18: *** DUPLICATE SALES ORDER NUMBERS MAY APPEAR.
A19: *** This is due to multiple products belonging to a single Sales Order Number.
A20: *** If you want, you can change the report format to view product descriptions and show the differences between the Sales Order Numbers.
A21: ****************************************************
A23: ARO Number | B23: First Name | C23: Last Name | D23: City | E23: State | F23: Phone | H23: Status | I23: Next Ship Date | J23: Product Description
A24: 891891 | B24: Jane | C24: Doe | D24: Homtown | E24: Missouri | F24: 314-545-7687 | H24: O | I24: 2016-06-25 | J24: Four month processing fee
A25: 892408 | B25: Jane | C25: Doe | D25: Homtown | E25: Missouri | F25: 314-545-7688 | H25: O | I25: 2016-06-25 | J25: JUICE PLUS+ CAPSULES
A26: 915675 | B26: John | C26: Deer | D26: Homtown | E26: Missouri | F26: 314-545-7689 | H26: R | I26: 2016-09-24 | J26: JUICE PLUS+ VINEYARD BLEND
A27: 915675 | B27: Case | C27: Mackey | D27: Homtown | E27: Missouri | F27: 314-545-7690 | H27: O | I27: 2016-06-24 | J27: Four month processing fee
A28: 102456 | B28: George | C28: Jetson | D28: Homtown | E28: Missouri | F28: 314-545-7691 | H28: O | I28: 2016-06-25 | J28: JUICE PLUS+ CAPSULES
A29: 102456 | B29: Jack | C29: Frost | D29: Homtown | E29: Missouri | F29: 314-545-7692 | H29: O | I29: 2016-09-24 | J29: JUICE PLUS+ CAPSULES
A30: 102456 | B30: Forest | C30: Gump | D30: Homtown | E30: Missouri | F30: 314-545-7693 | H30: O | I30: 2016-06-24 | J30: JUICE PLUS+ CAPSULES
A31: 102456 | B31: Jean | C31: Start | D31: Homtown | E31: Missouri | F31: 314-545-7694 | H31: O | I31: 2016-07-01 | J31: ORCHARD (4) JP+ CAPS
A32: 102456 | B32: Jask | C32: Pot | D32: Homtown | E32: Missouri | F32: 314-545-7695 | H32: O | I32: 2016-07-01 | J32: Two month processing fee
A33: 102456 | B33: Jack | C33: Nimble | D33: Homtown | E33: Missouri | F33: 314-545-7696 | H33: R | I33: 2016-09-23 | J33: (6) JP+ CAPSULES
A34: 102456 | B34: Orange | C34: Sherbert | D34: Homtown | E34: Missouri | F34: 314-545-7697 | H34: C | I34: 2016-09-23 | J34: Four month processing fee
A35: 102456 | B35: Wheates | C35: Cereai | D35: Homtown | E35: Missouri | F35: 314-545-7698 | H35: O | I35: 2016-06-04 | J35: DARK CHOCOLATE + FIG
A36: 102456 | B36: Michael | C36: Jackson | D36: Homtown | E36: Missouri | F36: 314-545-7699 | H36: O | I36: 2016-09-23 | J36: Four month processing fee
A37: 124567 | B37: Marie | C37: Osman | D37: Homtown | E37: Missouri | F37: 314-545-7700 | H37: O | I37: 2016-09-23 | J37: (6) JP+ CAPSULES
A38: 124567 | B38: Tina | C38: Turner | D38: Homtown | E38: Missouri | F38: 314-545-7701 | H38: O | I38: 2016-06-23 | J38: (12)JP+ CHEWABLES (3 BLEND)
A39: 124567 | B39: Barry | C39: Bonds | D39: Homtown | E39: Missouri | F39: 314-545-7702 | H39: C | I39: 2016-09-24 | J39: VARIETY COMPLETE
A40: 124567 | B40: Michael | C40: Jordon | D40: Homtown | E40: Missouri | F40: 314-545-7703 | H40: O | I40: 2016-09-23 | J40: Four month processing fee
A41: 124567 | B41: Jean | C41: Frazier | D41: Homtown | E41: Missouri | F41: 314-545-7704 | H41: I | I41: 2016-09-23 | J41: (6) JP+ CAPSULES
A42: 124567 | B42: Morris | C42: Code | D42: Homtown | E42: Missouri | F42: 314-545-7705 | H42: O | I42: 2016-09-23 | J42: (6) JP+ CAPSULES
A43: 124567 | B43: Gordon | C43: jones | D43: Homtown | E43: Missouri | F43: 314-545-7706 | H43: O | I43: 2016-09-23 | J43: Four month processing fee
A44: 124567 | B44: Jay | C44: Martin | D44: Homtown | E44: Missouri | F44: 314-545-7707 | H44: O | I44: 2016-09-23 | J44: (6) JP+ CAPSULES
A45: 124567 | B45: Randy | C45: Matthews | D45: Homtown | E45: Missouri | F45: 314-545-7708 | H45: O | I45: 2016-09-23 | J45: Four month processing fee
A46: 124567 | B46: Jason | C46: LaChance | D46: Homtown | E46: Missouri | F46: 314-545-7709 | H46: O | I46: 2016-06-24 | J46: VARIETY BAR DC+F(30)TC+H(30)
A47: 134765 | B47: Janet | C47: Black | D47: Homtown | E47: Missouri | F47: 314-545-7710 | H47: O | I47: 2016-06-24 | J47: CHOCOLATE COMPLETE
A48: 134765 | B48: Mike | C48: Cliffton | D48: Homtown | E48: Missouri | F48: 314-545-7711 | H48: O | I48: 2016-07-02 | J48: (12)JP+ CHEWABLES (3 BLEND)
A49: 134766 | B49: Trevor | C49: Roe | D49: Homtown | E49: Missouri | F49: 314-545-7712 | H49: C | I49: 2016-05-25 | J49: (12)JP+ CHEWABLES (3 BLEND)
A50: 134767 | B50: Trevor | C50: Roe | D50: Homtown | E50: Missouri | F50: 314-545-7713 | H50: I | I50: 2016-09-15 | J50: Four month processing fee
A51: 134768 | B51: Mat | C51: Holiday | D51: Homtown | E51: Missouri | F51: 314-545-7714 | H51: O | I51: 2016-09-15 | J51: JUICE PLUS+ VINEYARD BLEND
A52: 134769 | B52: Mat | C52: Carpenter | D52: Homtown | E52: Missouri | F52: 314-545-7715 | H52: O | I52: 2016-07-09 | J52: JUICE PLUS+ CAPSULES
A53: 134770 | B53: Mat | C53: Carpenter | D53: Homtown | E53: Missouri | F53: 314-545-7716 | H53: O | I53: 2016-07-09 | J53: Four month processing fee

Sheet Sheet2 (hidden)
